Workbook

Sheet ご使用に関して
A1: 本計算シート | B1: Ver.2.0
A2: ※本計算シートは、独立行政法人建築研究所（協力：国土交通省国土技術政策総合研究所）にて公開されている
A3: 「住宅・建築物の省エネルギー基準及び低炭素建築物の認定基準に関する技術情報（http://www.kenken.go.jp/becc/house.html）」
A4: の「設計一次エネルギー消費量算定方法」「3 暖冷房負荷と外皮性能 3-1全般 暖冷房負荷データ」を基に計算を行います。
A5: 「3 暖冷房負荷と外皮性能 3-1全般 暖冷房負荷データ」においては、1日の時刻を1時から24時と表記していますが、
A6: 本計算シートでは、1日を0時から23時と読み替えて作成しておりますので、ご注意ください。
A8: 使用許諾条件 | H8: 使用方法

Sheet 入力データ
B7: ■入力項目
B8: 用途 | C8: 分類 | D8: 項目名 | E8: 記号 | F8: 単位 | G8: 入力値
B9: 基本情報 | D9: 地域区分 | E9: - | F9: - | G9: 6地域
D10: 床面積の合計 | E10: A_A | F10: m2 | G10: 120.08
D11: 主たる居室の床面積 | E11: A_MR | F11: m2 | G11: 29.81
D12: その他の居室の床面積 | E12: A_OR | F12: m2 | G12: 51.34
B13: 暖冷房 | C13: 外皮 | D13: 当該住戸の外皮の部位の面積の合計 | E13: A_env | F13: m2 | G13: 312.8
D14: 当該住戸の外皮平均熱貫流率 | E14: U_A | F14: W/(m2K) | G14: 0.87
D15: 当該住戸の暖房期の平均日射熱取得率 | E15: η_(A,H) | F15: (W/m2)/(W/m2) | G15: 4.3
D16: 当該住戸の冷房期の平均日射熱取得率 | E16: η_(A,C) | F16: (W/m2)/(W/m2) | G16: 2.8
D17: 通風の利用における相当換気回数（主たる居室） | E17: NV_MR | F17: 1/h | G17: 0 | H17: ※省エネ基準では0回/h、5回/h、20回/hが選択可能
D18: 通風の利用における相当換気回数（その他の居室） | E18: NV_OR | F18: 1/h | G18: 0 | H18: ※省エネ基準では0回/h、5回/h、20回/hが選択可能
D19: 蓄熱の利用 | E19: r_TS | F19: - | G19: 利用しない
D20: 床下空間を経由して外気を導入する換気方式 | E20: - | F20: - | G20: 利用しない
D21: 当該住戸の床下空間全体の面積に対する外気を導入する床下空間の面積の比 | E21: r_(A,ufvnt) | F21: - | G21: 0.5
C22: 暖房設備 | D22: 運転モード | E22: - | F22: - | G22: 居室連続運転
D23: 床暖房採用の有無（主たる居室） | E23: - | F23: - | G23: 床暖房を採用しない
D24: 床暖房の敷設率（主たる居室） | E24: R_(l,i) | F24: - | G24: 0.75
D25: 床暖房採用の有無（その他の居室） | E25: - | F25: - | G25: 床暖房を採用しない
D26: 床暖房の敷設率（その他の居室） | E26: R_(l,i) | F26: - | G26: 0.75
C27: 冷房設備 | D27: 運転モード | E27: - | F27: - | G27: 居室間歇運転
B28: 換気 | C28: 熱交換換気 | D28: 熱交換型換気 | E28: - | F28: - | G28: 採用しない
D29: 全般換気設備の有効換気量率 | E29: e | F29: - | G29: 1
D30: 熱交換型換気設備の温度交換効率 | E30: ηt | F30: - | G30: 0.9
D31: 給気と排気の比率による温度交換効率の補正係数 | E31: Cbal | F31: - | G31: 0.9
D32: 排気過多時における住宅外皮経由の漏気による温度交換効率の補正係数 | E32: Cleak | F32: - | G32: 0.95
B33: 負荷ファイルフォルダパス | G33: C:\Users\Desktop\3-1_HukaData | H33: ←ダウンロードした負荷ファイルのフォルダパスを入力してください.なお、末尾に"\"はつけないでください.
B34: 暖冷房区画番号 | G34: 1

Sheet 計算結果
A1: ※計算過程シートのE,F,G列の数値が貼り付けられます。 | AZ1: →テスト用 ※単位をMJ/hからkJ/hに変更
A2: ※プログラム計算が実行されると、表内のデータは全て削除されます。 プログラム実行中は他の作業を行わないでください。計算結果が正しく算出されない可能性があります。
BE3: 住宅全体 | BX3: 住宅全体
F4: =SUM(F9:F8768) -> 13612.88699 | G4: =SUM(G9:G8768) -> 0 | H4: 0 | I4: 0 | J4: 0 | K4: 0 | L4: 0 | M4: 0 | N4: 0 | O4: 0 | P4: 0 | Q4: 0 | R4: 13612.88699 | Y4: =SUM(Y9:Y8768) -> 6679.999113 | Z4: =SUM(Z9:Z8768) -> 1680.361493 | AA4: 0 | AB4: 0 | AC4: 0 | AD4: 0 | AE4: 0 | AF4: 0 | AG4: 0 | AH4: 0 | AI4: 0 | AJ4: 0 | AK4: 0 | AL4: 0 | AM4: 0 | AN4: 0 | AO4: 0 | AP4: 0 | AQ4: 0 | AR4: 0 | AS4: 0 | AT4: 0 | AU4: 0 | AV4: 0 | AW4: 6679.999113 | AX4: 1680.361493 | BD4: 年間合計 | BE4: =SUM(BF4:BQ4) -> 13612886.99 | BF4: =SUM(BF9:BF8768) -> 13612886.99 | BG4: =SUM(BG9:BG8768) -> 0 | BH4: 0 | BI4: 0 | BJ4: 0 | BK4: 0 | BL4: 0 | BM4: 0 | BN4: 0 | BO4: 0 | BP4: 0 | BQ4: 0 | BW4: 年間合計 | BX4: =SUM(BY4:CI4) -> 8360360.605 | BY4: =SUM(BY9:BY8768) -> 6679999.113 | BZ4: =SUM(BZ9:BZ8768) -> 1680361.493 | CA4: 0 | CB4: 0 | CC4: 0 | CD4: 0 | CE4: 0 | CF4: 0 | CG4: 0 | CH4: 0 | CI4: 0 | CJ4: 0 | CK4: 0 | CL4: 0 | CM4: 0 | CN4: 0 | CO4: 0 | CP4: 0 | CQ4: 0 | CR4: 0 | CS4: 0 | CT4: 0 | CU4: 0 | CV4: 0
A5: ■標準住戸の暖房負荷結果 | T5: ■標準住戸の冷房負荷結果 | BA5: ■標準住戸の暖房負荷結果 | BT5: ■標準住戸の冷房負荷結果
D6: 外気 | F6: 居間食堂(LD)・台所(K) | G6: 和室 | H6: 主寝室 | I6: 子供室1 | J6: 子供室2 | K6: 浴室 | L6: 1F便所 | M6: 洗面所 | N6: ホール | O6: クローゼット | P6: 2Fホール | Q6: 2F便所 | R6: 住宅全体 | W6: 外気 | Y6: 居間食堂(LD)・台所(K) | AA6: 和室 | AC6: 主寝室 | AE6: 子供室1 | AG6: 子供室2 | AI6: 浴室 | AK6: 1F便所 | AM6: 洗面所 | AO6: ホール | AQ6: クローゼット | AS6: 2Fホール | AU6: 2F便所 | AW6: 住宅全体 | BD6: 外気 | BF6: 居間食堂(LD)・台所(K) | BG6: 和室 | BH6: 主寝室 | BI6: 子供室1 | BJ6: 子供室2 | BK6: 浴室 | BL6: 1F便所 | BM6: 洗面所 | BN6: ホール | BO6: クローゼット | BP6: 2Fホール | BQ6: 2F便所 | BW6: 外気 | BY6: 居間食堂(LD)・台所(K) | CA6: 和室 | CC6: 主寝室 | CE6: 子供室1 | CG6: 子供室2 | CI6: 浴室 | CK6: 1F便所 | CM6: 洗面所 | CO6: ホール | CQ6: クローゼット | CS6: 2Fホール | CU6: 2F便所
D7: 気温 | E7: 絶湿 | F7: 顕熱 | G7: 顕熱 | H7: 顕熱 | I7: 顕熱 | J7: 顕熱 | K7: 顕熱 | L7: 顕熱 | M7: 顕熱 | N7: 顕熱 | O7: 顕熱 | P7: 顕熱 | Q7: 顕熱 | R7: 顕熱 | W7: 気温 | X7: 絶湿 | Y7: 顕熱 | Z7: 潜熱 | AA7: 顕熱 | AB7: 潜熱 | AC7: 顕熱 | AD7: 潜熱 | AE7: 顕熱 | AF7: 潜熱 | AG7: 顕熱 | AH7: 潜熱 | AI7: 顕熱 | AJ7: 潜熱 | AK7: 顕熱 | AL7: 潜熱 | AM7: 顕熱 | AN7: 潜熱 | AO7: 顕熱 | AP7: 潜熱 | AQ7: 顕熱 | AR7: 潜熱 | AS7: 顕熱 | AT7: 潜熱 | AU7: 顕熱 | AV7: 潜熱 | AW7: 顕熱 | AX7: 潜熱 | BD7: 気温 | BE7: 絶湿 | BF7: 顕熱 | BG7: 顕熱 | BH7: 顕熱 | BI7: 顕熱 | BJ7: 顕熱 | BK7: 顕熱 | BL7: 顕熱 | BM7: 顕熱 | BN7: 顕熱 | BO7: 顕熱 | BP7: 顕熱 | BQ7: 顕熱 | BW7: 気温 | BX7: 絶湿 | BY7: 顕熱 | BZ7: 潜熱 | CA7: 顕熱 | CB7: 潜熱 | CC7: 顕熱 | CD7: 潜熱 | CE7: 顕熱 | CF7: 潜熱 | CG7: 顕熱 | CH7: 潜熱 | CI7: 顕熱 | CJ7: 潜熱 | CK7: 顕熱 | CL7: 潜熱 | CM7: 顕熱 | CN7: 潜熱 | CO7: 顕熱 | CP7: 潜熱 | CQ7: 顕熱 | CR7: 潜熱 | CS7: 顕熱 | CT7: 潜熱 | CU7: 顕熱 | CV7: 潜熱
D8: [℃] | E8: [g/kg'] | F8: [MJ/h] | G8: [MJ/h] | H8: [MJ/h] | I8: [MJ/h] | J8: [MJ/h] | K8: [MJ/h] | L8: [MJ/h] | M8: [MJ/h] | N8: [MJ/h] | O8: [MJ/h] | P8: [MJ/h] | Q8: [MJ/h] | R8: [MJ/h] | W8: [℃] | X8: [g/kg'] | Y8: [MJ/h] | Z8: [MJ/h] | AA8: [MJ/h] | AB8: [MJ/h] | AC8: [MJ/h] | AD8: [MJ/h] | AE8: [MJ/h] | AF8: [MJ/h] | AG8: [MJ/h] | AH8: [MJ/h] | AI8: [MJ/h] | AJ8: [MJ/h] | AK8: [MJ/h] | AL8: [MJ/h] | AM8: [MJ/h] | AN8: [MJ/h] | AO8: [MJ/h] | AP8: [MJ/h] | AQ8: [MJ/h] | AR8: [MJ/h] | AS8: [MJ/h] | AT8: [MJ/h] | AU8: [MJ/h] | AV8: [MJ/h] | AW8: [MJ/h] | AX8: [MJ/h] | BD8: [℃] | BE8: [g/kg'] | BF8: [kJ/h] | BG8: [kJ/h] | BH8: [kJ/h] | BI8: [kJ/h] | BJ8: [kJ/h] | BK8: [kJ/h] | BL8: [kJ/h] | BM8: [kJ/h] | BN8: [kJ/h] | BO8: [kJ/h] | BP8: [kJ/h] | BQ8: [kJ/h] | BW8: [℃] | BX8: [g/kg'] | BY8: [kJ/h] | BZ8: [kJ/h] | CA8: [kJ/h] | CB8: [kJ/h] | CC8: [kJ/h] | CD8: [kJ/h] | CE8: [kJ/h] | CF8: [kJ/h] | CG8: [kJ/h] | CH8: [kJ/h] | CI8: [kJ/h] | CJ8: [kJ/h] | CK8: [kJ/h] | CL8: [kJ/h] | CM8: [kJ/h] | CN8: [kJ/h] | CO8: [kJ/h] | CP8: [kJ/h] | CQ8: [kJ/h] | CR8: [kJ/h] | CS8: [kJ/h] | CT8: [kJ/h] | CU8: [kJ/h] | CV8: [kJ/h]
A9: 2014-01-01 | B9: 0時 | C9: 休日 | D9: 2.6 | E9: 3.3 | F9: 7.697957524 | R9: =SUM(F9:Q9) -> 7.697957524 | T9: 2014-01-01 | U9: 0時 | V9: 休日 | W9: 2.6 | X9: 3.3 | Y9: 0 | Z9: 0 | AW9: =Y9+AA9+AC9+AE9+AG9+AI9+AK9+AM9+AO9+AQ9+AS9+AU9 -> 0 | AX9: =Z9+AB9+AD9+AF9+AH9+AJ9+AL9+AN9+AP9+AR9+AT9+AV9 -> 0 | BA9: 2014-01-01 | BB9: 00:00:00 | BC9: 休日 | BD9: =D9 -> 2.6 | BE9: =E9 -> 3.3 | BF9: =F9*1000 -> 7697.957524 | BG9: =G9*1000 -> 0 | BH9: =H9*1000 -> 0 | BI9: =I9*1000 -> 0 | BJ9: =J9*1000 -> 0 | BK9: =K9*1000 -> 0 | BL9: =L9*1000 -> 0 | BM9: =M9*1000 -> 0 | BN9: =N9*1000 -> 0 | BO9: =O9*1000 -> 0 | BP9: =P9*1000 -> 0 | BQ9: =Q9*1000 -> 0 | BT9: 2014-01-01 | BU9: 00:00:00 | BV9: 休日 | BW9: =W9 -> 2.6 | BX9: =X9 -> 3.3 | BY9: =Y9*1000 -> 0 | BZ9: =Z9*1000 -> 0 | CA9: =AA9*1000 -> 0 | CB9: =AB9*1000 -> 0 | CC9: =AC9*1000 -> 0 | CD9: =AD9*1000 -> 0 | CE9: =AE9*1000 -> 0 | CF9: =AF9*1000 -> 0 | CG9: =AG9*1000 -> 0 | CH9: =AH9*1000 -> 0 | CI9: =AI9*1000 -> 0 | CJ9: =AJ9*1000 -> 0 | CK9: =AK9*1000 -> 0 | CL9: =AL9*1000 -> 0 | CM9: =AM9*1000 -> 0 | CN9: =AN9*1000 -> 0 | CO9: =AO9*1000 -> 0 | CP9: =AP9*1000 -> 0 | CQ9: =AQ9*1000 -> 0 | CR9: =AR9*1000 -> 0 | CS9: =AS9*1000 -> 0 | CT9: =AT9*1000 -> 0 | CU9: =AU9*1000 -> 0 | CV9: =AV9*1000 -> 0
A10: 2014-01-01 | B10: 1時 | C10: 休日 | D10: 2.9 | E10: 3.2 | F10: 7.761773816 | R10: 7.761773816 | T10: 2014-01-01 | U10: 1時 | V10: 休日 | W10: 2.9 | X10: 3.2 | Y10: 0 | Z10: 0 | AW10: =Y10+AA10+AC10+AE10+AG10+AI10+AK10+AM10+AO10+AQ10+AS10+AU10 -> 0 | AX10: 0 | BA10: 2014-01-01 | BB10: 01:00:00 | BC10: 休日 | BD10: 2.9 | BE10: 3.2 | BF10: 7761.773816 | BG10: 0 | BH10: 0 | BI10: 0 | BJ10: 0 | BK10: 0 | BL10: 0 | BM10: 0 | BN10: 0 | BO10: 0 | BP10: 0 | BQ10: 0 | BT10: 2014-01-01 | BU10: 01:00:00 | BV10: 休日 | BW10: 2.9 | BX10: 3.2 | BY10: 0 | BZ10: 0 | CA10: 0 | CB10: 0 | CC10: 0 | CD10: 0 | CE10: 0 | CF10: 0 | CG10: 0 | CH10: 0 | CI10: 0 | CJ10: 0 | CK10: 0 | CL10: 0 | CM10: 0 | CN10: 0 | CO10: 0 | CP10: 0 | CQ10: 0 | CR10: 0 | CS10: 0 | CT10: 0 | CU10: 0 | CV10: 0
A11: 2014-01-01 | B11: 2時 | C11: 休日 | D11: 2.8 | E11: 3.2 | F11: 7.873964723 | R11: 7.873964723 | T11: 2014-01-01 | U11: 2時 | V11: 休日 | W11: 2.8 | X11: 3.2 | Y11: 0 | Z11: 0 | AW11: 0 | AX11: 0 | BA11: 2014-01-01 | BB11: 02:00:00 | BC11: 休日 | BD11: 2.8 | BE11: 3.2 | BF11: 7873.964723 | BG11: 0 | BH11: 0 | BI11: 0 | BJ11: 0 | BK11: 0 | BL11: 0 | BM11: 0 | BN11: 0 | BO11: 0 | BP11: 0 | BQ11: 0 | BT11: 2014-01-01 | BU11: 02:00:00 | BV11: 休日 | BW11: 2.8 | BX11: 3.2 | BY11: 0 | BZ11: 0 | CA11: 0 | CB11: 0 | CC11: 0 | CD11: 0 | CE11: 0 | CF11: 0 | CG11: 0 | CH11: 0 | CI11: 0 | CJ11: 0 | CK11: 0 | CL11: 0 | CM11: 0 | CN11: 0 | CO11: 0 | CP11: 0 | CQ11: 0 | CR11: 0 | CS11: 0 | CT11: 0 | CU11: 0 | CV11: 0
A12: 2014-01-01 | B12: 3時 | C12: 休日 | D12: 2.4 | E12: 3.3 | F12: 8.03966774 | R12: 8.03966774 | T12: 2014-01-01 | U12: 3時 | V12: 休日 | W12: 2.4 | X12: 3.3 | Y12: 0 | Z12: 0 | AW12: 0 | AX12: 0 | BA12: 2014-01-01 | BB12: 03:00:00 | BC12: 休日 | BD12: 2.4 | BE12: 3.3 | BF12: 8039.66774 | BG12: 0 | BH12: 0 | BI12: 0 | BJ12: 0 | BK12: 0 | BL12: 0 | BM12: 0 | BN12: 0 | BO12: 0 | BP12: 0 | BQ12: 0 | BT12: 2014-01-01 | BU12: 03:00:00 | BV12: 休日 | BW12: 2.4 | BX12: 3.3 | BY12: 0 | BZ12: 0 | CA12: 0 | CB12: 0 | CC12: 0 | CD12: 0 | CE12: 0 | CF12: 0 | CG12: 0 | CH12: 0 | CI12: 0 | CJ12: 0 | CK12: 0 | CL12: 0 | CM12: 0 | CN12: 0 | CO12: 0 | CP12: 0 | CQ12: 0 | CR12: 0 | CS12: 0 | CT12: 0 | CU12: 0 | CV12: 0
A13: 2014-01-01 | B13: 4時 | C13: 休日 | D13: 2.4 | E13: 3.3 | F13: 8.106880514 | R13: 8.106880514 | T13: 2014-01-01 | U13: 4時 | V13: 休日 | W13: 2.4 | X13: 3.3 | Y13: 0 | Z13: 0 | AW13: 0 | AX13: 0 | BA13: 2014-01-01 | BB13: 04:00:00 | BC13: 休日 | BD13: 2.4 | BE13: 3.3 | BF13: 8106.880514 | BG13: 0 | BH13: 0 | BI13: 0 | BJ13: 0 | BK13: 0 | BL13: 0 | BM13: 0 | BN13: 0 | BO13: 0 | BP13: 0 | BQ13: 0 | BT13: 2014-01-01 | BU13: 04:00:00 | BV13: 休日 | BW13: 2.4 | BX13: 3.3 | BY13: 0 | BZ13: 0 | CA13: 0 | CB13: 0 | CC13: 0 | CD13: 0 | CE13: 0 | CF13: 0 | CG13: 0 | CH13: 0 | CI13: 0 | CJ13: 0 | CK13: 0 | CL13: 0 | CM13: 0 | CN13: 0 | CO13: 0 | CP13: 0 | CQ13: 0 | CR13: 0 | CS13: 0 | CT13: 0 | CU13: 0 | CV13: 0
A14: 2014-01-01 | B14: 5時 | C14: 休日 | D14: 2.8 | E14: 3.3 | F14: 8.051134778 | R14: 8.051134778 | T14: 2014-01-01 | U14: 5時 | V14: 休日 | W14: 2.8 | X14: 3.3 | Y14: 0 | Z14: 0 | AW14: 0 | AX14: 0 | BA14: 2014-01-01 | BB14: 05:00:00 | BC14: 休日 | BD14: 2.8 | BE14: 3.3 | BF14: 8051.134778 | BG14: 0 | BH14: 0 | BI14: 0 | BJ14: 0 | BK14: 0 | BL14: 0 | BM14: 0 | BN14: 0 | BO14: 0 | BP14: 0 | BQ14: 0 | BT14: 2014-01-01 | BU14: 05:00:00 | BV14: 休日 | BW14: 2.8 | BX14: 3.3 | BY14: 0 | BZ14: 0 | CA14: 0 | CB14: 0 | CC14: 0 | CD14: 0 | CE14: 0 | CF14: 0 | CG14: 0 | CH14: 0 | CI14: 0 | CJ14: 0 | CK14: 0 | CL14: 0 | CM14: 0 | CN14: 0 | CO14: 0 | CP14: 0 | CQ14: 0 | CR14: 0 | CS14: 0 | CT14: 0 | CU14: 0 | CV14: 0
A15: 2014-01-01 | B15: 6時 | C15: 休日 | D15: 2.3 | E15: 3.2 | F15: 8.170104147 | R15: 8.170104147 | T15: 2014-01-01 | U15: 6時 | V15: 休日 | W15: 2.3 | X15: 3.2 | Y15: 0 | Z15: 0 | AW15: 0 | AX15: 0 | BA15: 2014-01-01 | BB15: 06:00:00 | BC15: 休日 | BD15: 2.3 | BE15: 3.2 | BF15: 8170.104147 | BG15: 0 | BH15: 0 | BI15: 0 | BJ15: 0 | BK15: 0 | BL15: 0 | BM15: 0 | BN15: 0 | BO15: 0 | BP15: 0 | BQ15: 0 | BT15: 2014-01-01 | BU15: 06:00:00 | BV15: 休日 | BW15: 2.3 | BX15: 3.2 | BY15: 0 | BZ15: 0 | CA15: 0 | CB15: 0 | CC15: 0 | CD15: 0 | CE15: 0 | CF15: 0 | CG15: 0 | CH15: 0 | CI15: 0 | CJ15: 0 | CK15: 0 | CL15: 0 | CM15: 0 | CN15: 0 | CO15: 0 | CP15: 0 | CQ15: 0 | CR15: 0 | CS15: 0 | CT15: 0 | CU15: 0 | CV15: 0
A16: 2014-01-01 | B16: 7時 | C16: 休日 | D16: 2.3 | E16: 3.3 | F16: 6.365497338 | R16: 6.365497338 | T16: 2014-01-01 | U16: 7時 | V16: 休日 | W16: 2.3 | X16: 3.3 | Y16: 0 | Z16: 0 | AW16: 0 | AX16: 0 | BA16: 2014-01-01 | BB16: 07:00:00 | BC16: 休日 | BD16: 2.3 | BE16: 3.3 | BF16: 6365.497338 | BG16: 0 | BH16: 0 | BI16: 0 | BJ16: 0 | BK16: 0 | BL16: 0 | BM16: 0 | BN16: 0 | BO16: 0 | BP16: 0 | BQ16: 0 | BT16: 2014-01-01 | BU16: 07:00:00 | BV16: 休日 | BW16: 2.3 | BX16: 3.3 | BY16: 0 | BZ16: 0 | CA16: 0 | CB16: 0 | CC16: 0 | CD16: 0 | CE16: 0 | CF16: 0 | CG16: 0 | CH16: 0 | CI16: 0 | CJ16: 0 | CK16: 0 | CL16: 0 | CM16: 0 | CN16: 0 | CO16: 0 | CP16: 0 | CQ16: 0 | CR16: 0 | CS16: 0 | CT16: 0 | CU16: 0 | CV16: 0
A17: 2014-01-01 | B17: 8時 | C17: 休日 | D17: 3.7 | E17: 3.3 | F17: 0.7793319615 | R17: 0.7793319615 | T17: 2014-01-01 | U17: 8時 | V17: 休日 | W17: 3.7 | X17: 3.3 | Y17: 0 | Z17: 0 | AW17: 0 | AX17: 0 | BA17: 2014-01-01 | BB17: 08:00:00 | BC17: 休日 | BD17: 3.7 | BE17: 3.3 | BF17: 779.3319615 | BG17: 0 | BH17: 0 | BI17: 0 | BJ17: 0 | BK17: 0 | BL17: 0 | BM17: 0 | BN17: 0 | BO17: 0 | BP17: 0 | BQ17: 0 | BT17: 2014-01-01 | BU17: 08:00:00 | BV17: 休日 | BW17: 3.7 | BX17: 3.3 | BY17: 0 | BZ17: 0 | CA17: 0 | CB17: 0 | CC17: 0 | CD17: 0 | CE17: 0 | CF17: 0 | CG17: 0 | CH17: 0 | CI17: 0 | CJ17: 0 | CK17: 0 | CL17: 0 | CM17: 0 | CN17: 0 | CO17: 0 | CP17: 0 | CQ17: 0 | CR17: 0 | CS17: 0 | CT17: 0 | CU17: 0 | CV17: 0
A18: 2014-01-01 | B18: 9時 | C18: 休日 | D18: 5.9 | E18: 3.3 | F18: 0 | R18: 0 | T18: 2014-01-01 | U18: 9時 | V18: 休日 | W18: 5.9 | X18: 3.3 | Y18: 0 | Z18: 0 | AW18: 0 | AX18: 0 | BA18: 2014-01-01 | BB18: 09:00:00 | BC18: 休日 | BD18: 5.9 | BE18: 3.3 | BF18: 0 | BG18: 0 | BH18: 0 | BI18: 0 | BJ18: 0 | BK18: 0 | BL18: 0 | BM18: 0 | BN18: 0 | BO18: 0 | BP18: 0 | BQ18: 0 | BT18: 2014-01-01 | BU18: 09:00:00 | BV18: 休日 | BW18: 5.9 | BX18: 3.3 | BY18: 0 | BZ18: 0 | CA18: 0 | CB18: 0 | CC18: 0 | CD18: 0 | CE18: 0 | CF18: 0 | CG18: 0 | CH18: 0 | CI18: 0 | CJ18: 0 | CK18: 0 | CL18: 0 | CM18: 0 | CN18: 0 | CO18: 0 | CP18: 0 | CQ18: 0 | CR18: 0 | CS18: 0 | CT18: 0 | CU18: 0 | CV18: 0
A19: 2014-01-01 | B19: 10時 | C19: 休日 | D19: 7.7 | E19: 2.8 | F19: 0 | R19: 0 | T19: 2014-01-01 | U19: 10時 | V19: 休日 | W19: 7.7 | X19: 2.8 | Y19: 0 | Z19: 0 | AW19: 0 | AX19: 0 | BA19: 2014-01-01 | BB19: 10:00:00 | BC19: 休日 | BD19: 7.7 | BE19: 2.8 | BF19: 0 | BG19: 0 | BH19: 0 | BI19: 0 | BJ19: 0 | BK19: 0 | BL19: 0 | BM19: 0 | BN19: 0 | BO19: 0 | BP19: 0 | BQ19: 0 | BT19: 2014-01-01 | BU19: 10:00:00 | BV19: 休日 | BW19: 7.7 | BX19: 2.8 | BY19: 0 | BZ19: 0 | CA19: 0 | CB19: 0 | CC19: 0 | CD19: 0 | CE19: 0 | CF19: 0 | CG19: 0 | CH19: 0 | CI19: 0 | CJ19: 0 | CK19: 0 | CL19: 0 | CM19: 0 | CN19: 0 | CO19: 0 | CP19: 0 | CQ19: 0 | CR19: 0 | CS19: 0 | CT19: 0 | CU19: 0 | CV19: 0
A20: 2014-01-01 | B20: 11時 | C20: 休日 | D20: 8.5 | E20: 3 | F20: 0 | R20: 0 | T20: 2014-01-01 | U20: 11時 | V20: 休日 | W20: 8.5 | X20: 3 | Y20: 0 | Z20: 0 | AW20: 0 | AX20: 0 | BA20: 2014-01-01 | BB20: 11:00:00 | BC20: 休日 | BD20: 8.5 | BE20: 3 | BF20: 0 | BG20: 0 | BH20: 0 | BI20: 0 | BJ20: 0 | BK20: 0 | BL20: 0 | BM20: 0 | BN20: 0 | BO20: 0 | BP20: 0 | BQ20: 0 | BT20: 2014-01-01 | BU20: 11:00:00 | BV20: 休日 | BW20: 8.5 | BX20: 3 | BY20: 0 | BZ20: 0 | CA20: 0 | CB20: 0 | CC20: 0 | CD20: 0 | CE20: 0 | CF20: 0 | CG20: 0 | CH20: 0 | CI20: 0 | CJ20: 0 | CK20: 0 | CL20: 0 | CM20: 0 | CN20: 0 | CO20: 0 | CP20: 0 | CQ20: 0 | CR20: 0 | CS20: 0 | CT20: 0 | CU20: 0 | CV20: 0
A21: 2014-01-01 | B21: 12時 | C21: 休日 | D21: 9.3 | E21: 2.6 | F21: 0 | R21: 0 | T21: 2014-01-01 | U21: 12時 | V21: 休日 | W21: 9.3 | X21: 2.6 | Y21: 0 | Z21: 0 | AW21: 0 | AX21: 0 | BA21: 2014-01-01 | BB21: 12:00:00 | BC21: 休日 | BD21: 9.3 | BE21: 2.6 | BF21: 0 | BG21: 0 | BH21: 0 | BI21: 0 | BJ21: 0 | BK21: 0 | BL21: 0 | BM21: 0 | BN21: 0 | BO21: 0 | BP21: 0 | BQ21: 0 | BT21: 2014-01-01 | BU21: 12:00:00 | BV21: 休日 | BW21: 9.3 | BX21: 2.6 | BY21: 0 | BZ21: 0 | CA21: 0 | CB21: 0 | CC21: 0 | CD21: 0 | CE21: 0 | CF21: 0 | CG21: 0 | CH21: 0 | CI21: 0 | CJ21: 0 | CK21: 0 | CL21: 0 | CM21: 0 | CN21: 0 | CO21: 0 | CP21: 0 | CQ21: 0 | CR21: 0 | CS21: 0 | CT21: 0 | CU21: 0 | CV21: 0
A22: 2014-01-01 | B22: 13時 | C22: 休日 | D22: 9.8 | E22: 2.6 | F22: 0 | R22: 0 | T22: 2014-01-01 | U22: 13時 | V22: 休日 | W22: 9.8 | X22: 2.6 | Y22: 0 | Z22: 0 | AW22: 0 | AX22: 0 | BA22: 2014-01-01 | BB22: 13:00:00 | BC22: 休日 | BD22: 9.8 | BE22: 2.6 | BF22: 0 | BG22: 0 | BH22: 0 | BI22: 0 | BJ22: 0 | BK22: 0 | BL22: 0 | BM22: 0 | BN22: 0 | BO22: 0 | BP22: 0 | BQ22: 0 | BT22: 2014-01-01 | BU22: 13:00:00 | BV22: 休日 | BW22: 9.8 | BX22: 2.6 | BY22: 0 | BZ22: 0 | CA22: 0 | CB22: 0 | CC22: 0 | CD22: 0 | CE22: 0 | CF22: 0 | CG22: 0 | CH22: 0 | CI22: 0 | CJ22: 0 | CK22: 0 | CL22: 0 | CM22: 0 | CN22: 0 | CO22: 0 | CP22: 0 | CQ22: 0 | CR22: 0 | CS22: 0 | CT22: 0 | CU22: 0 | CV22: 0
A23: 2014-01-01 | B23: 14時 | C23: 休日 | D23: 9.6 | E23: 2.6 | F23: 0 | R23: 0 | T23: 2014-01-01 | U23: 14時 | V23: 休日 | W23: 9.6 | X23: 2.6 | Y23: 0 | Z23: 0 | AW23: 0 | AX23: 0 | BA23: 2014-01-01 | BB23: 14:00:00 | BC23: 休日 | BD23: 9.6 | BE23: 2.6 | BF23: 0 | BG23: 0 | BH23: 0 | BI23: 0 | BJ23: 0 | BK23: 0 | BL23: 0 | BM23: 0 | BN23: 0 | BO23: 0 | BP23: 0 | BQ23: 0 | BT23: 2014-01-01 | BU23: 14:00:00 | BV23: 休日 | BW23: 9.6 | BX23: 2.6 | BY23: 0 | BZ23: 0 | CA23: 0 | CB23: 0 | CC23: 0 | CD23: 0 | CE23: 0 | CF23: 0 | CG23: 0 | CH23: 0 | CI23: 0 | CJ23: 0 | CK23: 0 | CL23: 0 | CM23: 0 | CN23: 0 | CO23: 0 | CP23: 0 | CQ23: 0 | CR23: 0 | CS23: 0 | CT23: 0 | CU23: 0 | CV23: 0
A24: 2014-01-01 | B24: 15時 | C24: 休日 | D24: 8.9 | E24: 3.3 | F24: 0 | R24: 0 | T24: 2014-01-01 | U24: 15時 | V24: 休日 | W24: 8.9 | X24: 3.3 | Y24: 0 | Z24: 0 | AW24: 0 | AX24: 0 | BA24: 2014-01-01 | BB24: 15:00:00 | BC24: 休日 | BD24: 8.9 | BE24: 3.3 | BF24: 0 | BG24: 0 | BH24: 0 | BI24: 0 | BJ24: 0 | BK24: 0 | BL24: 0 | BM24: 0 | BN24: 0 | BO24: 0 | BP24: 0 | BQ24: 0 | BT24: 2014-01-01 | BU24: 15:00:00 | BV24: 休日 | BW24: 8.9 | BX24: 3.3 | BY24: 0 | BZ24: 0 | CA24: 0 | CB24: 0 | CC24: 0 | CD24: 0 | CE24: 0 | CF24: 0 | CG24: 0 | CH24: 0 | CI24: 0 | CJ24: 0 | CK24: 0 | CL24: 0 | CM24: 0 | CN24: 0 | CO24: 0 | CP24: 0 | CQ24: 0 | CR24: 0 | CS24: 0 | CT24: 0 | CU24: 0 | CV24: 0
A25: 2014-01-01 | B25: 16時 | C25: 休日 | D25: 7.9 | E25: 3.3 | F25: 0.5172665374 | R25: 0.5172665374 | T25: 2014-01-01 | U25: 16時 | V25: 休日 | W25: 7.9 | X25: 3.3 | Y25: 0 | Z25: 0 | AW25: 0 | AX25: 0 | BA25: 2014-01-01 | BB25: 16:00:00 | BC25: 休日 | BD25: 7.9 | BE25: 3.3 | BF25: 517.2665374 | BG25: 0 | BH25: 0 | BI25: 0 | BJ25: 0 | BK25: 0 | BL25: 0 | BM25: 0 | BN25: 0 | BO25: 0 | BP25: 0 | BQ25: 0 | BT25: 2014-01-01 | BU25: 16:00:00 | BV25: 休日 | BW25: 7.9 | BX25: 3.3 | BY25: 0 | BZ25: 0 | CA25: 0 | CB25: 0 | CC25: 0 | CD25: 0 | CE25: 0 | CF25: 0 | CG25: 0 | CH25: 0 | CI25: 0 | CJ25: 0 | CK25: 0 | CL25: 0 | CM25: 0 | CN25: 0 | CO25: 0 | CP25: 0 | CQ25: 0 | CR25: 0 | CS25: 0 | CT25: 0 | CU25: 0 | CV25: 0
A26: 2014-01-01 | B26: 17時 | C26: 休日 | D26: 6.9 | E26: 3.5 | F26: 3.246561377 | R26: 3.246561377 | T26: 2014-01-01 | U26: 17時 | V26: 休日 | W26: 6.9 | X26: 3.5 | Y26: 0 | Z26: 0 | AW26: 0 | AX26: 0 | BA26: 2014-01-01 | BB26: 17:00:00 | BC26: 休日 | BD26: 6.9 | BE26: 3.5 | BF26: 3246.561377 | BG26: 0 | BH26: 0 | BI26: 0 | BJ26: 0 | BK26: 0 | BL26: 0 | BM26: 0 | BN26: 0 | BO26: 0 | BP26: 0 | BQ26: 0 | BT26: 2014-01-01 | BU26: 17:00:00 | BV26: 休日 | BW26: 6.9 | BX26: 3.5 | BY26: 0 | BZ26: 0 | CA26: 0 | CB26: 0 | CC26: 0 | CD26: 0 | CE26: 0 | CF26: 0 | CG26: 0 | CH26: 0 | CI26: 0 | CJ26: 0 | CK26: 0 | CL26: 0 | CM26: 0 | CN26: 0 | CO26: 0 | CP26: 0 | CQ26: 0 | CR26: 0 | CS26: 0 | CT26: 0 | CU26: 0 | CV26: 0
A27: 2014-01-01 | B27: 18時 | C27: 休日 | D27: 6.4 | E27: 3.6 | F27: 2.195507419 | R27: 2.195507419 | T27: 2014-01-01 | U27: 18時 | V27: 休日 | W27: 6.4 | X27: 3.6 | Y27: 0 | Z27: 0 | AW27: 0 | AX27: 0 | BA27: 2014-01-01 | BB27: 18:00:00 | BC27: 休日 | BD27: 6.4 | BE27: 3.6 | BF27: 2195.507419 | BG27: 0 | BH27: 0 | BI27: 0 | BJ27: 0 | BK27: 0 | BL27: 0 | BM27: 0 | BN27: 0 | BO27: 0 | BP27: 0 | BQ27: 0 | BT27: 2014-01-01 | BU27: 18:00:00 | BV27: 休日 | BW27: 6.4 | BX27: 3.6 | BY27: 0 | BZ27: 0 | CA27: 0 | CB27: 0 | CC27: 0 | CD27: 0 | CE27: 0 | CF27: 0 | CG27: 0 | CH27: 0 | CI27: 0 | CJ27: 0 | CK27: 0 | CL27: 0 | CM27: 0 | CN27: 0 | CO27: 0 | CP27: 0 | CQ27: 0 | CR27: 0 | CS27: 0 | CT27: 0 | CU27: 0 | CV27: 0
A28: 2014-01-01 | B28: 19時 | C28: 休日 | D28: 6.4 | E28: 3.7 | F28: 3.290946498 | R28: 3.290946498 | T28: 2014-01-01 | U28: 19時 | V28: 休日 | W28: 6.4 | X28: 3.7 | Y28: 0 | Z28: 0 | AW28: 0 | AX28: 0 | BA28: 2014-01-01 | BB28: 19:00:00 | BC28: 休日 | BD28: 6.4 | BE28: 3.7 | BF28: 3290.946498 | BG28: 0 | BH28: 0 | BI28: 0 | BJ28: 0 | BK28: 0 | BL28: 0 | BM28: 0 | BN28: 0 | BO28: 0 | BP28: 0 | BQ28: 0 | BT28: 2014-01-01 | BU28: 19:00:00 | BV28: 休日 | BW28: 6.4 | BX28: 3.7 | BY28: 0 | BZ28: 0 | CA28: 0 | CB28: 0 | CC28: 0 | CD28: 0 | CE28: 0 | CF28: 0 | CG28: 0 | CH28: 0 | CI28: 0 | CJ28: 0 | CK28: 0 | CL28: 0 | CM28: 0 | CN28: 0 | CO28: 0 | CP28: 0 | CQ28: 0 | CR28: 0 | CS28: 0 | CT28: 0 | CU28: 0 | CV28: 0
A29: 2014-01-01 | B29: 20時 | C29: 休日 | D29: 6.4 | E29: 3.7 | F29: 3.796695166 | R29: 3.796695166 | T29: 2014-01-01 | U29: 20時 | V29: 休日 | W29: 6.4 | X29: 3.7 | Y29: 0 | Z29: 0 | AW29: 0 | AX29: 0 | BA29: 2014-01-01 | BB29: 20:00:00 | BC29: 休日 | BD29: 6.4 | BE29: 3.7 | BF29: 3796.695166 | BG29: 0 | BH29: 0 | BI29: 0 | BJ29: 0 | BK29: 0 | BL29: 0 | BM29: 0 | BN29: 0 | BO29: 0 | BP29: 0 | BQ29: 0 | BT29: 2014-01-01 | BU29: 20:00:00 | BV29: 休日 | BW29: 6.4 | BX29: 3.7 | BY29: 0 | BZ29: 0 | CA29: 0 | CB29: 0 | CC29: 0 | CD29: 0 | CE29: 0 | CF29: 0 | CG29: 0 | CH29: 0 | CI29: 0 | CJ29: 0 | CK29: 0 | CL29: 0 | CM29: 0 | CN29: 0 | CO29: 0 | CP29: 0 | CQ29: 0 | CR29: 0 | CS29: 0 | CT29: 0 | CU29: 0 | CV29: 0
A30: 2014-01-01 | B30: 21時 | C30: 休日 | D30: 6.2 | E30: 3.6 | F30: 4.46347525 | R30: 4.46347525 | T30: 2014-01-01 | U30: 21時 | V30: 休日 | W30: 6.2 | X30: 3.6 | Y30: 0 | Z30: 0 | AW30: 0 | AX30: 0 | BA30: 2014-01-01 | BB30: 21:00:00 | BC30: 休日 | BD30: 6.2 | BE30: 3.6 | BF30: 4463.47525 | BG30: 0 | BH30: 0 | BI30: 0 | BJ30: 0 | BK30: 0 | BL30: 0 | BM30: 0 | BN30: 0 | BO30: 0 | BP30: 0 | BQ30: 0 | BT30: 2014-01-01 | BU30: 21:00:00 | BV30: 休日 | BW30: 6.2 | BX30: 3.6 | BY30: 0 | BZ30: 0 | CA30: 0 | CB30: 0 | CC30: 0 | CD30: 0 | CE30: 0 | CF30: 0 | CG30: 0 | CH30: 0 | CI30: 0 | CJ30: 0 | CK30: 0 | CL30: 0 | CM30: 0 | CN30: 0 | CO30: 0 | CP30: 0 | CQ30: 0 | CR30: 0 | CS30: 0 | CT30: 0 | CU30: 0 | CV30: 0
A31: 2014-01-01 | B31: 22時 | C31: 休日 | D31: 6.1 | E31: 3.5 | F31: 5.823444567 | R31: 5.823444567 | T31: 2014-01-01 | U31: 22時 | V31: 休日 | W31: 6.1 | X31: 3.5 | Y31: 0 | Z31: 0 | AW31: 0 | AX31: 0 | BA31: 2014-01-01 | BB31: 22:00:00 | BC31: 休日 | BD31: 6.1 | BE31: 3.5 | BF31: 5823.444567 | BG31: 0 | BH31: 0 | BI31: 0 | BJ31: 0 | BK31: 0 | BL31: 0 | BM31: 0 | BN31: 0 | BO31: 0 | BP31: 0 | BQ31: 0 | BT31: 2014-01-01 | BU31: 22:00:00 | BV31: 休日 | BW31: 6.1 | BX31: 3.5 | BY31: 0 | BZ31: 0 | CA31: 0 | CB31: 0 | CC31: 0 | CD31: 0 | CE31: 0 | CF31: 0 | CG31: 0 | CH31: 0 | CI31: 0 | CJ31: 0 | CK31: 0 | CL31: 0 | CM31: 0 | CN31: 0 | CO31: 0 | CP31: 0 | CQ31: 0 | CR31: 0 | CS31: 0 | CT31: 0 | CU31: 0 | CV31: 0
A32: 2014-01-01 | B32: 23時 | C32: 休日 | D32: 5.9 | E32: 3.5 | F32: 6.147343686 | R32: 6.147343686 | T32: 2014-01-01 | U32: 23時 | V32: 休日 | W32: 5.9 | X32: 3.5 | Y32: 0 | Z32: 0 | AW32: 0 | AX32: 0 | BA32: 2014-01-01 | BB32: 23:00:00 | BC32: 休日 | BD32: 5.9 | BE32: 3.5 | BF32: 6147.343686 | BG32: 0 | BH32: 0 | BI32: 0 | BJ32: 0 | BK32: 0 | BL32: 0 | BM32: 0 | BN32: 0 | BO32: 0 | BP32: 0 | BQ32: 0 | BT32: 2014-01-01 | BU32: 23:00:00 | BV32: 休日 | BW32: 5.9 | BX32: 3.5 | BY32: 0 | BZ32: 0 | CA32: 0 | CB32: 0 | CC32: 0 | CD32: 0 | CE32: 0 | CF32: 0 | CG32: 0 | CH32: 0 | CI32: 0 | CJ32: 0 | CK32: 0 | CL32: 0 | CM32: 0 | CN32: 0 | CO32: 0 | CP32: 0 | CQ32: 0 | CR32: 0 | CS32: 0 | CT32: 0 | CU32: 0 | CV32: 0
A33: 2014-01-02 | B33: 0時 | C33: 平日 | D33: 5.4 | E33: 3.5 | F33: 6.451365329 | R33: 6.451365329 | T33: 2014-01-02 | U33: 0時 | V33: 平日 | W33: 5.4 | X33: 3.5 | Y33: 0 | Z33: 0 | AW33: 0 | AX33: 0 | BA33: 2014-01-02 | BB33: 00:00:00 | BC33: 平日 | BD33: 5.4 | BE33: 3.5 | BF33: 6451.365329 | BG33: 0 | BH33: 0 | BI33: 0 | BJ33: 0 | BK33: 0 | BL33: 0 | BM33: 0 | BN33: 0 | BO33: 0 | BP33: 0 | BQ33: 0 | BT33: 2014-01-02 | BU33: 00:00:00 | BV33: 平日 | BW33: 5.4 | BX33: 3.5 | BY33: 0 | BZ33: 0 | CA33: 0 | CB33: 0 | CC33: 0 | CD33: 0 | CE33: 0 | CF33: 0 | CG33: 0 | CH33: 0 | CI33: 0 | CJ33: 0 | CK33: 0 | CL33: 0 | CM33: 0 | CN33: 0 | CO33: 0 | CP33: 0 | CQ33: 0 | CR33: 0 | CS33: 0 | CT33: 0 | CU33: 0 | CV33: 0
A34: 2014-01-02 | B34: 1時 | C34: 平日 | D34: 5.6 | E34: 3.5 | F34: 6.546585579 | R34: 6.546585579 | T34: 2014-01-02 | U34: 1時 | V34: 平日 | W34: 5.6 | X34: 3.5 | Y34: 0 | Z34: 0 | AW34: 0 | AX34: 0 | BA34: 2014-01-02 | BB34: 01:00:00 | BC34: 平日 | BD34: 5.6 | BE34: 3.5 | BF34: 6546.585579 | BG34: 0 | BH34: 0 | BI34: 0 | BJ34: 0 | BK34: 0 | BL34: 0 | BM34: 0 | BN34: 0 | BO34: 0 | BP34: 0 | BQ34: 0 | BT34: 2014-01-02 | BU34: 01:00:00 | BV34: 平日 | BW34: 5.6 | BX34: 3.5 | BY34: 0 | BZ34: 0 | CA34: 0 | CB34: 0 | CC34: 0 | CD34: 0 | CE34: 0 | CF34: 0 | CG34: 0 | CH34: 0 | CI34: 0 | CJ34: 0 | CK34: 0 | CL34: 0 | CM34: 0 | CN34: 0 | CO34: 0 | CP34: 0 | CQ34: 0 | CR34: 0 | CS34: 0 | CT34: 0 | CU34: 0 | CV34: 0
A35: 2014-01-02 | B35: 2時 | C35: 平日 | D35: 5.5 | E35: 3.4 | F35: 6.662927981 | R35: 6.662927981 | T35: 2014-01-02 | U35: 2時 | V35: 平日 | W35: 5.5 | X35: 3.4 | Y35: 0 | Z35: 0 | AW35: 0 | AX35: 0 | BA35: 2014-01-02 | BB35: 02:00:00 | BC35: 平日 | BD35: 5.5 | BE35: 3.4 | BF35: 6662.927981 | BG35: 0 | BH35: 0 | BI35: 0 | BJ35: 0 | BK35: 0 | BL35: 0 | BM35: 0 | BN35: 0 | BO35: 0 | BP35: 0 | BQ35: 0 | BT35: 2014-01-02 | BU35: 02:00:00 | BV35: 平日 | BW35: 5.5 | BX35: 3.4 | BY35: 0 | BZ35: 0 | CA35: 0 | CB35: 0 | CC35: 0 | CD35: 0 | CE35: 0 | CF35: 0 | CG35: 0 | CH35: 0 | CI35: 0 | CJ35: 0 | CK35: 0 | CL35: 0 | CM35: 0 | CN35: 0 | CO35: 0 | CP35: 0 | CQ35: 0 | CR35: 0 | CS35: 0 | CT35: 0 | CU35: 0 | CV35: 0
A36: 2014-01-02 | B36: 3時 | C36: 平日 | D36: 5.5 | E36: 3.5 | F36: 6.739234626 | R36: 6.739234626 | T36: 2014-01-02 | U36: 3時 | V36: 平日 | W36: 5.5 | X36: 3.5 | Y36: 0 | Z36: 0 | AW36: 0 | AX36: 0 | BA36: 2014-01-02 | BB36: 03:00:00 | BC36: 平日 | BD36: 5.5 | BE36: 3.5 | BF36: 6739.234626 | BG36: 0 | BH36: 0 | BI36: 0 | BJ36: 0 | BK36: 0 | BL36: 0 | BM36: 0 | BN36: 0 | BO36: 0 | BP36: 0 | BQ36: 0 | BT36: 2014-01-02 | BU36: 03:00:00 | BV36: 平日 | BW36: 5.5 | BX36: 3.5 | BY36: 0 | BZ36: 0 | CA36: 0 | CB36: 0 | CC36: 0 | CD36: 0 | CE36: 0 | CF36: 0 | CG36: 0 | CH36: 0 | CI36: 0 | CJ36: 0 | CK36: 0 | CL36: 0 | CM36: 0 | CN36: 0 | CO36: 0 | CP36: 0 | CQ36: 0 | CR36: 0 | CS36: 0 | CT36: 0 | CU36: 0 | CV36: 0
A37: 2014-01-02 | B37: 4時 | C37: 平日 | D37: 5.4 | E37: 3.4 | F37: 6.824256609 | R37: 6.824256609 | T37: 2014-01-02 | U37: 4時 | V37: 平日 | W37: 5.4 | X37: 3.4 | Y37: 0 | Z37: 0 | AW37: 0 | AX37: 0 | BA37: 2014-01-02 | BB37: 04:00:00 | BC37: 平日 | BD37: 5.4 | BE37: 3.4 | BF37: 6824.256609 | BG37: 0 | BH37: 0 | BI37: 0 | BJ37: 0 | BK37: 0 | BL37: 0 | BM37: 0 | BN37: 0 | BO37: 0 | BP37: 0 | BQ37: 0 | BT37: 2014-01-02 | BU37: 04:00:00 | BV37: 平日 | BW37: 5.4 | BX37: 3.4 | BY37: 0 | BZ37: 0 | CA37: 0 | CB37: 0 | CC37: 0 | CD37: 0 | CE37: 0 | CF37: 0 | CG37: 0 | CH37: 0 | CI37: 0 | CJ37: 0 | CK37: 0 | CL37: 0 | CM37: 0 | CN37: 0 | CO37: 0 | CP37: 0 | CQ37: 0 | CR37: 0 | CS37: 0 | CT37: 0 | CU37: 0 | CV37: 0
A38: 2014-01-02 | B38: 5時 | C38: 平日 | D38: 5.7 | E38: 3.2 | F38: 7.627627295 | R38: 7.627627295 | T38: 2014-01-02 | U38: 5時 | V38: 平日 | W38: 5.7 | X38: 3.2 | Y38: 0 | Z38: 0 | AW38: 0 | AX38: 0 | BA38: 2014-01-02 | BB38: 05:00:00 | BC38: 平日 | BD38: 5.7 | BE38: 3.2 | BF38: 7627.627295 | BG38: 0 | BH38: 0 | BI38: 0 | BJ38: 0 | BK38: 0 | BL38: 0 | BM38: 0 | BN38: 0 | BO38: 0 | BP38: 0 | BQ38: 0 | BT38: 2014-01-02 | BU38: 05:00:00 | BV38: 平日 | BW38: 5.7 | BX38: 3.2 | BY38: 0 | BZ38: 0 | CA38: 0 | CB38: 0 | CC38: 0 | CD38: 0 | CE38: 0 | CF38: 0 | CG38: 0 | CH38: 0 | CI38: 0 | CJ38: 0 | CK38: 0 | CL38: 0 | CM38: 0 | CN38: 0 | CO38: 0 | CP38: 0 | CQ38: 0 | CR38: 0 | CS38: 0 | CT38: 0 | CU38: 0 | CV38: 0
A39: 2014-01-02 | B39: 6時 | C39: 平日 | D39: 5.1 | E39: 3.3 | F39: 5.469859029 | R39: 5.469859029 | T39: 2014-01-02 | U39: 6時 | V39: 平日 | W39: 5.1 | X39: 3.3 | Y39: 0 | Z39: 0 | AW39: 0 | AX39: 0 | BA39: 2014-01-02 | BB39: 06:00:00 | BC39: 平日 | BD39: 5.1 | BE39: 3.3 | BF39: 5469.859029 | BG39: 0 | BH39: 0 | BI39: 0 | BJ39: 0 | BK39: 0 | BL39: 0 | BM39: 0 | BN39: 0 | BO39: 0 | BP39: 0 | BQ39: 0 | BT39: 2014-01-02 | BU39: 06:00:00 | BV39: 平日 | BW39: 5.1 | BX39: 3.3 | BY39: 0 | BZ39: 0 | CA39: 0 | CB39: 0 | CC39: 0 | CD39: 0 | CE39: 0 | CF39: 0 | CG39: 0 | CH39: 0 | CI39: 0 | CJ39: 0 | CK39: 0 | CL39: 0 | CM39: 0 | CN39: 0 | CO39: 0 | CP39: 0 | CQ39: 0 | CR39: 0 | CS39: 0 | CT39: 0 | CU39: 0 | CV39: 0
A40: 2014-01-02 | B40: 7時 | C40: 平日 | D40: 4.5 | E40: 3.6 | F40: 3.707452175 | R40: 3.707452175 | T40: 2014-01-02 | U40: 7時 | V40: 平日 | W40: 4.5 | X40: 3.6 | Y40: 0 | Z40: 0 | AW40: 0 | AX40: 0 | BA40: 2014-01-02 | BB40: 07:00:00 | BC40: 平日 | BD40: 4.5 | BE40: 3.6 | BF40: 3707.452175 | BG40: 0 | BH40: 0 | BI40: 0 | BJ40: 0 | BK40: 0 | BL40: 0 | BM40: 0 | BN40: 0 | BO40: 0 | BP40: 0 | BQ40: 0 | BT40: 2014-01-02 | BU40: 07:00:00 | BV40: 平日 | BW40: 4.5 | BX40: 3.6 | BY40: 0 | BZ40: 0 | CA40: 0 | CB40: 0 | CC40: 0 | CD40: 0 | CE40: 0 | CF40: 0 | CG40: 0 | CH40: 0 | CI40: 0 | CJ40: 0 | CK40: 0 | CL40: 0 | CM40: 0 | CN40: 0 | CO40: 0 | CP40: 0 | CQ40: 0 | CR40: 0 | CS40: 0 | CT40: 0 | CU40: 0 | CV40: 0
A41: 2014-01-02 | B41: 8時 | C41: 平日 | D41: 5.3 | E41: 3.5 | F41: 3.820565532 | R41: 3.820565532 | T41: 2014-01-02 | U41: 8時 | V41: 平日 | W41: 5.3 | X41: 3.5 | Y41: 0 | Z41: 0 | AW41: 0 | AX41: 0 | BA41: 2014-01-02 | BB41: 08:00:00 | BC41: 平日 | BD41: 5.3 | BE41: 3.5 | BF41: 3820.565532 | BG41: 0 | BH41: 0 | BI41: 0 | BJ41: 0 | BK41: 0 | BL41: 0 | BM41: 0 | BN41: 0 | BO41: 0 | BP41: 0 | BQ41: 0 | BT41: 2014-01-02 | BU41: 08:00:00 | BV41: 平日 | BW41: 5.3 | BX41: 3.5 | BY41: 0 | BZ41: 0 | CA41: 0 | CB41: 0 | CC41: 0 | CD41: 0 | CE41: 0 | CF41: 0 | CG41: 0 | CH41: 0 | CI41: 0 | CJ41: 0 | CK41: 0 | CL41: 0 | CM41: 0 | CN41: 0 | CO41: 0 | CP41: 0 | CQ41: 0 | CR41: 0 | CS41: 0 | CT41: 0 | CU41: 0 | CV41: 0
A42: 2014-01-02 | B42: 9時 | C42: 平日 | D42: 6.7 | E42: 3.4 | F42: 4.136314054 | R42: 4.136314054 | T42: 2014-01-02 | U42: 9時 | V42: 平日 | W42: 6.7 | X42: 3.4 | Y42: 0 | Z42: 0 | AW42: 0 | AX42: 0 | BA42: 2014-01-02 | BB42: 09:00:00 | BC42: 平日 | BD42: 6.7 | BE42: 3.4 | BF42: 4136.314054 | BG42: 0 | BH42: 0 | BI42: 0 | BJ42: 0 | BK42: 0 | BL42: 0 | BM42: 0 | BN42: 0 | BO42: 0 | BP42: 0 | BQ42: 0 | BT42: 2014-01-02 | BU42: 09:00:00 | BV42: 平日 | BW42: 6.7 | BX42: 3.4 | BY42: 0 | BZ42: 0 | CA42: 0 | CB42: 0 | CC42: 0 | CD42: 0 | CE42: 0 | CF42: 0 | CG42: 0 | CH42: 0 | CI42: 0 | CJ42: 0 | CK42: 0 | CL42: 0 | CM42: 0 | CN42: 0 | CO42: 0 | CP42: 0 | CQ42: 0 | CR42: 0 | CS42: 0 | CT42: 0 | CU42: 0 | CV42: 0
A43: 2014-01-02 | B43: 10時 | C43: 平日 | D43: 6.7 | E43: 3 | F43: 4.154411719 | R43: 4.154411719 | T43: 2014-01-02 | U43: 10時 | V43: 平日 | W43: 6.7 | X43: 3 | Y43: 0 | Z43: 0 | AW43: 0 | AX43: 0 | BA43: 2014-01-02 | BB43: 10:00:00 | BC43: 平日 | BD43: 6.7 | BE43: 3 | BF43: 4154.411719 | BG43: 0 | BH43: 0 | BI43: 0 | BJ43: 0 | BK43: 0 | BL43: 0 | BM43: 0 | BN43: 0 | BO43: 0 | BP43: 0 | BQ43: 0 | BT43: 2014-01-02 | BU43: 10:00:00 | BV43: 平日 | BW43: 6.7 | BX43: 3 | BY43: 0 | BZ43: 0 | CA43: 0 | CB43: 0 | CC43: 0 | CD43: 0 | CE43: 0 | CF43: 0 | CG43: 0 | CH43: 0 | CI43: 0 | CJ43: 0 | CK43: 0 | CL43: 0 | CM43: 0 | CN43: 0 | CO43: 0 | CP43: 0 | CQ43: 0 | CR43: 0 | CS43: 0 | CT43: 0 | CU43: 0 | CV43: 0
A44: 2014-01-02 | B44: 11時 | C44: 平日 | D44: 7 | E44: 2.9 | F44: 4.110935308 | R44: 4.110935308 | T44: 2014-01-02 | U44: 11時 | V44: 平日 | W44: 7 | X44: 2.9 | Y44: 0 | Z44: 0 | AW44: 0 | AX44: 0 | BA44: 2014-01-02 | BB44: 11:00:00 | BC44: 平日 | BD44: 7 | BE44: 2.9 | BF44: 4110.935308 | BG44: 0 | BH44: 0 | BI44: 0 | BJ44: 0 | BK44: 0 | BL44: 0 | BM44: 0 | BN44: 0 | BO44: 0 | BP44: 0 | BQ44: 0 | BT44: 2014-01-02 | BU44: 11:00:00 | BV44: 平日 | BW44: 7 | BX44: 2.9 | BY44: 0 | BZ44: 0 | CA44: 0 | CB44: 0 | CC44: 0 | CD44: 0 | CE44: 0 | CF44: 0 | CG44: 0 | CH44: 0 | CI44: 0 | CJ44: 0 | CK44: 0 | CL44: 0 | CM44: 0 | CN44: 0 | CO44: 0 | CP44: 0 | CQ44: 0 | CR44: 0 | CS44: 0 | CT44: 0 | CU44: 0 | CV44: 0
A45: 2014-01-02 | B45: 12時 | C45: 平日 | D45: 7.2 | E45: 2.8 | F45: 2.837494184 | R45: 2.837494184 | T45: 2014-01-02 | U45: 12時 | V45: 平日 | W45: 7.2 | X45: 2.8 | Y45: 0 | Z45: 0 | AW45: 0 | AX45: 0 | BA45: 2014-01-02 | BB45: 12:00:00 | BC45: 平日 | BD45: 7.2 | BE45: 2.8 | BF45: 2837.494184 | BG45: 0 | BH45: 0 | BI45: 0 | BJ45: 0 | BK45: 0 | BL45: 0 | BM45: 0 | BN45: 0 | BO45: 0 | BP45: 0 | BQ45: 0 | BT45: 2014-01-02 | BU45: 12:00:00 | BV45: 平日 | BW45: 7.2 | BX45: 2.8 | BY45: 0 | BZ45: 0 | CA45: 0 | CB45: 0 | CC45: 0 | CD45: 0 | CE45: 0 | CF45: 0 | CG45: 0 | CH45: 0 | CI45: 0 | CJ45: 0 | CK45: 0 | CL45: 0 | CM45: 0 | CN45: 0 | CO45: 0 | CP45: 0 | CQ45: 0 | CR45: 0 | CS45: 0 | CT45: 0 | CU45: 0 | CV45: 0
A46: 2014-01-02 | B46: 13時 | C46: 平日 | D46: 7.5 | E46: 2.7 | F46: 3.371624498 | R46: 3.371624498 | T46: 2014-01-02 | U46: 13時 | V46: 平日 | W46: 7.5 | X46: 2.7 | Y46: 0 | Z46: 0 | AW46: 0 | AX46: 0 | BA46: 2014-01-02 | BB46: 13:00:00 | BC46: 平日 | BD46: 7.5 | BE46: 2.7 | BF46: 3371.624498 | BG46: 0 | BH46: 0 | BI46: 0 | BJ46: 0 | BK46: 0 | BL46: 0 | BM46: 0 | BN46: 0 | BO46: 0 | BP46: 0 | BQ46: 0 | BT46: 2014-01-02 | BU46: 13:00:00 | BV46: 平日 | BW46: 7.5 | BX46: 2.7 | BY46: 0 | BZ46: 0 | CA46: 0 | CB46: 0 | CC46: 0 | CD46: 0 | CE46: 0 | CF46: 0 | CG46: 0 | CH46: 0 | CI46: 0 | CJ46: 0 | CK46: 0 | CL46: 0 | CM46: 0 | CN46: 0 | CO46: 0 | CP46: 0 | CQ46: 0 | CR46: 0 | CS46: 0 | CT46: 0 | CU46: 0 | CV46: 0
A47: 2014-01-02 | B47: 14時 | C47: 平日 | D47: 7.5 | E47: 2.8 | F47: 1.059575979 | R47: 1.059575979 | T47: 2014-01-02 | U47: 14時 | V47: 平日 | W47: 7.5 | X47: 2.8 | Y47: 0 | Z47: 0 | AW47: 0 | AX47: 0 | BA47: 2014-01-02 | BB47: 14:00:00 | BC47: 平日 | BD47: 7.5 | BE47: 2.8 | BF47: 1059.575979 | BG47: 0 | BH47: 0 | BI47: 0 | BJ47: 0 | BK47: 0 | BL47: 0 | BM47: 0 | BN47: 0 | BO47: 0 | BP47: 0 | BQ47: 0 | BT47: 2014-01-02 | BU47: 14:00:00 | BV47: 平日 | BW47: 7.5 | BX47: 2.8 | BY47: 0 | BZ47: 0 | CA47: 0 | CB47: 0 | CC47: 0 | CD47: 0 | CE47: 0 | CF47: 0 | CG47: 0 | CH47: 0 | CI47: 0 | CJ47: 0 | CK47: 0 | CL47: 0 | CM47: 0 | CN47: 0 | CO47: 0 | CP47: 0 | CQ47: 0 | CR47: 0 | CS47: 0 | CT47: 0 | CU47: 0 | CV47: 0
A48: 2014-01-02 | B48: 15時 | C48: 平日 | D48: 7.6 | E48: 2.8 | F48: 0.8759641717 | R48: 0.8759641717 | T48: 2014-01-02 | U48: 15時 | V48: 平日 | W48: 7.6 | X48: 2.8 | Y48: 0 | Z48: 0 | AW48: 0 | AX48: 0 | BA48: 2014-01-02 | BB48: 15:00:00 | BC48: 平日 | BD48: 7.6 | BE48: 2.8 | BF48: 875.9641717 | BG48: 0 | BH48: 0 | BI48: 0 | BJ48: 0 | BK48: 0 | BL48: 0 | BM48: 0 | BN48: 0 | BO48: 0 | BP48: 0 | BQ48: 0 | BT48: 2014-01-02 | BU48: 15:00:00 | BV48: 平日 | BW48: 7.6 | BX48: 2.8 | BY48: 0 | BZ48: 0 | CA48: 0 | CB48: 0 | CC48: 0 | CD48: 0 | CE48: 0 | CF48: 0 | CG48: 0 | CH48: 0 | CI48: 0 | CJ48: 0 | CK48: 0 | CL48: 0 | CM48: 0 | CN48: 0 | CO48: 0 | CP48: 0 | CQ48: 0 | CR48: 0 | CS48: 0 | CT48: 0 | CU48: 0 | CV48: 0
A49: 2014-01-02 | B49: 16時 | C49: 平日 | D49: 7.4 | E49: 2.8 | F49: 2.684682654 | R49: 2.684682654 | T49: 2014-01-02 | U49: 16時 | V49: 平日 | W49: 7.4 | X49: 2.8 | Y49: 0 | Z49: 0 | AW49: 0 | AX49: 0 | BA49: 2014-01-02 | BB49: 16:00:00 | BC49: 平日 | BD49: 7.4 | BE49: 2.8 | BF49: 2684.682654 | BG49: 0 | BH49: 0 | BI49: 0 | BJ49: 0 | BK49: 0 | BL49: 0 | BM49: 0 | BN49: 0 | BO49: 0 | BP49: 0 | BQ49: 0 | BT49: 2014-01-02 | BU49: 16:00:00 | BV49: 平日 | BW49: 7.4 | BX49: 2.8 | BY49: 0 | BZ49: 0 | CA49: 0 | CB49: 0 | CC49: 0 | CD49: 0 | CE49: 0 | CF49: 0 | CG49: 0 | CH49: 0 | CI49: 0 | CJ49: 0 | CK49: 0 | CL49: 0 | CM49: 0 | CN49: 0 | CO49: 0 | CP49: 0 | CQ49: 0 | CR49: 0 | CS49: 0 | CT49: 0 | CU49: 0 | CV49: 0
A50: 2014-01-02 | B50: 17時 | C50: 平日 | D50: 6.7 | E50: 2.9 | F50: 5.65959392 | R50: 5.65959392 | T50: 2014-01-02 | U50: 17時 | V50: 平日 | W50: 6.7 | X50: 2.9 | Y50: 0 | Z50: 0 | AW50: 0 | AX50: 0 | BA50: 2014-01-02 | BB50: 17:00:00 | BC50: 平日 | BD50: 6.7 | BE50: 2.9 | BF50: 5659.59392 | BG50: 0 | BH50: 0 | BI50: 0 | BJ50: 0 | BK50: 0 | BL50: 0 | BM50: 0 | BN50: 0 | BO50: 0 | BP50: 0 | BQ50: 0 | BT50: 2014-01-02 | BU50: 17:00:00 | BV50: 平日 | BW50: 6.7 | BX50: 2.9 | BY50: 0 | BZ50: 0 | CA50: 0 | CB50: 0 | CC50: 0 | CD50: 0 | CE50: 0 | CF50: 0 | CG50: 0 | CH50: 0 | CI50: 0 | CJ50: 0 | CK50: 0 | CL50: 0 | CM50: 0 | CN50: 0 | CO50: 0 | CP50: 0 | CQ50: 0 | CR50: 0 | CS50: 0 | CT50: 0 | CU50: 0 | CV50: 0
A51: 2014-01-02 | B51: 18時 | C51: 平日 | D51: 6 | E51: 2.9 | F51: 6.338463149 | R51: 6.338463149 | T51: 2014-01-02 | U51: 18時 | V51: 平日 | W51: 6 | X51: 2.9 | Y51: 0 | Z51: 0 | AW51: 0 | AX51: 0 | BA51: 2014-01-02 | BB51: 18:00:00 | BC51: 平日 | BD51: 6 | BE51: 2.9 | BF51: 6338.463149 | BG51: 0 | BH51: 0 | BI51: 0 | BJ51: 0 | BK51: 0 | BL51: 0 | BM51: 0 | BN51: 0 | BO51: 0 | BP51: 0 | BQ51: 0 | BT51: 2014-01-02 | BU51: 18:00:00 | BV51: 平日 | BW51: 6 | BX51: 2.9 | BY51: 0 | BZ51: 0 | CA51: 0 | CB51: 0 | CC51: 0 | CD51: 0 | CE51: 0 | CF51: 0 | CG51: 0 | CH51: 0 | CI51: 0 | CJ51: 0 | CK51: 0 | CL51: 0 | CM51: 0 | CN51: 0 | CO51: 0 | CP51: 0 | CQ51: 0 | CR51: 0 | CS51: 0 | CT51: 0 | CU51: 0 | CV51: 0
A52: 2014-01-02 | B52: 19時 | C52: 平日 | D52: 4.7 | E52: 3.1 | F52: 4.374100413 | R52: 4.374100413 | T52: 2014-01-02 | U52: 19時 | V52: 平日 | W52: 4.7 | X52: 3.1 | Y52: 0 | Z52: 0 | AW52: 0 | AX52: 0 | BA52: 2014-01-02 | BB52: 19:00:00 | BC52: 平日 | BD52: 4.7 | BE52: 3.1 | BF52: 4374.100413 | BG52: 0 | BH52: 0 | BI52: 0 | BJ52: 0 | BK52: 0 | BL52: 0 | BM52: 0 | BN52: 0 | BO52: 0 | BP52: 0 | BQ52: 0 | BT52: 2014-01-02 | BU52: 19:00:00 | BV52: 平日 | BW52: 4.7 | BX52: 3.1 | BY52: 0 | BZ52: 0 | CA52: 0 | CB52: 0 | CC52: 0 | CD52: 0 | CE52: 0 | CF52: 0 | CG52: 0 | CH52: 0 | CI52: 0 | CJ52: 0 | CK52: 0 | CL52: 0 | CM52: 0 | CN52: 0 | CO52: 0 | CP52: 0 | CQ52: 0 | CR52: 0 | CS52: 0 | CT52: 0 | CU52: 0 | CV52: 0
A53: 2014-01-02 | B53: 20時 | C53: 平日 | D53: 3.6 | E53: 3.1 | F53: 5.295595523 | R53: 5.295595523 | T53: 2014-01-02 | U53: 20時 | V53: 平日 | W53: 3.6 | X53: 3.1 | Y53: 0 | Z53: 0 | AW53: 0 | AX53: 0 | BA53: 2014-01-02 | BB53: 20:00:00 | BC53: 平日 | BD53: 3.6 | BE53: 3.1 | BF53: 5295.595523 | BG53: 0 | BH53: 0 | BI53: 0 | BJ53: 0 | BK53: 0 | BL53: 0 | BM53: 0 | BN53: 0 | BO53: 0 | BP53: 0 | BQ53: 0 | BT53: 2014-01-02 | BU53: 20:00:00 | BV53: 平日 | BW53: 3.6 | BX53: 3.1 | BY53: 0 | BZ53: 0 | CA53: 0 | CB53: 0 | CC53: 0 | CD53: 0 | CE53: 0 | CF53: 0 | CG53: 0 | CH53: 0 | CI53: 0 | CJ53: 0 | CK53: 0 | CL53: 0 | CM53: 0 | CN53: 0 | CO53: 0 | CP53: 0 | CQ53: 0 | CR53: 0 | CS53: 0 | CT53: 0 | CU53: 0 | CV53: 0
A54: 2014-01-02 | B54: 21時 | C54: 平日 | D54: 2.9 | E54: 3.1 | F54: 6.01269548 | R54: 6.01269548 | T54: 2014-01-02 | U54: 21時 | V54: 平日 | W54: 2.9 | X54: 3.1 | Y54: 0 | Z54: 0 | AW54: 0 | AX54: 0 | BA54: 2014-01-02 | BB54: 21:00:00 | BC54: 平日 | BD54: 2.9 | BE54: 3.1 | BF54: 6012.69548 | BG54: 0 | BH54: 0 | BI54: 0 | BJ54: 0 | BK54: 0 | BL54: 0 | BM54: 0 | BN54: 0 | BO54: 0 | BP54: 0 | BQ54: 0 | BT54: 2014-01-02 | BU54: 21:00:00 | BV54: 平日 | BW54: 2.9 | BX54: 3.1 | BY54: 0 | BZ54: 0 | CA54: 0 | CB54: 0 | CC54: 0 | CD54: 0 | CE54: 0 | CF54: 0 | CG54: 0 | CH54: 0 | CI54: 0 | CJ54: 0 | CK54: 0 | CL54: 0 | CM54: 0 | CN54: 0 | CO54: 0 | CP54: 0 | CQ54: 0 | CR54: 0 | CS54: 0 | CT54: 0 | CU54: 0 | CV54: 0
A55: 2014-01-02 | B55: 22時 | C55: 平日 | D55: 2.1 | E55: 3.2 | F55: 6.626423954 | R55: 6.626423954 | T55: 2014-01-02 | U55: 22時 | V55: 平日 | W55: 2.1 | X55: 3.2 | Y55: 0 | Z55: 0 | AW55: 0 | AX55: 0 | BA55: 2014-01-02 | BB55: 22:00:00 | BC55: 平日 | BD55: 2.1 | BE55: 3.2 | BF55: 6626.423954 | BG55: 0 | BH55: 0 | BI55: 0 | BJ55: 0 | BK55: 0 | BL55: 0 | BM55: 0 | BN55: 0 | BO55: 0 | BP55: 0 | BQ55: 0 | BT55: 2014-01-02 | BU55: 22:00:00 | BV55: 平日 | BW55: 2.1 | BX55: 3.2 | BY55: 0 | BZ55: 0 | CA55: 0 | CB55: 0 | CC55: 0 | CD55: 0 | CE55: 0 | CF55: 0 | CG55: 0 | CH55: 0 | CI55: 0 | CJ55: 0 | CK55: 0 | CL55: 0 | CM55: 0 | CN55: 0 | CO55: 0 | CP55: 0 | CQ55: 0 | CR55: 0 | CS55: 0 | CT55: 0 | CU55: 0 | CV55: 0
A56: 2014-01-02 | B56: 23時 | C56: 平日 | D56: 1.6 | E56: 3.1 | F56: 7.864259496 | R56: 7.864259496 | T56: 2014-01-02 | U56: 23時 | V56: 平日 | W56: 1.6 | X56: 3.1 | Y56: 0 | Z56: 0 | AW56: 0 | AX56: 0 | BA56: 2014-01-02 | BB56: 23:00:00 | BC56: 平日 | BD56: 1.6 | BE56: 3.1 | BF56: 7864.259496 | BG56: 0 | BH56: 0 | BI56: 0 | BJ56: 0 | BK56: 0 | BL56: 0 | BM56: 0 | BN56: 0 | BO56: 0 | BP56: 0 | BQ56: 0 | BT56: 2014-01-02 | BU56: 23:00:00 | BV56: 平日 | BW56: 1.6 | BX56: 3.1 | BY56: 0 | BZ56: 0 | CA56: 0 | CB56: 0 | CC56: 0 | CD56: 0 | CE56: 0 | CF56: 0 | CG56: 0 | CH56: 0 | CI56: 0 | CJ56: 0 | CK56: 0 | CL56: 0 | CM56: 0 | CN56: 0 | CO56: 0 | CP56: 0 | CQ56: 0 | CR56: 0 | CS56: 0 | CT56: 0 | CU56: 0 | CV56: 0
A57: 2014-01-03 | B57: 0時 | C57: 平日 | D57: 1.3 | E57: 3.1 | F57: 8.155630715 | R57: 8.155630715 | T57: 2014-01-03 | U57: 0時 | V57: 平日 | W57: 1.3 | X57: 3.1 | Y57: 0 | Z57: 0 | AW57: 0 | AX57: 0 | BA57: 2014-01-03 | BB57: 00:00:00 | BC57: 平日 | BD57: 1.3 | BE57: 3.1 | BF57: 8155.630715 | BG57: 0 | BH57: 0 | BI57: 0 | BJ57: 0 | BK57: 0 | BL57: 0 | BM57: 0 | BN57: 0 | BO57: 0 | BP57: 0 | BQ57: 0 | BT57: 2014-01-03 | BU57: 00:00:00 | BV57: 平日 | BW57: 1.3 | BX57: 3.1 | BY57: 0 | BZ57: 0 | CA57: 0 | CB57: 0 | CC57: 0 | CD57: 0 | CE57: 0 | CF57: 0 | CG57: 0 | CH57: 0 | CI57: 0 | CJ57: 0 | CK57: 0 | CL57: 0 | CM57: 0 | CN57: 0 | CO57: 0 | CP57: 0 | CQ57: 0 | CR57: 0 | CS57: 0 | CT57: 0 | CU57: 0 | CV57: 0
A58: 2014-01-03 | B58: 1時 | C58: 平日 | D58: 0.6 | E58: 3.1 | F58: 8.470529467 | R58: 8.470529467 | T58: 2014-01-03 | U58: 1時 | V58: 平日 | W58: 0.6 | X58: 3.1 | Y58: 0 | Z58: 0 | AW58: 0 | AX58: 0 | BA58: 2014-01-03 | BB58: 01:00:00 | BC58: 平日 | BD58: 0.6 | BE58: 3.1 | BF58: 8470.529467 | BG58: 0 | BH58: 0 | BI58: 0 | BJ58: 0 | BK58: 0 | BL58: 0 | BM58: 0 | BN58: 0 | BO58: 0 | BP58: 0 | BQ58: 0 | BT58: 2014-01-03 | BU58: 01:00:00 | BV58: 平日 | BW58: 0.6 | BX58: 3.1 | BY58: 0 | BZ58: 0 | CA58: 0 | CB58: 0 | CC58: 0 | CD58: 0 | CE58: 0 | CF58: 0 | CG58: 0 | CH58: 0 | CI58: 0 | CJ58: 0 | CK58: 0 | CL58: 0 | CM58: 0 | CN58: 0 | CO58: 0 | CP58: 0 | CQ58: 0 | CR58: 0 | CS58: 0 | CT58: 0 | CU58: 0 | CV58: 0
A59: 2014-01-03 | B59: 2時 | C59: 平日 | D59: 0.6 | E59: 3 | F59: 8.599393476 | R59: 8.599393476 | T59: 2014-01-03 | U59: 2時 | V59: 平日 | W59: 0.6 | X59: 3 | Y59: 0 | Z59: 0 | AW59: 0 | AX59: 0 | BA59: 2014-01-03 | BB59: 02:00:00 | BC59: 平日 | BD59: 0.6 | BE59: 3 | BF59: 8599.393476 | BG59: 0 | BH59: 0 | BI59: 0 | BJ59: 0 | BK59: 0 | BL59: 0 | BM59: 0 | BN59: 0 | BO59: 0 | BP59: 0 | BQ59: 0 | BT59: 2014-01-03 | BU59: 02:00:00 | BV59: 平日 | BW59: 0.6 | BX59: 3 | BY59: 0 | BZ59: 0 | CA59: 0 | CB59: 0 | CC59: 0 | CD59: 0 | CE59: 0 | CF59: 0 | CG59: 0 | CH59: 0 | CI59: 0 | CJ59: 0 | CK59: 0 | CL59: 0 | CM59: 0 | CN59: 0 | CO59: 0 | CP59: 0 | CQ59: 0 | CR59: 0 | CS59: 0 | CT59: 0 | CU59: 0 | CV59: 0
A60: 2014-01-03 | B60: 3時 | C60: 平日 | D60: 0.7 | E60: 3.1 | F60: 8.662829643 | R60: 8.662829643 | T60: 2014-01-03 | U60: 3時 | V60: 平日 | W60: 0.7 | X60: 3.1 | Y60: 0 | Z60: 0 | AW60: 0 | AX60: 0 | BA60: 2014-01-03 | BB60: 03:00:00 | BC60: 平日 | BD60: 0.7 | BE60: 3.1 | BF60: 8662.829643 | BG60: 0 | BH60: 0 | BI60: 0 | BJ60: 0 | BK60: 0 | BL60: 0 | BM60: 0 | BN60: 0 | BO60: 0 | BP60: 0 | BQ60: 0 | BT60: 2014-01-03 | BU60: 03:00:00 | BV60: 平日 | BW60: 0.7 | BX60: 3.1 | BY60: 0 | BZ60: 0 | CA60: 0 | CB60: 0 | CC60: 0 | CD60: 0 | CE60: 0 | CF60: 0 | CG60: 0 | CH60: 0 | CI60: 0 | CJ60: 0 | CK60: 0 | CL60: 0 | CM60: 0 | CN60: 0 | CO60: 0 | CP60: 0 | CQ60: 0 | CR60: 0 | CS60: 0 | CT60: 0 | CU60: 0 | CV60: 0
A61: 2014-01-03 | B61: 4時 | C61: 平日 | D61: 0.7 | E61: 3.1 | F61: 8.710618141 | R61: 8.710618141 | T61: 2014-01-03 | U61: 4時 | V61: 平日 | W61: 0.7 | X61: 3.1 | Y61: 0 | Z61: 0 | AW61: 0 | AX61: 0 | BA61: 2014-01-03 | BB61: 04:00:00 | BC61: 平日 | BD61: 0.7 | BE61: 3.1 | BF61: 8710.618141 | BG61: 0 | BH61: 0 | BI61: 0 | BJ61: 0 | BK61: 0 | BL61: 0 | BM61: 0 | BN61: 0 | BO61: 0 | BP61: 0 | BQ61: 0 | BT61: 2014-01-03 | BU61: 04:00:00 | BV61: 平日 | BW61: 0.7 | BX61: 3.1 | BY61: 0 | BZ61: 0 | CA61: 0 | CB61: 0 | CC61: 0 | CD61: 0 | CE61: 0 | CF61: 0 | CG61: 0 | CH61: 0 | CI61: 0 | CJ61: 0 | CK61: 0 | CL61: 0 | CM61: 0 | CN61: 0 | CO61: 0 | CP61: 0 | CQ61: 0 | CR61: 0 | CS61: 0 | CT61: 0 | CU61: 0 | CV61: 0
A62: 2014-01-03 | B62: 5時 | C62: 平日 | D62: 1.1 | E62: 3.1 | F62: 9.871874811 | R62: 9.871874811 | T62: 2014-01-03 | U62: 5時 | V62: 平日 | W62: 1.1 | X62: 3.1 | Y62: 0 | Z62: 0 | AW62: 0 | AX62: 0 | BA62: 2014-01-03 | BB62: 05:00:00 | BC62: 平日 | BD62: 1.1 | BE62: 3.1 | BF62: 9871.874811 | BG62: 0 | BH62: 0 | BI62: 0 | BJ62: 0 | BK62: 0 | BL62: 0 | BM62: 0 | BN62: 0 | BO62: 0 | BP62: 0 | BQ62: 0 | BT62: 2014-01-03 | BU62: 05:00:00 | BV62: 平日 | BW62: 1.1 | BX62: 3.1 | BY62: 0 | BZ62: 0 | CA62: 0 | CB62: 0 | CC62: 0 | CD62: 0 | CE62: 0 | CF62: 0 | CG62: 0 | CH62: 0 | CI62: 0 | CJ62: 0 | CK62: 0 | CL62: 0 | CM62: 0 | CN62: 0 | CO62: 0 | CP62: 0 | CQ62: 0 | CR62: 0 | CS62: 0 | CT62: 0 | CU62: 0 | CV62: 0
A63: 2014-01-03 | B63: 6時 | C63: 平日 | D63: 1.4 | E63: 3.1 | F63: 7.070281425 | R63: 7.070281425 | T63: 2014-01-03 | U63: 6時 | V63: 平日 | W63: 1.4 | X63: 3.1 | Y63: 0 | Z63: 0 | AW63: 0 | AX63: 0 | BA63: 2014-01-03 | BB63: 06:00:00 | BC63: 平日 | BD63: 1.4 | BE63: 3.1 | BF63: 7070.281425 | BG63: 0 | BH63: 0 | BI63: 0 | BJ63: 0 | BK63: 0 | BL63: 0 | BM63: 0 | BN63: 0 | BO63: 0 | BP63: 0 | BQ63: 0 | BT63: 2014-01-03 | BU63: 06:00:00 | BV63: 平日 | BW63: 1.4 | BX63: 3.1 | BY63: 0 | BZ63: 0 | CA63: 0 | CB63: 0 | CC63: 0 | CD63: 0 | CE63: 0 | CF63: 0 | CG63: 0 | CH63: 0 | CI63: 0 | CJ63: 0 | CK63: 0 | CL63: 0 | CM63: 0 | CN63: 0 | CO63: 0 | CP63: 0 | CQ63: 0 | CR63: 0 | CS63: 0 | CT63: 0 | CU63: 0 | CV63: 0
A64: 2014-01-03 | B64: 7時 | C64: 平日 | D64: 1.6 | E64: 3.1 | F64: 6.943083264 | R64: 6.943083264 | T64: 2014-01-03 | U64: 7時 | V64: 平日 | W64: 1.6 | X64: 3.1 | Y64: 0 | Z64: 0 | AW64: 0 | AX64: 0 | BA64: 2014-01-03 | BB64: 07:00:00 | BC64: 平日 | BD64: 1.6 | BE64: 3.1 | BF64: 6943.083264 | BG64: 0 | BH64: 0 | BI64: 0 | BJ64: 0 | BK64: 0 | BL64: 0 | BM64: 0 | BN64: 0 | BO64: 0 | BP64: 0 | BQ64: 0 | BT64: 2014-01-03 | BU64: 07:00:00 | BV64: 平日 | BW64: 1.6 | BX64: 3.1 | BY64: 0 | BZ64: 0 | CA64: 0 | CB64: 0 | CC64: 0 | CD64: 0 | CE64: 0 | CF64: 0 | CG64: 0 | CH64: 0 | CI64: 0 | CJ64: 0 | CK64: 0 | CL64: 0 | CM64: 0 | CN64: 0 | CO64: 0 | CP64: 0 | CQ64: 0 | CR64: 0 | CS64: 0 | CT64: 0 | CU64: 0 | CV64: 0
A65: 2014-01-03 | B65: 8時 | C65: 平日 | D65: 2.6 | E65: 3.2 | F65: 6.246223144 | R65: 6.246223144 | T65: 2014-01-03 | U65: 8時 | V65: 平日 | W65: 2.6 | X65: 3.2 | Y65: 0 | Z65: 0 | AW65: 0 | AX65: 0 | BA65: 2014-01-03 | BB65: 08:00:00 | BC65: 平日 | BD65: 2.6 | BE65: 3.2 | BF65: 6246.223144 | BG65: 0 | BH65: 0 | BI65: 0 | BJ65: 0 | BK65: 0 | BL65: 0 | BM65: 0 | BN65: 0 | BO65: 0 | BP65: 0 | BQ65: 0 | BT65: 2014-01-03 | BU65: 08:00:00 | BV65: 平日 | BW65: 2.6 | BX65: 3.2 | BY65: 0 | BZ65: 0 | CA65: 0 | CB65: 0 | CC65: 0 | CD65: 0 | CE65: 0 | CF65: 0 | CG65: 0 | CH65: 0 | CI65: 0 | CJ65: 0 | CK65: 0 | CL65: 0 | CM65: 0 | CN65: 0 | CO65: 0 | CP65: 0 | CQ65: 0 | CR65: 0 | CS65: 0 | CT65: 0 | CU65: 0 | CV65: 0
A66: 2014-01-03 | B66: 9時 | C66: 平日 | D66: 3.4 | E66: 3.3 | F66: 6.426204494 | R66: 6.426204494 | T66: 2014-01-03 | U66: 9時 | V66: 平日 | W66: 3.4 | X66: 3.3 | Y66: 0 | Z66: 0 | AW66: 0 | AX66: 0 | BA66: 2014-01-03 | BB66: 09:00:00 | BC66: 平日 | BD66: 3.4 | BE66: 3.3 | BF66: 6426.204494 | BG66: 0 | BH66: 0 | BI66: 0 | BJ66: 0 | BK66: 0 | BL66: 0 | BM66: 0 | BN66: 0 | BO66: 0 | BP66: 0 | BQ66: 0 | BT66: 2014-01-03 | BU66: 09:00:00 | BV66: 平日 | BW66: 3.4 | BX66: 3.3 | BY66: 0 | BZ66: 0 | CA66: 0 | CB66: 0 | CC66: 0 | CD66: 0 | CE66: 0 | CF66: 0 | CG66: 0 | CH66: 0 | CI66: 0 | CJ66: 0 | CK66: 0 | CL66: 0 | CM66: 0 | CN66: 0 | CO66: 0 | CP66: 0 | CQ66: 0 | CR66: 0 | CS66: 0 | CT66: 0 | CU66: 0 | CV66: 0
A67: 2014-01-03 | B67: 10時 | C67: 平日 | D67: 4.4 | E67: 3.4 | F67: 6.043838821 | R67: 6.043838821 | T67: 2014-01-03 | U67: 10時 | V67: 平日 | W67: 4.4 | X67: 3.4 | Y67: 0 | Z67: 0 | AW67: 0 | AX67: 0 | BA67: 2014-01-03 | BB67: 10:00:00 | BC67: 平日 | BD67: 4.4 | BE67: 3.4 | BF67: 6043.838821 | BG67: 0 | BH67: 0 | BI67: 0 | BJ67: 0 | BK67: 0 | BL67: 0 | BM67: 0 | BN67: 0 | BO67: 0 | BP67: 0 | BQ67: 0 | BT67: 2014-01-03 | BU67: 10:00:00 | BV67: 平日 | BW67: 4.4 | BX67: 3.4 | BY67: 0 | BZ67: 0 | CA67: 0 | CB67: 0 | CC67: 0 | CD67: 0 | CE67: 0 | CF67: 0 | CG67: 0 | CH67: 0 | CI67: 0 | CJ67: 0 | CK67: 0 | CL67: 0 | CM67: 0 | CN67: 0 | CO67: 0 | CP67: 0 | CQ67: 0 | CR67: 0 | CS67: 0 | CT67: 0 | CU67: 0 | CV67: 0
A68: 2014-01-03 | B68: 11時 | C68: 平日 | D68: 4.7 | E68: 3.9 | F68: 6.093356153 | R68: 6.093356153 | T68: 2014-01-03 | U68: 11時 | V68: 平日 | W68: 4.7 | X68: 3.9 | Y68: 0 | Z68: 0 | AW68: 0 | AX68: 0 | BA68: 2014-01-03 | BB68: 11:00:00 | BC68: 平日 | BD68: 4.7 | BE68: 3.9 | BF68: 6093.356153 | BG68: 0 | BH68: 0 | BI68: 0 | BJ68: 0 | BK68: 0 | BL68: 0 | BM68: 0 | BN68: 0 | BO68: 0 | BP68: 0 | BQ68: 0 | BT68: 2014-01-03 | BU68: 11:00:00 | BV68: 平日 | BW68: 4.7 | BX68: 3.9 | BY68: 0 | BZ68: 0 | CA68: 0 | CB68: 0 | CC68: 0 | CD68: 0 | CE68: 0 | CF68: 0 | CG68: 0 | CH68: 0 | CI68: 0 | CJ68: 0 | CK68: 0 | CL68: 0 | CM68: 0 | CN68: 0 | CO68: 0 | CP68: 0 | CQ68: 0 | CR68: 0 | CS68: 0 | CT68: 0 | CU68: 0 | CV68: 0
A69: 2014-01-03 | B69: 12時 | C69: 平日 | D69: 4.4 | E69: 4.2 | F69: 4.973926752 | R69: 4.973926752 | T69: 2014-01-03 | U69: 12時 | V69: 平日 | W69: 4.4 | X69: 4.2 | Y69: 0 | Z69: 0 | AW69: 0 | AX69: 0 | BA69: 2014-01-03 | BB69: 12:00:00 | BC69: 平日 | BD69: 4.4 | BE69: 4.2 | BF69: 4973.926752 | BG69: 0 | BH69: 0 | BI69: 0 | BJ69: 0 | BK69: 0 | BL69: 0 | BM69: 0 | BN69: 0 | BO69: 0 | BP69: 0 | BQ69: 0 | BT69: 2014-01-03 | BU69: 12:00:00 | BV69: 平日 | BW69: 4.4 | BX69: 4.2 | BY69: 0 | BZ69: 0 | CA69: 0 | CB69: 0 | CC69: 0 | CD69: 0 | CE69: 0 | CF69: 0 | CG69: 0 | CH69: 0 | CI69: 0 | CJ69: 0 | CK69: 0 | CL69: 0 | CM69: 0 | CN69: 0 | CO69: 0 | CP69: 0 | CQ69: 0 | CR69: 0 | CS69: 0 | CT69: 0 | CU69: 0 | CV69: 0
A70: 2014-01-03 | B70: 13時 | C70: 平日 | D70: 4.7 | E70: 4.5 | F70: 6.010075048 | R70: 6.010075048 | T70: 2014-01-03 | U70: 13時 | V70: 平日 | W70: 4.7 | X70: 4.5 | Y70: 0 | Z70: 0 | AW70: 0 | AX70: 0 | BA70: 2014-01-03 | BB70: 13:00:00 | BC70: 平日 | BD70: 4.7 | BE70: 4.5 | BF70: 6010.075048 | BG70: 0 | BH70: 0 | BI70: 0 | BJ70: 0 | BK70: 0 | BL70: 0 | BM70: 0 | BN70: 0 | BO70: 0 | BP70: 0 | BQ70: 0 | BT70: 2014-01-03 | BU70: 13:00:00 | BV70: 平日 | BW70: 4.7 | BX70: 4.5 | BY70: 0 | BZ70: 0 | CA70: 0 | CB70: 0 | CC70: 0 | CD70: 0 | CE70: 0 | CF70: 0 | CG70: 0 | CH70: 0 | CI70: 0 | CJ70: 0 | CK70: 0 | CL70: 0 | CM70: 0 | CN70: 0 | CO70: 0 | CP70: 0 | CQ70: 0 | CR70: 0 | CS70: 0 | CT70: 0 | CU70: 0 | CV70: 0
A71: 2014-01-03 | B71: 14時 | C71: 平日 | D71: 4.9 | E71: 4.7 | F71: 6.199611589 | R71: 6.199611589 | T71: 2014-01-03 | U71: 14時 | V71: 平日 | W71: 4.9 | X71: 4.7 | Y71: 0 | Z71: 0 | AW71: 0 | AX71: 0 | BA71: 2014-01-03 | BB71: 14:00:00 | BC71: 平日 | BD71: 4.9 | BE71: 4.7 | BF71: 6199.611589 | BG71: 0 | BH71: 0 | BI71: 0 | BJ71: 0 | BK71: 0 | BL71: 0 | BM71: 0 | BN71: 0 | BO71: 0 | BP71: 0 | BQ71: 0 | BT71: 2014-01-03 | BU71: 14:00:00 | BV71: 平日 | BW71: 4.9 | BX71: 4.7 | BY71: 0 | BZ71: 0 | CA71: 0 | CB71: 0 | CC71: 0 | CD71: 0 | CE71: 0 | CF71: 0 | CG71: 0 | CH71: 0 | CI71: 0 | CJ71: 0 | CK71: 0 | CL71: 0 | CM71: 0 | CN71: 0 | CO71: 0 | CP71: 0 | CQ71: 0 | CR71: 0 | CS71: 0 | CT71: 0 | CU71: 0 | CV71: 0
A72: 2014-01-03 | B72: 15時 | C72: 平日 | D72: 5.3 | E72: 5 | F72: 5.53057367 | R72: 5.53057367 | T72: 2014-01-03 | U72: 15時 | V72: 平日 | W72: 5.3 | X72: 5 | Y72: 0 | Z72: 0 | AW72: 0 | AX72: 0 | BA72: 2014-01-03 | BB72: 15:00:00 | BC72: 平日 | BD72: 5.3 | BE72: 5 | BF72: 5530.57367 | BG72: 0 | BH72: 0 | BI72: 0 | BJ72: 0 | BK72: 0 | BL72: 0 | BM72: 0 | BN72: 0 | BO72: 0 | BP72: 0 | BQ72: 0 | BT72: 2014-01-03 | BU72: 15:00:00 | BV72: 平日 | BW72: 5.3 | BX72: 5 | BY72: 0 | BZ72: 0 | CA72: 0 | CB72: 0 | CC72: 0 | CD72: 0 | CE72: 0 | CF72: 0 | CG72: 0 | CH72: 0 | CI72: 0 | CJ72: 0 | CK72: 0 | CL72: 0 | CM72: 0 | CN72: 0 | CO72: 0 | CP72: 0 | CQ72: 0 | CR72: 0 | CS72: 0 | CT72: 0 | CU72: 0 | CV72: 0
A73: 2014-01-03 | B73: 16時 | C73: 平日 | D73: 5.1 | E73: 5.1 | F73: 5.31831329 | R73: =SUM(F73:Q73) -> 5.31831329 | T73: 2014-01-03 | U73: 16時 | V73: 平日 | W73: 5.1 | X73: 5.1 | Y73: 0 | Z73: 0 | AW73: 0 | AX73: =Z73+AB73+AD73+AF73+AH73+AJ73+AL73+AN73+AP73+AR73+AT73+AV73 -> 0 | BA73: 2014-01-03 | BB73: 16:00:00 | BC73: 平日 | BD73: =D73 -> 5.1 | BE73: =E73 -> 5.1 | BF73: =F73*1000 -> 5318.31329 | BG73: =G73*1000 -> 0 | BH73: =H73*1000 -> 0 | BI73: =I73*1000 -> 0 | BJ73: =J73*1000 -> 0 | BK73: =K73*1000 -> 0 | BL73: =L73*1000 -> 0 | BM73: =M73*1000 -> 0 | BN73: =N73*1000 -> 0 | BO73: =O73*1000 -> 0 | BP73: =P73*1000 -> 0 | BQ73: =Q73*1000 -> 0 | BT73: 2014-01-03 | BU73: 16:00:00 | BV73: 平日 | BW73: =W73 -> 5.1 | BX73: =X73 -> 5.1 | BY73: =Y73*1000 -> 0 | BZ73: =Z73*1000 -> 0 | CA73: =AA73*1000 -> 0 | CB73: =AB73*1000 -> 0 | CC73: =AC73*1000 -> 0 | CD73: =AD73*1000 -> 0 | CE73: =AE73*1000 -> 0 | CF73: =AF73*1000 -> 0 | CG73: =AG73*1000 -> 0 | CH73: =AH73*1000 -> 0 | CI73: =AI73*1000 -> 0 | CJ73: =AJ73*1000 -> 0 | CK73: =AK73*1000 -> 0 | CL73: =AL73*1000 -> 0 | CM73: =AM73*1000 -> 0 | CN73: =AN73*1000 -> 0 | CO73: =AO73*1000 -> 0 | CP73: =AP73*1000 -> 0 | CQ73: =AQ73*1000 -> 0 | CR73: =AR73*1000 -> 0 | CS73: =AS73*1000 -> 0 | CT73: =AT73*1000 -> 0 | CU73: =AU73*1000 -> 0 | CV73: =AV73*1000 -> 0
A74: 2014-01-03 | B74: 17時 | C74: 平日 | D74: 5 | E74: 4.9 | F74: 7.64396246 | R74: 7.64396246 | T74: 2014-01-03 | U74: 17時 | V74: 平日 | W74: 5 | X74: 4.9 | Y74: 0 | Z74: 0 | AW74: =Y74+AA74+AC74+AE74+AG74+AI74+AK74+AM74+AO74+AQ74+AS74+AU74 -> 0 | AX74: 0 | BA74: 2014-01-03 | BB74: 17:00:00 | BC74: 平日 | BD74: 5 | BE74: 4.9 | BF74: 7643.96246 | BG74: 0 | BH74: 0 | BI74: 0 | BJ74: 0 | BK74: 0 | BL74: 0 | BM74: 0 | BN74: 0 | BO74: 0 | BP74: 0 | BQ74: 0 | BT74: 2014-01-03 | BU74: 17:00:00 | BV74: 平日 | BW74: 5 | BX74: 4.9 | BY74: 0 | BZ74: 0 | CA74: 0 | CB74: 0 | CC74: 0 | CD74: 0 | CE74: 0 | CF74: 0 | CG74: 0 | CH74: 0 | CI74: 0 | CJ74: 0 | CK74: 0 | CL74: 0 | CM74: 0 | CN74: 0 | CO74: 0 | CP74: 0 | CQ74: 0 | CR74: 0 | CS74: 0 | CT74: 0 | CU74: 0 | CV74: 0
A75: 2014-01-03 | B75: 18時 | C75: 平日 | D75: 5.1 | E75: 4.9 | F75: 7.562261383 | R75: 7.562261383 | T75: 2014-01-03 | U75: 18時 | V75: 平日 | W75: 5.1 | X75: 4.9 | Y75: 0 | Z75: 0 | AW75: 0 | AX75: 0 | BA75: 2014-01-03 | BB75: 18:00:00 | BC75: 平日 | BD75: 5.1 | BE75: 4.9 | BF75: 7562.261383 | BG75: 0 | BH75: 0 | BI75: 0 | BJ75: 0 | BK75: 0 | BL75: 0 | BM75: 0 | BN75: 0 | BO75: 0 | BP75: 0 | BQ75: 0 | BT75: 2014-01-03 | BU75: 18:00:00 | BV75: 平日 | BW75: 5.1 | BX75: 4.9 | BY75: 0 | BZ75: 0 | CA75: 0 | CB75: 0 | CC75: 0 | CD75: 0 | CE75: 0 | CF75: 0 | CG75: 0 | CH75: 0 | CI75: 0 | CJ75: 0 | CK75: 0 | CL75: 0 | CM75: 0 | CN75: 0 | CO75: 0 | CP75: 0 | CQ75: 0 | CR75: 0 | CS75: 0 | CT75: 0 | CU75: 0 | CV75: 0
A76: 2014-01-03 | B76: 19時 | C76: 平日 | D76: 5.1 | E76: 4.9 | F76: 4.83358959 | R76: 4.83358959 | T76: 2014-01-03 | U76: 19時 | V76: 平日 | W76: 5.1 | X76: 4.9 | Y76: 0 | Z76: 0 | AW76: 0 | AX76: 0 | BA76: 2014-01-03 | BB76: 19:00:00 | BC76: 平日 | BD76: 5.1 | BE76: 4.9 | BF76: 4833.58959 | BG76: 0 | BH76: 0 | BI76: 0 | BJ76: 0 | BK76: 0 | BL76: 0 | BM76: 0 | BN76: 0 | BO76: 0 | BP76: 0 | BQ76: 0 | BT76: 2014-01-03 | BU76: 19:00:00 | BV76: 平日 | BW76: 5.1 | BX76: 4.9 | BY76: 0 | BZ76: 0 | CA76: 0 | CB76: 0 | CC76: 0 | CD76: 0 | CE76: 0 | CF76: 0 | CG76: 0 | CH76: 0 | CI76: 0 | CJ76: 0 | CK76: 0 | CL76: 0 | CM76: 0 | CN76: 0 | CO76: 0 | CP76: 0 | CQ76: 0 | CR76: 0 | CS76: 0 | CT76: 0 | CU76: 0 | CV76: 0
A77: 2014-01-03 | B77: 20時 | C77: 平日 | D77: 5 | E77: 5 | F77: 5.255347415 | R77: 5.255347415 | T77: 2014-01-03 | U77: 20時 | V77: 平日 | W77: 5 | X77: 5 | Y77: 0 | Z77: 0 | AW77: 0 | AX77: 0 | BA77: 2014-01-03 | BB77: 20:00:00 | BC77: 平日 | BD77: 5 | BE77: 5 | BF77: 5255.347415 | BG77: 0 | BH77: 0 | BI77: 0 | BJ77: 0 | BK77: 0 | BL77: 0 | BM77: 0 | BN77: 0 | BO77: 0 | BP77: 0 | BQ77: 0 | BT77: 2014-01-03 | BU77: 20:00:00 | BV77: 平日 | BW77: 5 | BX77: 5 | BY77: 0 | BZ77: 0 | CA77: 0 | CB77: 0 | CC77: 0 | CD77: 0 | CE77: 0 | CF77: 0 | CG77: 0 | CH77: 0 | CI77: 0 | CJ77: 0 | CK77: 0 | CL77: 0 | CM77: 0 | CN77: 0 | CO77: 0 | CP77: 0 | CQ77: 0 | CR77: 0 | CS77: 0 | CT77: 0 | CU77: 0 | CV77: 0
A78: 2014-01-03 | B78: 21時 | C78: 平日 | D78: 5.3 | E78: 5 | F78: 5.509355296 | R78: 5.509355296 | T78: 2014-01-03 | U78: 21時 | V78: 平日 | W78: 5.3 | X78: 5 | Y78: 0 | Z78: 0 | AW78: 0 | AX78: 0 | BA78: 2014-01-03 | BB78: 21:00:00 | BC78: 平日 | BD78: 5.3 | BE78: 5 | BF78: 5509.355296 | BG78: 0 | BH78: 0 | BI78: 0 | BJ78: 0 | BK78: 0 | BL78: 0 | BM78: 0 | BN78: 0 | BO78: 0 | BP78: 0 | BQ78: 0 | BT78: 2014-01-03 | BU78: 21:00:00 | BV78: 平日 | BW78: 5.3 | BX78: 5 | BY78: 0 | BZ78: 0 | CA78: 0 | CB78: 0 | CC78: 0 | CD78: 0 | CE78: 0 | CF78: 0 | CG78: 0 | CH78: 0 | CI78: 0 | CJ78: 0 | CK78: 0 | CL78: 0 | CM78: 0 | CN78: 0 | CO78: 0 | CP78: 0 | CQ78: 0 | CR78: 0 | CS78: 0 | CT78: 0 | CU78: 0 | CV78: 0
A79: 2014-01-03 | B79: 22時 | C79: 平日 | D79: 5.3 | E79: 5 | F79: 5.718012898 | R79: 5.718012898 | T79: 2014-01-03 | U79: 22時 | V79: 平日 | W79: 5.3 | X79: 5 | Y79: 0 | Z79: 0 | AW79: 0 | AX79: 0 | BA79: 2014-01-03 | BB79: 22:00:00 | BC79: 平日 | BD79: 5.3 | BE79: 5 | BF79: 5718.012898 | BG79: 0 | BH79: 0 | BI79: 0 | BJ79: 0 | BK79: 0 | BL79: 0 | BM79: 0 | BN79: 0 | BO79: 0 | BP79: 0 | BQ79: 0 | BT79: 2014-01-03 | BU79: 22:00:00 | BV79: 平日 | BW79: 5.3 | BX79: 5 | BY79: 0 | BZ79: 0 | CA79: 0 | CB79: 0 | CC79: 0 | CD79: 0 | CE79: 0 | CF79: 0 | CG79: 0 | CH79: 0 | CI79: 0 | CJ79: 0 | CK79: 0 | CL79: 0 | CM79: 0 | CN79: 0 | CO79: 0 | CP79: 0 | CQ79: 0 | CR79: 0 | CS79: 0 | CT79: 0 | CU79: 0 | CV79: 0
A80: 2014-01-03 | B80: 23時 | C80: 平日 | D80: 5.6 | E80: 5.1 | F80: 6.574378428 | R80: 6.574378428 | T80: 2014-01-03 | U80: 23時 | V80: 平日 | W80: 5.6 | X80: 5.1 | Y80: 0 | Z80: 0 | AW80: 0 | AX80: 0 | BA80: 2014-01-03 | BB80: 23:00:00 | BC80: 平日 | BD80: 5.6 | BE80: 5.1 | BF80: 6574.378428 | BG80: 0 | BH80: 0 | BI80: 0 | BJ80: 0 | BK80: 0 | BL80: 0 | BM80: 0 | BN80: 0 | BO80: 0 | BP80: 0 | BQ80: 0 | BT80: 2014-01-03 | BU80: 23:00:00 | BV80: 平日 | BW80: 5.6 | BX80: 5.1 | BY80: 0 | BZ80: 0 | CA80: 0 | CB80: 0 | CC80: 0 | CD80: 0 | CE80: 0 | CF80: 0 | CG80: 0 | CH80: 0 | CI80: 0 | CJ80: 0 | CK80: 0 | CL80: 0 | CM80: 0 | CN80: 0 | CO80: 0 | CP80: 0 | CQ80: 0 | CR80: 0 | CS80: 0 | CT80: 0 | CU80: 0 | CV80: 0
A81: 2014-01-04 | B81: 0時 | C81: 平日 | D81: 5.7 | E81: 5.2 | F81: 6.612494626 | R81: 6.612494626 | T81: 2014-01-04 | U81: 0時 | V81: 平日 | W81: 5.7 | X81: 5.2 | Y81: 0 | Z81: 0 | AW81: 0 | AX81: 0 | BA81: 2014-01-04 | BB81: 00:00:00 | BC81: 平日 | BD81: 5.7 | BE81: 5.2 | BF81: 6612.494626 | BG81: 0 | BH81: 0 | BI81: 0 | BJ81: 0 | BK81: 0 | BL81: 0 | BM81: 0 | BN81: 0 | BO81: 0 | BP81: 0 | BQ81: 0 | BT81: 2014-01-04 | BU81: 00:00:00 | BV81: 平日 | BW81: 5.7 | BX81: 5.2 | BY81: 0 | BZ81: 0 | CA81: 0 | CB81: 0 | CC81: 0 | CD81: 0 | CE81: 0 | CF81: 0 | CG81: 0 | CH81: 0 | CI81: 0 | CJ81: 0 | CK81: 0 | CL81: 0 | CM81: 0 | CN81: 0 | CO81: 0 | CP81: 0 | CQ81: 0 | CR81: 0 | CS81: 0 | CT81: 0 | CU81: 0 | CV81: 0
A82: 2014-01-04 | B82: 1時 | C82: 平日 | D82: 5.5 | E82: 5.1 | F82: 6.677980832 | R82: 6.677980832 | T82: 2014-01-04 | U82: 1時 | V82: 平日 | W82: 5.5 | X82: 5.1 | Y82: 0 | Z82: 0 | AW82: 0 | AX82: 0 | BA82: 2014-01-04 | BB82: 01:00:00 | BC82: 平日 | BD82: 5.5 | BE82: 5.1 | BF82: 6677.980832 | BG82: 0 | BH82: 0 | BI82: 0 | BJ82: 0 | BK82: 0 | BL82: 0 | BM82: 0 | BN82: 0 | BO82: 0 | BP82: 0 | BQ82: 0 | BT82: 2014-01-04 | BU82: 01:00:00 | BV82: 平日 | BW82: 5.5 | BX82: 5.1 | BY82: 0 | BZ82: 0 | CA82: 0 | CB82: 0 | CC82: 0 | CD82: 0 | CE82: 0 | CF82: 0 | CG82: 0 | CH82: 0 | CI82: 0 | CJ82: 0 | CK82: 0 | CL82: 0 | CM82: 0 | CN82: 0 | CO82: 0 | CP82: 0 | CQ82: 0 | CR82: 0 | CS82: 0 | CT82: 0 | CU82: 0 | CV82: 0
A83: 2014-01-04 | B83: 2時 | C83: 平日 | D83: 6 | E83: 5.4 | F83: 6.564280168 | R83: 6.564280168 | T83: 2014-01-04 | U83: 2時 | V83: 平日 | W83: 6 | X83: 5.4 | Y83: 0 | Z83: 0 | AW83: 0 | AX83: 0 | BA83: 2014-01-04 | BB83: 02:00:00 | BC83: 平日 | BD83: 6 | BE83: 5.4 | BF83: 6564.280168 | BG83: 0 | BH83: 0 | BI83: 0 | BJ83: 0 | BK83: 0 | BL83: 0 | BM83: 0 | BN83: 0 | BO83: 0 | BP83: 0 | BQ83: 0 | BT83: 2014-01-04 | BU83: 02:00:00 | BV83: 平日 | BW83: 6 | BX83: 5.4 | BY83: 0 | BZ83: 0 | CA83: 0 | CB83: 0 | CC83: 0 | CD83: 0 | CE83: 0 | CF83: 0 | CG83: 0 | CH83: 0 | CI83: 0 | CJ83: 0 | CK83: 0 | CL83: 0 | CM83: 0 | CN83: 0 | CO83: 0 | CP83: 0 | CQ83: 0 | CR83: 0 | CS83: 0 | CT83: 0 | CU83: 0 | CV83: 0
A84: 2014-01-04 | B84: 3時 | C84: 平日 | D84: 5.9 | E84: 5.4 | F84: 6.573135404 | R84: 6.573135404 | T84: 2014-01-04 | U84: 3時 | V84: 平日 | W84: 5.9 | X84: 5.4 | Y84: 0 | Z84: 0 | AW84: 0 | AX84: 0 | BA84: 2014-01-04 | BB84: 03:00:00 | BC84: 平日 | BD84: 5.9 | BE84: 5.4 | BF84: 6573.135404 | BG84: 0 | BH84: 0 | BI84: 0 | BJ84: 0 | BK84: 0 | BL84: 0 | BM84: 0 | BN84: 0 | BO84: 0 | BP84: 0 | BQ84: 0 | BT84: 2014-01-04 | BU84: 03:00:00 | BV84: 平日 | BW84: 5.9 | BX84: 5.4 | BY84: 0 | BZ84: 0 | CA84: 0 | CB84: 0 | CC84: 0 | CD84: 0 | CE84: 0 | CF84: 0 | CG84: 0 | CH84: 0 | CI84: 0 | CJ84: 0 | CK84: 0 | CL84: 0 | CM84: 0 | CN84: 0 | CO84: 0 | CP84: 0 | CQ84: 0 | CR84: 0 | CS84: 0 | CT84: 0 | CU84: 0 | CV84: 0
A85: 2014-01-04 | B85: 4時 | C85: 平日 | D85: 5.8 | E85: 5.5 | F85: 6.599827514 | R85: 6.599827514 | T85: 2014-01-04 | U85: 4時 | V85: 平日 | W85: 5.8 | X85: 5.5 | Y85: 0 | Z85: 0 | AW85: 0 | AX85: 0 | BA85: 2014-01-04 | BB85: 04:00:00 | BC85: 平日 | BD85: 5.8 | BE85: 5.5 | BF85: 6599.827514 | BG85: 0 | BH85: 0 | BI85: 0 | BJ85: 0 | BK85: 0 | BL85: 0 | BM85: 0 | BN85: 0 | BO85: 0 | BP85: 0 | BQ85: 0 | BT85: 2014-01-04 | BU85: 04:00:00 | BV85: 平日 | BW85: 5.8 | BX85: 5.5 | BY85: 0 | BZ85: 0 | CA85: 0 | CB85: 0 | CC85: 0 | CD85: 0 | CE85: 0 | CF85: 0 | CG85: 0 | CH85: 0 | CI85: 0 | CJ85: 0 | CK85: 0 | CL85: 0 | CM85: 0 | CN85: 0 | CO85: 0 | CP85: 0 | CQ85: 0 | CR85: 0 | CS85: 0 | CT85: 0 | CU85: 0 | CV85: 0
A86: 2014-01-04 | B86: 5時 | C86: 平日 | D86: 6.3 | E86: 5.6 | F86: 7.24275246 | R86: 7.24275246 | T86: 2014-01-04 | U86: 5時 | V86: 平日 | W86: 6.3 | X86: 5.6 | Y86: 0 | Z86: 0 | AW86: 0 | AX86: 0 | BA86: 2014-01-04 | BB86: 05:00:00 | BC86: 平日 | BD86: 6.3 | BE86: 5.6 | BF86: 7242.75246 | BG86: 0 | BH86: 0 | BI86: 0 | BJ86: 0 | BK86: 0 | BL86: 0 | BM86: 0 | BN86: 0 | BO86: 0 | BP86: 0 | BQ86: 0 | BT86: 2014-01-04 | BU86: 05:00:00 | BV86: 平日 | BW86: 6.3 | BX86: 5.6 | BY86: 0 | BZ86: 0 | CA86: 0 | CB86: 0 | CC86: 0 | CD86: 0 | CE86: 0 | CF86: 0 | CG86: 0 | CH86: 0 | CI86: 0 | CJ86: 0 | CK86: 0 | CL86: 0 | CM86: 0 | CN86: 0 | CO86: 0 | CP86: 0 | CQ86: 0 | CR86: 0 | CS86: 0 | CT86: 0 | CU86: 0 | CV86: 0
A87: 2014-01-04 | B87: 6時 | C87: 平日 | D87: 6.8 | E87: 5.6 | F87: 4.808894795 | R87: 4.808894795 | T87: 2014-01-04 | U87: 6時 | V87: 平日 | W87: 6.8 | X87: 5.6 | Y87: 0 | Z87: 0 | AW87: 0 | AX87: 0 | BA87: 2014-01-04 | BB87: 06:00:00 | BC87: 平日 | BD87: 6.8 | BE87: 5.6 | BF87: 4808.894795 | BG87: 0 | BH87: 0 | BI87: 0 | BJ87: 0 | BK87: 0 | BL87: 0 | BM87: 0 | BN87: 0 | BO87: 0 | BP87: 0 | BQ87: 0 | BT87: 2014-01-04 | BU87: 06:00:00 | BV87: 平日 | BW87: 6.8 | BX87: 5.6 | BY87: 0 | BZ87: 0 | CA87: 0 | CB87: 0 | CC87: 0 | CD87: 0 | CE87: 0 | CF87: 0 | CG87: 0 | CH87: 0 | CI87: 0 | CJ87: 0 | CK87: 0 | CL87: 0 | CM87: 0 | CN87: 0 | CO87: 0 | CP87: 0 | CQ87: 0 | CR87: 0 | CS87: 0 | CT87: 0 | CU87: 0 | CV87: 0
A88: 2014-01-04 | B88: 7時 | C88: 平日 | D88: 6.6 | E88: 5.8 | F88: 4.783212068 | R88: 4.783212068 | T88: 2014-01-04 | U88: 7時 | V88: 平日 | W88: 6.6 | X88: 5.8 | Y88: 0 | Z88: 0 | AW88: 0 | AX88: 0 | BA88: 2014-01-04 | BB88: 07:00:00 | BC88: 平日 | BD88: 6.6 | BE88: 5.8 | BF88: 4783.212068 | BG88: 0 | BH88: 0 | BI88: 0 | BJ88: 0 | BK88: 0 | BL88: 0 | BM88: 0 | BN88: 0 | BO88: 0 | BP88: 0 | BQ88: 0 | BT88: 2014-01-04 | BU88: 07:00:00 | BV88: 平日 | BW88: 6.6 | BX88: 5.8 | BY88: 0 | BZ88: 0 | CA88: 0 | CB88: 0 | CC88: 0 | CD88: 0 | CE88: 0 | CF88: 0 | CG88: 0 | CH88: 0 | CI88: 0 | CJ88: 0 | CK88: 0 | CL88: 0 | CM88: 0 | CN88: 0 | CO88: 0 | CP88: 0 | CQ88: 0 | CR88: 0 | CS88: 0 | CT88: 0 | CU88: 0 | CV88: 0
A89: 2014-01-04 | B89: 8時 | C89: 平日 | D89: 7 | E89: 6 | F89: 4.249869084 | R89: 4.249869084 | T89: 2014-01-04 | U89: 8時 | V89: 平日 | W89: 7 | X89: 6 | Y89: 0 | Z89: 0 | AW89: 0 | AX89: 0 | BA89: 2014-01-04 | BB89: 08:00:00 | BC89: 平日 | BD89: 7 | BE89: 6 | BF89: 4249.869084 | BG89: 0 | BH89: 0 | BI89: 0 | BJ89: 0 | BK89: 0 | BL89: 0 | BM89: 0 | BN89: 0 | BO89: 0 | BP89: 0 | BQ89: 0 | BT89: 2014-01-04 | BU89: 08:00:00 | BV89: 平日 | BW89: 7 | BX89: 6 | BY89: 0 | BZ89: 0 | CA89: 0 | CB89: 0 | CC89: 0 | CD89: 0 | CE89: 0 | CF89: 0 | CG89: 0 | CH89: 0 | CI89: 0 | CJ89: 0 | CK89: 0 | CL89: 0 | CM89: 0 | CN89: 0 | CO89: 0 | CP89: 0 | CQ89: 0 | CR89: 0 | CS89: 0 | CT89: 0 | CU89: 0 | CV89: 0
A90: 2014-01-04 | B90: 9時 | C90: 平日 | D90: 7.7 | E90: 6.2 | F90: 4.497985505 | R90: 4.497985505 | T90: 2014-01-04 | U90: 9時 | V90: 平日 | W90: 7.7 | X90: 6.2 | Y90: 0 | Z90: 0 | AW90: 0 | AX90: 0 | BA90: 2014-01-04 | BB90: 09:00:00 | BC90: 平日 | BD90: 7.7 | BE90: 6.2 | BF90: 4497.985505 | BG90: 0 | BH90: 0 | BI90: 0 | BJ90: 0 | BK90: 0 | BL90: 0 | BM90: 0 | BN90: 0 | BO90: 0 | BP90: 0 | BQ90: 0 | BT90: 2014-01-04 | BU90: 09:00:00 | BV90: 平日 | BW90: 7.7 | BX90: 6.2 | BY90: 0 | BZ90: 0 | CA90: 0 | CB90: 0 | CC90: 0 | CD90: 0 | CE90: 0 | CF90: 0 | CG90: 0 | CH90: 0 | CI90: 0 | CJ90: 0 | CK90: 0 | CL90: 0 | CM90: 0 | CN90: 0 | CO90: 0 | CP90: 0 | CQ90: 0 | CR90: 0 | CS90: 0 | CT90: 0 | CU90: 0 | CV90: 0
A91: 2014-01-04 | B91: 10時 | C91: 平日 | D91: 8 | E91: 6.3 | F91: 4.322389479 | R91: 4.322389479 | T91: 2014-01-04 | U91: 10時 | V91: 平日 | W91: 8 | X91: 6.3 | Y91: 0 | Z91: 0 | AW91: 0 | AX91: 0 | BA91: 2014-01-04 | BB91: 10:00:00 | BC91: 平日 | BD91: 8 | BE91: 6.3 | BF91: 4322.389479 | BG91: 0 | BH91: 0 | BI91: 0 | BJ91: 0 | BK91: 0 | BL91: 0 | BM91: 0 | BN91: 0 | BO91: 0 | BP91: 0 | BQ91: 0 | BT91: 2014-01-04 | BU91: 10:00:00 | BV91: 平日 | BW91: 8 | BX91: 6.3 | BY91: 0 | BZ91: 0 | CA91: 0 | CB91: 0 | CC91: 0 | CD91: 0 | CE91: 0 | CF91: 0 | CG91: 0 | CH91: 0 | CI91: 0 | CJ91: 0 | CK91: 0 | CL91: 0 | CM91: 0 | CN91: 0 | CO91: 0 | CP91: 0 | CQ91: 0 | CR91: 0 | CS91: 0 | CT91: 0 | CU91: 0 | CV91: 0
A92: 2014-01-04 | B92: 11時 | C92: 平日 | D92: 8.5 | E92: 6.3 | F92: 3.99084639 | R92: 3.99084639 | T92: 2014-01-04 | U92: 11時 | V92: 平日 | W92: 8.5 | X92: 6.3 | Y92: 0 | Z92: 0 | AW92: 0 | AX92: 0 | BA92: 2014-01-04 | BB92: 11:00:00 | BC92: 平日 | BD92: 8.5 | BE92: 6.3 | BF92: 3990.84639 | BG92: 0 | BH92: 0 | BI92: 0 | BJ92: 0 | BK92: 0 | BL92: 0 | BM92: 0 | BN92: 0 | BO92: 0 | BP92: 0 | BQ92: 0 | BT92: 2014-01-04 | BU92: 11:00:00 | BV92: 平日 | BW92: 8.5 | BX92: 6.3 | BY92: 0 | BZ92: 0 | CA92: 0 | CB92: 0 | CC92: 0 | CD92: 0 | CE92: 0 | CF92: 0 | CG92: 0 | CH92: 0 | CI92: 0 | CJ92: 0 | CK92: 0 | CL92: 0 | CM92: 0 | CN92: 0 | CO92: 0 | CP92: 0 | CQ92: 0 | CR92: 0 | CS92: 0 | CT92: 0 | CU92: 0 | CV92: 0
A93: 2014-01-04 | B93: 12時 | C93: 平日 | D93: 8.8 | E93: 6.3 | F93: 2.810677807 | R93: 2.810677807 | T93: 2014-01-04 | U93: 12時 | V93: 平日 | W93: 8.8 | X93: 6.3 | Y93: 0 | Z93: 0 | AW93: 0 | AX93: 0 | BA93: 2014-01-04 | BB93: 12:00:00 | BC93: 平日 | BD93: 8.8 | BE93: 6.3 | BF93: 2810.677807 | BG93: 0 | BH93: 0 | BI93: 0 | BJ93: 0 | BK93: 0 | BL93: 0 | BM93: 0 | BN93: 0 | BO93: 0 | BP93: 0 | BQ93: 0 | BT93: 2014-01-04 | BU93: 12:00:00 | BV93: 平日 | BW93: 8.8 | BX93: 6.3 | BY93: 0 | BZ93: 0 | CA93: 0 | CB93: 0 | CC93: 0 | CD93: 0 | CE93: 0 | CF93: 0 | CG93: 0 | CH93: 0 | CI93: 0 | CJ93: 0 | CK93: 0 | CL93: 0 | CM93: 0 | CN93: 0 | CO93: 0 | CP93: 0 | CQ93: 0 | CR93: 0 | CS93: 0 | CT93: 0 | CU93: 0 | CV93: 0
A94: 2014-01-04 | B94: 13時 | C94: 平日 | D94: 9.2 | E94: 6.3 | F94: 3.608785223 | R94: 3.608785223 | T94: 2014-01-04 | U94: 13時 | V94: 平日 | W94: 9.2 | X94: 6.3 | Y94: 0 | Z94: 0 | AW94: 0 | AX94: 0 | BA94: 2014-01-04 | BB94: 13:00:00 | BC94: 平日 | BD94: 9.2 | BE94: 6.3 | BF94: 3608.785223 | BG94: 0 | BH94: 0 | BI94: 0 | BJ94: 0 | BK94: 0 | BL94: 0 | BM94: 0 | BN94: 0 | BO94: 0 | BP94: 0 | BQ94: 0 | BT94: 2014-01-04 | BU94: 13:00:00 | BV94: 平日 | BW94: 9.2 | BX94: 6.3 | BY94: 0 | BZ94: 0 | CA94: 0 | CB94: 0 | CC94: 0 | CD94: 0 | CE94: 0 | CF94: 0 | CG94: 0 | CH94: 0 | CI94: 0 | CJ94: 0 | CK94: 0 | CL94: 0 | CM94: 0 | CN94: 0 | CO94: 0 | CP94: 0 | CQ94: 0 | CR94: 0 | CS94: 0 | CT94: 0 | CU94: 0 | CV94: 0
A95: 2014-01-04 | B95: 14時 | C95: 平日 | D95: 9.5 | E95: 6.3 | F95: 3.759052211 | R95: 3.759052211 | T95: 2014-01-04 | U95: 14時 | V95: 平日 | W95: 9.5 | X95: 6.3 | Y95: 0 | Z95: 0 | AW95: 0 | AX95: 0 | BA95: 2014-01-04 | BB95: 14:00:00 | BC95: 平日 | BD95: 9.5 | BE95: 6.3 | BF95: 3759.052211 | BG95: 0 | BH95: 0 | BI95: 0 | BJ95: 0 | BK95: 0 | BL95: 0 | BM95: 0 | BN95: 0 | BO95: 0 | BP95: 0 | BQ95: 0 | BT95: 2014-01-04 | BU95: 14:00:00 | BV95: 平日 | BW95: 9.5 | BX95: 6.3 | BY95: 0 | BZ95: 0 | CA95: 0 | CB95: 0 | CC95: 0 | CD95: 0 | CE95: 0 | CF95: 0 | CG95: 0 | CH95: 0 | CI95: 0 | CJ95: 0 | CK95: 0 | CL95: 0 | CM95: 0 | CN95: 0 | CO95: 0 | CP95: 0 | CQ95: 0 | CR95: 0 | CS95: 0 | CT95: 0 | CU95: 0 | CV95: 0
A96: 2014-01-04 | B96: 15時 | C96: 平日 | D96: 9.8 | E96: 6.1 | F96: 3.194191309 | R96: 3.194191309 | T96: 2014-01-04 | U96: 15時 | V96: 平日 | W96: 9.8 | X96: 6.1 | Y96: 0 | Z96: 0 | AW96: 0 | AX96: 0 | BA96: 2014-01-04 | BB96: 15:00:00 | BC96: 平日 | BD96: 9.8 | BE96: 6.1 | BF96: 3194.191309 | BG96: 0 | BH96: 0 | BI96: 0 | BJ96: 0 | BK96: 0 | BL96: 0 | BM96: 0 | BN96: 0 | BO96: 0 | BP96: 0 | BQ96: 0 | BT96: 2014-01-04 | BU96: 15:00:00 | BV96: 平日 | BW96: 9.8 | BX96: 6.1 | BY96: 0 | BZ96: 0 | CA96: 0 | CB96: 0 | CC96: 0 | CD96: 0 | CE96: 0 | CF96: 0 | CG96: 0 | CH96: 0 | CI96: 0 | CJ96: 0 | CK96: 0 | CL96: 0 | CM96: 0 | CN96: 0 | CO96: 0 | CP96: 0 | CQ96: 0 | CR96: 0 | CS96: 0 | CT96: 0 | CU96: 0 | CV96: 0
A97: 2014-01-04 | B97: 16時 | C97: 平日 | D97: 9.6 | E97: 5.7 | F97: 3.184010861 | R97: 3.184010861 | T97: 2014-01-04 | U97: 16時 | V97: 平日 | W97: 9.6 | X97: 5.7 | Y97: 0 | Z97: 0 | AW97: 0 | AX97: 0 | BA97: 2014-01-04 | BB97: 16:00:00 | BC97: 平日 | BD97: 9.6 | BE97: 5.7 | BF97: 3184.010861 | BG97: 0 | BH97: 0 | BI97: 0 | BJ97: 0 | BK97: 0 | BL97: 0 | BM97: 0 | BN97: 0 | BO97: 0 | BP97: 0 | BQ97: 0 | BT97: 2014-01-04 | BU97: 16:00:00 | BV97: 平日 | BW97: 9.6 | BX97: 5.7 | BY97: 0 | BZ97: 0 | CA97: 0 | CB97: 0 | CC97: 0 | CD97: 0 | CE97: 0 | CF97: 0 | CG97: 0 | CH97: 0 | CI97: 0 | CJ97: 0 | CK97: 0 | CL97: 0 | CM97: 0 | CN97: 0 | CO97: 0 | CP97: 0 | CQ97: 0 | CR97: 0 | CS97: 0 | CT97: 0 | CU97: 0 | CV97: 0
A98: 2014-01-04 | B98: 17時 | C98: 平日 | D98: 9.4 | E98: 5.1 | F98: 4.869000414 | R98: 4.869000414 | T98: 2014-01-04 | U98: 17時 | V98: 平日 | W98: 9.4 | X98: 5.1 | Y98: 0 | Z98: 0 | AW98: 0 | AX98: 0 | BA98: 2014-01-04 | BB98: 17:00:00 | BC98: 平日 | BD98: 9.4 | BE98: 5.1 | BF98: 4869.000414 | BG98: 0 | BH98: 0 | BI98: 0 | BJ98: 0 | BK98: 0 | BL98: 0 | BM98: 0 | BN98: 0 | BO98: 0 | BP98: 0 | BQ98: 0 | BT98: 2014-01-04 | BU98: 17:00:00 | BV98: 平日 | BW98: 9.4 | BX98: 5.1 | BY98: 0 | BZ98: 0 | CA98: 0 | CB98: 0 | CC98: 0 | CD98: 0 | CE98: 0 | CF98: 0 | CG98: 0 | CH98: 0 | CI98: 0 | CJ98: 0 | CK98: 0 | CL98: 0 | CM98: 0 | CN98: 0 | CO98: 0 | CP98: 0 | CQ98: 0 | CR98: 0 | CS98: 0 | CT98: 0 | CU98: 0 | CV98: 0
A99: 2014-01-04 | B99: 18時 | C99: 平日 | D99: 8.8 | E99: 4.7 | F99: 5.116113914 | R99: 5.116113914 | T99: 2014-01-04 | U99: 18時 | V99: 平日 | W99: 8.8 | X99: 4.7 | Y99: 0 | Z99: 0 | AW99: 0 | AX99: 0 | BA99: 2014-01-04 | BB99: 18:00:00 | BC99: 平日 | BD99: 8.8 | BE99: 4.7 | BF99: 5116.113914 | BG99: 0 | BH99: 0 | BI99: 0 | BJ99: 0 | BK99: 0 | BL99: 0 | BM99: 0 | BN99: 0 | BO99: 0 | BP99: 0 | BQ99: 0 | BT99: 2014-01-04 | BU99: 18:00:00 | BV99: 平日 | BW99: 8.8 | BX99: 4.7 | BY99: 0 | BZ99: 0 | CA99: 0 | CB99: 0 | CC99: 0 | CD99: 0 | CE99: 0 | CF99: 0 | CG99: 0 | CH99: 0 | CI99: 0 | CJ99: 0 | CK99: 0 | CL99: 0 | CM99: 0 | CN99: 0 | CO99: 0 | CP99: 0 | CQ99: 0 | CR99: 0 | CS99: 0 | CT99: 0 | CU99: 0 | CV99: 0
A100: 2014-01-04 | B100: 19時 | C100: 平日 | D100: 8.3 | E100: 4.1 | F100: 3.240991137 | R100: 3.240991137 | T100: 2014-01-04 | U100: 19時 | V100: 平日 | W100: 8.3 | X100: 4.1 | Y100: 0 | Z100: 0 | AW100: 0 | AX100: 0 | BA100: 2014-01-04 | BB100: 19:00:00 | BC100: 平日 | BD100: 8.3 | BE100: 4.1 | BF100: 3240.991137 | BG100: 0 | BH100: 0 | BI100: 0 | BJ100: 0 | BK100: 0 | BL100: 0 | BM100: 0 | BN100: 0 | BO100: 0 | BP100: 0 | BQ100: 0 | BT100: 2014-01-04 | BU100: 19:00:00 | BV100: 平日 | BW100: 8.3 | BX100: 4.1 | BY100: 0 | BZ100: 0 | CA100: 0 | CB100: 0 | CC100: 0 | CD100: 0 | CE100: 0 | CF100: 0 | CG100: 0 | CH100: 0 | CI100: 0 | CJ100: 0 | CK100: 0 | CL100: 0 | CM100: 0 | CN100: 0 | CO100: 0 | CP100: 0 | CQ100: 0 | CR100: 0 | CS100: 0 | CT100: 0 | CU100: 0 | CV100: 0
A101: 2014-01-04 | B101: 20時 | C101: 平日 | D101: 7.2 | E101: 3.7 | F101: 4.019557815 | R101: 4.019557815 | T101: 2014-01-04 | U101: 20時 | V101: 平日 | W101: 7.2 | X101: 3.7 | Y101: 0 | Z101: 0 | AW101: 0 | AX101: 0 | BA101: 2014-01-04 | BB101: 20:00:00 | BC101: 平日 | BD101: 7.2 | BE101: 3.7 | BF101: 4019.557815 | BG101: 0 | BH101: 0 | BI101: 0 | BJ101: 0 | BK101: 0 | BL101: 0 | BM101: 0 | BN101: 0 | BO101: 0 | BP101: 0 | BQ101: 0 | BT101: 2014-01-04 | BU101: 20:00:00 | BV101: 平日 | BW101: 7.2 | BX101: 3.7 | BY101: 0 | BZ101: 0 | CA101: 0 | CB101: 0 | CC101: 0 | CD101: 0 | CE101: 0 | CF101: 0 | CG101: 0 | CH101: 0 | CI101: 0 | CJ101: 0 | CK101: 0 | CL101: 0 | CM101: 0 | CN101: 0 | CO101: 0 | CP101: 0 | CQ101: 0 | CR101: 0 | CS101: 0 | CT101: 0 | CU101: 0 | CV101: 0
A102: 2014-01-04 | B102: 21時 | C102: 平日 | D102: 6.3 | E102: 3.8 | F102: 4.691544267 | R102: 4.691544267 | T102: 2014-01-04 | U102: 21時 | V102: 平日 | W102: 6.3 | X102: 3.8 | Y102: 0 | Z102: 0 | AW102: 0 | AX102: 0 | BA102: 2014-01-04 | BB102: 21:00:00 | BC102: 平日 | BD102: 6.3 | BE102: 3.8 | BF102: 4691.544267 | BG102: 0 | BH102: 0 | BI102: 0 | BJ102: 0 | BK102: 0 | BL102: 0 | BM102: 0 | BN102: 0 | BO102: 0 | BP102: 0 | BQ102: 0 | BT102: 2014-01-04 | BU102: 21:00:00 | BV102: 平日 | BW102: 6.3 | BX102: 3.8 | BY102: 0 | BZ102: 0 | CA102: 0 | CB102: 0 | CC102: 0 | CD102: 0 | CE102: 0 | CF102: 0 | CG102: 0 | CH102: 0 | CI102: 0 | CJ102: 0 | CK102: 0 | CL102: 0 | CM102: 0 | CN102: 0 | CO102: 0 | CP102: 0 | CQ102: 0 | CR102: 0 | CS102: 0 | CT102: 0 | CU102: 0 | CV102: 0
A103: 2014-01-04 | B103: 22時 | C103: 平日 | D103: 6.9 | E103: 3.8 | F103: 4.87484032 | R103: 4.87484032 | T103: 2014-01-04 | U103: 22時 | V103: 平日 | W103: 6.9 | X103: 3.8 | Y103: 0 | Z103: 0 | AW103: 0 | AX103: 0 | BA103: 2014-01-04 | BB103: 22:00:00 | BC103: 平日 | BD103: 6.9 | BE103: 3.8 | BF103: 4874.84032 | BG103: 0 | BH103: 0 | BI103: 0 | BJ103: 0 | BK103: 0 | BL103: 0 | BM103: 0 | BN103: 0 | BO103: 0 | BP103: 0 | BQ103: 0 | BT103: 2014-01-04 | BU103: 22:00:00 | BV103: 平日 | BW103: 6.9 | BX103: 3.8 | BY103: 0 | BZ103: 0 | CA103: 0 | CB103: 0 | CC103: 0 | CD103: 0 | CE103: 0 | CF103: 0 | CG103: 0 | CH103: 0 | CI103: 0 | CJ103: 0 | CK103: 0 | CL103: 0 | CM103: 0 | CN103: 0 | CO103: 0 | CP103: 0 | CQ103: 0 | CR103: 0 | CS103: 0 | CT103: 0 | CU103: 0 | CV103: 0
A104: 2014-01-04 | B104: 23時 | C104: 平日 | D104: 5.5 | E104: 3.9 | F104: 6.236801595 | R104: 6.236801595 | T104: 2014-01-04 | U104: 23時 | V104: 平日 | W104: 5.5 | X104: 3.9 | Y104: 0 | Z104: 0 | AW104: 0 | AX104: 0 | BA104: 2014-01-04 | BB104: 23:00:00 | BC104: 平日 | BD104: 5.5 | BE104: 3.9 | BF104: 6236.801595 | BG104: 0 | BH104: 0 | BI104: 0 | BJ104: 0 | BK104: 0 | BL104: 0 | BM104: 0 | BN104: 0 | BO104: 0 | BP104: 0 | BQ104: 0 | BT104: 2014-01-04 | BU104: 23:00:00 | BV104: 平日 | BW104: 5.5 | BX104: 3.9 | BY104: 0 | BZ104: 0 | CA104: 0 | CB104: 0 | CC104: 0 | CD104: 0 | CE104: 0 | CF104: 0 | CG104: 0 | CH104: 0 | CI104: 0 | CJ104: 0 | CK104: 0 | CL104: 0 | CM104: 0 | CN104: 0 | CO104: 0 | CP104: 0 | CQ104: 0 | CR104: 0 | CS104: 0 | CT104: 0 | CU104: 0 | CV104: 0
A105: 2014-01-05 | B105: 0時 | C105: 平日 | D105: 6.5 | E105: 3.7 | F105: 6.192462473 | R105: 6.192462473 | T105: 2014-01-05 | U105: 0時 | V105: 平日 | W105: 6.5 | X105: 3.7 | Y105: 0 | Z105: 0 | AW105: 0 | AX105: 0 | BA105: 2014-01-05 | BB105: 00:00:00 | BC105: 平日 | BD105: 6.5 | BE105: 3.7 | BF105: 6192.462473 | BG105: 0 | BH105: 0 | BI105: 0 | BJ105: 0 | BK105: 0 | BL105: 0 | BM105: 0 | BN105: 0 | BO105: 0 | BP105: 0 | BQ105: 0 | BT105: 2014-01-05 | BU105: 00:00:00 | BV105: 平日 | BW105: 6.5 | BX105: 3.7 | BY105: 0 | BZ105: 0 | CA105: 0 | CB105: 0 | CC105: 0 | CD105: 0 | CE105: 0 | CF105: 0 | CG105: 0 | CH105: 0 | CI105: 0 | CJ105: 0 | CK105: 0 | CL105: 0 | CM105: 0 | CN105: 0 | CO105: 0 | CP105: 0 | CQ105: 0 | CR105: 0 | CS105: 0 | CT105: 0 | CU105: 0 | CV105: 0
A106: 2014-01-05 | B106: 1時 | C106: 平日 | D106: 6.3 | E106: 3.8 | F106: 6.32176239 | R106: 6.32176239 | T106: 2014-01-05 | U106: 1時 | V106: 平日 | W106: 6.3 | X106: 3.8 | Y106: 0 | Z106: 0 | AW106: 0 | AX106: 0 | BA106: 2014-01-05 | BB106: 01:00:00 | BC106: 平日 | BD106: 6.3 | BE106: 3.8 | BF106: 6321.76239 | BG106: 0 | BH106: 0 | BI106: 0 | BJ106: 0 | BK106: 0 | BL106: 0 | BM106: 0 | BN106: 0 | BO106: 0 | BP106: 0 | BQ106: 0 | BT106: 2014-01-05 | BU106: 01:00:00 | BV106: 平日 | BW106: 6.3 | BX106: 3.8 | BY106: 0 | BZ106: 0 | CA106: 0 | CB106: 0 | CC106: 0 | CD106: 0 | CE106: 0 | CF106: 0 | CG106: 0 | CH106: 0 | CI106: 0 | CJ106: 0 | CK106: 0 | CL106: 0 | CM106: 0 | CN106: 0 | CO106: 0 | CP106: 0 | CQ106: 0 | CR106: 0 | CS106: 0 | CT106: 0 | CU106: 0 | CV106: 0
A107: 2014-01-05 | B107: 2時 | C107: 平日 | D107: 5.7 | E107: 3.9 | F107: 6.534536178 | R107: 6.534536178 | T107: 2014-01-05 | U107: 2時 | V107: 平日 | W107: 5.7 | X107: 3.9 | Y107: 0 | Z107: 0 | AW107: 0 | AX107: 0 | BA107: 2014-01-05 | BB107: 02:00:00 | BC107: 平日 | BD107: 5.7 | BE107: 3.9 | BF107: 6534.536178 | BG107: 0 | BH107: 0 | BI107: 0 | BJ107: 0 | BK107: 0 | BL107: 0 | BM107: 0 | BN107: 0 | BO107: 0 | BP107: 0 | BQ107: 0 | BT107: 2014-01-05 | BU107: 02:00:00 | BV107: 平日 | BW107: 5.7 | BX107: 3.9 | BY107: 0 | BZ107: 0 | CA107: 0 | CB107: 0 | CC107: 0 | CD107: 0 | CE107: 0 | CF107: 0 | CG107: 0 | CH107: 0 | CI107: 0 | CJ107: 0 | CK107: 0 | CL107: 0 | CM107: 0 | CN107: 0 | CO107: 0 | CP107: 0 | CQ107: 0 | CR107: 0 | CS107: 0 | CT107: 0 | CU107: 0 | CV107: 0
A108: 2014-01-05 | B108: 3時 | C108: 平日 | D108: 6.3 | E108: 3.7 | F108: 6.459282049 | R108: 6.459282049 | T108: 2014-01-05 | U108: 3時 | V108: 平日 | W108: 6.3 | X108: 3.7 | Y108: 0 | Z108: 0 | AW108: 0 | AX108: 0 | BA108: 2014-01-05 | BB108: 03:00:00 | BC108: 平日 | BD108: 6.3 | BE108: 3.7 | BF108: 6459.282049 | BG108: 0 | BH108: 0 | BI108: 0 | BJ108: 0 | BK108: 0 | BL108: 0 | BM108: 0 | BN108: 0 | BO108: 0 | BP108: 0 | BQ108: 0 | BT108: 2014-01-05 | BU108: 03:00:00 | BV108: 平日 | BW108: 6.3 | BX108: 3.7 | BY108: 0 | BZ108: 0 | CA108: 0 | CB108: 0 | CC108: 0 | CD108: 0 | CE108: 0 | CF108: 0 | CG108: 0 | CH108: 0 | CI108: 0 | CJ108: 0 | CK108: 0 | CL108: 0 | CM108: 0 | CN108: 0 | CO108: 0 | CP108: 0 | CQ108: 0 | CR108: 0 | CS108: 0 | CT108: 0 | CU108: 0 | CV108: 0
A109: 2014-01-05 | B109: 4時 | C109: 平日 | D109: 6.8 | E109: 3.6 | F109: 6.372588156 | R109: 6.372588156 | T109: 2014-01-05 | U109: 4時 | V109: 平日 | W109: 6.8 | X109: 3.6 | Y109: 0 | Z109: 0 | AW109: 0 | AX109: 0 | BA109: 2014-01-05 | BB109: 04:00:00 | BC109: 平日 | BD109: 6.8 | BE109: 3.6 | BF109: 6372.588156 | BG109: 0 | BH109: 0 | BI109: 0 | BJ109: 0 | BK109: 0 | BL109: 0 | BM109: 0 | BN109: 0 | BO109: 0 | BP109: 0 | BQ109: 0 | BT109: 2014-01-05 | BU109: 04:00:00 | BV109: 平日 | BW109: 6.8 | BX109: 3.6 | BY109: 0 | BZ109: 0 | CA109: 0 | CB109: 0 | CC109: 0 | CD109: 0 | CE109: 0 | CF109: 0 | CG109: 0 | CH109: 0 | CI109: 0 | CJ109: 0 | CK109: 0 | CL109: 0 | CM109: 0 | CN109: 0 | CO109: 0 | CP109: 0 | CQ109: 0 | CR109: 0 | CS109: 0 | CT109: 0 | CU109: 0 | CV109: 0
A110: 2014-01-05 | B110: 5時 | C110: 平日 | D110: 5.9 | E110: 3.8 | F110: 7.415899623 | R110: 7.415899623 | T110: 2014-01-05 | U110: 5時 | V110: 平日 | W110: 5.9 | X110: 3.8 | Y110: 0 | Z110: 0 | AW110: 0 | AX110: 0 | BA110: 2014-01-05 | BB110: 05:00:00 | BC110: 平日 | BD110: 5.9 | BE110: 3.8 | BF110: 7415.899623 | BG110: 0 | BH110: 0 | BI110: 0 | BJ110: 0 | BK110: 0 | BL110: 0 | BM110: 0 | BN110: 0 | BO110: 0 | BP110: 0 | BQ110: 0 | BT110: 2014-01-05 | BU110: 05:00:00 | BV110: 平日 | BW110: 5.9 | BX110: 3.8 | BY110: 0 | BZ110: 0 | CA110: 0 | CB110: 0 | CC110: 0 | CD110: 0 | CE110: 0 | CF110: 0 | CG110: 0 | CH110: 0 | CI110: 0 | CJ110: 0 | CK110: 0 | CL110: 0 | CM110: 0 | CN110: 0 | CO110: 0 | CP110: 0 | CQ110: 0 | CR110: 0 | CS110: 0 | CT110: 0 | CU110: 0 | CV110: 0
A111: 2014-01-05 | B111: 6時 | C111: 平日 | D111: 5.6 | E111: 3.6 | F111: 5.223068717 | R111: 5.223068717 | T111: 2014-01-05 | U111: 6時 | V111: 平日 | W111: 5.6 | X111: 3.6 | Y111: 0 | Z111: 0 | AW111: 0 | AX111: 0 | BA111: 2014-01-05 | BB111: 06:00:00 | BC111: 平日 | BD111: 5.6 | BE111: 3.6 | BF111: 5223.068717 | BG111: 0 | BH111: 0 | BI111: 0 | BJ111: 0 | BK111: 0 | BL111: 0 | BM111: 0 | BN111: 0 | BO111: 0 | BP111: 0 | BQ111: 0 | BT111: 2014-01-05 | BU111: 06:00:00 | BV111: 平日 | BW111: 5.6 | BX111: 3.6 | BY111: 0 | BZ111: 0 | CA111: 0 | CB111: 0 | CC111: 0 | CD111: 0 | CE111: 0 | CF111: 0 | CG111: 0 | CH111: 0 | CI111: 0 | CJ111: 0 | CK111: 0 | CL111: 0 | CM111: 0 | CN111: 0 | CO111: 0 | CP111: 0 | CQ111: 0 | CR111: 0 | CS111: 0 | CT111: 0 | CU111: 0 | CV111: 0
A112: 2014-01-05 | B112: 7時 | C112: 平日 | D112: 5.2 | E112: 3.4 | F112: 4.088782566 | R112: 4.088782566 | T112: 2014-01-05 | U112: 7時 | V112: 平日 | W112: 5.2 | X112: 3.4 | Y112: 0 | Z112: 0 | AW112: 0 | AX112: 0 | BA112: 2014-01-05 | BB112: 07:00:00 | BC112: 平日 | BD112: 5.2 | BE112: 3.4 | BF112: 4088.782566 | BG112: 0 | BH112: 0 | BI112: 0 | BJ112: 0 | BK112: 0 | BL112: 0 | BM112: 0 | BN112: 0 | BO112: 0 | BP112: 0 | BQ112: 0 | BT112: 2014-01-05 | BU112: 07:00:00 | BV112: 平日 | BW112: 5.2 | BX112: 3.4 | BY112: 0 | BZ112: 0 | CA112: 0 | CB112: 0 | CC112: 0 | CD112: 0 | CE112: 0 | CF112: 0 | CG112: 0 | CH112: 0 | CI112: 0 | CJ112: 0 | CK112: 0 | CL112: 0 | CM112: 0 | CN112: 0 | CO112: 0 | CP112: 0 | CQ112: 0 | CR112: 0 | CS112: 0 | CT112: 0 | CU112: 0 | CV112: 0
A113: 2014-01-05 | B113: 8時 | C113: 平日 | D113: 5.2 | E113: 3.1 | F113: 3.211492318 | R113: 3.211492318 | T113: 2014-01-05 | U113: 8時 | V113: 平日 | W113: 5.2 | X113: 3.1 | Y113: 0 | Z113: 0 | AW113: 0 | AX113: 0 | BA113: 2014-01-05 | BB113: 08:00:00 | BC113: 平日 | BD113: 5.2 | BE113: 3.1 | BF113: 3211.492318 | BG113: 0 | BH113: 0 | BI113: 0 | BJ113: 0 | BK113: 0 | BL113: 0 | BM113: 0 | BN113: 0 | BO113: 0 | BP113: 0 | BQ113: 0 | BT113: 2014-01-05 | BU113: 08:00:00 | BV113: 平日 | BW113: 5.2 | BX113: 3.1 | BY113: 0 | BZ113: 0 | CA113: 0 | CB113: 0 | CC113: 0 | CD113: 0 | CE113: 0 | CF113: 0 | CG113: 0 | CH113: 0 | CI113: 0 | CJ113: 0 | CK113: 0 | CL113: 0 | CM113: 0 | CN113: 0 | CO113: 0 | CP113: 0 | CQ113: 0 | CR113: 0 | CS113: 0 | CT113: 0 | CU113: 0 | CV113: 0
A114: 2014-01-05 | B114: 9時 | C114: 平日 | D114: 6.4 | E114: 3 | F114: 1.608656271 | R114: 1.608656271 | T114: 2014-01-05 | U114: 9時 | V114: 平日 | W114: 6.4 | X114: 3 | Y114: 0 | Z114: 0 | AW114: 0 | AX114: 0 | BA114: 2014-01-05 | BB114: 09:00:00 | BC114: 平日 | BD114: 6.4 | BE114: 3 | BF114: 1608.656271 | BG114: 0 | BH114: 0 | BI114: 0 | BJ114: 0 | BK114: 0 | BL114: 0 | BM114: 0 | BN114: 0 | BO114: 0 | BP114: 0 | BQ114: 0 | BT114: 2014-01-05 | BU114: 09:00:00 | BV114: 平日 | BW114: 6.4 | BX114: 3 | BY114: 0 | BZ114: 0 | CA114: 0 | CB114: 0 | CC114: 0 | CD114: 0 | CE114: 0 | CF114: 0 | CG114: 0 | CH114: 0 | CI114: 0 | CJ114: 0 | CK114: 0 | CL114: 0 | CM114: 0 | CN114: 0 | CO114: 0 | CP114: 0 | CQ114: 0 | CR114: 0 | CS114: 0 | CT114: 0 | CU114: 0 | CV114: 0
A115: 2014-01-05 | B115: 10時 | C115: 平日 | D115: 7.2 | E115: 2.8 | F115: 0 | R115: 0 | T115: 2014-01-05 | U115: 10時 | V115: 平日 | W115: 7.2 | X115: 2.8 | Y115: 0 | Z115: 0 | AW115: 0 | AX115: 0 | BA115: 2014-01-05 | BB115: 10:00:00 | BC115: 平日 | BD115: 7.2 | BE115: 2.8 | BF115: 0 | BG115: 0 | BH115: 0 | BI115: 0 | BJ115: 0 | BK115: 0 | BL115: 0 | BM115: 0 | BN115: 0 | BO115: 0 | BP115: 0 | BQ115: 0 | BT115: 2014-01-05 | BU115: 10:00:00 | BV115: 平日 | BW115: 7.2 | BX115: 2.8 | BY115: 0 | BZ115: 0 | CA115: 0 | CB115: 0 | CC115: 0 | CD115: 0 | CE115: 0 | CF115: 0 | CG115: 0 | CH115: 0 | CI115: 0 | CJ115: 0 | CK115: 0 | CL115: 0 | CM115: 0 | CN115: 0 | CO115: 0 | CP115: 0 | CQ115: 0 | CR115: 0 | CS115: 0 | CT115: 0 | CU115: 0 | CV115: 0
A116: 2014-01-05 | B116: 11時 | C116: 平日 | D116: 7.7 | E116: 2.9 | F116: 0.6786609436 | R116: 0.6786609436 | T116: 2014-01-05 | U116: 11時 | V116: 平日 | W116: 7.7 | X116: 2.9 | Y116: 0 | Z116: 0 | AW116: 0 | AX116: 0 | BA116: 2014-01-05 | BB116: 11:00:00 | BC116: 平日 | BD116: 7.7 | BE116: 2.9 | BF116: 678.6609436 | BG116: 0 | BH116: 0 | BI116: 0 | BJ116: 0 | BK116: 0 | BL116: 0 | BM116: 0 | BN116: 0 | BO116: 0 | BP116: 0 | BQ116: 0 | BT116: 2014-01-05 | BU116: 11:00:00 | BV116: 平日 | BW116: 7.7 | BX116: 2.9 | BY116: 0 | BZ116: 0 | CA116: 0 | CB116: 0 | CC116: 0 | CD116: 0 | CE116: 0 | CF116: 0 | CG116: 0 | CH116: 0 | CI116: 0 | CJ116: 0 | CK116: 0 | CL116: 0 | CM116: 0 | CN116: 0 | CO116: 0 | CP116: 0 | CQ116: 0 | CR116: 0 | CS116: 0 | CT116: 0 | CU116: 0 | CV116: 0
A117: 2014-01-05 | B117: 12時 | C117: 平日 | D117: 7.6 | E117: 2.7 | F117: 0 | R117: 0 | T117: 2014-01-05 | U117: 12時 | V117: 平日 | W117: 7.6 | X117: 2.7 | Y117: 0 | Z117: 0 | AW117: 0 | AX117: 0 | BA117: 2014-01-05 | BB117: 12:00:00 | BC117: 平日 | BD117: 7.6 | BE117: 2.7 | BF117: 0 | BG117: 0 | BH117: 0 | BI117: 0 | BJ117: 0 | BK117: 0 | BL117: 0 | BM117: 0 | BN117: 0 | BO117: 0 | BP117: 0 | BQ117: 0 | BT117: 2014-01-05 | BU117: 12:00:00 | BV117: 平日 | BW117: 7.6 | BX117: 2.7 | BY117: 0 | BZ117: 0 | CA117: 0 | CB117: 0 | CC117: 0 | CD117: 0 | CE117: 0 | CF117: 0 | CG117: 0 | CH117: 0 | CI117: 0 | CJ117: 0 | CK117: 0 | CL117: 0 | CM117: 0 | CN117: 0 | CO117: 0 | CP117: 0 | CQ117: 0 | CR117: 0 | CS117: 0 | CT117: 0 | CU117: 0 | CV117: 0
A118: 2014-01-05 | B118: 13時 | C118: 平日 | D118: 7 | E118: 2.9 | F118: 0 | R118: 0 | T118: 2014-01-05 | U118: 13時 | V118: 平日 | W118: 7 | X118: 2.9 | Y118: 0 | Z118: 0 | AW118: 0 | AX118: 0 | BA118: 2014-01-05 | BB118: 13:00:00 | BC118: 平日 | BD118: 7 | BE118: 2.9 | BF118: 0 | BG118: 0 | BH118: 0 | BI118: 0 | BJ118: 0 | BK118: 0 | BL118: 0 | BM118: 0 | BN118: 0 | BO118: 0 | BP118: 0 | BQ118: 0 | BT118: 2014-01-05 | BU118: 13:00:00 | BV118: 平日 | BW118: 7 | BX118: 2.9 | BY118: 0 | BZ118: 0 | CA118: 0 | CB118: 0 | CC118: 0 | CD118: 0 | CE118: 0 | CF118: 0 | CG118: 0 | CH118: 0 | CI118: 0 | CJ118: 0 | CK118: 0 | CL118: 0 | CM118: 0 | CN118: 0 | CO118: 0 | CP118: 0 | CQ118: 0 | CR118: 0 | CS118: 0 | CT118: 0 | CU118: 0 | CV118: 0
A119: 2014-01-05 | B119: 14時 | C119: 平日 | D119: 7.4 | E119: 2.7 | F119: 0 | R119: 0 | T119: 2014-01-05 | U119: 14時 | V119: 平日 | W119: 7.4 | X119: 2.7 | Y119: 0 | Z119: 0 | AW119: 0 | AX119: 0 | BA119: 2014-01-05 | BB119: 14:00:00 | BC119: 平日 | BD119: 7.4 | BE119: 2.7 | BF119: 0 | BG119: 0 | BH119: 0 | BI119: 0 | BJ119: 0 | BK119: 0 | BL119: 0 | BM119: 0 | BN119: 0 | BO119: 0 | BP119: 0 | BQ119: 0 | BT119: 2014-01-05 | BU119: 14:00:00 | BV119: 平日 | BW119: 7.4 | BX119: 2.7 | BY119: 0 | BZ119: 0 | CA119: 0 | CB119: 0 | CC119: 0 | CD119: 0 | CE119: 0 | CF119: 0 | CG119: 0 | CH119: 0 | CI119: 0 | CJ119: 0 | CK119: 0 | CL119: 0 | CM119: 0 | CN119: 0 | CO119: 0 | CP119: 0 | CQ119: 0 | CR119: 0 | CS119: 0 | CT119: 0 | CU119: 0 | CV119: 0
A120: 2014-01-05 | B120: 15時 | C120: 平日 | D120: 6.6 | E120: 2.5 | F120: 0 | R120: 0 | T120: 2014-01-05 | U120: 15時 | V120: 平日 | W120: 6.6 | X120: 2.5 | Y120: 0 | Z120: 0 | AW120: 0 | AX120: 0 | BA120: 2014-01-05 | BB120: 15:00:00 | BC120: 平日 | BD120: 6.6 | BE120: 2.5 | BF120: 0 | BG120: 0 | BH120: 0 | BI120: 0 | BJ120: 0 | BK120: 0 | BL120: 0 | BM120: 0 | BN120: 0 | BO120: 0 | BP120: 0 | BQ120: 0 | BT120: 2014-01-05 | BU120: 15:00:00 | BV120: 平日 | BW120: 6.6 | BX120: 2.5 | BY120: 0 | BZ120: 0 | CA120: 0 | CB120: 0 | CC120: 0 | CD120: 0 | CE120: 0 | CF120: 0 | CG120: 0 | CH120: 0 | CI120: 0 | CJ120: 0 | CK120: 0 | CL120: 0 | CM120: 0 | CN120: 0 | CO120: 0 | CP120: 0 | CQ120: 0 | CR120: 0 | CS120: 0 | CT120: 0 | CU120: 0 | CV120: 0
A121: 2014-01-05 | B121: 16時 | C121: 平日 | D121: 5.9 | E121: 2.5 | F121: 1.753266302 | R121: 1.753266302 | T121: 2014-01-05 | U121: 16時 | V121: 平日 | W121: 5.9 | X121: 2.5 | Y121: 0 | Z121: 0 | AW121: 0 | AX121: 0 | BA121: 2014-01-05 | BB121: 16:00:00 | BC121: 平日 | BD121: 5.9 | BE121: 2.5 | BF121: 1753.266302 | BG121: 0 | BH121: 0 | BI121: 0 | BJ121: 0 | BK121: 0 | BL121: 0 | BM121: 0 | BN121: 0 | BO121: 0 | BP121: 0 | BQ121: 0 | BT121: 2014-01-05 | BU121: 16:00:00 | BV121: 平日 | BW121: 5.9 | BX121: 2.5 | BY121: 0 | BZ121: 0 | CA121: 0 | CB121: 0 | CC121: 0 | CD121: 0 | CE121: 0 | CF121: 0 | CG121: 0 | CH121: 0 | CI121: 0 | CJ121: 0 | CK121: 0 | CL121: 0 | CM121: 0 | CN121: 0 | CO121: 0 | CP121: 0 | CQ121: 0 | CR121: 0 | CS121: 0 | CT121: 0 | CU121: 0 | CV121: 0
A122: 2014-01-05 | B122: 17時 | C122: 平日 | D122: 4.9 | E122: 2.4 | F122: 5.012017559 | R122: 5.012017559 | T122: 2014-01-05 | U122: 17時 | V122: 平日 | W122: 4.9 | X122: 2.4 | Y122: 0 | Z122: 0 | AW122: 0 | AX122: 0 | BA122: 2014-01-05 | BB122: 17:00:00 | BC122: 平日 | BD122: 4.9 | BE122: 2.4 | BF122: 5012.017559 | BG122: 0 | BH122: 0 | BI122: 0 | BJ122: 0 | BK122: 0 | BL122: 0 | BM122: 0 | BN122: 0 | BO122: 0 | BP122: 0 | BQ122: 0 | BT122: 2014-01-05 | BU122: 17:00:00 | BV122: 平日 | BW122: 4.9 | BX122: 2.4 | BY122: 0 | BZ122: 0 | CA122: 0 | CB122: 0 | CC122: 0 | CD122: 0 | CE122: 0 | CF122: 0 | CG122: 0 | CH122: 0 | CI122: 0 | CJ122: 0 | CK122: 0 | CL122: 0 | CM122: 0 | CN122: 0 | CO122: 0 | CP122: 0 | CQ122: 0 | CR122: 0 | CS122: 0 | CT122: 0 | CU122: 0 | CV122: 0
A123: 2014-01-05 | B123: 18時 | C123: 平日 | D123: 4.2 | E123: 2.7 | F123: 6.611532765 | R123: 6.611532765 | T123: 2014-01-05 | U123: 18時 | V123: 平日 | W123: 4.2 | X123: 2.7 | Y123: 0 | Z123: 0 | AW123: 0 | AX123: 0 | BA123: 2014-01-05 | BB123: 18:00:00 | BC123: 平日 | BD123: 4.2 | BE123: 2.7 | BF123: 6611.532765 | BG123: 0 | BH123: 0 | BI123: 0 | BJ123: 0 | BK123: 0 | BL123: 0 | BM123: 0 | BN123: 0 | BO123: 0 | BP123: 0 | BQ123: 0 | BT123: 2014-01-05 | BU123: 18:00:00 | BV123: 平日 | BW123: 4.2 | BX123: 2.7 | BY123: 0 | BZ123: 0 | CA123: 0 | CB123: 0 | CC123: 0 | CD123: 0 | CE123: 0 | CF123: 0 | CG123: 0 | CH123: 0 | CI123: 0 | CJ123: 0 | CK123: 0 | CL123: 0 | CM123: 0 | CN123: 0 | CO123: 0 | CP123: 0 | CQ123: 0 | CR123: 0 | CS123: 0 | CT123: 0 | CU123: 0 | CV123: 0
A124: 2014-01-05 | B124: 19時 | C124: 平日 | D124: 4 | E124: 2.7 | F124: 4.36726724 | R124: 4.36726724 | T124: 2014-01-05 | U124: 19時 | V124: 平日 | W124: 4 | X124: 2.7 | Y124: 0 | Z124: 0 | AW124: 0 | AX124: 0 | BA124: 2014-01-05 | BB124: 19:00:00 | BC124: 平日 | BD124: 4 | BE124: 2.7 | BF124: 4367.26724 | BG124: 0 | BH124: 0 | BI124: 0 | BJ124: 0 | BK124: 0 | BL124: 0 | BM124: 0 | BN124: 0 | BO124: 0 | BP124: 0 | BQ124: 0 | BT124: 2014-01-05 | BU124: 19:00:00 | BV124: 平日 | BW124: 4 | BX124: 2.7 | BY124: 0 | BZ124: 0 | CA124: 0 | CB124: 0 | CC124: 0 | CD124: 0 | CE124: 0 | CF124: 0 | CG124: 0 | CH124: 0 | CI124: 0 | CJ124: 0 | CK124: 0 | CL124: 0 | CM124: 0 | CN124: 0 | CO124: 0 | CP124: 0 | CQ124: 0 | CR124: 0 | CS124: 0 | CT124: 0 | CU124: 0 | CV124: 0
A125: 2014-01-05 | B125: 20時 | C125: 平日 | D125: 2.9 | E125: 2.9 | F125: 5.415876981 | R125: 5.415876981 | T125: 2014-01-05 | U125: 20時 | V125: 平日 | W125: 2.9 | X125: 2.9 | Y125: 0 | Z125: 0 | AW125: 0 | AX125: 0 | BA125: 2014-01-05 | BB125: 20:00:00 | BC125: 平日 | BD125: 2.9 | BE125: 2.9 | BF125: 5415.876981 | BG125: 0 | BH125: 0 | BI125: 0 | BJ125: 0 | BK125: 0 | BL125: 0 | BM125: 0 | BN125: 0 | BO125: 0 | BP125: 0 | BQ125: 0 | BT125: 2014-01-05 | BU125: 20:00:00 | BV125: 平日 | BW125: 2.9 | BX125: 2.9 | BY125: 0 | BZ125: 0 | CA125: 0 | CB125: 0 | CC125: 0 | CD125: 0 | CE125: 0 | CF125: 0 | CG125: 0 | CH125: 0 | CI125: 0 | CJ125: 0 | CK125: 0 | CL125: 0 | CM125: 0 | CN125: 0 | CO125: 0 | CP125: 0 | CQ125: 0 | CR125: 0 | CS125: 0 | CT125: 0 | CU125: 0 | CV125: 0
A126: 2014-01-05 | B126: 21時 | C126: 平日 | D126: 2.9 | E126: 3 | F126: 6.05078706 | R126: 6.05078706 | T126: 2014-01-05 | U126: 21時 | V126: 平日 | W126: 2.9 | X126: 3 | Y126: 0 | Z126: 0 | AW126: 0 | AX126: 0 | BA126: 2014-01-05 | BB126: 21:00:00 | BC126: 平日 | BD126: 2.9 | BE126: 3 | BF126: 6050.78706 | BG126: 0 | BH126: 0 | BI126: 0 | BJ126: 0 | BK126: 0 | BL126: 0 | BM126: 0 | BN126: 0 | BO126: 0 | BP126: 0 | BQ126: 0 | BT126: 2014-01-05 | BU126: 21:00:00 | BV126: 平日 | BW126: 2.9 | BX126: 3 | BY126: 0 | BZ126: 0 | CA126: 0 | CB126: 0 | CC126: 0 | CD126: 0 | CE126: 0 | CF126: 0 | CG126: 0 | CH126: 0 | CI126: 0 | CJ126: 0 | CK126: 0 | CL126: 0 | CM126: 0 | CN126: 0 | CO126: 0 | CP126: 0 | CQ126: 0 | CR126: 0 | CS126: 0 | CT126: 0 | CU126: 0 | CV126: 0
A127: 2014-01-05 | B127: 22時 | C127: 平日 | D127: 1.9 | E127: 3.1 | F127: 6.75900628 | R127: 6.75900628 | T127: 2014-01-05 | U127: 22時 | V127: 平日 | W127: 1.9 | X127: 3.1 | Y127: 0 | Z127: 0 | AW127: 0 | AX127: 0 | BA127: 2014-01-05 | BB127: 22:00:00 | BC127: 平日 | BD127: 1.9 | BE127: 3.1 | BF127: 6759.00628 | BG127: 0 | BH127: 0 | BI127: 0 | BJ127: 0 | BK127: 0 | BL127: 0 | BM127: 0 | BN127: 0 | BO127: 0 | BP127: 0 | BQ127: 0 | BT127: 2014-01-05 | BU127: 22:00:00 | BV127: 平日 | BW127: 1.9 | BX127: 3.1 | BY127: 0 | BZ127: 0 | CA127: 0 | CB127: 0 | CC127: 0 | CD127: 0 | CE127: 0 | CF127: 0 | CG127: 0 | CH127: 0 | CI127: 0 | CJ127: 0 | CK127: 0 | CL127: 0 | CM127: 0 | CN127: 0 | CO127: 0 | CP127: 0 | CQ127: 0 | CR127: 0 | CS127: 0 | CT127: 0 | CU127: 0 | CV127: 0
A128: 2014-01-05 | B128: 23時 | C128: 平日 | D128: 1.8 | E128: 3 | F128: 7.946779141 | R128: 7.946779141 | T128: 2014-01-05 | U128: 23時 | V128: 平日 | W128: 1.8 | X128: 3 | Y128: 0 | Z128: 0 | AW128: 0 | AX128: 0 | BA128: 2014-01-05 | BB128: 23:00:00 | BC128: 平日 | BD128: 1.8 | BE128: 3 | BF128: 7946.779141 | BG128: 0 | BH128: 0 | BI128: 0 | BJ128: 0 | BK128: 0 | BL128: 0 | BM128: 0 | BN128: 0 | BO128: 0 | BP128: 0 | BQ128: 0 | BT128: 2014-01-05 | BU128: 23:00:00 | BV128: 平日 | BW128: 1.8 | BX128: 3 | BY128: 0 | BZ128: 0 | CA128: 0 | CB128: 0 | CC128: 0 | CD128: 0 | CE128: 0 | CF128: 0 | CG128: 0 | CH128: 0 | CI128: 0 | CJ128: 0 | CK128: 0 | CL128: 0 | CM128: 0 | CN128: 0 | CO128: 0 | CP128: 0 | CQ128: 0 | CR128: 0 | CS128: 0 | CT128: 0 | CU128: 0 | CV128: 0
A129: 2014-01-06 | B129: 0時 | C129: 平日 | D129: 1.9 | E129: 3 | F129: 8.162662607 | R129: 8.162662607 | T129: 2014-01-06 | U129: 0時 | V129: 平日 | W129: 1.9 | X129: 3 | Y129: 0 | Z129: 0 | AW129: 0 | AX129: 0 | BA129: 2014-01-06 | BB129: 00:00:00 | BC129: 平日 | BD129: 1.9 | BE129: 3 | BF129: 8162.662607 | BG129: 0 | BH129: 0 | BI129: 0 | BJ129: 0 | BK129: 0 | BL129: 0 | BM129: 0 | BN129: 0 | BO129: 0 | BP129: 0 | BQ129: 0 | BT129: 2014-01-06 | BU129: 00:00:00 | BV129: 平日 | BW129: 1.9 | BX129: 3 | BY129: 0 | BZ129: 0 | CA129: 0 | CB129: 0 | CC129: 0 | CD129: 0 | CE129: 0 | CF129: 0 | CG129: 0 | CH129: 0 | CI129: 0 | CJ129: 0 | CK129: 0 | CL129: 0 | CM129: 0 | CN129: 0 | CO129: 0 | CP129: 0 | CQ129: 0 | CR129: 0 | CS129: 0 | CT129: 0 | CU129: 0 | CV129: 0
A130: 2014-01-06 | B130: 1時 | C130: 平日 | D130: 1.7 | E130: 3.1 | F130: 8.362902129 | R130: 8.362902129 | T130: 2014-01-06 | U130: 1時 | V130: 平日 | W130: 1.7 | X130: 3.1 | Y130: 0 | Z130: 0 | AW130: 0 | AX130: 0 | BA130: 2014-01-06 | BB130: 01:00:00 | BC130: 平日 | BD130: 1.7 | BE130: 3.1 | BF130: 8362.902129 | BG130: 0 | BH130: 0 | BI130: 0 | BJ130: 0 | BK130: 0 | BL130: 0 | BM130: 0 | BN130: 0 | BO130: 0 | BP130: 0 | BQ130: 0 | BT130: 2014-01-06 | BU130: 01:00:00 | BV130: 平日 | BW130: 1.7 | BX130: 3.1 | BY130: 0 | BZ130: 0 | CA130: 0 | CB130: 0 | CC130: 0 | CD130: 0 | CE130: 0 | CF130: 0 | CG130: 0 | CH130: 0 | CI130: 0 | CJ130: 0 | CK130: 0 | CL130: 0 | CM130: 0 | CN130: 0 | CO130: 0 | CP130: 0 | CQ130: 0 | CR130: 0 | CS130: 0 | CT130: 0 | CU130: 0 | CV130: 0
A131: 2014-01-06 | B131: 2時 | C131: 平日 | D131: 2.5 | E131: 3.2 | F131: 8.276122425 | R131: 8.276122425 | T131: 2014-01-06 | U131: 2時 | V131: 平日 | W131: 2.5 | X131: 3.2 | Y131: 0 | Z131: 0 | AW131: 0 | AX131: 0 | BA131: 2014-01-06 | BB131: 02:00:00 | BC131: 平日 | BD131: 2.5 | BE131: 3.2 | BF131: 8276.122425 | BG131: 0 | BH131: 0 | BI131: 0 | BJ131: 0 | BK131: 0 | BL131: 0 | BM131: 0 | BN131: 0 | BO131: 0 | BP131: 0 | BQ131: 0 | BT131: 2014-01-06 | BU131: 02:00:00 | BV131: 平日 | BW131: 2.5 | BX131: 3.2 | BY131: 0 | BZ131: 0 | CA131: 0 | CB131: 0 | CC131: 0 | CD131: 0 | CE131: 0 | CF131: 0 | CG131: 0 | CH131: 0 | CI131: 0 | CJ131: 0 | CK131: 0 | CL131: 0 | CM131: 0 | CN131: 0 | CO131: 0 | CP131: 0 | CQ131: 0 | CR131: 0 | CS131: 0 | CT131: 0 | CU131: 0 | CV131: 0
A132: 2014-01-06 | B132: 3時 | C132: 平日 | D132: 2.7 | E132: 2.9 | F132: 8.271381481 | R132: 8.271381481 | T132: 2014-01-06 | U132: 3時 | V132: 平日 | W132: 2.7 | X132: 2.9 | Y132: 0 | Z132: 0 | AW132: 0 | AX132: 0 | BA132: 2014-01-06 | BB132: 03:00:00 | BC132: 平日 | BD132: 2.7 | BE132: 2.9 | BF132: 8271.381481 | BG132: 0 | BH132: 0 | BI132: 0 | BJ132: 0 | BK132: 0 | BL132: 0 | BM132: 0 | BN132: 0 | BO132: 0 | BP132: 0 | BQ132: 0 | BT132: 2014-01-06 | BU132: 03:00:00 | BV132: 平日 | BW132: 2.7 | BX132: 2.9 | BY132: 0 | BZ132: 0 | CA132: 0 | CB132: 0 | CC132: 0 | CD132: 0 | CE132: 0 | CF132: 0 | CG132: 0 | CH132: 0 | CI132: 0 | CJ132: 0 | CK132: 0 | CL132: 0 | CM132: 0 | CN132: 0 | CO132: 0 | CP132: 0 | CQ132: 0 | CR132: 0 | CS132: 0 | CT132: 0 | CU132: 0 | CV132: 0
A133: 2014-01-06 | B133: 4時 | C133: 平日 | D133: 2.8 | E133: 2.5 | F133: 8.286923725 | R133: 8.286923725 | T133: 2014-01-06 | U133: 4時 | V133: 平日 | W133: 2.8 | X133: 2.5 | Y133: 0 | Z133: 0 | AW133: 0 | AX133: 0 | BA133: 2014-01-06 | BB133: 04:00:00 | BC133: 平日 | BD133: 2.8 | BE133: 2.5 | BF133: 8286.923725 | BG133: 0 | BH133: 0 | BI133: 0 | BJ133: 0 | BK133: 0 | BL133: 0 | BM133: 0 | BN133: 0 | BO133: 0 | BP133: 0 | BQ133: 0 | BT133: 2014-01-06 | BU133: 04:00:00 | BV133: 平日 | BW133: 2.8 | BX133: 2.5 | BY133: 0 | BZ133: 0 | CA133: 0 | CB133: 0 | CC133: 0 | CD133: 0 | CE133: 0 | CF133: 0 | CG133: 0 | CH133: 0 | CI133: 0 | CJ133: 0 | CK133: 0 | CL133: 0 | CM133: 0 | CN133: 0 | CO133: 0 | CP133: 0 | CQ133: 0 | CR133: 0 | CS133: 0 | CT133: 0 | CU133: 0 | CV133: 0
A134: 2014-01-06 | B134: 5時 | C134: 平日 | D134: 2.1 | E134: 2.5 | F134: 9.63108087 | R134: 9.63108087 | T134: 2014-01-06 | U134: 5時 | V134: 平日 | W134: 2.1 | X134: 2.5 | Y134: 0 | Z134: 0 | AW134: 0 | AX134: 0 | BA134: 2014-01-06 | BB134: 05:00:00 | BC134: 平日 | BD134: 2.1 | BE134: 2.5 | BF134: 9631.08087 | BG134: 0 | BH134: 0 | BI134: 0 | BJ134: 0 | BK134: 0 | BL134: 0 | BM134: 0 | BN134: 0 | BO134: 0 | BP134: 0 | BQ134: 0 | BT134: 2014-01-06 | BU134: 05:00:00 | BV134: 平日 | BW134: 2.1 | BX134: 2.5 | BY134: 0 | BZ134: 0 | CA134: 0 | CB134: 0 | CC134: 0 | CD134: 0 | CE134: 0 | CF134: 0 | CG134: 0 | CH134: 0 | CI134: 0 | CJ134: 0 | CK134: 0 | CL134: 0 | CM134: 0 | CN134: 0 | CO134: 0 | CP134: 0 | CQ134: 0 | CR134: 0 | CS134: 0 | CT134: 0 | CU134: 0 | CV134: 0
A135: 2014-01-06 | B135: 6時 | C135: 平日 | D135: 1.6 | E135: 2.7 | F135: 7.168018643 | R135: 7.168018643 | T135: 2014-01-06 | U135: 6時 | V135: 平日 | W135: 1.6 | X135: 2.7 | Y135: 0 | Z135: 0 | AW135: 0 | AX135: 0 | BA135: 2014-01-06 | BB135: 06:00:00 | BC135: 平日 | BD135: 1.6 | BE135: 2.7 | BF135: 7168.018643 | BG135: 0 | BH135: 0 | BI135: 0 | BJ135: 0 | BK135: 0 | BL135: 0 | BM135: 0 | BN135: 0 | BO135: 0 | BP135: 0 | BQ135: 0 | BT135: 2014-01-06 | BU135: 06:00:00 | BV135: 平日 | BW135: 1.6 | BX135: 2.7 | BY135: 0 | BZ135: 0 | CA135: 0 | CB135: 0 | CC135: 0 | CD135: 0 | CE135: 0 | CF135: 0 | CG135: 0 | CH135: 0 | CI135: 0 | CJ135: 0 | CK135: 0 | CL135: 0 | CM135: 0 | CN135: 0 | CO135: 0 | CP135: 0 | CQ135: 0 | CR135: 0 | CS135: 0 | CT135: 0 | CU135: 0 | CV135: 0
A136: 2014-01-06 | B136: 7時 | C136: 平日 | D136: 1.4 | E136: 2.7 | F136: 3.567525988 | R136: 3.567525988 | T136: 2014-01-06 | U136: 7時 | V136: 平日 | W136: 1.4 | X136: 2.7 | Y136: 0 | Z136: 0 | AW136: 0 | AX136: 0 | BA136: 2014-01-06 | BB136: 07:00:00 | BC136: 平日 | BD136: 1.4 | BE136: 2.7 | BF136: 3567.525988 | BG136: 0 | BH136: 0 | BI136: 0 | BJ136: 0 | BK136: 0 | BL136: 0 | BM136: 0 | BN136: 0 | BO136: 0 | BP136: 0 | BQ136: 0 | BT136: 2014-01-06 | BU136: 07:00:00 | BV136: 平日 | BW136: 1.4 | BX136: 2.7 | BY136: 0 | BZ136: 0 | CA136: 0 | CB136: 0 | CC136: 0 | CD136: 0 | CE136: 0 | CF136: 0 | CG136: 0 | CH136: 0 | CI136: 0 | CJ136: 0 | CK136: 0 | CL136: 0 | CM136: 0 | CN136: 0 | CO136: 0 | CP136: 0 | CQ136: 0 | CR136: 0 | CS136: 0 | CT136: 0 | CU136: 0 | CV136: 0
A137: 2014-01-06 | B137: 8時 | C137: 平日 | D137: 3.2 | E137: 2.6 | F137: 0 | R137: =SUM(F137:Q137) -> 0 | T137: 2014-01-06 | U137: 8時 | V137: 平日 | W137: 3.2 | X137: 2.6 | Y137: 0 | Z137: 0 | AW137: 0 | AX137: =Z137+AB137+AD137+AF137+AH137+AJ137+AL137+AN137+AP137+AR137+AT137+AV137 -> 0 | BA137: 2014-01-06 | BB137: 08:00:00 | BC137: 平日 | BD137: =D137 -> 3.2 | BE137: =E137 -> 2.6 | BF137: =F137*1000 -> 0 | BG137: =G137*1000 -> 0 | BH137: =H137*1000 -> 0 | BI137: =I137*1000 -> 0 | BJ137: =J137*1000 -> 0 | BK137: =K137*1000 -> 0 | BL137: =L137*1000 -> 0 | BM137: =M137*1000 -> 0 | BN137: =N137*1000 -> 0 | BO137: =O137*1000 -> 0 | BP137: =P137*1000 -> 0 | BQ137: =Q137*1000 -> 0 | BT137: 2014-01-06 | BU137: 08:00:00 | BV137: 平日 | BW137: =W137 -> 3.2 | BX137: =X137 -> 2.6 | BY137: =Y137*1000 -> 0 | BZ137: =Z137*1000 -> 0 | CA137: =AA137*1000 -> 0 | CB137: =AB137*1000 -> 0 | CC137: =AC137*1000 -> 0 | CD137: =AD137*1000 -> 0 | CE137: =AE137*1000 -> 0 | CF137: =AF137*1000 -> 0 | CG137: =AG137*1000 -> 0 | CH137: =AH137*1000 -> 0 | CI137: =AI137*1000 -> 0 | CJ137: =AJ137*1000 -> 0 | CK137: =AK137*1000 -> 0 | CL137: =AL137*1000 -> 0 | CM137: =AM137*1000 -> 0 | CN137: =AN137*1000 -> 0 | CO137: =AO137*1000 -> 0 | CP137: =AP137*1000 -> 0 | CQ137: =AQ137*1000 -> 0 | CR137: =AR137*1000 -> 0 | CS137: =AS137*1000 -> 0 | CT137: =AT137*1000 -> 0 | CU137: =AU137*1000 -> 0 | CV137: =AV137*1000 -> 0
A138: 2014-01-06 | B138: 9時 | C138: 平日 | D138: 4.5 | E138: 2.4 | F138: 0 | R138: 0 | T138: 2014-01-06 | U138: 9時 | V138: 平日 | W138: 4.5 | X138: 2.4 | Y138: 0 | Z138: 0 | AW138: =Y138+AA138+AC138+AE138+AG138+AI138+AK138+AM138+AO138+AQ138+AS138+AU138 -> 0 | AX138: 0 | BA138: 2014-01-06 | BB138: 09:00:00 | BC138: 平日 | BD138: 4.5 | BE138: 2.4 | BF138: 0 | BG138: 0 | BH138: 0 | BI138: 0 | BJ138: 0 | BK138: 0 | BL138: 0 | BM138: 0 | BN138: 0 | BO138: 0 | BP138: 0 | BQ138: 0 | BT138: 2014-01-06 | BU138: 09:00:00 | BV138: 平日 | BW138: 4.5 | BX138: 2.4 | BY138: 0 | BZ138: 0 | CA138: 0 | CB138: 0 | CC138: 0 | CD138: 0 | CE138: 0 | CF138: 0 | CG138: 0 | CH138: 0 | CI138: 0 | CJ138: 0 | CK138: 0 | CL138: 0 | CM138: 0 | CN138: 0 | CO138: 0 | CP138: 0 | CQ138: 0 | CR138: 0 | CS138: 0 | CT138: 0 | CU138: 0 | CV138: 0
A139: 2014-01-06 | B139: 10時 | C139: 平日 | D139: 5.5 | E139: 2.5 | F139: 0 | R139: 0 | T139: 2014-01-06 | U139: 10時 | V139: 平日 | W139: 5.5 | X139: 2.5 | Y139: 0 | Z139: 0 | AW139: 0 | AX139: 0 | BA139: 2014-01-06 | BB139: 10:00:00 | BC139: 平日 | BD139: 5.5 | BE139: 2.5 | BF139: 0 | BG139: 0 | BH139: 0 | BI139: 0 | BJ139: 0 | BK139: 0 | BL139: 0 | BM139: 0 | BN139: 0 | BO139: 0 | BP139: 0 | BQ139: 0 | BT139: 2014-01-06 | BU139: 10:00:00 | BV139: 平日 | BW139: 5.5 | BX139: 2.5 | BY139: 0 | BZ139: 0 | CA139: 0 | CB139: 0 | CC139: 0 | CD139: 0 | CE139: 0 | CF139: 0 | CG139: 0 | CH139: 0 | CI139: 0 | CJ139: 0 | CK139: 0 | CL139: 0 | CM139: 0 | CN139: 0 | CO139: 0 | CP139: 0 | CQ139: 0 | CR139: 0 | CS139: 0 | CT139: 0 | CU139: 0 | CV139: 0
A140: 2014-01-06 | B140: 11時 | C140: 平日 | D140: 6.1 | E140: 2.5 | F140: 0 | R140: 0 | T140: 2014-01-06 | U140: 11時 | V140: 平日 | W140: 6.1 | X140: 2.5 | Y140: 0 | Z140: 0 | AW140: 0 | AX140: 0 | BA140: 2014-01-06 | BB140: 11:00:00 | BC140: 平日 | BD140: 6.1 | BE140: 2.5 | BF140: 0 | BG140: 0 | BH140: 0 | BI140: 0 | BJ140: 0 | BK140: 0 | BL140: 0 | BM140: 0 | BN140: 0 | BO140: 0 | BP140: 0 | BQ140: 0 | BT140: 2014-01-06 | BU140: 11:00:00 | BV140: 平日 | BW140: 6.1 | BX140: 2.5 | BY140: 0 | BZ140: 0 | CA140: 0 | CB140: 0 | CC140: 0 | CD140: 0 | CE140: 0 | CF140: 0 | CG140: 0 | CH140: 0 | CI140: 0 | CJ140: 0 | CK140: 0 | CL140: 0 | CM140: 0 | CN140: 0 | CO140: 0 | CP140: 0 | CQ140: 0 | CR140: 0 | CS140: 0 | CT140: 0 | CU140: 0 | CV140: 0
A141: 2014-01-06 | B141: 12時 | C141: 平日 | D141: 6.1 | E141: 2.3 | F141: 0 | R141: 0 | T141: 2014-01-06 | U141: 12時 | V141: 平日 | W141: 6.1 | X141: 2.3 | Y141: 0 | Z141: 0 | AW141: 0 | AX141: 0 | BA141: 2014-01-06 | BB141: 12:00:00 | BC141: 平日 | BD141: 6.1 | BE141: 2.3 | BF141: 0 | BG141: 0 | BH141: 0 | BI141: 0 | BJ141: 0 | BK141: 0 | BL141: 0 | BM141: 0 | BN141: 0 | BO141: 0 | BP141: 0 | BQ141: 0 | BT141: 2014-01-06 | BU141: 12:00:00 | BV141: 平日 | BW141: 6.1 | BX141: 2.3 | BY141: 0 | BZ141: 0 | CA141: 0 | CB141: 0 | CC141: 0 | CD141: 0 | CE141: 0 | CF141: 0 | CG141: 0 | CH141: 0 | CI141: 0 | CJ141: 0 | CK141: 0 | CL141: 0 | CM141: 0 | CN141: 0 | CO141: 0 | CP141: 0 | CQ141: 0 | CR141: 0 | CS141: 0 | CT141: 0 | CU141: 0 | CV141: 0
A142: 2014-01-06 | B142: 13時 | C142: 平日 | D142: 6.3 | E142: 2.3 | F142: 0 | R142: 0 | T142: 2014-01-06 | U142: 13時 | V142: 平日 | W142: 6.3 | X142: 2.3 | Y142: 0 | Z142: 0 | AW142: 0 | AX142: 0 | BA142: 2014-01-06 | BB142: 13:00:00 | BC142: 平日 | BD142: 6.3 | BE142: 2.3 | BF142: 0 | BG142: 0 | BH142: 0 | BI142: 0 | BJ142: 0 | BK142: 0 | BL142: 0 | BM142: 0 | BN142: 0 | BO142: 0 | BP142: 0 | BQ142: 0 | BT142: 2014-01-06 | BU142: 13:00:00 | BV142: 平日 | BW142: 6.3 | BX142: 2.3 | BY142: 0 | BZ142: 0 | CA142: 0 | CB142: 0 | CC142: 0 | CD142: 0 | CE142: 0 | CF142: 0 | CG142: 0 | CH142: 0 | CI142: 0 | CJ142: 0 | CK142: 0 | CL142: 0 | CM142: 0 | CN142: 0 | CO142: 0 | CP142: 0 | CQ142: 0 | CR142: 0 | CS142: 0 | CT142: 0 | CU142: 0 | CV142: 0
A143: 2014-01-06 | B143: 14時 | C143: 平日 | D143: 6.2 | E143: 2.2 | F143: 0 | R143: 0 | T143: 2014-01-06 | U143: 14時 | V143: 平日 | W143: 6.2 | X143: 2.2 | Y143: 0 | Z143: 0 | AW143: 0 | AX143: 0 | BA143: 2014-01-06 | BB143: 14:00:00 | BC143: 平日 | BD143: 6.2 | BE143: 2.2 | BF143: 0 | BG143: 0 | BH143: 0 | BI143: 0 | BJ143: 0 | BK143: 0 | BL143: 0 | BM143: 0 | BN143: 0 | BO143: 0 | BP143: 0 | BQ143: 0 | BT143: 2014-01-06 | BU143: 14:00:00 | BV143: 平日 | BW143: 6.2 | BX143: 2.2 | BY143: 0 | BZ143: 0 | CA143: 0 | CB143: 0 | CC143: 0 | CD143: 0 | CE143: 0 | CF143: 0 | CG143: 0 | CH143: 0 | CI143: 0 | CJ143: 0 | CK143: 0 | CL143: 0 | CM143: 0 | CN143: 0 | CO143: 0 | CP143: 0 | CQ143: 0 | CR143: 0 | CS143: 0 | CT143: 0 | CU143: 0 | CV143: 0
A144: 2014-01-06 | B144: 15時 | C144: 平日 | D144: 5.8 | E144: 2.2 | F144: 0 | R144: 0 | T144: 2014-01-06 | U144: 15時 | V144: 平日 | W144: 5.8 | X144: 2.2 | Y144: 0 | Z144: 0 | AW144: 0 | AX144: 0 | BA144: 2014-01-06 | BB144: 15:00:00 | BC144: 平日 | BD144: 5.8 | BE144: 2.2 | BF144: 0 | BG144: 0 | BH144: 0 | BI144: 0 | BJ144: 0 | BK144: 0 | BL144: 0 | BM144: 0 | BN144: 0 | BO144: 0 | BP144: 0 | BQ144: 0 | BT144: 2014-01-06 | BU144: 15:00:00 | BV144: 平日 | BW144: 5.8 | BX144: 2.2 | BY144: 0 | BZ144: 0 | CA144: 0 | CB144: 0 | CC144: 0 | CD144: 0 | CE144: 0 | CF144: 0 | CG144: 0 | CH144: 0 | CI144: 0 | CJ144: 0 | CK144: 0 | CL144: 0 | CM144: 0 | CN144: 0 | CO144: 0 | CP144: 0 | CQ144: 0 | CR144: 0 | CS144: 0 | CT144: 0 | CU144: 0 | CV144: 0
A145: 2014-01-06 | B145: 16時 | C145: 平日 | D145: 4.8 | E145: 2.2 | F145: 0 | R145: 0 | T145: 2014-01-06 | U145: 16時 | V145: 平日 | W145: 4.8 | X145: 2.2 | Y145: 0 | Z145: 0 | AW145: 0 | AX145: 0 | BA145: 2014-01-06 | BB145: 16:00:00 | BC145: 平日 | BD145: 4.8 | BE145: 2.2 | BF145: 0 | BG145: 0 | BH145: 0 | BI145: 0 | BJ145: 0 | BK145: 0 | BL145: 0 | BM145: 0 | BN145: 0 | BO145: 0 | BP145: 0 | BQ145: 0 | BT145: 2014-01-06 | BU145: 16:00:00 | BV145: 平日 | BW145: 4.8 | BX145: 2.2 | BY145: 0 | BZ145: 0 | CA145: 0 | CB145: 0 | CC145: 0 | CD145: 0 | CE145: 0 | CF145: 0 | CG145: 0 | CH145: 0 | CI145: 0 | CJ145: 0 | CK145: 0 | CL145: 0 | CM145: 0 | CN145: 0 | CO145: 0 | CP145: 0 | CQ145: 0 | CR145: 0 | CS145: 0 | CT145: 0 | CU145: 0 | CV145: 0
A146: 2014-01-06 | B146: 17時 | C146: 平日 | D146: 4 | E146: 2.5 | F146: 3.465911841 | R146: 3.465911841 | T146: 2014-01-06 | U146: 17時 | V146: 平日 | W146: 4 | X146: 2.5 | Y146: 0 | Z146: 0 | AW146: 0 | AX146: 0 | BA146: 2014-01-06 | BB146: 17:00:00 | BC146: 平日 | BD146: 4 | BE146: 2.5 | BF146: 3465.911841 | BG146: 0 | BH146: 0 | BI146: 0 | BJ146: 0 | BK146: 0 | BL146: 0 | BM146: 0 | BN146: 0 | BO146: 0 | BP146: 0 | BQ146: 0 | BT146: 2014-01-06 | BU146: 17:00:00 | BV146: 平日 | BW146: 4 | BX146: 2.5 | BY146: 0 | BZ146: 0 | CA146: 0 | CB146: 0 | CC146: 0 | CD146: 0 | CE146: 0 | CF146: 0 | CG146: 0 | CH146: 0 | CI146: 0 | CJ146: 0 | CK146: 0 | CL146: 0 | CM146: 0 | CN146: 0 | CO146: 0 | CP146: 0 | CQ146: 0 | CR146: 0 | CS146: 0 | CT146: 0 | CU146: 0 | CV146: 0
A147: 2014-01-06 | B147: 18時 | C147: 平日 | D147: 3.3 | E147: 2.5 | F147: 5.26154929 | R147: 5.26154929 | T147: 2014-01-06 | U147: 18時 | V147: 平日 | W147: 3.3 | X147: 2.5 | Y147: 0 | Z147: 0 | AW147: 0 | AX147: 0 | BA147: 2014-01-06 | BB147: 18:00:00 | BC147: 平日 | BD147: 3.3 | BE147: 2.5 | BF147: 5261.54929 | BG147: 0 | BH147: 0 | BI147: 0 | BJ147: 0 | BK147: 0 | BL147: 0 | BM147: 0 | BN147: 0 | BO147: 0 | BP147: 0 | BQ147: 0 | BT147: 2014-01-06 | BU147: 18:00:00 | BV147: 平日 | BW147: 3.3 | BX147: 2.5 | BY147: 0 | BZ147: 0 | CA147: 0 | CB147: 0 | CC147: 0 | CD147: 0 | CE147: 0 | CF147: 0 | CG147: 0 | CH147: 0 | CI147: 0 | CJ147: 0 | CK147: 0 | CL147: 0 | CM147: 0 | CN147: 0 | CO147: 0 | CP147: 0 | CQ147: 0 | CR147: 0 | CS147: 0 | CT147: 0 | CU147: 0 | CV147: 0
A148: 2014-01-06 | B148: 19時 | C148: 平日 | D148: 3 | E148: 2.4 | F148: 3.876396428 | R148: 3.876396428 | T148: 2014-01-06 | U148: 19時 | V148: 平日 | W148: 3 | X148: 2.4 | Y148: 0 | Z148: 0 | AW148: 0 | AX148: 0 | BA148: 2014-01-06 | BB148: 19:00:00 | BC148: 平日 | BD148: 3 | BE148: 2.4 | BF148: 3876.396428 | BG148: 0 | BH148: 0 | BI148: 0 | BJ148: 0 | BK148: 0 | BL148: 0 | BM148: 0 | BN148: 0 | BO148: 0 | BP148: 0 | BQ148: 0 | BT148: 2014-01-06 | BU148: 19:00:00 | BV148: 平日 | BW148: 3 | BX148: 2.4 | BY148: 0 | BZ148: 0 | CA148: 0 | CB148: 0 | CC148: 0 | CD148: 0 | CE148: 0 | CF148: 0 | CG148: 0 | CH148: 0 | CI148: 0 | CJ148: 0 | CK148: 0 | CL148: 0 | CM148: 0 | CN148: 0 | CO148: 0 | CP148: 0 | CQ148: 0 | CR148: 0 | CS148: 0 | CT148: 0 | CU148: 0 | CV148: 0
A149: 2014-01-06 | B149: 20時 | C149: 平日 | D149: 2.6 | E149: 2.5 | F149: 4.998810538 | R149: 4.998810538 | T149: 2014-01-06 | U149: 20時 | V149: 平日 | W149: 2.6 | X149: 2.5 | Y149: 0 | Z149: 0 | AW149: 0 | AX149: 0 | BA149: 2014-01-06 | BB149: 20:00:00 | BC149: 平日 | BD149: 2.6 | BE149: 2.5 | BF149: 4998.810538 | BG149: 0 | BH149: 0 | BI149: 0 | BJ149: 0 | BK149: 0 | BL149: 0 | BM149: 0 | BN149: 0 | BO149: 0 | BP149: 0 | BQ149: 0 | BT149: 2014-01-06 | BU149: 20:00:00 | BV149: 平日 | BW149: 2.6 | BX149: 2.5 | BY149: 0 | BZ149: 0 | CA149: 0 | CB149: 0 | CC149: 0 | CD149: 0 | CE149: 0 | CF149: 0 | CG149: 0 | CH149: 0 | CI149: 0 | CJ149: 0 | CK149: 0 | CL149: 0 | CM149: 0 | CN149: 0 | CO149: 0 | CP149: 0 | CQ149: 0 | CR149: 0 | CS149: 0 | CT149: 0 | CU149: 0 | CV149: 0
A150: 2014-01-06 | B150: 21時 | C150: 平日 | D150: 2.3 | E150: 2.5 | F150: 5.81625763 | R150: 5.81625763 | T150: 2014-01-06 | U150: 21時 | V150: 平日 | W150: 2.3 | X150: 2.5 | Y150: 0 | Z150: 0 | AW150: 0 | AX150: 0 | BA150: 2014-01-06 | BB150: 21:00:00 | BC150: 平日 | BD150: 2.3 | BE150: 2.5 | BF150: 5816.25763 | BG150: 0 | BH150: 0 | BI150: 0 | BJ150: 0 | BK150: 0 | BL150: 0 | BM150: 0 | BN150: 0 | BO150: 0 | BP150: 0 | BQ150: 0 | BT150: 2014-01-06 | BU150: 21:00:00 | BV150: 平日 | BW150: 2.3 | BX150: 2.5 | BY150: 0 | BZ150: 0 | CA150: 0 | CB150: 0 | CC150: 0 | CD150: 0 | CE150: 0 | CF150: 0 | CG150: 0 | CH150: 0 | CI150: 0 | CJ150: 0 | CK150: 0 | CL150: 0 | CM150: 0 | CN150: 0 | CO150: 0 | CP150: 0 | CQ150: 0 | CR150: 0 | CS150: 0 | CT150: 0 | CU150: 0 | CV150: 0
A151: 2014-01-06 | B151: 22時 | C151: 平日 | D151: 2.4 | E151: 2.5 | F151: 6.341136483 | R151: 6.341136483 | T151: 2014-01-06 | U151: 22時 | V151: 平日 | W151: 2.4 | X151: 2.5 | Y151: 0 | Z151: 0 | AW151: 0 | AX151: 0 | BA151: 2014-01-06 | BB151: 22:00:00 | BC151: 平日 | BD151: 2.4 | BE151: 2.5 | BF151: 6341.136483 | BG151: 0 | BH151: 0 | BI151: 0 | BJ151: 0 | BK151: 0 | BL151: 0 | BM151: 0 | BN151: 0 | BO151: 0 | BP151: 0 | BQ151: 0 | BT151: 2014-01-06 | BU151: 22:00:00 | BV151: 平日 | BW151: 2.4 | BX151: 2.5 | BY151: 0 | BZ151: 0 | CA151: 0 | CB151: 0 | CC151: 0 | CD151: 0 | CE151: 0 | CF151: 0 | CG151: 0 | CH151: 0 | CI151: 0 | CJ151: 0 | CK151: 0 | CL151: 0 | CM151: 0 | CN151: 0 | CO151: 0 | CP151: 0 | CQ151: 0 | CR151: 0 | CS151: 0 | CT151: 0 | CU151: 0 | CV151: 0
A152: 2014-01-06 | B152: 23時 | C152: 平日 | D152: 1.9 | E152: 2.5 | F152: 7.63020887 | R152: 7.63020887 | T152: 2014-01-06 | U152: 23時 | V152: 平日 | W152: 1.9 | X152: 2.5 | Y152: 0 | Z152: 0 | AW152: 0 | AX152: 0 | BA152: 2014-01-06 | BB152: 23:00:00 | BC152: 平日 | BD152: 1.9 | BE152: 2.5 | BF152: 7630.20887 | BG152: 0 | BH152: 0 | BI152: 0 | BJ152: 0 | BK152: 0 | BL152: 0 | BM152: 0 | BN152: 0 | BO152: 0 | BP152: 0 | BQ152: 0 | BT152: 2014-01-06 | BU152: 23:00:00 | BV152: 平日 | BW152: 1.9 | BX152: 2.5 | BY152: 0 | BZ152: 0 | CA152: 0 | CB152: 0 | CC152: 0 | CD152: 0 | CE152: 0 | CF152: 0 | CG152: 0 | CH152: 0 | CI152: 0 | CJ152: 0 | CK152: 0 | CL152: 0 | CM152: 0 | CN152: 0 | CO152: 0 | CP152: 0 | CQ152: 0 | CR152: 0 | CS152: 0 | CT152: 0 | CU152: 0 | CV152: 0
A153: 2014-01-07 | B153: 0時 | C153: 休日 | D153: 1.9 | E153: 2.5 | F153: 7.892293179 | R153: 7.892293179 | T153: 2014-01-07 | U153: 0時 | V153: 休日 | W153: 1.9 | X153: 2.5 | Y153: 0 | Z153: 0 | AW153: 0 | AX153: 0 | BA153: 2014-01-07 | BB153: 00:00:00 | BC153: 休日 | BD153: 1.9 | BE153: 2.5 | BF153: 7892.293179 | BG153: 0 | BH153: 0 | BI153: 0 | BJ153: 0 | BK153: 0 | BL153: 0 | BM153: 0 | BN153: 0 | BO153: 0 | BP153: 0 | BQ153: 0 | BT153: 2014-01-07 | BU153: 00:00:00 | BV153: 休日 | BW153: 1.9 | BX153: 2.5 | BY153: 0 | BZ153: 0 | CA153: 0 | CB153: 0 | CC153: 0 | CD153: 0 | CE153: 0 | CF153: 0 | CG153: 0 | CH153: 0 | CI153: 0 | CJ153: 0 | CK153: 0 | CL153: 0 | CM153: 0 | CN153: 0 | CO153: 0 | CP153: 0 | CQ153: 0 | CR153: 0 | CS153: 0 | CT153: 0 | CU153: 0 | CV153: 0
A154: 2014-01-07 | B154: 1時 | C154: 休日 | D154: 1.7 | E154: 2.6 | F154: 8.101795207 | R154: 8.101795207 | T154: 2014-01-07 | U154: 1時 | V154: 休日 | W154: 1.7 | X154: 2.6 | Y154: 0 | Z154: 0 | AW154: 0 | AX154: 0 | BA154: 2014-01-07 | BB154: 01:00:00 | BC154: 休日 | BD154: 1.7 | BE154: 2.6 | BF154: 8101.795207 | BG154: 0 | BH154: 0 | BI154: 0 | BJ154: 0 | BK154: 0 | BL154: 0 | BM154: 0 | BN154: 0 | BO154: 0 | BP154: 0 | BQ154: 0 | BT154: 2014-01-07 | BU154: 01:00:00 | BV154: 休日 | BW154: 1.7 | BX154: 2.6 | BY154: 0 | BZ154: 0 | CA154: 0 | CB154: 0 | CC154: 0 | CD154: 0 | CE154: 0 | CF154: 0 | CG154: 0 | CH154: 0 | CI154: 0 | CJ154: 0 | CK154: 0 | CL154: 0 | CM154: 0 | CN154: 0 | CO154: 0 | CP154: 0 | CQ154: 0 | CR154: 0 | CS154: 0 | CT154: 0 | CU154: 0 | CV154: 0
A155: 2014-01-07 | B155: 2時 | C155: 休日 | D155: 1.8 | E155: 2.6 | F155: 8.198521507 | R155: 8.198521507 | T155: 2014-01-07 | U155: 2時 | V155: 休日 | W155: 1.8 | X155: 2.6 | Y155: 0 | Z155: 0 | AW155: 0 | AX155: 0 | BA155: 2014-01-07 | BB155: 02:00:00 | BC155: 休日 | BD155: 1.8 | BE155: 2.6 | BF155: 8198.521507 | BG155: 0 | BH155: 0 | BI155: 0 | BJ155: 0 | BK155: 0 | BL155: 0 | BM155: 0 | BN155: 0 | BO155: 0 | BP155: 0 | BQ155: 0 | BT155: 2014-01-07 | BU155: 02:00:00 | BV155: 休日 | BW155: 1.8 | BX155: 2.6 | BY155: 0 | BZ155: 0 | CA155: 0 | CB155: 0 | CC155: 0 | CD155: 0 | CE155: 0 | CF155: 0 | CG155: 0 | CH155: 0 | CI155: 0 | CJ155: 0 | CK155: 0 | CL155: 0 | CM155: 0 | CN155: 0 | CO155: 0 | CP155: 0 | CQ155: 0 | CR155: 0 | CS155: 0 | CT155: 0 | CU155: 0 | CV155: 0
A156: 2014-01-07 | B156: 3時 | C156: 休日 | D156: 1.7 | E156: 2.8 | F156: 8.296430571 | R156: 8.296430571 | T156: 2014-01-07 | U156: 3時 | V156: 休日 | W156: 1.7 | X156: 2.8 | Y156: 0 | Z156: 0 | AW156: 0 | AX156: 0 | BA156: 2014-01-07 | BB156: 03:00:00 | BC156: 休日 | BD156: 1.7 | BE156: 2.8 | BF156: 8296.430571 | BG156: 0 | BH156: 0 | BI156: 0 | BJ156: 0 | BK156: 0 | BL156: 0 | BM156: 0 | BN156: 0 | BO156: 0 | BP156: 0 | BQ156: 0 | BT156: 2014-01-07 | BU156: 03:00:00 | BV156: 休日 | BW156: 1.7 | BX156: 2.8 | BY156: 0 | BZ156: 0 | CA156: 0 | CB156: 0 | CC156: 0 | CD156: 0 | CE156: 0 | CF156: 0 | CG156: 0 | CH156: 0 | CI156: 0 | CJ156: 0 | CK156: 0 | CL156: 0 | CM156: 0 | CN156: 0 | CO156: 0 | CP156: 0 | CQ156: 0 | CR156: 0 | CS156: 0 | CT156: 0 | CU156: 0 | CV156: 0
A157: 2014-01-07 | B157: 4時 | C157: 休日 | D157: 0.9 | E157: 2.7 | F157: 8.562514255 | R157: 8.562514255 | T157: 2014-01-07 | U157: 4時 | V157: 休日 | W157: 0.9 | X157: 2.7 | Y157: 0 | Z157: 0 | AW157: 0 | AX157: 0 | BA157: 2014-01-07 | BB157: 04:00:00 | BC157: 休日 | BD157: 0.9 | BE157: 2.7 | BF157: 8562.514255 | BG157: 0 | BH157: 0 | BI157: 0 | BJ157: 0 | BK157: 0 | BL157: 0 | BM157: 0 | BN157: 0 | BO157: 0 | BP157: 0 | BQ157: 0 | BT157: 2014-01-07 | BU157: 04:00:00 | BV157: 休日 | BW157: 0.9 | BX157: 2.7 | BY157: 0 | BZ157: 0 | CA157: 0 | CB157: 0 | CC157: 0 | CD157: 0 | CE157: 0 | CF157: 0 | CG157: 0 | CH157: 0 | CI157: 0 | CJ157: 0 | CK157: 0 | CL157: 0 | CM157: 0 | CN157: 0 | CO157: 0 | CP157: 0 | CQ157: 0 | CR157: 0 | CS157: 0 | CT157: 0 | CU157: 0 | CV157: 0
A158: 2014-01-07 | B158: 5時 | C158: 休日 | D158: 0.6 | E158: 2.8 | F158: 8.719006856 | R158: 8.719006856 | T158: 2014-01-07 | U158: 5時 | V158: 休日 | W158: 0.6 | X158: 2.8 | Y158: 0 | Z158: 0 | AW158: 0 | AX158: 0 | BA158: 2014-01-07 | BB158: 05:00:00 | BC158: 休日 | BD158: 0.6 | BE158: 2.8 | BF158: 8719.006856 | BG158: 0 | BH158: 0 | BI158: 0 | BJ158: 0 | BK158: 0 | BL158: 0 | BM158: 0 | BN158: 0 | BO158: 0 | BP158: 0 | BQ158: 0 | BT158: 2014-01-07 | BU158: 05:00:00 | BV158: 休日 | BW158: 0.6 | BX158: 2.8 | BY158: 0 | BZ158: 0 | CA158: 0 | CB158: 0 | CC158: 0 | CD158: 0 | CE158: 0 | CF158: 0 | CG158: 0 | CH158: 0 | CI158: 0 | CJ158: 0 | CK158: 0 | CL158: 0 | CM158: 0 | CN158: 0 | CO158: 0 | CP158: 0 | CQ158: 0 | CR158: 0 | CS158: 0 | CT158: 0 | CU158: 0 | CV158: 0
A159: 2014-01-07 | B159: 6時 | C159: 休日 | D159: 1 | E159: 2.8 | F159: 8.661464733 | R159: 8.661464733 | T159: 2014-01-07 | U159: 6時 | V159: 休日 | W159: 1 | X159: 2.8 | Y159: 0 | Z159: 0 | AW159: 0 | AX159: 0 | BA159: 2014-01-07 | BB159: 06:00:00 | BC159: 休日 | BD159: 1 | BE159: 2.8 | BF159: 8661.464733 | BG159: 0 | BH159: 0 | BI159: 0 | BJ159: 0 | BK159: 0 | BL159: 0 | BM159: 0 | BN159: 0 | BO159: 0 | BP159: 0 | BQ159: 0 | BT159: 2014-01-07 | BU159: 06:00:00 | BV159: 休日 | BW159: 1 | BX159: 2.8 | BY159: 0 | BZ159: 0 | CA159: 0 | CB159: 0 | CC159: 0 | CD159: 0 | CE159: 0 | CF159: 0 | CG159: 0 | CH159: 0 | CI159: 0 | CJ159: 0 | CK159: 0 | CL159: 0 | CM159: 0 | CN159: 0 | CO159: 0 | CP159: 0 | CQ159: 0 | CR159: 0 | CS159: 0 | CT159: 0 | CU159: 0 | CV159: 0
A160: 2014-01-07 | B160: 7時 | C160: 休日 | D160: 1.8 | E160: 3 | F160: 7.515839003 | R160: 7.515839003 | T160: 2014-01-07 | U160: 7時 | V160: 休日 | W160: 1.8 | X160: 3 | Y160: 0 | Z160: 0 | AW160: 0 | AX160: 0 | BA160: 2014-01-07 | BB160: 07:00:00 | BC160: 休日 | BD160: 1.8 | BE160: 3 | BF160: 7515.839003 | BG160: 0 | BH160: 0 | BI160: 0 | BJ160: 0 | BK160: 0 | BL160: 0 | BM160: 0 | BN160: 0 | BO160: 0 | BP160: 0 | BQ160: 0 | BT160: 2014-01-07 | BU160: 07:00:00 | BV160: 休日 | BW160: 1.8 | BX160: 3 | BY160: 0 | BZ160: 0 | CA160: 0 | CB160: 0 | CC160: 0 | CD160: 0 | CE160: 0 | CF160: 0 | CG160: 0 | CH160: 0 | CI160: 0 | CJ160: 0 | CK160: 0 | CL160: 0 | CM160: 0 | CN160: 0 | CO160: 0 | CP160: 0 | CQ160: 0 | CR160: 0 | CS160: 0 | CT160: 0 | CU160: 0 | CV160: 0
A161: 2014-01-07 | B161: 8時 | C161: 休日 | D161: 3.8 | E161: 3.1 | F161: 5.167539452 | R161: 5.167539452 | T161: 2014-01-07 | U161: 8時 | V161: 休日 | W161: 3.8 | X161: 3.1 | Y161: 0 | Z161: 0 | AW161: 0 | AX161: 0 | BA161: 2014-01-07 | BB161: 08:00:00 | BC161: 休日 | BD161: 3.8 | BE161: 3.1 | BF161: 5167.539452 | BG161: 0 | BH161: 0 | BI161: 0 | BJ161: 0 | BK161: 0 | BL161: 0 | BM161: 0 | BN161: 0 | BO161: 0 | BP161: 0 | BQ161: 0 | BT161: 2014-01-07 | BU161: 08:00:00 | BV161: 休日 | BW161: 3.8 | BX161: 3.1 | BY161: 0 | BZ161: 0 | CA161: 0 | CB161: 0 | CC161: 0 | CD161: 0 | CE161: 0 | CF161: 0 | CG161: 0 | CH161: 0 | CI161: 0 | CJ161: 0 | CK161: 0 | CL161: 0 | CM161: 0 | CN161: 0 | CO161: 0 | CP161: 0 | CQ161: 0 | CR161: 0 | CS161: 0 | CT161: 0 | CU161: 0 | CV161: 0
A162: 2014-01-07 | B162: 9時 | C162: 休日 | D162: 7.2 | E162: 3.4 | F162: 1.099172583 | R162: 1.099172583 | T162: 2014-01-07 | U162: 9時 | V162: 休日 | W162: 7.2 | X162: 3.4 | Y162: 0 | Z162: 0 | AW162: 0 | AX162: 0 | BA162: 2014-01-07 | BB162: 09:00:00 | BC162: 休日 | BD162: 7.2 | BE162: 3.4 | BF162: 1099.172583 | BG162: 0 | BH162: 0 | BI162: 0 | BJ162: 0 | BK162: 0 | BL162: 0 | BM162: 0 | BN162: 0 | BO162: 0 | BP162: 0 | BQ162: 0 | BT162: 2014-01-07 | BU162: 09:00:00 | BV162: 休日 | BW162: 7.2 | BX162: 3.4 | BY162: 0 | BZ162: 0 | CA162: 0 | CB162: 0 | CC162: 0 | CD162: 0 | CE162: 0 | CF162: 0 | CG162: 0 | CH162: 0 | CI162: 0 | CJ162: 0 | CK162: 0 | CL162: 0 | CM162: 0 | CN162: 0 | CO162: 0 | CP162: 0 | CQ162: 0 | CR162: 0 | CS162: 0 | CT162: 0 | CU162: 0 | CV162: 0
A163: 2014-01-07 | B163: 10時 | C163: 休日 | D163: 7.7 | E163: 3.5 | F163: 1.734454816 | R163: 1.734454816 | T163: 2014-01-07 | U163: 10時 | V163: 休日 | W163: 7.7 | X163: 3.5 | Y163: 0 | Z163: 0 | AW163: 0 | AX163: 0 | BA163: 2014-01-07 | BB163: 10:00:00 | BC163: 休日 | BD163: 7.7 | BE163: 3.5 | BF163: 1734.454816 | BG163: 0 | BH163: 0 | BI163: 0 | BJ163: 0 | BK163: 0 | BL163: 0 | BM163: 0 | BN163: 0 | BO163: 0 | BP163: 0 | BQ163: 0 | BT163: 2014-01-07 | BU163: 10:00:00 | BV163: 休日 | BW163: 7.7 | BX163: 3.5 | BY163: 0 | BZ163: 0 | CA163: 0 | CB163: 0 | CC163: 0 | CD163: 0 | CE163: 0 | CF163: 0 | CG163: 0 | CH163: 0 | CI163: 0 | CJ163: 0 | CK163: 0 | CL163: 0 | CM163: 0 | CN163: 0 | CO163: 0 | CP163: 0 | CQ163: 0 | CR163: 0 | CS163: 0 | CT163: 0 | CU163: 0 | CV163: 0
A164: 2014-01-07 | B164: 11時 | C164: 休日 | D164: 7.7 | E164: 3.7 | F164: 3.147267429 | R164: 3.147267429 | T164: 2014-01-07 | U164: 11時 | V164: 休日 | W164: 7.7 | X164: 3.7 | Y164: 0 | Z164: 0 | AW164: 0 | AX164: 0 | BA164: 2014-01-07 | BB164: 11:00:00 | BC164: 休日 | BD164: 7.7 | BE164: 3.7 | BF164: 3147.267429 | BG164: 0 | BH164: 0 | BI164: 0 | BJ164: 0 | BK164: 0 | BL164: 0 | BM164: 0 | BN164: 0 | BO164: 0 | BP164: 0 | BQ164: 0 | BT164: 2014-01-07 | BU164: 11:00:00 | BV164: 休日 | BW164: 7.7 | BX164: 3.7 | BY164: 0 | BZ164: 0 | CA164: 0 | CB164: 0 | CC164: 0 | CD164: 0 | CE164: 0 | CF164: 0 | CG164: 0 | CH164: 0 | CI164: 0 | CJ164: 0 | CK164: 0 | CL164: 0 | CM164: 0 | CN164: 0 | CO164: 0 | CP164: 0 | CQ164: 0 | CR164: 0 | CS164: 0 | CT164: 0 | CU164: 0 | CV164: 0
A165: 2014-01-07 | B165: 12時 | C165: 休日 | D165: 9.4 | E165: 3.9 | F165: 2.753864793 | R165: 2.753864793 | T165: 2014-01-07 | U165: 12時 | V165: 休日 | W165: 9.4 | X165: 3.9 | Y165: 0 | Z165: 0 | AW165: 0 | AX165: 0 | BA165: 2014-01-07 | BB165: 12:00:00 | BC165: 休日 | BD165: 9.4 | BE165: 3.9 | BF165: 2753.864793 | BG165: 0 | BH165: 0 | BI165: 0 | BJ165: 0 | BK165: 0 | BL165: 0 | BM165: 0 | BN165: 0 | BO165: 0 | BP165: 0 | BQ165: 0 | BT165: 2014-01-07 | BU165: 12:00:00 | BV165: 休日 | BW165: 9.4 | BX165: 3.9 | BY165: 0 | BZ165: 0 | CA165: 0 | CB165: 0 | CC165: 0 | CD165: 0 | CE165: 0 | CF165: 0 | CG165: 0 | CH165: 0 | CI165: 0 | CJ165: 0 | CK165: 0 | CL165: 0 | CM165: 0 | CN165: 0 | CO165: 0 | CP165: 0 | CQ165: 0 | CR165: 0 | CS165: 0 | CT165: 0 | CU165: 0 | CV165: 0
A166: 2014-01-07 | B166: 13時 | C166: 休日 | D166: 9.2 | E166: 4 | F166: 3.475693243 | R166: 3.475693243 | T166: 2014-01-07 | U166: 13時 | V166: 休日 | W166: 9.2 | X166: 4 | Y166: 0 | Z166: 0 | AW166: 0 | AX166: 0 | BA166: 2014-01-07 | BB166: 13:00:00 | BC166: 休日 | BD166: 9.2 | BE166: 4 | BF166: 3475.693243 | BG166: 0 | BH166: 0 | BI166: 0 | BJ166: 0 | BK166: 0 | BL166: 0 | BM166: 0 | BN166: 0 | BO166: 0 | BP166: 0 | BQ166: 0 | BT166: 2014-01-07 | BU166: 13:00:00 | BV166: 休日 | BW166: 9.2 | BX166: 4 | BY166: 0 | BZ166: 0 | CA166: 0 | CB166: 0 | CC166: 0 | CD166: 0 | CE166: 0 | CF166: 0 | CG166: 0 | CH166: 0 | CI166: 0 | CJ166: 0 | CK166: 0 | CL166: 0 | CM166: 0 | CN166: 0 | CO166: 0 | CP166: 0 | CQ166: 0 | CR166: 0 | CS166: 0 | CT166: 0 | CU166: 0 | CV166: 0
A167: 2014-01-07 | B167: 14時 | C167: 休日 | D167: 9 | E167: 4 | F167: 3.800145104 | R167: 3.800145104 | T167: 2014-01-07 | U167: 14時 | V167: 休日 | W167: 9 | X167: 4 | Y167: 0 | Z167: 0 | AW167: 0 | AX167: 0 | BA167: 2014-01-07 | BB167: 14:00:00 | BC167: 休日 | BD167: 9 | BE167: 4 | BF167: 3800.145104 | BG167: 0 | BH167: 0 | BI167: 0 | BJ167: 0 | BK167: 0 | BL167: 0 | BM167: 0 | BN167: 0 | BO167: 0 | BP167: 0 | BQ167: 0 | BT167: 2014-01-07 | BU167: 14:00:00 | BV167: 休日 | BW167: 9 | BX167: 4 | BY167: 0 | BZ167: 0 | CA167: 0 | CB167: 0 | CC167: 0 | CD167: 0 | CE167: 0 | CF167: 0 | CG167: 0 | CH167: 0 | CI167: 0 | CJ167: 0 | CK167: 0 | CL167: 0 | CM167: 0 | CN167: 0 | CO167: 0 | CP167: 0 | CQ167: 0 | CR167: 0 | CS167: 0 | CT167: 0 | CU167: 0 | CV167: 0
A168: 2014-01-07 | B168: 15時 | C168: 休日 | D168: 9 | E168: 4.1 | F168: 3.176752338 | R168: 3.176752338 | T168: 2014-01-07 | U168: 15時 | V168: 休日 | W168: 9 | X168: 4.1 | Y168: 0 | Z168: 0 | AW168: 0 | AX168: 0 | BA168: 2014-01-07 | BB168: 15:00:00 | BC168: 休日 | BD168: 9 | BE168: 4.1 | BF168: 3176.752338 | BG168: 0 | BH168: 0 | BI168: 0 | BJ168: 0 | BK168: 0 | BL168: 0 | BM168: 0 | BN168: 0 | BO168: 0 | BP168: 0 | BQ168: 0 | BT168: 2014-01-07 | BU168: 15:00:00 | BV168: 休日 | BW168: 9 | BX168: 4.1 | BY168: 0 | BZ168: 0 | CA168: 0 | CB168: 0 | CC168: 0 | CD168: 0 | CE168: 0 | CF168: 0 | CG168: 0 | CH168: 0 | CI168: 0 | CJ168: 0 | CK168: 0 | CL168: 0 | CM168: 0 | CN168: 0 | CO168: 0 | CP168: 0 | CQ168: 0 | CR168: 0 | CS168: 0 | CT168: 0 | CU168: 0 | CV168: 0
A169: 2014-01-07 | B169: 16時 | C169: 休日 | D169: 8.9 | E169: 4.3 | F169: 4.825145567 | R169: 4.825145567 | T169: 2014-01-07 | U169: 16時 | V169: 休日 | W169: 8.9 | X169: 4.3 | Y169: 0 | Z169: 0 | AW169: 0 | AX169: 0 | BA169: 2014-01-07 | BB169: 16:00:00 | BC169: 休日 | BD169: 8.9 | BE169: 4.3 | BF169: 4825.145567 | BG169: 0 | BH169: 0 | BI169: 0 | BJ169: 0 | BK169: 0 | BL169: 0 | BM169: 0 | BN169: 0 | BO169: 0 | BP169: 0 | BQ169: 0 | BT169: 2014-01-07 | BU169: 16:00:00 | BV169: 休日 | BW169: 8.9 | BX169: 4.3 | BY169: 0 | BZ169: 0 | CA169: 0 | CB169: 0 | CC169: 0 | CD169: 0 | CE169: 0 | CF169: 0 | CG169: 0 | CH169: 0 | CI169: 0 | CJ169: 0 | CK169: 0 | CL169: 0 | CM169: 0 | CN169: 0 | CO169: 0 | CP169: 0 | CQ169: 0 | CR169: 0 | CS169: 0 | CT169: 0 | CU169: 0 | CV169: 0
A170: 2014-01-07 | B170: 17時 | C170: 休日 | D170: 8.7 | E170: 4.3 | F170: 5.228476945 | R170: 5.228476945 | T170: 2014-01-07 | U170: 17時 | V170: 休日 | W170: 8.7 | X170: 4.3 | Y170: 0 | Z170: 0 | AW170: 0 | AX170: 0 | BA170: 2014-01-07 | BB170: 17:00:00 | BC170: 休日 | BD170: 8.7 | BE170: 4.3 | BF170: 5228.476945 | BG170: 0 | BH170: 0 | BI170: 0 | BJ170: 0 | BK170: 0 | BL170: 0 | BM170: 0 | BN170: 0 | BO170: 0 | BP170: 0 | BQ170: 0 | BT170: 2014-01-07 | BU170: 17:00:00 | BV170: 休日 | BW170: 8.7 | BX170: 4.3 | BY170: 0 | BZ170: 0 | CA170: 0 | CB170: 0 | CC170: 0 | CD170: 0 | CE170: 0 | CF170: 0 | CG170: 0 | CH170: 0 | CI170: 0 | CJ170: 0 | CK170: 0 | CL170: 0 | CM170: 0 | CN170: 0 | CO170: 0 | CP170: 0 | CQ170: 0 | CR170: 0 | CS170: 0 | CT170: 0 | CU170: 0 | CV170: 0
A171: 2014-01-07 | B171: 18時 | C171: 休日 | D171: 8.4 | E171: 4.3 | F171: 3.39200401 | R171: 3.39200401 | T171: 2014-01-07 | U171: 18時 | V171: 休日 | W171: 8.4 | X171: 4.3 | Y171: 0 | Z171: 0 | AW171: 0 | AX171: 0 | BA171: 2014-01-07 | BB171: 18:00:00 | BC171: 休日 | BD171: 8.4 | BE171: 4.3 | BF171: 3392.00401 | BG171: 0 | BH171: 0 | BI171: 0 | BJ171: 0 | BK171: 0 | BL171: 0 | BM171: 0 | BN171: 0 | BO171: 0 | BP171: 0 | BQ171: 0 | BT171: 2014-01-07 | BU171: 18:00:00 | BV171: 休日 | BW171: 8.4 | BX171: 4.3 | BY171: 0 | BZ171: 0 | CA171: 0 | CB171: 0 | CC171: 0 | CD171: 0 | CE171: 0 | CF171: 0 | CG171: 0 | CH171: 0 | CI171: 0 | CJ171: 0 | CK171: 0 | CL171: 0 | CM171: 0 | CN171: 0 | CO171: 0 | CP171: 0 | CQ171: 0 | CR171: 0 | CS171: 0 | CT171: 0 | CU171: 0 | CV171: 0
A172: 2014-01-07 | B172: 19時 | C172: 休日 | D172: 7.9 | E172: 4.4 | F172: 3.949620331 | R172: 3.949620331 | T172: 2014-01-07 | U172: 19時 | V172: 休日 | W172: 7.9 | X172: 4.4 | Y172: 0 | Z172: 0 | AW172: 0 | AX172: 0 | BA172: 2014-01-07 | BB172: 19:00:00 | BC172: 休日 | BD172: 7.9 | BE172: 4.4 | BF172: 3949.620331 | BG172: 0 | BH172: 0 | BI172: 0 | BJ172: 0 | BK172: 0 | BL172: 0 | BM172: 0 | BN172: 0 | BO172: 0 | BP172: 0 | BQ172: 0 | BT172: 2014-01-07 | BU172: 19:00:00 | BV172: 休日 | BW172: 7.9 | BX172: 4.4 | BY172: 0 | BZ172: 0 | CA172: 0 | CB172: 0 | CC172: 0 | CD172: 0 | CE172: 0 | CF172: 0 | CG172: 0 | CH172: 0 | CI172: 0 | CJ172: 0 | CK172: 0 | CL172: 0 | CM172: 0 | CN172: 0 | CO172: 0 | CP172: 0 | CQ172: 0 | CR172: 0 | CS172: 0 | CT172: 0 | CU172: 0 | CV172: 0
A173: 2014-01-07 | B173: 20時 | C173: 休日 | D173: 7.4 | E173: 4.4 | F173: 4.194179538 | R173: 4.194179538 | T173: 2014-01-07 | U173: 20時 | V173: 休日 | W173: 7.4 | X173: 4.4 | Y173: 0 | Z173: 0 | AW173: 0 | AX173: 0 | BA173: 2014-01-07 | BB173: 20:00:00 | BC173: 休日 | BD173: 7.4 | BE173: 4.4 | BF173: 4194.179538 | BG173: 0 | BH173: 0 | BI173: 0 | BJ173: 0 | BK173: 0 | BL173: 0 | BM173: 0 | BN173: 0 | BO173: 0 | BP173: 0 | BQ173: 0 | BT173: 2014-01-07 | BU173: 20:00:00 | BV173: 休日 | BW173: 7.4 | BX173: 4.4 | BY173: 0 | BZ173: 0 | CA173: 0 | CB173: 0 | CC173: 0 | CD173: 0 | CE173: 0 | CF173: 0 | CG173: 0 | CH173: 0 | CI173: 0 | CJ173: 0 | CK173: 0 | CL173: 0 | CM173: 0 | CN173: 0 | CO173: 0 | CP173: 0 | CQ173: 0 | CR173: 0 | CS173: 0 | CT173: 0 | CU173: 0 | CV173: 0
A174: 2014-01-07 | B174: 21時 | C174: 休日 | D174: 7.2 | E174: 4.2 | F174: 4.649314293 | R174: 4.649314293 | T174: 2014-01-07 | U174: 21時 | V174: 休日 | W174: 7.2 | X174: 4.2 | Y174: 0 | Z174: 0 | AW174: 0 | AX174: 0 | BA174: 2014-01-07 | BB174: 21:00:00 | BC174: 休日 | BD174: 7.2 | BE174: 4.2 | BF174: 4649.314293 | BG174: 0 | BH174: 0 | BI174: 0 | BJ174: 0 | BK174: 0 | BL174: 0 | BM174: 0 | BN174: 0 | BO174: 0 | BP174: 0 | BQ174: 0 | BT174: 2014-01-07 | BU174: 21:00:00 | BV174: 休日 | BW174: 7.2 | BX174: 4.2 | BY174: 0 | BZ174: 0 | CA174: 0 | CB174: 0 | CC174: 0 | CD174: 0 | CE174: 0 | CF174: 0 | CG174: 0 | CH174: 0 | CI174: 0 | CJ174: 0 | CK174: 0 | CL174: 0 | CM174: 0 | CN174: 0 | CO174: 0 | CP174: 0 | CQ174: 0 | CR174: 0 | CS174: 0 | CT174: 0 | CU174: 0 | CV174: 0
A175: 2014-01-07 | B175: 22時 | C175: 休日 | D175: 7.5 | E175: 4.2 | F175: 5.764804832 | R175: 5.764804832 | T175: 2014-01-07 | U175: 22時 | V175: 休日 | W175: 7.5 | X175: 4.2 | Y175: 0 | Z175: 0 | AW175: 0 | AX175: 0 | BA175: 2014-01-07 | BB175: 22:00:00 | BC175: 休日 | BD175: 7.5 | BE175: 4.2 | BF175: 5764.804832 | BG175: 0 | BH175: 0 | BI175: 0 | BJ175: 0 | BK175: 0 | BL175: 0 | BM175: 0 | BN175: 0 | BO175: 0 | BP175: 0 | BQ175: 0 | BT175: 2014-01-07 | BU175: 22:00:00 | BV175: 休日 | BW175: 7.5 | BX175: 4.2 | BY175: 0 | BZ175: 0 | CA175: 0 | CB175: 0 | CC175: 0 | CD175: 0 | CE175: 0 | CF175: 0 | CG175: 0 | CH175: 0 | CI175: 0 | CJ175: 0 | CK175: 0 | CL175: 0 | CM175: 0 | CN175: 0 | CO175: 0 | CP175: 0 | CQ175: 0 | CR175: 0 | CS175: 0 | CT175: 0 | CU175: 0 | CV175: 0
A176: 2014-01-07 | B176: 23時 | C176: 休日 | D176: 6.8 | E176: 4.2 | F176: 6.089204047 | R176: 6.089204047 | T176: 2014-01-07 | U176: 23時 | V176: 休日 | W176: 6.8 | X176: 4.2 | Y176: 0 | Z176: 0 | AW176: 0 | AX176: 0 | BA176: 2014-01-07 | BB176: 23:00:00 | BC176: 休日 | BD176: 6.8 | BE176: 4.2 | BF176: 6089.204047 | BG176: 0 | BH176: 0 | BI176: 0 | BJ176: 0 | BK176: 0 | BL176: 0 | BM176: 0 | BN176: 0 | BO176: 0 | BP176: 0 | BQ176: 0 | BT176: 2014-01-07 | BU176: 23:00:00 | BV176: 休日 | BW176: 6.8 | BX176: 4.2 | BY176: 0 | BZ176: 0 | CA176: 0 | CB176: 0 | CC176: 0 | CD176: 0 | CE176: 0 | CF176: 0 | CG176: 0 | CH176: 0 | CI176: 0 | CJ176: 0 | CK176: 0 | CL176: 0 | CM176: 0 | CN176: 0 | CO176: 0 | CP176: 0 | CQ176: 0 | CR176: 0 | CS176: 0 | CT176: 0 | CU176: 0 | CV176: 0
A177: 2014-01-08 | B177: 0時 | C177: 休日 | D177: 5.7 | E177: 4.1 | F177: 6.483408149 | R177: 6.483408149 | T177: 2014-01-08 | U177: 0時 | V177: 休日 | W177: 5.7 | X177: 4.1 | Y177: 0 | Z177: 0 | AW177: 0 | AX177: 0 | BA177: 2014-01-08 | BB177: 00:00:00 | BC177: 休日 | BD177: 5.7 | BE177: 4.1 | BF177: 6483.408149 | BG177: 0 | BH177: 0 | BI177: 0 | BJ177: 0 | BK177: 0 | BL177: 0 | BM177: 0 | BN177: 0 | BO177: 0 | BP177: 0 | BQ177: 0 | BT177: 2014-01-08 | BU177: 00:00:00 | BV177: 休日 | BW177: 5.7 | BX177: 4.1 | BY177: 0 | BZ177: 0 | CA177: 0 | CB177: 0 | CC177: 0 | CD177: 0 | CE177: 0 | CF177: 0 | CG177: 0 | CH177: 0 | CI177: 0 | CJ177: 0 | CK177: 0 | CL177: 0 | CM177: 0 | CN177: 0 | CO177: 0 | CP177: 0 | CQ177: 0 | CR177: 0 | CS177: 0 | CT177: 0 | CU177: 0 | CV177: 0
A178: 2014-01-08 | B178: 1時 | C178: 休日 | D178: 5.5 | E178: 4.2 | F178: 6.662725469 | R178: 6.662725469 | T178: 2014-01-08 | U178: 1時 | V178: 休日 | W178: 5.5 | X178: 4.2 | Y178: 0 | Z178: 0 | AW178: 0 | AX178: 0 | BA178: 2014-01-08 | BB178: 01:00:00 | BC178: 休日 | BD178: 5.5 | BE178: 4.2 | BF178: 6662.725469 | BG178: 0 | BH178: 0 | BI178: 0 | BJ178: 0 | BK178: 0 | BL178: 0 | BM178: 0 | BN178: 0 | BO178: 0 | BP178: 0 | BQ178: 0 | BT178: 2014-01-08 | BU178: 01:00:00 | BV178: 休日 | BW178: 5.5 | BX178: 4.2 | BY178: 0 | BZ178: 0 | CA178: 0 | CB178: 0 | CC178: 0 | CD178: 0 | CE178: 0 | CF178: 0 | CG178: 0 | CH178: 0 | CI178: 0 | CJ178: 0 | CK178: 0 | CL178: 0 | CM178: 0 | CN178: 0 | CO178: 0 | CP178: 0 | CQ178: 0 | CR178: 0 | CS178: 0 | CT178: 0 | CU178: 0 | CV178: 0
A179: 2014-01-08 | B179: 2時 | C179: 休日 | D179: 5.4 | E179: 4.1 | F179: 6.789272217 | R179: 6.789272217 | T179: 2014-01-08 | U179: 2時 | V179: 休日 | W179: 5.4 | X179: 4.1 | Y179: 0 | Z179: 0 | AW179: 0 | AX179: 0 | BA179: 2014-01-08 | BB179: 02:00:00 | BC179: 休日 | BD179: 5.4 | BE179: 4.1 | BF179: 6789.272217 | BG179: 0 | BH179: 0 | BI179: 0 | BJ179: 0 | BK179: 0 | BL179: 0 | BM179: 0 | BN179: 0 | BO179: 0 | BP179: 0 | BQ179: 0 | BT179: 2014-01-08 | BU179: 02:00:00 | BV179: 休日 | BW179: 5.4 | BX179: 4.1 | BY179: 0 | BZ179: 0 | CA179: 0 | CB179: 0 | CC179: 0 | CD179: 0 | CE179: 0 | CF179: 0 | CG179: 0 | CH179: 0 | CI179: 0 | CJ179: 0 | CK179: 0 | CL179: 0 | CM179: 0 | CN179: 0 | CO179: 0 | CP179: 0 | CQ179: 0 | CR179: 0 | CS179: 0 | CT179: 0 | CU179: 0 | CV179: 0
A180: 2014-01-08 | B180: 3時 | C180: 休日 | D180: 4.2 | E180: 4.1 | F180: 7.178797711 | R180: 7.178797711 | T180: 2014-01-08 | U180: 3時 | V180: 休日 | W180: 4.2 | X180: 4.1 | Y180: 0 | Z180: 0 | AW180: 0 | AX180: 0 | BA180: 2014-01-08 | BB180: 03:00:00 | BC180: 休日 | BD180: 4.2 | BE180: 4.1 | BF180: 7178.797711 | BG180: 0 | BH180: 0 | BI180: 0 | BJ180: 0 | BK180: 0 | BL180: 0 | BM180: 0 | BN180: 0 | BO180: 0 | BP180: 0 | BQ180: 0 | BT180: 2014-01-08 | BU180: 03:00:00 | BV180: 休日 | BW180: 4.2 | BX180: 4.1 | BY180: 0 | BZ180: 0 | CA180: 0 | CB180: 0 | CC180: 0 | CD180: 0 | CE180: 0 | CF180: 0 | CG180: 0 | CH180: 0 | CI180: 0 | CJ180: 0 | CK180: 0 | CL180: 0 | CM180: 0 | CN180: 0 | CO180: 0 | CP180: 0 | CQ180: 0 | CR180: 0 | CS180: 0 | CT180: 0 | CU180: 0 | CV180: 0
A181: 2014-01-08 | B181: 4時 | C181: 休日 | D181: 3.9 | E181: 4.1 | F181: 7.375694188 | R181: 7.375694188 | T181: 2014-01-08 | U181: 4時 | V181: 休日 | W181: 3.9 | X181: 4.1 | Y181: 0 | Z181: 0 | AW181: 0 | AX181: 0 | BA181: 2014-01-08 | BB181: 04:00:00 | BC181: 休日 | BD181: 3.9 | BE181: 4.1 | BF181: 7375.694188 | BG181: 0 | BH181: 0 | BI181: 0 | BJ181: 0 | BK181: 0 | BL181: 0 | BM181: 0 | BN181: 0 | BO181: 0 | BP181: 0 | BQ181: 0 | BT181: 2014-01-08 | BU181: 04:00:00 | BV181: 休日 | BW181: 3.9 | BX181: 4.1 | BY181: 0 | BZ181: 0 | CA181: 0 | CB181: 0 | CC181: 0 | CD181: 0 | CE181: 0 | CF181: 0 | CG181: 0 | CH181: 0 | CI181: 0 | CJ181: 0 | CK181: 0 | CL181: 0 | CM181: 0 | CN181: 0 | CO181: 0 | CP181: 0 | CQ181: 0 | CR181: 0 | CS181: 0 | CT181: 0 | CU181: 0 | CV181: 0
A182: 2014-01-08 | B182: 5時 | C182: 休日 | D182: 3.2 | E182: 3.9 | F182: 7.668862926 | R182: 7.668862926 | T182: 2014-01-08 | U182: 5時 | V182: 休日 | W182: 3.2 | X182: 3.9 | Y182: 0 | Z182: 0 | AW182: 0 | AX182: 0 | BA182: 2014-01-08 | BB182: 05:00:00 | BC182: 休日 | BD182: 3.2 | BE182: 3.9 | BF182: 7668.862926 | BG182: 0 | BH182: 0 | BI182: 0 | BJ182: 0 | BK182: 0 | BL182: 0 | BM182: 0 | BN182: 0 | BO182: 0 | BP182: 0 | BQ182: 0 | BT182: 2014-01-08 | BU182: 05:00:00 | BV182: 休日 | BW182: 3.2 | BX182: 3.9 | BY182: 0 | BZ182: 0 | CA182: 0 | CB182: 0 | CC182: 0 | CD182: 0 | CE182: 0 | CF182: 0 | CG182: 0 | CH182: 0 | CI182: 0 | CJ182: 0 | CK182: 0 | CL182: 0 | CM182: 0 | CN182: 0 | CO182: 0 | CP182: 0 | CQ182: 0 | CR182: 0 | CS182: 0 | CT182: 0 | CU182: 0 | CV182: 0
A183: 2014-01-08 | B183: 6時 | C183: 休日 | D183: 3.4 | E183: 4.1 | F183: 7.705536753 | R183: 7.705536753 | T183: 2014-01-08 | U183: 6時 | V183: 休日 | W183: 3.4 | X183: 4.1 | Y183: 0 | Z183: 0 | AW183: 0 | AX183: 0 | BA183: 2014-01-08 | BB183: 06:00:00 | BC183: 休日 | BD183: 3.4 | BE183: 4.1 | BF183: 7705.536753 | BG183: 0 | BH183: 0 | BI183: 0 | BJ183: 0 | BK183: 0 | BL183: 0 | BM183: 0 | BN183: 0 | BO183: 0 | BP183: 0 | BQ183: 0 | BT183: 2014-01-08 | BU183: 06:00:00 | BV183: 休日 | BW183: 3.4 | BX183: 4.1 | BY183: 0 | BZ183: 0 | CA183: 0 | CB183: 0 | CC183: 0 | CD183: 0 | CE183: 0 | CF183: 0 | CG183: 0 | CH183: 0 | CI183: 0 | CJ183: 0 | CK183: 0 | CL183: 0 | CM183: 0 | CN183: 0 | CO183: 0 | CP183: 0 | CQ183: 0 | CR183: 0 | CS183: 0 | CT183: 0 | CU183: 0 | CV183: 0
A184: 2014-01-08 | B184: 7時 | C184: 休日 | D184: 3.2 | E184: 4.1 | F184: 4.123878765 | R184: 4.123878765 | T184: 2014-01-08 | U184: 7時 | V184: 休日 | W184: 3.2 | X184: 4.1 | Y184: 0 | Z184: 0 | AW184: 0 | AX184: 0 | BA184: 2014-01-08 | BB184: 07:00:00 | BC184: 休日 | BD184: 3.2 | BE184: 4.1 | BF184: 4123.878765 | BG184: 0 | BH184: 0 | BI184: 0 | BJ184: 0 | BK184: 0 | BL184: 0 | BM184: 0 | BN184: 0 | BO184: 0 | BP184: 0 | BQ184: 0 | BT184: 2014-01-08 | BU184: 07:00:00 | BV184: 休日 | BW184: 3.2 | BX184: 4.1 | BY184: 0 | BZ184: 0 | CA184: 0 | CB184: 0 | CC184: 0 | CD184: 0 | CE184: 0 | CF184: 0 | CG184: 0 | CH184: 0 | CI184: 0 | CJ184: 0 | CK184: 0 | CL184: 0 | CM184: 0 | CN184: 0 | CO184: 0 | CP184: 0 | CQ184: 0 | CR184: 0 | CS184: 0 | CT184: 0 | CU184: 0 | CV184: 0
A185: 2014-01-08 | B185: 8時 | C185: 休日 | D185: 5 | E185: 4.3 | F185: 0 | R185: 0 | T185: 2014-01-08 | U185: 8時 | V185: 休日 | W185: 5 | X185: 4.3 | Y185: 0 | Z185: 0 | AW185: 0 | AX185: 0 | BA185: 2014-01-08 | BB185: 08:00:00 | BC185: 休日 | BD185: 5 | BE185: 4.3 | BF185: 0 | BG185: 0 | BH185: 0 | BI185: 0 | BJ185: 0 | BK185: 0 | BL185: 0 | BM185: 0 | BN185: 0 | BO185: 0 | BP185: 0 | BQ185: 0 | BT185: 2014-01-08 | BU185: 08:00:00 | BV185: 休日 | BW185: 5 | BX185: 4.3 | BY185: 0 | BZ185: 0 | CA185: 0 | CB185: 0 | CC185: 0 | CD185: 0 | CE185: 0 | CF185: 0 | CG185: 0 | CH185: 0 | CI185: 0 | CJ185: 0 | CK185: 0 | CL185: 0 | CM185: 0 | CN185: 0 | CO185: 0 | CP185: 0 | CQ185: 0 | CR185: 0 | CS185: 0 | CT185: 0 | CU185: 0 | CV185: 0
A186: 2014-01-08 | B186: 9時 | C186: 休日 | D186: 6.6 | E186: 4.5 | F186: 0 | R186: 0 | T186: 2014-01-08 | U186: 9時 | V186: 休日 | W186: 6.6 | X186: 4.5 | Y186: 0 | Z186: 0 | AW186: 0 | AX186: 0 | BA186: 2014-01-08 | BB186: 09:00:00 | BC186: 休日 | BD186: 6.6 | BE186: 4.5 | BF186: 0 | BG186: 0 | BH186: 0 | BI186: 0 | BJ186: 0 | BK186: 0 | BL186: 0 | BM186: 0 | BN186: 0 | BO186: 0 | BP186: 0 | BQ186: 0 | BT186: 2014-01-08 | BU186: 09:00:00 | BV186: 休日 | BW186: 6.6 | BX186: 4.5 | BY186: 0 | BZ186: 0 | CA186: 0 | CB186: 0 | CC186: 0 | CD186: 0 | CE186: 0 | CF186: 0 | CG186: 0 | CH186: 0 | CI186: 0 | CJ186: 0 | CK186: 0 | CL186: 0 | CM186: 0 | CN186: 0 | CO186: 0 | CP186: 0 | CQ186: 0 | CR186: 0 | CS186: 0 | CT186: 0 | CU186: 0 | CV186: 0
A187: 2014-01-08 | B187: 10時 | C187: 休日 | D187: 8.7 | E187: 4.6 | F187: 0 | R187: 0 | T187: 2014-01-08 | U187: 10時 | V187: 休日 | W187: 8.7 | X187: 4.6 | Y187: 0 | Z187: 0 | AW187: 0 | AX187: 0 | BA187: 2014-01-08 | BB187: 10:00:00 | BC187: 休日 | BD187: 8.7 | BE187: 4.6 | BF187: 0 | BG187: 0 | BH187: 0 | BI187: 0 | BJ187: 0 | BK187: 0 | BL187: 0 | BM187: 0 | BN187: 0 | BO187: 0 | BP187: 0 | BQ187: 0 | BT187: 2014-01-08 | BU187: 10:00:00 | BV187: 休日 | BW187: 8.7 | BX187: 4.6 | BY187: 0 | BZ187: 0 | CA187: 0 | CB187: 0 | CC187: 0 | CD187: 0 | CE187: 0 | CF187: 0 | CG187: 0 | CH187: 0 | CI187: 0 | CJ187: 0 | CK187: 0 | CL187: 0 | CM187: 0 | CN187: 0 | CO187: 0 | CP187: 0 | CQ187: 0 | CR187: 0 | CS187: 0 | CT187: 0 | CU187: 0 | CV187: 0
A188: 2014-01-08 | B188: 11時 | C188: 休日 | D188: 10.5 | E188: 4.9 | F188: 0 | R188: 0 | T188: 2014-01-08 | U188: 11時 | V188: 休日 | W188: 10.5 | X188: 4.9 | Y188: 0 | Z188: 0 | AW188: 0 | AX188: 0 | BA188: 2014-01-08 | BB188: 11:00:00 | BC188: 休日 | BD188: 10.5 | BE188: 4.9 | BF188: 0 | BG188: 0 | BH188: 0 | BI188: 0 | BJ188: 0 | BK188: 0 | BL188: 0 | BM188: 0 | BN188: 0 | BO188: 0 | BP188: 0 | BQ188: 0 | BT188: 2014-01-08 | BU188: 11:00:00 | BV188: 休日 | BW188: 10.5 | BX188: 4.9 | BY188: 0 | BZ188: 0 | CA188: 0 | CB188: 0 | CC188: 0 | CD188: 0 | CE188: 0 | CF188: 0 | CG188: 0 | CH188: 0 | CI188: 0 | CJ188: 0 | CK188: 0 | CL188: 0 | CM188: 0 | CN188: 0 | CO188: 0 | CP188: 0 | CQ188: 0 | CR188: 0 | CS188: 0 | CT188: 0 | CU188: 0 | CV188: 0
A189: 2014-01-08 | B189: 12時 | C189: 休日 | D189: 11.5 | E189: 4.9 | F189: 0 | R189: 0 | T189: 2014-01-08 | U189: 12時 | V189: 休日 | W189: 11.5 | X189: 4.9 | Y189: 0 | Z189: 0 | AW189: 0 | AX189: 0 | BA189: 2014-01-08 | BB189: 12:00:00 | BC189: 休日 | BD189: 11.5 | BE189: 4.9 | BF189: 0 | BG189: 0 | BH189: 0 | BI189: 0 | BJ189: 0 | BK189: 0 | BL189: 0 | BM189: 0 | BN189: 0 | BO189: 0 | BP189: 0 | BQ189: 0 | BT189: 2014-01-08 | BU189: 12:00:00 | BV189: 休日 | BW189: 11.5 | BX189: 4.9 | BY189: 0 | BZ189: 0 | CA189: 0 | CB189: 0 | CC189: 0 | CD189: 0 | CE189: 0 | CF189: 0 | CG189: 0 | CH189: 0 | CI189: 0 | CJ189: 0 | CK189: 0 | CL189: 0 | CM189: 0 | CN189: 0 | CO189: 0 | CP189: 0 | CQ189: 0 | CR189: 0 | CS189: 0 | CT189: 0 | CU189: 0 | CV189: 0
A190: 2014-01-08 | B190: 13時 | C190: 休日 | D190: 12 | E190: 4.9 | F190: 0 | R190: 0 | T190: 2014-01-08 | U190: 13時 | V190: 休日 | W190: 12 | X190: 4.9 | Y190: 0 | Z190: 0 | AW190: 0 | AX190: 0 | BA190: 2014-01-08 | BB190: 13:00:00 | BC190: 休日 | BD190: 12 | BE190: 4.9 | BF190: 0 | BG190: 0 | BH190: 0 | BI190: 0 | BJ190: 0 | BK190: 0 | BL190: 0 | BM190: 0 | BN190: 0 | BO190: 0 | BP190: 0 | BQ190: 0 | BT190: 2014-01-08 | BU190: 13:00:00 | BV190: 休日 | BW190: 12 | BX190: 4.9 | BY190: 0 | BZ190: 0 | CA190: 0 | CB190: 0 | CC190: 0 | CD190: 0 | CE190: 0 | CF190: 0 | CG190: 0 | CH190: 0 | CI190: 0 | CJ190: 0 | CK190: 0 | CL190: 0 | CM190: 0 | CN190: 0 | CO190: 0 | CP190: 0 | CQ190: 0 | CR190: 0 | CS190: 0 | CT190: 0 | CU190: 0 | CV190: 0
A191: 2014-01-08 | B191: 14時 | C191: 休日 | D191: 12.2 | E191: 4.9 | F191: 0 | R191: 0 | T191: 2014-01-08 | U191: 14時 | V191: 休日 | W191: 12.2 | X191: 4.9 | Y191: 0 | Z191: 0 | AW191: 0 | AX191: 0 | BA191: 2014-01-08 | BB191: 14:00:00 | BC191: 休日 | BD191: 12.2 | BE191: 4.9 | BF191: 0 | BG191: 0 | BH191: 0 | BI191: 0 | BJ191: 0 | BK191: 0 | BL191: 0 | BM191: 0 | BN191: 0 | BO191: 0 | BP191: 0 | BQ191: 0 | BT191: 2014-01-08 | BU191: 14:00:00 | BV191: 休日 | BW191: 12.2 | BX191: 4.9 | BY191: 0 | BZ191: 0 | CA191: 0 | CB191: 0 | CC191: 0 | CD191: 0 | CE191: 0 | CF191: 0 | CG191: 0 | CH191: 0 | CI191: 0 | CJ191: 0 | CK191: 0 | CL191: 0 | CM191: 0 | CN191: 0 | CO191: 0 | CP191: 0 | CQ191: 0 | CR191: 0 | CS191: 0 | CT191: 0 | CU191: 0 | CV191: 0
A192: 2014-01-08 | B192: 15時 | C192: 休日 | D192: 11.9 | E192: 5.3 | F192: 0 | R192: 0 | T192: 2014-01-08 | U192: 15時 | V192: 休日 | W192: 11.9 | X192: 5.3 | Y192: 0 | Z192: 0 | AW192: 0 | AX192: 0 | BA192: 2014-01-08 | BB192: 15:00:00 | BC192: 休日 | BD192: 11.9 | BE192: 5.3 | BF192: 0 | BG192: 0 | BH192: 0 | BI192: 0 | BJ192: 0 | BK192: 0 | BL192: 0 | BM192: 0 | BN192: 0 | BO192: 0 | BP192: 0 | BQ192: 0 | BT192: 2014-01-08 | BU192: 15:00:00 | BV192: 休日 | BW192: 11.9 | BX192: 5.3 | BY192: 0 | BZ192: 0 | CA192: 0 | CB192: 0 | CC192: 0 | CD192: 0 | CE192: 0 | CF192: 0 | CG192: 0 | CH192: 0 | CI192: 0 | CJ192: 0 | CK192: 0 | CL192: 0 | CM192: 0 | CN192: 0 | CO192: 0 | CP192: 0 | CQ192: 0 | CR192: 0 | CS192: 0 | CT192: 0 | CU192: 0 | CV192: 0
A193: 2014-01-08 | B193: 16時 | C193: 休日 | D193: 11.2 | E193: 5.3 | F193: 0 | R193: 0 | T193: 2014-01-08 | U193: 16時 | V193: 休日 | W193: 11.2 | X193: 5.3 | Y193: 0 | Z193: 0 | AW193: 0 | AX193: 0 | BA193: 2014-01-08 | BB193: 16:00:00 | BC193: 休日 | BD193: 11.2 | BE193: 5.3 | BF193: 0 | BG193: 0 | BH193: 0 | BI193: 0 | BJ193: 0 | BK193: 0 | BL193: 0 | BM193: 0 | BN193: 0 | BO193: 0 | BP193: 0 | BQ193: 0 | BT193: 2014-01-08 | BU193: 16:00:00 | BV193: 休日 | BW193: 11.2 | BX193: 5.3 | BY193: 0 | BZ193: 0 | CA193: 0 | CB193: 0 | CC193: 0 | CD193: 0 | CE193: 0 | CF193: 0 | CG193: 0 | CH193: 0 | CI193: 0 | CJ193: 0 | CK193: 0 | CL193: 0 | CM193: 0 | CN193: 0 | CO193: 0 | CP193: 0 | CQ193: 0 | CR193: 0 | CS193: 0 | CT193: 0 | CU193: 0 | CV193: 0
A194: 2014-01-08 | B194: 17時 | C194: 休日 | D194: 9.7 | E194: 5.2 | F194: 0 | R194: 0 | T194: 2014-01-08 | U194: 17時 | V194: 休日 | W194: 9.7 | X194: 5.2 | Y194: 0 | Z194: 0 | AW194: 0 | AX194: 0 | BA194: 2014-01-08 | BB194: 17:00:00 | BC194: 休日 | BD194: 9.7 | BE194: 5.2 | BF194: 0 | BG194: 0 | BH194: 0 | BI194: 0 | BJ194: 0 | BK194: 0 | BL194: 0 | BM194: 0 | BN194: 0 | BO194: 0 | BP194: 0 | BQ194: 0 | BT194: 2014-01-08 | BU194: 17:00:00 | BV194: 休日 | BW194: 9.7 | BX194: 5.2 | BY194: 0 | BZ194: 0 | CA194: 0 | CB194: 0 | CC194: 0 | CD194: 0 | CE194: 0 | CF194: 0 | CG194: 0 | CH194: 0 | CI194: 0 | CJ194: 0 | CK194: 0 | CL194: 0 | CM194: 0 | CN194: 0 | CO194: 0 | CP194: 0 | CQ194: 0 | CR194: 0 | CS194: 0 | CT194: 0 | CU194: 0 | CV194: 0
A195: 2014-01-08 | B195: 18時 | C195: 休日 | D195: 8.7 | E195: 5.1 | F195: 0 | R195: 0 | T195: 2014-01-08 | U195: 18時 | V195: 休日 | W195: 8.7 | X195: 5.1 | Y195: 0 | Z195: 0 | AW195: 0 | AX195: 0 | BA195: 2014-01-08 | BB195: 18:00:00 | BC195: 休日 | BD195: 8.7 | BE195: 5.1 | BF195: 0 | BG195: 0 | BH195: 0 | BI195: 0 | BJ195: 0 | BK195: 0 | BL195: 0 | BM195: 0 | BN195: 0 | BO195: 0 | BP195: 0 | BQ195: 0 | BT195: 2014-01-08 | BU195: 18:00:00 | BV195: 休日 | BW195: 8.7 | BX195: 5.1 | BY195: 0 | BZ195: 0 | CA195: 0 | CB195: 0 | CC195: 0 | CD195: 0 | CE195: 0 | CF195: 0 | CG195: 0 | CH195: 0 | CI195: 0 | CJ195: 0 | CK195: 0 | CL195: 0 | CM195: 0 | CN195: 0 | CO195: 0 | CP195: 0 | CQ195: 0 | CR195: 0 | CS195: 0 | CT195: 0 | CU195: 0 | CV195: 0
A196: 2014-01-08 | B196: 19時 | C196: 休日 | D196: 8.1 | E196: 5.1 | F196: 0.5329563906 | R196: 0.5329563906 | T196: 2014-01-08 | U196: 19時 | V196: 休日 | W196: 8.1 | X196: 5.1 | Y196: 0 | Z196: 0 | AW196: 0 | AX196: 0 | BA196: 2014-01-08 | BB196: 19:00:00 | BC196: 休日 | BD196: 8.1 | BE196: 5.1 | BF196: 532.9563906 | BG196: 0 | BH196: 0 | BI196: 0 | BJ196: 0 | BK196: 0 | BL196: 0 | BM196: 0 | BN196: 0 | BO196: 0 | BP196: 0 | BQ196: 0 | BT196: 2014-01-08 | BU196: 19:00:00 | BV196: 休日 | BW196: 8.1 | BX196: 5.1 | BY196: 0 | BZ196: 0 | CA196: 0 | CB196: 0 | CC196: 0 | CD196: 0 | CE196: 0 | CF196: 0 | CG196: 0 | CH196: 0 | CI196: 0 | CJ196: 0 | CK196: 0 | CL196: 0 | CM196: 0 | CN196: 0 | CO196: 0 | CP196: 0 | CQ196: 0 | CR196: 0 | CS196: 0 | CT196: 0 | CU196: 0 | CV196: 0
A197: 2014-01-08 | B197: 20時 | C197: 休日 | D197: 7.5 | E197: 4.9 | F197: 1.878967955 | R197: 1.878967955 | T197: 2014-01-08 | U197: 20時 | V197: 休日 | W197: 7.5 | X197: 4.9 | Y197: 0 | Z197: 0 | AW197: 0 | AX197: 0 | BA197: 2014-01-08 | BB197: 20:00:00 | BC197: 休日 | BD197: 7.5 | BE197: 4.9 | BF197: 1878.967955 | BG197: 0 | BH197: 0 | BI197: 0 | BJ197: 0 | BK197: 0 | BL197: 0 | BM197: 0 | BN197: 0 | BO197: 0 | BP197: 0 | BQ197: 0 | BT197: 2014-01-08 | BU197: 20:00:00 | BV197: 休日 | BW197: 7.5 | BX197: 4.9 | BY197: 0 | BZ197: 0 | CA197: 0 | CB197: 0 | CC197: 0 | CD197: 0 | CE197: 0 | CF197: 0 | CG197: 0 | CH197: 0 | CI197: 0 | CJ197: 0 | CK197: 0 | CL197: 0 | CM197: 0 | CN197: 0 | CO197: 0 | CP197: 0 | CQ197: 0 | CR197: 0 | CS197: 0 | CT197: 0 | CU197: 0 | CV197: 0
A198: 2014-01-08 | B198: 21時 | C198: 休日 | D198: 6.7 | E198: 4.9 | F198: 2.711818271 | R198: 2.711818271 | T198: 2014-01-08 | U198: 21時 | V198: 休日 | W198: 6.7 | X198: 4.9 | Y198: 0 | Z198: 0 | AW198: 0 | AX198: 0 | BA198: 2014-01-08 | BB198: 21:00:00 | BC198: 休日 | BD198: 6.7 | BE198: 4.9 | BF198: 2711.818271 | BG198: 0 | BH198: 0 | BI198: 0 | BJ198: 0 | BK198: 0 | BL198: 0 | BM198: 0 | BN198: 0 | BO198: 0 | BP198: 0 | BQ198: 0 | BT198: 2014-01-08 | BU198: 21:00:00 | BV198: 休日 | BW198: 6.7 | BX198: 4.9 | BY198: 0 | BZ198: 0 | CA198: 0 | CB198: 0 | CC198: 0 | CD198: 0 | CE198: 0 | CF198: 0 | CG198: 0 | CH198: 0 | CI198: 0 | CJ198: 0 | CK198: 0 | CL198: 0 | CM198: 0 | CN198: 0 | CO198: 0 | CP198: 0 | CQ198: 0 | CR198: 0 | CS198: 0 | CT198: 0 | CU198: 0 | CV198: 0
A199: 2014-01-08 | B199: 22時 | C199: 休日 | D199: 6 | E199: 4.8 | F199: 4.880282898 | R199: 4.880282898 | T199: 2014-01-08 | U199: 22時 | V199: 休日 | W199: 6 | X199: 4.8 | Y199: 0 | Z199: 0 | AW199: 0 | AX199: 0 | BA199: 2014-01-08 | BB199: 22:00:00 | BC199: 休日 | BD199: 6 | BE199: 4.8 | BF199: 4880.282898 | BG199: 0 | BH199: 0 | BI199: 0 | BJ199: 0 | BK199: 0 | BL199: 0 | BM199: 0 | BN199: 0 | BO199: 0 | BP199: 0 | BQ199: 0 | BT199: 2014-01-08 | BU199: 22:00:00 | BV199: 休日 | BW199: 6 | BX199: 4.8 | BY199: 0 | BZ199: 0 | CA199: 0 | CB199: 0 | CC199: 0 | CD199: 0 | CE199: 0 | CF199: 0 | CG199: 0 | CH199: 0 | CI199: 0 | CJ199: 0 | CK199: 0 | CL199: 0 | CM199: 0 | CN199: 0 | CO199: 0 | CP199: 0 | CQ199: 0 | CR199: 0 | CS199: 0 | CT199: 0 | CU199: 0 | CV199: 0
A200: 2014-01-08 | B200: 23時 | C200: 休日 | D200: 5.2 | E200: 4.8 | F200: 5.637556813 | R200: 5.637556813 | T200: 2014-01-08 | U200: 23時 | V200: 休日 | W200: 5.2 | X200: 4.8 | Y200: 0 | Z200: 0 | AW200: 0 | AX200: 0 | BA200: 2014-01-08 | BB200: 23:00:00 | BC200: 休日 | BD200: 5.2 | BE200: 4.8 | BF200: 5637.556813 | BG200: 0 | BH200: 0 | BI200: 0 | BJ200: 0 | BK200: 0 | BL200: 0 | BM200: 0 | BN200: 0 | BO200: 0 | BP200: 0 | BQ200: 0 | BT200: 2014-01-08 | BU200: 23:00:00 | BV200: 休日 | BW200: 5.2 | BX200: 4.8 | BY200: 0 | BZ200: 0 | CA200: 0 | CB200: 0 | CC200: 0 | CD200: 0 | CE200: 0 | CF200: 0 | CG200: 0 | CH200: 0 | CI200: 0 | CJ200: 0 | CK200: 0 | CL200: 0 | CM200: 0 | CN200: 0 | CO200: 0 | CP200: 0 | CQ200: 0 | CR200: 0 | CS200: 0 | CT200: 0 | CU200: 0 | CV200: 0
... 362 more rows

Sheet 貼り付けシート
AB1: ⇒暖房負荷用 | AZ1: ⇒冷房負荷用
AA2: ファイル名と居室名の貼り付け間違いの確認を行います。全て「TRUE」を確認してから計算してください⇒ | AB2: =IF(AB$3="-",TRUE,IF(AND(EXACT(AB3,AB4),EXACT($L$29,AB5))=TRUE,TRUE,FALSE)) -> TRUE | AE2: =IF(AE$3="-",TRUE,IF(AND(EXACT(AE3,AE4),EXACT($L$29,AE5))=TRUE,TRUE,FALSE)) -> TRUE | AH2: =IF(AH$3="-",TRUE,IF(AND(EXACT(AH3,AH4),EXACT($L$29,AH5))=TRUE,TRUE,FALSE)) -> TRUE | AK2: =IF(AK$3="-",TRUE,IF(AND(EXACT(AK3,AK4),EXACT($L$29,AK5))=TRUE,TRUE,FALSE)) -> TRUE | AN2: =IF(AN$3="-",TRUE,IF(AND(EXACT(AN3,AN4),EXACT($L$29,AN5))=TRUE,TRUE,FALSE)) -> TRUE | AQ2: =IF(AQ$3="-",TRUE,IF(AND(EXACT(AQ3,AQ4),EXACT($L$29,AQ5))=TRUE,TRUE,FALSE)) -> TRUE | AT2: =IF(AT$3="-",TRUE,IF(AND(EXACT(AT3,AT4),EXACT($L$29,AT5))=TRUE,TRUE,FALSE)) -> TRUE | AW2: =IF(AW$3="-",TRUE,IF(AND(EXACT(AW3,AW4),EXACT($L$29,AW5))=TRUE,TRUE,FALSE)) -> TRUE | AZ2: =IF(AZ$3="-",TRUE,IF(AND(EXACT(AZ3,AZ4),EXACT($L$29,AZ5))=TRUE,TRUE,FALSE)) -> TRUE | BC2: =IF(BC$3="-",TRUE,IF(AND(EXACT(BC3,BC4),EXACT($L$29,BC5))=TRUE,TRUE,FALSE)) -> TRUE | BF2: =IF(BF$3="-",TRUE,IF(AND(EXACT(BF3,BF4),EXACT($L$29,BF5))=TRUE,TRUE,FALSE)) -> TRUE | BI2: =IF(BI$3="-",TRUE,IF(AND(EXACT(BI3,BI4),EXACT($L$29,BI5))=TRUE,TRUE,FALSE)) -> TRUE | BL2: =IF(BL$3="-",TRUE,IF(AND(EXACT(BL3,BL4),EXACT($L$29,BL5))=TRUE,TRUE,FALSE)) -> TRUE | BO2: =IF(BO$3="-",TRUE,IF(AND(EXACT(BO3,BO4),EXACT($L$29,BO5))=TRUE,TRUE,FALSE)) -> TRUE | BR2: =IF(BR$3="-",TRUE,IF(AND(EXACT(BR3,BR4),EXACT($L$29,BR5))=TRUE,TRUE,FALSE)) -> TRUE | BU2: =IF(BU$3="-",TRUE,IF(AND(EXACT(BU3,BU4),EXACT($L$29,BU5))=TRUE,TRUE,FALSE)) -> TRUE
O3: （参考）収集する負荷ファイル名 | AA3: 貼り付けるデータのファイル名（入力項目から自動生成）⇒ | AB3: =貼り付けシート!E39 -> IH6x_13_05_212_1SS.csv | AE3: =貼り付けシート!F39 -> IH6x_13_05_112_1SS.csv | AH3: =貼り付けシート!G39 -> IH6x_13_09_212_1SS.csv | AK3: =貼り付けシート!H39 -> IH6x_13_09_112_1SS.csv | AN3: =貼り付けシート!I39 -> IH6x_13_05_212_2SS.csv | AQ3: =貼り付けシート!J39 -> IH6x_13_05_112_2SS.csv | AT3: =貼り付けシート!K39 -> IH6x_13_09_212_2SS.csv | AW3: =貼り付けシート!L39 -> IH6x_13_09_112_2SS.csv | AZ3: =貼り付けシート!E57 -> IC6x_12_05_212_1SS.csv | BC3: =貼り付けシート!F57 -> IC6x_12_05_112_1SS.csv | BF3: =貼り付けシート!G57 -> IC6x_12_09_212_1SS.csv | BI3: =貼り付けシート!H57 -> IC6x_12_09_112_1SS.csv | BL3: =貼り付けシート!I57 -> IC6x_12_05_232_1SS.csv | BO3: =貼り付けシート!J57 -> IC6x_12_05_132_1SS.csv | BR3: =貼り付けシート!K57 -> IC6x_12_09_232_1SS.csv | BU3: =貼り付けシート!L57 -> IC6x_12_09_132_1SS.csv
B4: 用途 | C4: 分類 | D4: 名称 | F4: 単位 | G4: 入力値 | L4: 換算値 | O4: 暖房 | R4: 冷房 | AA4: 貼り付けるデータのファイル名を入力してください⇒ | AB4: IH6x_13_05_212_1SS.csv | AE4: IH6x_13_05_112_1SS.csv | AH4: IH6x_13_09_212_1SS.csv | AK4: IH6x_13_09_112_1SS.csv | AN4: IH6x_13_05_212_2SS.csv | AQ4: IH6x_13_05_112_2SS.csv | AT4: IH6x_13_09_212_2SS.csv | AW4: IH6x_13_09_112_2SS.csv | AZ4: IC6x_12_05_212_1SS.csv | BC4: IC6x_12_05_112_1SS.csv | BF4: IC6x_12_09_212_1SS.csv | BI4: IC6x_12_09_112_1SS.csv | BL4: IC6x_12_05_232_1SS.csv | BO4: IC6x_12_05_132_1SS.csv | BR4: IC6x_12_09_232_1SS.csv | BU4: IC6x_12_09_132_1SS.csv
B5: 基本情報 | D5: 地域区分 | F5: - | G5: =入力データ!G9 -> 6地域 | L5: =VLOOKUP($G5,負荷ファイル番号_地域区分,2,FALSE) -> 6x | O5: =TRANSPOSE(E39:L39) -> IH6x_13_05_212_1SS.csv | R5: =TRANSPOSE(E57:L57) -> IC6x_12_05_212_1SS.csv | AB5: 居間食堂(LD)・台所(K) | AE5: 居間食堂(LD)・台所(K) | AH5: 居間食堂(LD)・台所(K) | AK5: 居間食堂(LD)・台所(K) | AN5: 居間食堂(LD)・台所(K) | AQ5: 居間食堂(LD)・台所(K) | AT5: 居間食堂(LD)・台所(K) | AW5: 居間食堂(LD)・台所(K) | AZ5: 居間食堂(LD)・台所(K) | BC5: 居間食堂(LD)・台所(K) | BF5: 居間食堂(LD)・台所(K) | BI5: 居間食堂(LD)・台所(K) | BL5: 居間食堂(LD)・台所(K) | BO5: 居間食堂(LD)・台所(K) | BR5: 居間食堂(LD)・台所(K) | BU5: 居間食堂(LD)・台所(K)
D6: 床面積の合計 | F6: m2 | G6: =入力データ!G10 -> 120.08 | L6: － | O6: IH6x_13_05_112_1SS.csv | R6: IC6x_12_05_112_1SS.csv | AB6: 顕熱 | AC6: 潜熱 | AE6: 顕熱 | AF6: 潜熱 | AH6: 顕熱 | AI6: 潜熱 | AK6: 顕熱 | AL6: 潜熱 | AN6: 顕熱 | AO6: 潜熱 | AQ6: 顕熱 | AR6: 潜熱 | AT6: 顕熱 | AU6: 潜熱 | AW6: 顕熱 | AX6: 潜熱 | AZ6: 顕熱 | BA6: 潜熱 | BC6: 顕熱 | BD6: 潜熱 | BF6: 顕熱 | BG6: 潜熱 | BI6: 顕熱 | BJ6: 潜熱 | BL6: 顕熱 | BM6: 潜熱 | BO6: 顕熱 | BP6: 潜熱 | BR6: 顕熱 | BS6: 潜熱 | BU6: 顕熱 | BV6: 潜熱
D7: 主たる居室の床面積 | F7: m2 | G7: =入力データ!G11 -> 29.81 | L7: － | O7: IH6x_13_09_212_1SS.csv | R7: IC6x_12_09_212_1SS.csv | AB7: [kJ/h] | AC7: [kJ/h] | AE7: [kJ/h] | AF7: [kJ/h] | AH7: [kJ/h] | AI7: [kJ/h] | AK7: [kJ/h] | AL7: [kJ/h] | AN7: [kJ/h] | AO7: [kJ/h] | AQ7: [kJ/h] | AR7: [kJ/h] | AT7: [kJ/h] | AU7: [kJ/h] | AW7: [kJ/h] | AX7: [kJ/h] | AZ7: [kJ/h] | BA7: [kJ/h] | BC7: [kJ/h] | BD7: [kJ/h] | BF7: [kJ/h] | BG7: [kJ/h] | BI7: [kJ/h] | BJ7: [kJ/h] | BL7: [kJ/h] | BM7: [kJ/h] | BO7: [kJ/h] | BP7: [kJ/h] | BR7: [kJ/h] | BS7: [kJ/h] | BU7: [kJ/h] | BV7: [kJ/h]
D8: その他の居室の床面積 | F8: m2 | G8: =入力データ!G12 -> 51.34 | L8: － | O8: IH6x_13_09_112_1SS.csv | R8: IC6x_12_09_112_1SS.csv | Y8: 2014-01-01 | Z8: 00:00:00 | AA8: 休日 | AB8: 7096.04 | AC8: 0 | AE8: 6754.13 | AF8: 0 | AH8: 4954.03 | AI8: 0 | AK8: 3973.56 | AL8: 0 | AN8: 6078.77 | AO8: 0 | AQ8: 4854.96 | AR8: 0 | AT8: 3983.18 | AU8: 0 | AW8: 2282.6 | AX8: 0 | AZ8: 0 | BA8: 0 | BC8: 0 | BD8: 0 | BF8: 0 | BG8: 0 | BI8: 0 | BJ8: 0 | BL8: 0 | BM8: 0 | BO8: 0 | BP8: 0 | BR8: 0 | BS8: 0 | BU8: 0 | BV8: 0
B9: 暖冷房 | C9: 外皮 | D9: 当該住戸の外皮の部位の面積の合計 | F9: m2 | G9: =入力データ!G13 -> 312.8 | L9: － | O9: IH6x_13_05_212_2SS.csv | R9: IC6x_12_05_232_1SS.csv | Y9: 2014-01-01 | Z9: 01:00:00 | AA9: 休日 | AB9: 7131.14 | AC9: 0 | AE9: 6873.76 | AF9: 0 | AH9: 5038.98 | AI9: 0 | AK9: 4307.49 | AL9: 0 | AN9: 6137.74 | AO9: 0 | AQ9: 5019.02 | AR9: 0 | AT9: 4064.35 | AU9: 0 | AW9: 2511.91 | AX9: 0 | AZ9: 0 | BA9: 0 | BC9: 0 | BD9: 0 | BF9: 0 | BG9: 0 | BI9: 0 | BJ9: 0 | BL9: 0 | BM9: 0 | BO9: 0 | BP9: 0 | BR9: 0 | BS9: 0 | BU9: 0 | BV9: 0
D10: 当該住戸の外皮平均熱貫流率 | F10: W/(m2K) | G10: =入力データ!G14 -> 0.87 | L10: － | O10: IH6x_13_05_112_2SS.csv | R10: IC6x_12_05_132_1SS.csv | Y10: 2014-01-01 | Z10: 02:00:00 | AA10: 休日 | AB10: 7216.09 | AC10: 0 | AE10: 7022.25 | AF10: 0 | AH10: 5148.77 | AI10: 0 | AK10: 4584.4 | AL10: 0 | AN10: 6259.27 | AO10: 0 | AQ10: 5236.3 | AR10: 0 | AT10: 4190.35 | AU10: 0 | AW10: 2765.38 | AX10: 0 | AZ10: 0 | BA10: 0 | BC10: 0 | BD10: 0 | BF10: 0 | BG10: 0 | BI10: 0 | BJ10: 0 | BL10: 0 | BM10: 0 | BO10: 0 | BP10: 0 | BR10: 0 | BS10: 0 | BU10: 0 | BV10: 0
D11: 当該住戸の暖房期の平均日射熱取得率 | F11: (W/m2)/(W/m2) | G11: =入力データ!G15 -> 4.3 | L11: － | O11: IH6x_13_09_212_2SS.csv | R11: IC6x_12_09_232_1SS.csv | Y11: 2014-01-01 | Z11: 03:00:00 | AA11: 休日 | AB11: 7353.68 | AC11: 0 | AE11: 7208.85 | AF11: 0 | AH11: 5288.91 | AI11: 0 | AK11: 4844.26 | AL11: 0 | AN11: 6435.35 | AO11: 0 | AQ11: 5500.05 | AR11: 0 | AT11: 4355.29 | AU11: 0 | AW11: 3044.06 | AX11: 0 | AZ11: 0 | BA11: 0 | BC11: 0 | BD11: 0 | BF11: 0 | BG11: 0 | BI11: 0 | BJ11: 0 | BL11: 0 | BM11: 0 | BO11: 0 | BP11: 0 | BR11: 0 | BS11: 0 | BU11: 0 | BV11: 0
D12: 当該住戸の冷房期の平均日射熱取得率 | F12: (W/m2)/(W/m2) | G12: =入力データ!G16 -> 2.8 | L12: － | O12: IH6x_13_09_112_2SS.csv | R12: IC6x_12_09_132_1SS.csv | Y12: 2014-01-01 | Z12: 04:00:00 | AA12: 休日 | AB12: 7404.65 | AC12: 0 | AE12: 7297.83 | AF12: 0 | AH12: 5356.82 | AI12: 0 | AK12: 5001.86 | AL12: 0 | AN12: 6530.15 | AO12: 0 | AQ12: 5674.79 | AR12: 0 | AT12: 4455.74 | AU12: 0 | AW12: 3247.36 | AX12: 0 | AZ12: 0 | BA12: 0 | BC12: 0 | BD12: 0 | BF12: 0 | BG12: 0 | BI12: 0 | BJ12: 0 | BL12: 0 | BM12: 0 | BO12: 0 | BP12: 0 | BR12: 0 | BS12: 0 | BU12: 0 | BV12: 0
D13: 通風の利用における相当換気回数（主たる居室） | F13: 1/h | G13: =IF($L$23=11,0,入力データ!G17) -> 0 | L13: － | Y13: 2014-01-01 | Z13: 05:00:00 | AA13: 休日 | AB13: 7346.06 | AC13: 0 | AE13: 7268.55 | AF13: 0 | AH13: 5339.03 | AI13: 0 | AK13: 5053.14 | AL13: 0 | AN13: 6524.69 | AO13: 0 | AQ13: 5741.99 | AR13: 0 | AT13: 4479.19 | AU13: 0 | AW13: 3364.36 | AX13: 0 | AZ13: 0 | BA13: 0 | BC13: 0 | BD13: 0 | BF13: 0 | BG13: 0 | BI13: 0 | BJ13: 0 | BL13: 0 | BM13: 0 | BO13: 0 | BP13: 0 | BR13: 0 | BS13: 0 | BU13: 0 | BV13: 0
D14: 通風の利用における相当換気回数（その他の居室） | F14: 1/h | G14: =IF($L$23=11,0,入力データ!G18) -> 0 | L14: － | Y14: 2014-01-01 | Z14: 06:00:00 | AA14: 休日 | AB14: 7447.99 | AC14: 0 | AE14: 7394.09 | AF14: 0 | AH14: 5432.09 | AI14: 0 | AK14: 5201.15 | AL14: 0 | AN14: 6674.85 | AO14: 0 | AQ14: 5959.1 | AR14: 0 | AT14: 4613.8 | AU14: 0 | AW14: 3584.88 | AX14: 0 | AZ14: 0 | BA14: 0 | BC14: 0 | BD14: 0 | BF14: 0 | BG14: 0 | BI14: 0 | BJ14: 0 | BL14: 0 | BM14: 0 | BO14: 0 | BP14: 0 | BR14: 0 | BS14: 0 | BU14: 0 | BV14: 0
D15: 蓄熱の利用 | F15: - | G15: =入力データ!G19 -> 利用しない | L15: － | O15: （参考）断熱性能区分 | Y15: 2014-01-01 | Z15: 07:00:00 | AA15: 休日 | AB15: 5869.99 | AC15: 0 | AE15: 5575.21 | AF15: 0 | AH15: 3959.06 | AI15: 0 | AK15: 3457.64 | AL15: 0 | AN15: 5584.87 | AO15: 0 | AQ15: 4939.69 | AR15: 0 | AT15: 3574.92 | AU15: 0 | AW15: 2545.85 | AX15: 0 | AZ15: 0 | BA15: 0 | BC15: 0 | BD15: 0 | BF15: 0 | BG15: 0 | BI15: 0 | BJ15: 0 | BL15: 0 | BM15: 0 | BO15: 0 | BP15: 0 | BR15: 0 | BS15: 0 | BU15: 0 | BV15: 0
D16: 床下空間を経由して外気を導入する換気方式 | F16: - | G16: =入力データ!G20 -> 利用しない | L16: =G16 -> 利用しない | O16: 暖房 | Q16: 冷房 | Y16: 2014-01-01 | Z16: 08:00:00 | AA16: 休日 | AB16: 937.79 | AC16: 0 | AE16: 0 | AF16: 0 | AH16: 0 | AI16: 0 | AK16: 0 | AL16: 0 | AN16: 1740.97 | AO16: 0 | AQ16: 1017.67 | AR16: 0 | AT16: 0 | AU16: 0 | AW16: 0 | AX16: 0 | AZ16: 0 | BA16: 0 | BC16: 0 | BD16: 0 | BF16: 0 | BG16: 0 | BI16: 0 | BJ16: 0 | BL16: 0 | BM16: 0 | BO16: 0 | BP16: 0 | BR16: 0 | BS16: 0 | BU16: 0 | BV16: 0
D17: 当該住戸の床下空間全体の面積に対する外気を導入する床下空間の面積の比 | F17: m2 | G17: =入力データ!G21 -> 0.5 | L17: =IF(AND(G17>=0,G17<=1),G17,"error") -> 0.5 | O17: =バックデータ一覧!R62 -> 3 | P17: =バックデータ一覧!S62 -> 4 | Q17: =バックデータ一覧!R63 -> 3 | R17: =バックデータ一覧!S63 -> 4 | Y17: 2014-01-01 | Z17: 09:00:00 | AA17: 休日 | AB17: 0 | AC17: 0 | AE17: 0 | AF17: 0 | AH17: 0 | AI17: 0 | AK17: 0 | AL17: 0 | AN17: 0 | AO17: 0 | AQ17: 0 | AR17: 0 | AT17: 0 | AU17: 0 | AW17: 0 | AX17: 0 | AZ17: 0 | BA17: 0 | BC17: 0 | BD17: 0 | BF17: 0 | BG17: 0 | BI17: 0 | BJ17: 0 | BL17: 0 | BM17: 0 | BO17: 0 | BP17: 0 | BR17: 0 | BS17: 0 | BU17: 0 | BV17: 0
C18: 暖房設備 | D18: 運転モード | F18: - | G18: =入力データ!G22 -> 居室連続運転 | L18: =VLOOKUP($G18,負荷ファイル番号_暖房運転モード,2,FALSE) -> 13 | O18: =O17&"_1" -> 3_1 | P18: =P17&"_1" -> 4_1 | Q18: =Q17&"_1" -> 3_1 | R18: =R17&"_1" -> 4_1 | Y18: 2014-01-01 | Z18: 10:00:00 | AA18: 休日 | AB18: 0 | AC18: 0 | AE18: 0 | AF18: 0 | AH18: 0 | AI18: 0 | AK18: 0 | AL18: 0 | AN18: 0 | AO18: 0 | AQ18: 0 | AR18: 0 | AT18: 0 | AU18: 0 | AW18: 0 | AX18: 0 | AZ18: 0 | BA18: 0 | BC18: 0 | BD18: 0 | BF18: 0 | BG18: 0 | BI18: 0 | BJ18: 0 | BL18: 0 | BM18: 0 | BO18: 0 | BP18: 0 | BR18: 0 | BS18: 0 | BU18: 0 | BV18: 0
D19: 床暖房採用の有無（主たる居室） | F19: - | G19: =入力データ!G23 -> 床暖房を採用しない | L19: =VLOOKUP($G19,負荷ファイル番号_床暖房採用の有無,2,FALSE) -> 0 | Y19: 2014-01-01 | Z19: 11:00:00 | AA19: 休日 | AB19: 0 | AC19: 0 | AE19: 0 | AF19: 0 | AH19: 0 | AI19: 0 | AK19: 0 | AL19: 0 | AN19: 0 | AO19: 0 | AQ19: 0 | AR19: 0 | AT19: 0 | AU19: 0 | AW19: 0 | AX19: 0 | AZ19: 0 | BA19: 0 | BC19: 0 | BD19: 0 | BF19: 0 | BG19: 0 | BI19: 0 | BJ19: 0 | BL19: 0 | BM19: 0 | BO19: 0 | BP19: 0 | BR19: 0 | BS19: 0 | BU19: 0 | BV19: 0
D20: 床暖房の敷設率（主たる居室） | F20: - | G20: =入力データ!G24 -> 0.75 | L20: =G20 -> 0.75 | Y20: 2014-01-01 | Z20: 12:00:00 | AA20: 休日 | AB20: 0 | AC20: 0 | AE20: 0 | AF20: 0 | AH20: 0 | AI20: 0 | AK20: 0 | AL20: 0 | AN20: 0 | AO20: 0 | AQ20: 0 | AR20: 0 | AT20: 0 | AU20: 0 | AW20: 0 | AX20: 0 | AZ20: 0 | BA20: 0 | BC20: 0 | BD20: 0 | BF20: 0 | BG20: 0 | BI20: 0 | BJ20: 0 | BL20: 0 | BM20: 0 | BO20: 0 | BP20: 0 | BR20: 0 | BS20: 0 | BU20: 0 | BV20: 0
D21: 床暖房採用の有無（その他の居室） | F21: - | G21: =入力データ!G25 -> 床暖房を採用しない | L21: =VLOOKUP($G21,負荷ファイル番号_床暖房採用の有無,2,FALSE) -> 0 | O21: （参考）相当換気回数ファイル区分 | Y21: 2014-01-01 | Z21: 13:00:00 | AA21: 休日 | AB21: 0 | AC21: 0 | AE21: 0 | AF21: 0 | AH21: 0 | AI21: 0 | AK21: 0 | AL21: 0 | AN21: 0 | AO21: 0 | AQ21: 0 | AR21: 0 | AT21: 0 | AU21: 0 | AW21: 0 | AX21: 0 | AZ21: 0 | BA21: 0 | BC21: 0 | BD21: 0 | BF21: 0 | BG21: 0 | BI21: 0 | BJ21: 0 | BL21: 0 | BM21: 0 | BO21: 0 | BP21: 0 | BR21: 0 | BS21: 0 | BU21: 0 | BV21: 0
D22: 床暖房の敷設率（その他の居室） | F22: - | G22: =入力データ!G26 -> 0.75 | L22: =G22 -> 0.75 | P22: 主たる居室 | S22: その他の居室 | Y22: 2014-01-01 | Z22: 14:00:00 | AA22: 休日 | AB22: 0 | AC22: 0 | AE22: 0 | AF22: 0 | AH22: 0 | AI22: 0 | AK22: 0 | AL22: 0 | AN22: 0 | AO22: 0 | AQ22: 0 | AR22: 0 | AT22: 0 | AU22: 0 | AW22: 0 | AX22: 0 | AZ22: 0 | BA22: 0 | BC22: 0 | BD22: 0 | BF22: 0 | BG22: 0 | BI22: 0 | BJ22: 0 | BL22: 0 | BM22: 0 | BO22: 0 | BP22: 0 | BR22: 0 | BS22: 0 | BU22: 0 | BV22: 0
C23: 冷房設備 | D23: 運転モード | F23: - | G23: =入力データ!G27 -> 居室間歇運転 | L23: =VLOOKUP($G23,負荷ファイル番号_冷房運転モード,2,FALSE) -> 12 | P23: 入力値 | Q23: NV1 | R23: NV2 | S23: 入力値 | T23: NV1 | U23: NV2 | Y23: 2014-01-01 | Z23: 15:00:00 | AA23: 休日 | AB23: 0 | AC23: 0 | AE23: 0 | AF23: 0 | AH23: 0 | AI23: 0 | AK23: 0 | AL23: 0 | AN23: 632.25 | AO23: 0 | AQ23: 0 | AR23: 0 | AT23: 0 | AU23: 0 | AW23: 0 | AX23: 0 | AZ23: 0 | BA23: 0 | BC23: 0 | BD23: 0 | BF23: 0 | BG23: 0 | BI23: 0 | BJ23: 0 | BL23: 0 | BM23: 0 | BO23: 0 | BP23: 0 | BR23: 0 | BS23: 0 | BU23: 0 | BV23: 0
B24: 換気 | C24: 熱交換換気 | D24: 熱交換型換気 | F24: - | G24: =入力データ!G28 -> 採用しない | L24: =VLOOKUP($G24,負荷ファイル番号_熱交換型換気,2,FALSE) -> 1 | O24: 換気区分 | P24: =IF($L$23=11,1,バックデータ一覧!$S$109) -> 1 | Q24: =IF($L$23=11,1,バックデータ一覧!V104) -> 1 | R24: =IF($L$23=11,1,バックデータ一覧!W104) -> 2 | S24: =IF($L$23=11,1,バックデータ一覧!$S$110) -> 1 | T24: =IF($L$23=11,1,バックデータ一覧!X104) -> 1 | U24: =IF($L$23=11,1,バックデータ一覧!Y104) -> 2 | Y24: 2014-01-01 | Z24: 16:00:00 | AA24: 休日 | AB24: 622.44 | AC24: 0 | AE24: 0 | AF24: 0 | AH24: 0 | AI24: 0 | AK24: 0 | AL24: 0 | AN24: 3254.82 | AO24: 0 | AQ24: 0 | AR24: 0 | AT24: 228.78 | AU24: 0 | AW24: 0 | AX24: 0 | AZ24: 0 | BA24: 0 | BC24: 0 | BD24: 0 | BF24: 0 | BG24: 0 | BI24: 0 | BJ24: 0 | BL24: 0 | BM24: 0 | BO24: 0 | BP24: 0 | BR24: 0 | BS24: 0 | BU24: 0 | BV24: 0
D25: 全般換気設備の有効換気量率 | F25: - | G25: =入力データ!G29 -> 1 | L25: =G25 -> 1 | O25: 換気回数 | P25: =IF($L$23=11,0,バックデータ一覧!$T$109) -> 0 | Q25: =IF($L$23=11,0,バックデータ一覧!V105) -> 0 | R25: =IF($L$23=11,0,バックデータ一覧!W105) -> 5 | S25: =IF($L$23=11,0,バックデータ一覧!$T$110) -> 0 | T25: =IF($L$23=11,0,バックデータ一覧!X105) -> 0 | U25: =IF($L$23=11,0,バックデータ一覧!Y105) -> 5 | Y25: 2014-01-01 | Z25: 17:00:00 | AA25: 休日 | AB25: 3906.67 | AC25: 0 | AE25: 0 | AF25: 0 | AH25: 0 | AI25: 0 | AK25: 0 | AL25: 0 | AN25: 4100.36 | AO25: 0 | AQ25: 1248.38 | AR25: 0 | AT25: 2200.99 | AU25: 0 | AW25: 0 | AX25: 0 | AZ25: 0 | BA25: 0 | BC25: 0 | BD25: 0 | BF25: 0 | BG25: 0 | BI25: 0 | BJ25: 0 | BL25: 0 | BM25: 0 | BO25: 0 | BP25: 0 | BR25: 0 | BS25: 0 | BU25: 0 | BV25: 0
D26: 熱交換型換気設備の温度交換効率 | F26: - | G26: =入力データ!G30 -> 0.9 | L26: =IF(G26<0.4,"error",MIN(G26,0.95)) -> 0.9 | O26: ﾌｧｲﾙ記号 | Q26: =VLOOKUP(Q24,負荷ファイル番号_通風利用,2,FALSE) -> 1 | R26: =VLOOKUP(R24,負荷ファイル番号_通風利用,2,FALSE) -> 3 | T26: =VLOOKUP(T24,負荷ファイル番号_通風利用,2,FALSE) -> 1 | U26: =VLOOKUP(U24,負荷ファイル番号_通風利用,2,FALSE) -> 3 | Y26: 2014-01-01 | Z26: 18:00:00 | AA26: 休日 | AB26: 2641.91 | AC26: 0 | AE26: 0 | AF26: 0 | AH26: 0 | AI26: 0 | AK26: 0 | AL26: 0 | AN26: 2366.65 | AO26: 0 | AQ26: 373.78 | AR26: 0 | AT26: 509.15 | AU26: 0 | AW26: 0 | AX26: 0 | AZ26: 0 | BA26: 0 | BC26: 0 | BD26: 0 | BF26: 0 | BG26: 0 | BI26: 0 | BJ26: 0 | BL26: 0 | BM26: 0 | BO26: 0 | BP26: 0 | BR26: 0 | BS26: 0 | BU26: 0 | BV26: 0
D27: 給気と排気の比率による温度交換効率の補正係数 | F27: - | G27: =入力データ!G31 -> 0.9 | L27: =IF(G27>2,"error",G27) -> 0.9 | Y27: 2014-01-01 | Z27: 19:00:00 | AA27: 休日 | AB27: 3387.38 | AC27: 0 | AE27: 1831.66 | AF27: 0 | AH27: 1208.96 | AI27: 0 | AK27: 0 | AL27: 0 | AN27: 2857.91 | AO27: 0 | AQ27: 1093.03 | AR27: 0 | AT27: 1021.12 | AU27: 0 | AW27: 0 | AX27: 0 | AZ27: 0 | BA27: 0 | BC27: 0 | BD27: 0 | BF27: 0 | BG27: 0 | BI27: 0 | BJ27: 0 | BL27: 0 | BM27: 0 | BO27: 0 | BP27: 0 | BR27: 0 | BS27: 0 | BU27: 0 | BV27: 0
D28: 排気過多時における住宅外皮経由の漏気による温度交換効率の補正係数 | F28: - | G28: =入力データ!G32 -> 0.95 | L28: 0.95 | Y28: 2014-01-01 | Z28: 20:00:00 | AA28: 休日 | AB28: 3703.7 | AC28: 0 | AE28: 2770.23 | AF28: 0 | AH28: 1709.85 | AI28: 0 | AK28: 0 | AL28: 0 | AN28: 3047.23 | AO28: 0 | AQ28: 1460.13 | AR28: 0 | AT28: 1227.75 | AU28: 0 | AW28: 0 | AX28: 0 | AZ28: 0 | BA28: 0 | BC28: 0 | BD28: 0 | BF28: 0 | BG28: 0 | BI28: 0 | BJ28: 0 | BL28: 0 | BM28: 0 | BO28: 0 | BP28: 0 | BR28: 0 | BS28: 0 | BU28: 0 | BV28: 0
B29: 暖冷房区画番号 | G29: =入力データ!G34 -> 1 | L29: =VLOOKUP($G29,負荷ファイル番号_暖冷房区画,2,FALSE) -> 居間食堂(LD)・台所(K) | Y29: 2014-01-01 | Z29: 21:00:00 | AA29: 休日 | AB29: 4248.05 | AC29: 0 | AE29: 3592.64 | AF29: 0 | AH29: 2337.98 | AI29: 0 | AK29: 0 | AL29: 0 | AN29: 3508.98 | AO29: 0 | AQ29: 2064.56 | AR29: 0 | AT29: 1689.36 | AU29: 0 | AW29: 0 | AX29: 0 | AZ29: 0 | BA29: 0 | BC29: 0 | BD29: 0 | BF29: 0 | BG29: 0 | BI29: 0 | BJ29: 0 | BL29: 0 | BM29: 0 | BO29: 0 | BP29: 0 | BR29: 0 | BS29: 0 | BU29: 0 | BV29: 0
Y30: 2014-01-01 | Z30: 22:00:00 | AA30: 休日 | AB30: 5437.57 | AC30: 0 | AE30: 4962.5 | AF30: 0 | AH30: 3593.82 | AI30: 0 | AK30: 1192.8 | AL30: 0 | AN30: 4601.68 | AO30: 0 | AQ30: 3284.21 | AR30: 0 | AT30: 2796.91 | AU30: 0 | AW30: 0 | AX30: 0 | AZ30: 0 | BA30: 0 | BC30: 0 | BD30: 0 | BF30: 0 | BG30: 0 | BI30: 0 | BJ30: 0 | BL30: 0 | BM30: 0 | BO30: 0 | BP30: 0 | BR30: 0 | BS30: 0 | BU30: 0 | BV30: 0
Y31: 2014-01-01 | Z31: 23:00:00 | AA31: 休日 | AB31: 5690.44 | AC31: 0 | AE31: 5336.8 | AF31: 0 | AH31: 3883.08 | AI31: 0 | AK31: 2727.65 | AL31: 0 | AN31: 4817.94 | AO31: 0 | AQ31: 3614.57 | AR31: 0 | AT31: 3014 | AU31: 0 | AW31: 1061.19 | AX31: 0 | AZ31: 0 | BA31: 0 | BC31: 0 | BD31: 0 | BF31: 0 | BG31: 0 | BI31: 0 | BJ31: 0 | BL31: 0 | BM31: 0 | BO31: 0 | BP31: 0 | BR31: 0 | BS31: 0 | BU31: 0 | BV31: 0
Y32: 2014-01-02 | Z32: 00:00:00 | AA32: 平日 | AB32: 5942.51 | AC32: 0 | AE32: 5675.67 | AF32: 0 | AH32: 4136.55 | AI32: 0 | AK32: 3321.12 | AL32: 0 | AN32: 5063.14 | AO32: 0 | AQ32: 3962.75 | AR32: 0 | AT32: 3238.48 | AU32: 0 | AW32: 1561.76 | AX32: 0 | AZ32: 0 | BA32: 0 | BC32: 0 | BD32: 0 | BF32: 0 | BG32: 0 | BI32: 0 | BJ32: 0 | BL32: 0 | BM32: 0 | BO32: 0 | BP32: 0 | BR32: 0 | BS32: 0 | BU32: 0 | BV32: 0
D33: ■暖房負荷ファイルの統合フロー | Y33: 2014-01-02 | Z33: 01:00:00 | AA33: 平日 | AB33: 6011.55 | AC33: 0 | AE33: 5808.69 | AF33: 0 | AH33: 4234.37 | AI33: 0 | AK33: 3625.17 | AL33: 0 | AN33: 5150.99 | AO33: 0 | AQ33: 4143.89 | AR33: 0 | AT33: 3338.12 | AU33: 0 | AW33: 1818.22 | AX33: 0 | AZ33: 0 | BA33: 0 | BC33: 0 | BD33: 0 | BF33: 0 | BG33: 0 | BI33: 0 | BJ33: 0 | BL33: 0 | BM33: 0 | BO33: 0 | BP33: 0 | BR33: 0 | BS33: 0 | BU33: 0 | BV33: 0
E34: 暖房 | Y34: 2014-01-02 | Z34: 02:00:00 | AA34: 平日 | AB34: 6104.16 | AC34: 0 | AE34: 5949.91 | AF34: 0 | AH34: 4340.97 | AI34: 0 | AK34: 3869.88 | AL34: 0 | AN34: 5273.49 | AO34: 0 | AQ34: 4351.49 | AR34: 0 | AT34: 3462.67 | AU34: 0 | AW34: 2071.21 | AX34: 0 | AZ34: 0 | BA34: 0 | BC34: 0 | BD34: 0 | BF34: 0 | BG34: 0 | BI34: 0 | BJ34: 0 | BL34: 0 | BM34: 0 | BO34: 0 | BP34: 0 | BR34: 0 | BS34: 0 | BU34: 0 | BV34: 0
D35: 暖冷房_負荷ファイル用記号 | E35: H | F35: =E35 -> H | G35: =F35 -> H | H35: =G35 -> H | I35: =E35 -> H | J35: H | K35: H | L35: H | Y35: 2014-01-02 | Z35: 03:00:00 | AA35: 平日 | AB35: 6163.44 | AC35: 0 | AE35: 6046.67 | AF35: 0 | AH35: 4414.95 | AI35: 0 | AK35: 4042.56 | AL35: 0 | AN35: 5369.29 | AO35: 0 | AQ35: 4524.94 | AR35: 0 | AT35: 3564.35 | AU35: 0 | AW35: 2284.96 | AX35: 0 | AZ35: 0 | BA35: 0 | BC35: 0 | BD35: 0 | BF35: 0 | BG35: 0 | BI35: 0 | BJ35: 0 | BL35: 0 | BM35: 0 | BO35: 0 | BP35: 0 | BR35: 0 | BS35: 0 | BU35: 0 | BV35: 0
D36: Q値_負荷ファイル用記号 | E36: =VLOOKUP(O18,負荷ファイル番号_断熱水準,3,FALSE) -> 05 | F36: =E36 -> 05 | G36: =VLOOKUP(P18,負荷ファイル番号_断熱水準,3,FALSE) -> 09 | H36: =G36 -> 09 | I36: 05 | J36: 05 | K36: 09 | L36: 09 | Y36: 2014-01-02 | Z36: 04:00:00 | AA36: 平日 | AB36: 6232.86 | AC36: 0 | AE36: 6145.41 | AF36: 0 | AH36: 4491.37 | AI36: 0 | AK36: 4192.87 | AL36: 0 | AN36: 5477.01 | AO36: 0 | AQ36: 4703.67 | AR36: 0 | AT36: 3673.03 | AU36: 0 | AW36: 2494.17 | AX36: 0 | AZ36: 0 | BA36: 0 | BC36: 0 | BD36: 0 | BF36: 0 | BG36: 0 | BI36: 0 | BJ36: 0 | BL36: 0 | BM36: 0 | BO36: 0 | BP36: 0 | BR36: 0 | BS36: 0 | BU36: 0 | BV36: 0
D37: μ値_負荷ファイル用記号 | E37: =バックデータ一覧!AB77 -> 2 | F37: =バックデータ一覧!AC77 -> 1 | G37: =バックデータ一覧!AB83 -> 2 | H37: =バックデータ一覧!AC83 -> 1 | I37: 2 | J37: 1 | K37: 2 | L37: 1 | Y37: 2014-01-02 | Z37: 05:00:00 | AA37: 平日 | AB37: 6953.83 | AC37: 0 | AE37: 6889.78 | AF37: 0 | AH37: 5248.02 | AI37: 0 | AK37: 5008.37 | AL37: 0 | AN37: 6263.22 | AO37: 0 | AQ37: 5558.64 | AR37: 0 | AT37: 4488.22 | AU37: 0 | AW37: 3406.94 | AX37: 0 | AZ37: 0 | BA37: 0 | BC37: 0 | BD37: 0 | BF37: 0 | BG37: 0 | BI37: 0 | BJ37: 0 | BL37: 0 | BM37: 0 | BO37: 0 | BP37: 0 | BR37: 0 | BS37: 0 | BU37: 0 | BV37: 0
D38: 蓄熱_負荷ファイル用記号 | E38: 1 | F38: 1 | G38: 1 | H38: 1 | I38: 2 | J38: 2 | K38: 2 | L38: 2 | Y38: 2014-01-02 | Z38: 06:00:00 | AA38: 平日 | AB38: 4995.65 | AC38: 0 | AE38: 4950.05 | AF38: 0 | AH38: 3256.72 | AI38: 0 | AK38: 3062.08 | AL38: 0 | AN38: 4406.16 | AO38: 0 | AQ38: 3762.1 | AR38: 0 | AT38: 2595.87 | AU38: 0 | AW38: 1598.68 | AX38: 0 | AZ38: 0 | BA38: 0 | BC38: 0 | BD38: 0 | BF38: 0 | BG38: 0 | BI38: 0 | BJ38: 0 | BL38: 0 | BM38: 0 | BO38: 0 | BP38: 0 | BR38: 0 | BS38: 0 | BU38: 0 | BV38: 0
D39: 負荷ファイル名 | E39: =IF($L$5="8x","-","I"&E$35&$L$5&"_"&$L$18&"_"&E$36&"_"&E$37&"12_"&E$38&"SS.csv") -> IH6x_13_05_212_1SS.csv | F39: IH6x_13_05_112_1SS.csv | G39: IH6x_13_09_212_1SS.csv | H39: IH6x_13_09_112_1SS.csv | I39: IH6x_13_05_212_2SS.csv | J39: IH6x_13_05_112_2SS.csv | K39: IH6x_13_09_212_2SS.csv | L39: IH6x_13_09_112_2SS.csv | Y39: 2014-01-02 | Z39: 07:00:00 | AA39: 平日 | AB39: 3492.83 | AC39: 0 | AE39: 3054.43 | AF39: 0 | AH39: 1849.23 | AI39: 0 | AK39: 1193.67 | AL39: 0 | AN39: 3464.27 | AO39: 0 | AQ39: 2874.9 | AR39: 0 | AT39: 1683.95 | AU39: 0 | AW39: 618.03 | AX39: 0 | AZ39: 0 | BA39: 0 | BC39: 0 | BD39: 0 | BF39: 0 | BG39: 0 | BI39: 0 | BJ39: 0 | BL39: 0 | BM39: 0 | BO39: 0 | BP39: 0 | BR39: 0 | BS39: 0 | BU39: 0 | BV39: 0
Y40: 2014-01-02 | Z40: 08:00:00 | AA40: 平日 | AB40: 3638.04 | AC40: 0 | AE40: 3014.02 | AF40: 0 | AH40: 2050.2 | AI40: 0 | AK40: 1291.19 | AL40: 0 | AN40: 3663.2 | AO40: 0 | AQ40: 2923.11 | AR40: 0 | AT40: 1960.91 | AU40: 0 | AW40: 850.1 | AX40: 0 | AZ40: 0 | BA40: 0 | BC40: 0 | BD40: 0 | BF40: 0 | BG40: 0 | BI40: 0 | BJ40: 0 | BL40: 0 | BM40: 0 | BO40: 0 | BP40: 0 | BR40: 0 | BS40: 0 | BU40: 0 | BV40: 0
Y41: 2014-01-02 | Z41: 09:00:00 | AA41: 平日 | AB41: 3928.35 | AC41: 0 | AE41: 3278.81 | AF41: 0 | AH41: 2442.82 | AI41: 0 | AK41: 1658.04 | AL41: 0 | AN41: 3974.57 | AO41: 0 | AQ41: 3243.81 | AR41: 0 | AT41: 2376.75 | AU41: 0 | AW41: 1289.18 | AX41: 0 | AZ41: 0 | BA41: 0 | BC41: 0 | BD41: 0 | BF41: 0 | BG41: 0 | BI41: 0 | BJ41: 0 | BL41: 0 | BM41: 0 | BO41: 0 | BP41: 0 | BR41: 0 | BS41: 0 | BU41: 0 | BV41: 0
Y42: 2014-01-02 | Z42: 10:00:00 | AA42: 平日 | AB42: 3957.16 | AC42: 0 | AE42: 3252.61 | AF42: 0 | AH42: 2515.73 | AI42: 0 | AK42: 1677.54 | AL42: 0 | AN42: 4046.3 | AO42: 0 | AQ42: 3309.67 | AR42: 0 | AT42: 2487.66 | AU42: 0 | AW42: 1405.52 | AX42: 0 | AZ42: 0 | BA42: 0 | BC42: 0 | BD42: 0 | BF42: 0 | BG42: 0 | BI42: 0 | BJ42: 0 | BL42: 0 | BM42: 0 | BO42: 0 | BP42: 0 | BR42: 0 | BS42: 0 | BU42: 0 | BV42: 0
Y43: 2014-01-02 | Z43: 11:00:00 | AA43: 平日 | AB43: 3929.49 | AC43: 0 | AE43: 3171.98 | AF43: 0 | AH43: 2543.24 | AI43: 0 | AK43: 1657.59 | AL43: 0 | AN43: 4110.59 | AO43: 0 | AQ43: 3360.89 | AR43: 0 | AT43: 2601.09 | AU43: 0 | AW43: 1523.02 | AX43: 0 | AZ43: 0 | BA43: 0 | BC43: 0 | BD43: 0 | BF43: 0 | BG43: 0 | BI43: 0 | BJ43: 0 | BL43: 0 | BM43: 0 | BO43: 0 | BP43: 0 | BR43: 0 | BS43: 0 | BU43: 0 | BV43: 0
Y44: 2014-01-02 | Z44: 12:00:00 | AA44: 平日 | AB44: 2785.51 | AC44: 0 | AE44: 1987.44 | AF44: 0 | AH44: 1424.45 | AI44: 0 | AK44: 503.43 | AL44: 0 | AN44: 3026.86 | AO44: 0 | AQ44: 2258.62 | AR44: 0 | AT44: 1542.74 | AU44: 0 | AW44: 462.96 | AX44: 0 | AZ44: 0 | BA44: 0 | BC44: 0 | BD44: 0 | BF44: 0 | BG44: 0 | BI44: 0 | BJ44: 0 | BL44: 0 | BM44: 0 | BO44: 0 | BP44: 0 | BR44: 0 | BS44: 0 | BU44: 0 | BV44: 0
Y45: 2014-01-02 | Z45: 13:00:00 | AA45: 平日 | AB45: 3283.1 | AC45: 0 | AE45: 2424.54 | AF45: 0 | AH45: 1959.71 | AI45: 0 | AK45: 975.85 | AL45: 0 | AN45: 3547.46 | AO45: 0 | AQ45: 2761.5 | AR45: 0 | AT45: 2101.07 | AU45: 0 | AW45: 1009.17 | AX45: 0 | AZ45: 0 | BA45: 0 | BC45: 0 | BD45: 0 | BF45: 0 | BG45: 0 | BI45: 0 | BJ45: 0 | BL45: 0 | BM45: 0 | BO45: 0 | BP45: 0 | BR45: 0 | BS45: 0 | BU45: 0 | BV45: 0
Y46: 2014-01-02 | Z46: 14:00:00 | AA46: 平日 | AB46: 1274.36 | AC46: 0 | AE46: 0 | AF46: 0 | AH46: 64.73 | AI46: 0 | AK46: 0 | AL46: 0 | AN46: 2110.36 | AO46: 0 | AQ46: 1279.14 | AR46: 0 | AT46: 714.74 | AU46: 0 | AW46: 0 | AX46: 0 | AZ46: 0 | BA46: 0 | BC46: 0 | BD46: 0 | BF46: 0 | BG46: 0 | BI46: 0 | BJ46: 0 | BL46: 0 | BM46: 0 | BO46: 0 | BP46: 0 | BR46: 0 | BS46: 0 | BU46: 0 | BV46: 0
Y47: 2014-01-02 | Z47: 15:00:00 | AA47: 平日 | AB47: 1054.07 | AC47: 0 | AE47: 0 | AF47: 0 | AH47: 0 | AI47: 0 | AK47: 0 | AL47: 0 | AN47: 1918.57 | AO47: 0 | AQ47: 816.16 | AR47: 0 | AT47: 520.06 | AU47: 0 | AW47: 0 | AX47: 0 | AZ47: 0 | BA47: 0 | BC47: 0 | BD47: 0 | BF47: 0 | BG47: 0 | BI47: 0 | BJ47: 0 | BL47: 0 | BM47: 0 | BO47: 0 | BP47: 0 | BR47: 0 | BS47: 0 | BU47: 0 | BV47: 0
G48: 負荷補正前の暖房負荷 | Y48: 2014-01-02 | Z48: 16:00:00 | AA48: 平日 | AB48: 2862.74 | AC48: 0 | AE48: 1158.62 | AF48: 0 | AH48: 1312.88 | AI48: 0 | AK48: 0 | AL48: 0 | AN48: 3124.37 | AO48: 0 | AQ48: 1988.29 | AR48: 0 | AT48: 1639.54 | AU48: 0 | AW48: 0 | AX48: 0 | AZ48: 0 | BA48: 0 | BC48: 0 | BD48: 0 | BF48: 0 | BG48: 0 | BI48: 0 | BJ48: 0 | BL48: 0 | BM48: 0 | BO48: 0 | BP48: 0 | BR48: 0 | BS48: 0 | BU48: 0 | BV48: 0
Y49: 2014-01-02 | Z49: 17:00:00 | AA49: 平日 | AB49: 5352.04 | AC49: 0 | AE49: 4569.23 | AF49: 0 | AH49: 3805.64 | AI49: 0 | AK49: 1710.95 | AL49: 0 | AN49: 5279.89 | AO49: 0 | AQ49: 4347.33 | AR49: 0 | AT49: 3740.46 | AU49: 0 | AW49: 2416.08 | AX49: 0 | AZ49: 0 | BA49: 0 | BC49: 0 | BD49: 0 | BF49: 0 | BG49: 0 | BI49: 0 | BJ49: 0 | BL49: 0 | BM49: 0 | BO49: 0 | BP49: 0 | BR49: 0 | BS49: 0 | BU49: 0 | BV49: 0
Y50: 2014-01-02 | Z50: 18:00:00 | AA50: 平日 | AB50: 5887.03 | AC50: 0 | AE50: 5403.03 | AF50: 0 | AH50: 4278.5 | AI50: 0 | AK50: 3448.42 | AL50: 0 | AN50: 5639.23 | AO50: 0 | AQ50: 4824.97 | AR50: 0 | AT50: 4044.44 | AU50: 0 | AW50: 3009.95 | AX50: 0 | AZ50: 0 | BA50: 0 | BC50: 0 | BD50: 0 | BF50: 0 | BG50: 0 | BI50: 0 | BJ50: 0 | BL50: 0 | BM50: 0 | BO50: 0 | BP50: 0 | BR50: 0 | BS50: 0 | BU50: 0 | BV50: 0
D51: ■冷房負荷ファイルの統合フロー | Y51: 2014-01-02 | Z51: 19:00:00 | AA51: 平日 | AB51: 4069.84 | AC51: 0 | AE51: 3748.36 | AF51: 0 | AH51: 2354.82 | AI51: 0 | AK51: 1804.72 | AL51: 0 | AN51: 3729.85 | AO51: 0 | AQ51: 2997.96 | AR51: 0 | AT51: 2036.73 | AU51: 0 | AW51: 1107.55 | AX51: 0 | AZ51: 0 | BA51: 0 | BC51: 0 | BD51: 0 | BF51: 0 | BG51: 0 | BI51: 0 | BJ51: 0 | BL51: 0 | BM51: 0 | BO51: 0 | BP51: 0 | BR51: 0 | BS51: 0 | BU51: 0 | BV51: 0
E52: 冷房 | Y52: 2014-01-02 | Z52: 20:00:00 | AA52: 平日 | AB52: 4880.87 | AC52: 0 | AE52: 4661.22 | AF52: 0 | AH52: 3077.33 | AI52: 0 | AK52: 2689.04 | AL52: 0 | AN52: 4444.52 | AO52: 0 | AQ52: 3781.66 | AR52: 0 | AT52: 2674.29 | AU52: 0 | AW52: 1827.32 | AX52: 0 | AZ52: 0 | BA52: 0 | BC52: 0 | BD52: 0 | BF52: 0 | BG52: 0 | BI52: 0 | BJ52: 0 | BL52: 0 | BM52: 0 | BO52: 0 | BP52: 0 | BR52: 0 | BS52: 0 | BU52: 0 | BV52: 0
D53: 暖冷房記号 | E53: C | F53: C | G53: C | H53: C | I53: =E53 -> C | J53: C | K53: C | L53: C | Y53: 2014-01-02 | Z53: 21:00:00 | AA53: 平日 | AB53: 5514.78 | AC53: 0 | AE53: 5363.3 | AF53: 0 | AH53: 3642.27 | AI53: 0 | AK53: 3356.63 | AL53: 0 | AN53: 5001.21 | AO53: 0 | AQ53: 4398.28 | AR53: 0 | AT53: 3170.87 | AU53: 0 | AW53: 2392.71 | AX53: 0 | AZ53: 0 | BA53: 0 | BC53: 0 | BD53: 0 | BF53: 0 | BG53: 0 | BI53: 0 | BJ53: 0 | BL53: 0 | BM53: 0 | BO53: 0 | BP53: 0 | BR53: 0 | BS53: 0 | BU53: 0 | BV53: 0
D54: Q値按分用 | E54: =VLOOKUP(Q18,負荷ファイル番号_断熱水準,3,FALSE) -> 05 | F54: =E54 -> 05 | G54: =VLOOKUP(R18,負荷ファイル番号_断熱水準,3,FALSE) -> 09 | H54: =G54 -> 09 | I54: 05 | J54: 05 | K54: 09 | L54: 09 | Y54: 2014-01-02 | Z54: 22:00:00 | AA54: 平日 | AB54: 6059.42 | AC54: 0 | AE54: 5957.76 | AF54: 0 | AH54: 4127.82 | AI54: 0 | AK54: 3914.74 | AL54: 0 | AN54: 5479.67 | AO54: 0 | AQ54: 4933.68 | AR54: 0 | AT54: 3595.94 | AU54: 0 | AW54: 2882.8 | AX54: 0 | AZ54: 0 | BA54: 0 | BC54: 0 | BD54: 0 | BF54: 0 | BG54: 0 | BI54: 0 | BJ54: 0 | BL54: 0 | BM54: 0 | BO54: 0 | BP54: 0 | BR54: 0 | BS54: 0 | BU54: 0 | BV54: 0
D55: μ値按分用 | E55: =バックデータ一覧!AB78 -> 2 | F55: =バックデータ一覧!AC78 -> 1 | G55: =バックデータ一覧!AB84 -> 2 | H55: =バックデータ一覧!AC84 -> 1 | I55: 2 | J55: 1 | K55: 2 | L55: 1 | Y55: 2014-01-02 | Z55: 23:00:00 | AA55: 平日 | AB55: 7172.53 | AC55: 0 | AE55: 7106.59 | AF55: 0 | AH55: 5192.09 | AI55: 0 | AK55: 5029.66 | AL55: 0 | AN55: 6502.41 | AO55: 0 | AQ55: 6004.46 | AR55: 0 | AT55: 4574.44 | AU55: 0 | AW55: 3915.16 | AX55: 0 | AZ55: 0 | BA55: 0 | BC55: 0 | BD55: 0 | BF55: 0 | BG55: 0 | BI55: 0 | BJ55: 0 | BL55: 0 | BM55: 0 | BO55: 0 | BP55: 0 | BR55: 0 | BS55: 0 | BU55: 0 | BV55: 0
D56: 通風の利用 | E56: =IF($G$29=1,$Q$26,$T$26) -> 1 | F56: =IF($G$29=1,$Q$26,$T$26) -> 1 | G56: =IF($G$29=1,$Q$26,$T$26) -> 1 | H56: =IF($G$29=1,$Q$26,$T$26) -> 1 | I56: =IF($G$29=1,$R$26,$U$26) -> 3 | J56: =IF($G$29=1,$R$26,$U$26) -> 3 | K56: =IF($G$29=1,$R$26,$U$26) -> 3 | L56: =IF($G$29=1,$R$26,$U$26) -> 3 | Y56: 2014-01-03 | Z56: 00:00:00 | AA56: 平日 | AB56: 7430.33 | AC56: 0 | AE56: 7391.37 | AF56: 0 | AH56: 5420.04 | AI56: 0 | AK56: 5295.79 | AL56: 0 | AN56: 6718.14 | AO56: 0 | AQ56: 6265.25 | AR56: 0 | AT56: 4758.89 | AU56: 0 | AW56: 4150.34 | AX56: 0 | AZ56: 0 | BA56: 0 | BC56: 0 | BD56: 0 | BF56: 0 | BG56: 0 | BI56: 0 | BJ56: 0 | BL56: 0 | BM56: 0 | BO56: 0 | BP56: 0 | BR56: 0 | BS56: 0 | BU56: 0 | BV56: 0
D57: 負荷ファイル名 | E57: ="I"&E$53&$L$5&"_"&$L$23&"_"&E$54&"_"&E$55&E$56&"2_1SS.csv" -> IC6x_12_05_212_1SS.csv | F57: IC6x_12_05_112_1SS.csv | G57: IC6x_12_09_212_1SS.csv | H57: IC6x_12_09_112_1SS.csv | I57: IC6x_12_05_232_1SS.csv | J57: IC6x_12_05_132_1SS.csv | K57: IC6x_12_09_232_1SS.csv | L57: IC6x_12_09_132_1SS.csv | Y57: 2014-01-03 | Z57: 01:00:00 | AA57: 平日 | AB57: 7711.21 | AC57: 0 | AE57: 7693.21 | AF57: 0 | AH57: 5653.19 | AI57: 0 | AK57: 5558.64 | AL57: 0 | AN57: 6979.3 | AO57: 0 | AQ57: 6567.86 | AR57: 0 | AT57: 4971.66 | AU57: 0 | AW57: 4409.76 | AX57: 0 | AZ57: 0 | BA57: 0 | BC57: 0 | BD57: 0 | BF57: 0 | BG57: 0 | BI57: 0 | BJ57: 0 | BL57: 0 | BM57: 0 | BO57: 0 | BP57: 0 | BR57: 0 | BS57: 0 | BU57: 0 | BV57: 0
Y58: 2014-01-03 | Z58: 02:00:00 | AA58: 平日 | AB58: 7824.22 | AC58: 0 | AE58: 7822.24 | AF58: 0 | AH58: 5753.19 | AI58: 0 | AK58: 5682.03 | AL58: 0 | AN58: 7093.62 | AO58: 0 | AQ58: 6719.88 | AR58: 0 | AT58: 5069.92 | AU58: 0 | AW58: 4550.86 | AX58: 0 | AZ58: 0 | BA58: 0 | BC58: 0 | BD58: 0 | BF58: 0 | BG58: 0 | BI58: 0 | BJ58: 0 | BL58: 0 | BM58: 0 | BO58: 0 | BP58: 0 | BR58: 0 | BS58: 0 | BU58: 0 | BV58: 0
Y59: 2014-01-03 | Z59: 03:00:00 | AA59: 平日 | AB59: 7878.68 | AC59: 0 | AE59: 7888.91 | AF59: 0 | AH59: 5807.62 | AI59: 0 | AK59: 5754.98 | AL59: 0 | AN59: 7164.08 | AO59: 0 | AQ59: 6824.63 | AR59: 0 | AT59: 5135.24 | AU59: 0 | AW59: 4655.56 | AX59: 0 | AZ59: 0 | BA59: 0 | BC59: 0 | BD59: 0 | BF59: 0 | BG59: 0 | BI59: 0 | BJ59: 0 | BL59: 0 | BM59: 0 | BO59: 0 | BP59: 0 | BR59: 0 | BS59: 0 | BU59: 0 | BV59: 0
Y60: 2014-01-03 | Z60: 04:00:00 | AA60: 平日 | AB60: 7919.63 | AC60: 0 | AE60: 7939.11 | AF60: 0 | AH60: 5851.83 | AI60: 0 | AK60: 5814.01 | AL60: 0 | AN60: 7229.55 | AO60: 0 | AQ60: 6921.37 | AR60: 0 | AT60: 5197.93 | AU60: 0 | AW60: 4754.52 | AX60: 0 | AZ60: 0 | BA60: 0 | BC60: 0 | BD60: 0 | BF60: 0 | BG60: 0 | BI60: 0 | BJ60: 0 | BL60: 0 | BM60: 0 | BO60: 0 | BP60: 0 | BR60: 0 | BS60: 0 | BU60: 0 | BV60: 0
Y61: 2014-01-03 | Z61: 05:00:00 | AA61: 平日 | AB61: 8968.93 | AC61: 0 | AE61: 8995.15 | AF61: 0 | AH61: 6939.89 | AI61: 0 | AK61: 6914.15 | AL61: 0 | AN61: 8333 | AO61: 0 | AQ61: 8054.73 | AR61: 0 | AT61: 6330.44 | AU61: 0 | AW61: 5922.67 | AX61: 0 | AZ61: 0 | BA61: 0 | BC61: 0 | BD61: 0 | BF61: 0 | BG61: 0 | BI61: 0 | BJ61: 0 | BL61: 0 | BM61: 0 | BO61: 0 | BP61: 0 | BR61: 0 | BS61: 0 | BU61: 0 | BV61: 0
Y62: 2014-01-03 | Z62: 06:00:00 | AA62: 平日 | AB62: 6430.32 | AC62: 0 | AE62: 6461.22 | AF62: 0 | AH62: 4420.4 | AI62: 0 | AK62: 4403.88 | AL62: 0 | AN62: 5902.78 | AO62: 0 | AQ62: 5650.59 | AR62: 0 | AT62: 3908.2 | AU62: 0 | AW62: 3531.45 | AX62: 0 | AZ62: 0 | BA62: 0 | BC62: 0 | BD62: 0 | BF62: 0 | BG62: 0 | BI62: 0 | BJ62: 0 | BL62: 0 | BM62: 0 | BO62: 0 | BP62: 0 | BR62: 0 | BS62: 0 | BU62: 0 | BV62: 0
Y63: 2014-01-03 | Z63: 07:00:00 | AA63: 平日 | AB63: 6328.72 | AC63: 0 | AE63: 6300.65 | AF63: 0 | AH63: 4356.12 | AI63: 0 | AK63: 4271.34 | AL63: 0 | AN63: 5930.66 | AO63: 0 | AQ63: 5700.97 | AR63: 0 | AT63: 3957.6 | AU63: 0 | AW63: 3586.19 | AX63: 0 | AZ63: 0 | BA63: 0 | BC63: 0 | BD63: 0 | BF63: 0 | BG63: 0 | BI63: 0 | BJ63: 0 | BL63: 0 | BM63: 0 | BO63: 0 | BP63: 0 | BR63: 0 | BS63: 0 | BU63: 0 | BV63: 0
Y64: 2014-01-03 | Z64: 08:00:00 | AA64: 平日 | AB64: 5722.24 | AC64: 0 | AE64: 5584.9 | AF64: 0 | AH64: 3845.42 | AI64: 0 | AK64: 3647.94 | AL64: 0 | AN64: 5494.71 | AO64: 0 | AQ64: 5255.27 | AR64: 0 | AT64: 3596.13 | AU64: 0 | AW64: 3204.98 | AX64: 0 | AZ64: 0 | BA64: 0 | BC64: 0 | BD64: 0 | BF64: 0 | BG64: 0 | BI64: 0 | BJ64: 0 | BL64: 0 | BM64: 0 | BO64: 0 | BP64: 0 | BR64: 0 | BS64: 0 | BU64: 0 | BV64: 0
Y65: 2014-01-03 | Z65: 09:00:00 | AA65: 平日 | AB65: 5913.02 | AC65: 0 | AE65: 5653.3 | AF65: 0 | AH65: 4128.66 | AI65: 0 | AK65: 3806.05 | AL65: 0 | AN65: 5805.72 | AO65: 0 | AQ65: 5539.79 | AR65: 0 | AT65: 3980.55 | AU65: 0 | AW65: 3556.45 | AX65: 0 | AZ65: 0 | BA65: 0 | BC65: 0 | BD65: 0 | BF65: 0 | BG65: 0 | BI65: 0 | BJ65: 0 | BL65: 0 | BM65: 0 | BO65: 0 | BP65: 0 | BR65: 0 | BS65: 0 | BU65: 0 | BV65: 0
G66: 負荷補正前の冷房負荷 | Y66: 2014-01-03 | Z66: 10:00:00 | AA66: 平日 | AB66: 5593.31 | AC66: 0 | AE66: 5215.01 | AF66: 0 | AH66: 3920 | AI66: 0 | AK66: 3476.05 | AL66: 0 | AN66: 5606.71 | AO66: 0 | AQ66: 5305.86 | AR66: 0 | AT66: 3871.72 | AU66: 0 | AW66: 3409.57 | AX66: 0 | AZ66: 0 | BA66: 0 | BC66: 0 | BD66: 0 | BF66: 0 | BG66: 0 | BI66: 0 | BJ66: 0 | BL66: 0 | BM66: 0 | BO66: 0 | BP66: 0 | BR66: 0 | BS66: 0 | BU66: 0 | BV66: 0
Y67: 2014-01-03 | Z67: 11:00:00 | AA67: 平日 | AB67: 5657.55 | AC67: 0 | AE67: 5193.37 | AF67: 0 | AH67: 4053.99 | AI67: 0 | AK67: 3524.38 | AL67: 0 | AN67: 5804.52 | AO67: 0 | AQ67: 5466.95 | AR67: 0 | AT67: 4124.73 | AU67: 0 | AW67: 3631.26 | AX67: 0 | AZ67: 0 | BA67: 0 | BC67: 0 | BD67: 0 | BF67: 0 | BG67: 0 | BI67: 0 | BJ67: 0 | BL67: 0 | BM67: 0 | BO67: 0 | BP67: 0 | BR67: 0 | BS67: 0 | BU67: 0 | BV67: 0
Y68: 2014-01-03 | Z68: 12:00:00 | AA68: 平日 | AB68: 4644.3 | AC68: 0 | AE68: 4178.98 | AF68: 0 | AH68: 3021.88 | AI68: 0 | AK68: 2500.98 | AL68: 0 | AN68: 4802.71 | AO68: 0 | AQ68: 4433.78 | AR68: 0 | AT68: 3110.86 | AU68: 0 | AW68: 2609.87 | AX68: 0 | AZ68: 0 | BA68: 0 | BC68: 0 | BD68: 0 | BF68: 0 | BG68: 0 | BI68: 0 | BJ68: 0 | BL68: 0 | BM68: 0 | BO68: 0 | BP68: 0 | BR68: 0 | BS68: 0 | BU68: 0 | BV68: 0
Y69: 2014-01-03 | Z69: 13:00:00 | AA69: 平日 | AB69: 5564.09 | AC69: 0 | AE69: 5175.26 | AF69: 0 | AH69: 3948.86 | AI69: 0 | AK69: 3512.58 | AL69: 0 | AN69: 5613.42 | AO69: 0 | AQ69: 5243.04 | AR69: 0 | AT69: 3942.25 | AU69: 0 | AW69: 3464.12 | AX69: 0 | AZ69: 0 | BA69: 0 | BC69: 0 | BD69: 0 | BF69: 0 | BG69: 0 | BI69: 0 | BJ69: 0 | BL69: 0 | BM69: 0 | BO69: 0 | BP69: 0 | BR69: 0 | BS69: 0 | BU69: 0 | BV69: 0
Y70: 2014-01-03 | Z70: 14:00:00 | AA70: 平日 | AB70: 5715.11 | AC70: 0 | AE70: 5411.64 | AF70: 0 | AH70: 4108.94 | AI70: 0 | AK70: 3757.87 | AL70: 0 | AN70: 5686.76 | AO70: 0 | AQ70: 5339.99 | AR70: 0 | AT70: 4029.07 | AU70: 0 | AW70: 3584.06 | AX70: 0 | AZ70: 0 | BA70: 0 | BC70: 0 | BD70: 0 | BF70: 0 | BG70: 0 | BI70: 0 | BJ70: 0 | BL70: 0 | BM70: 0 | BO70: 0 | BP70: 0 | BR70: 0 | BS70: 0 | BU70: 0 | BV70: 0
Y71: 2014-01-03 | Z71: 15:00:00 | AA71: 平日 | AB71: 5090.21 | AC71: 0 | AE71: 4864.78 | AF71: 0 | AH71: 3499.65 | AI71: 0 | AK71: 3230.67 | AL71: 0 | AN71: 5042.22 | AO71: 0 | AQ71: 4719.42 | AR71: 0 | AT71: 3400.59 | AU71: 0 | AW71: 2990.62 | AX71: 0 | AZ71: 0 | BA71: 0 | BC71: 0 | BD71: 0 | BF71: 0 | BG71: 0 | BI71: 0 | BJ71: 0 | BL71: 0 | BM71: 0 | BO71: 0 | BP71: 0 | BR71: 0 | BS71: 0 | BU71: 0 | BV71: 0
Y72: 2014-01-03 | Z72: 16:00:00 | AA72: 平日 | AB72: 4878.99 | AC72: 0 | AE72: 4733.83 | AF72: 0 | AH72: 3270.74 | AI72: 0 | AK72: 3087.41 | AL72: 0 | AN72: 4812.59 | AO72: 0 | AQ72: 4518.69 | AR72: 0 | AT72: 3158.76 | AU72: 0 | AW72: 2788.89 | AX72: 0 | AZ72: 0 | BA72: 0 | BC72: 0 | BD72: 0 | BF72: 0 | BG72: 0 | BI72: 0 | BJ72: 0 | BL72: 0 | BM72: 0 | BO72: 0 | BP72: 0 | BR72: 0 | BS72: 0 | BU72: 0 | BV72: 0
Y73: 2014-01-03 | Z73: 17:00:00 | AA73: 平日 | AB73: 6970.49 | AC73: 0 | AE73: 6886.3 | AF73: 0 | AH73: 5360.49 | AI73: 0 | AK73: 5239.35 | AL73: 0 | AN73: 6893.99 | AO73: 0 | AQ73: 6634.32 | AR73: 0 | AT73: 5243.56 | AU73: 0 | AW73: 4911.24 | AX73: 0 | AZ73: 0 | BA73: 0 | BC73: 0 | BD73: 0 | BF73: 0 | BG73: 0 | BI73: 0 | BJ73: 0 | BL73: 0 | BM73: 0 | BO73: 0 | BP73: 0 | BR73: 0 | BS73: 0 | BU73: 0 | BV73: 0
Y74: 2014-01-03 | Z74: 18:00:00 | AA74: 平日 | AB74: 6887.58 | AC74: 0 | AE74: 6840.2 | AF74: 0 | AH74: 5282.09 | AI74: 0 | AK74: 5199.55 | AL74: 0 | AN74: 6817.85 | AO74: 0 | AQ74: 6586.88 | AR74: 0 | AT74: 5174.24 | AU74: 0 | AW74: 4872.32 | AX74: 0 | AZ74: 0 | BA74: 0 | BC74: 0 | BD74: 0 | BF74: 0 | BG74: 0 | BI74: 0 | BJ74: 0 | BL74: 0 | BM74: 0 | BO74: 0 | BP74: 0 | BR74: 0 | BS74: 0 | BU74: 0 | BV74: 0
Y75: 2014-01-03 | Z75: 19:00:00 | AA75: 平日 | AB75: 4411.43 | AC75: 0 | AE75: 4386.16 | AF75: 0 | AH75: 2791.3 | AI75: 0 | AK75: 2732.93 | AL75: 0 | AN75: 4367.64 | AO75: 0 | AQ75: 4159.12 | AR75: 0 | AT75: 2710.92 | AU75: 0 | AW75: 2432.73 | AX75: 0 | AZ75: 0 | BA75: 0 | BC75: 0 | BD75: 0 | BF75: 0 | BG75: 0 | BI75: 0 | BJ75: 0 | BL75: 0 | BM75: 0 | BO75: 0 | BP75: 0 | BR75: 0 | BS75: 0 | BU75: 0 | BV75: 0
Y76: 2014-01-03 | Z76: 20:00:00 | AA76: 平日 | AB76: 4789.86 | AC76: 0 | AE76: 4779.68 | AF76: 0 | AH76: 3162.42 | AI76: 0 | AK76: 3121.19 | AL76: 0 | AN76: 4733.73 | AO76: 0 | AQ76: 4545.29 | AR76: 0 | AT76: 3073.73 | AU76: 0 | AW76: 2817.33 | AX76: 0 | AZ76: 0 | BA76: 0 | BC76: 0 | BD76: 0 | BF76: 0 | BG76: 0 | BI76: 0 | BJ76: 0 | BL76: 0 | BM76: 0 | BO76: 0 | BP76: 0 | BR76: 0 | BS76: 0 | BU76: 0 | BV76: 0
Y77: 2014-01-03 | Z77: 21:00:00 | AA77: 平日 | AB77: 5017.1 | AC77: 0 | AE77: 5017.42 | AF77: 0 | AH77: 3404.41 | AI77: 0 | AK77: 3375.59 | AL77: 0 | AN77: 4949.35 | AO77: 0 | AQ77: 4778.64 | AR77: 0 | AT77: 3304.65 | AU77: 0 | AW77: 3067.65 | AX77: 0 | AZ77: 0 | BA77: 0 | BC77: 0 | BD77: 0 | BF77: 0 | BG77: 0 | BI77: 0 | BJ77: 0 | BL77: 0 | BM77: 0 | BO77: 0 | BP77: 0 | BR77: 0 | BS77: 0 | BU77: 0 | BV77: 0
Y78: 2014-01-03 | Z78: 22:00:00 | AA78: 平日 | AB78: 5203.99 | AC78: 0 | AE78: 5212.05 | AF78: 0 | AH78: 3602.66 | AI78: 0 | AK78: 3583.58 | AL78: 0 | AN78: 5121.63 | AO78: 0 | AQ78: 4967.98 | AR78: 0 | AT78: 3487.33 | AU78: 0 | AW78: 3269.49 | AX78: 0 | AZ78: 0 | BA78: 0 | BC78: 0 | BD78: 0 | BF78: 0 | BG78: 0 | BI78: 0 | BJ78: 0 | BL78: 0 | BM78: 0 | BO78: 0 | BP78: 0 | BR78: 0 | BS78: 0 | BU78: 0 | BV78: 0
Y79: 2014-01-03 | Z79: 23:00:00 | AA79: 平日 | AB79: 5977.74 | AC79: 0 | AE79: 5991.29 | AF79: 0 | AH79: 4402.11 | AI79: 0 | AK79: 4390.17 | AL79: 0 | AN79: 5849 | AO79: 0 | AQ79: 5709.66 | AR79: 0 | AT79: 4238.34 | AU79: 0 | AW79: 4036.4 | AX79: 0 | AZ79: 0 | BA79: 0 | BC79: 0 | BD79: 0 | BF79: 0 | BG79: 0 | BI79: 0 | BJ79: 0 | BL79: 0 | BM79: 0 | BO79: 0 | BP79: 0 | BR79: 0 | BS79: 0 | BU79: 0 | BV79: 0
Y80: 2014-01-04 | Z80: 00:00:00 | AA80: 平日 | AB80: 6011 | AC80: 0 | AE80: 6028.56 | AF80: 0 | AH80: 4451.82 | AI80: 0 | AK80: 4445.4 | AL80: 0 | AN80: 5867.98 | AO80: 0 | AQ80: 5742.13 | AR80: 0 | AT80: 4269.21 | AU80: 0 | AW80: 4082.42 | AX80: 0 | AZ80: 0 | BA80: 0 | BC80: 0 | BD80: 0 | BF80: 0 | BG80: 0 | BI80: 0 | BJ80: 0 | BL80: 0 | BM80: 0 | BO80: 0 | BP80: 0 | BR80: 0 | BS80: 0 | BU80: 0 | BV80: 0
Y81: 2014-01-04 | Z81: 01:00:00 | AA81: 平日 | AB81: 6069.54 | AC81: 0 | AE81: 6090.38 | AF81: 0 | AH81: 4508.38 | AI81: 0 | AK81: 4506.45 | AL81: 0 | AN81: 5925.25 | AO81: 0 | AQ81: 5812.03 | AR81: 0 | AT81: 4322.33 | AU81: 0 | AW81: 4149.67 | AX81: 0 | AZ81: 0 | BA81: 0 | BC81: 0 | BD81: 0 | BF81: 0 | BG81: 0 | BI81: 0 | BJ81: 0 | BL81: 0 | BM81: 0 | BO81: 0 | BP81: 0 | BR81: 0 | BS81: 0 | BU81: 0 | BV81: 0
Y82: 2014-01-04 | Z82: 02:00:00 | AA82: 平日 | AB82: 5965.5 | AC82: 0 | AE82: 5988.42 | AF82: 0 | AH82: 4437.1 | AI82: 0 | AK82: 4438.58 | AL82: 0 | AN82: 5835.01 | AO82: 0 | AQ82: 5733 | AR82: 0 | AT82: 4261.17 | AU82: 0 | AW82: 4101.45 | AX82: 0 | AZ82: 0 | BA82: 0 | BC82: 0 | BD82: 0 | BF82: 0 | BG82: 0 | BI82: 0 | BJ82: 0 | BL82: 0 | BM82: 0 | BO82: 0 | BP82: 0 | BR82: 0 | BS82: 0 | BU82: 0 | BV82: 0
Y83: 2014-01-04 | Z83: 03:00:00 | AA83: 平日 | AB83: 5973.05 | AC83: 0 | AE83: 5997.67 | AF83: 0 | AH83: 4447.65 | AI83: 0 | AK83: 4451.9 | AL83: 0 | AN83: 5855.91 | AO83: 0 | AQ83: 5764.35 | AR83: 0 | AT83: 4284.09 | AU83: 0 | AW83: 4136.44 | AX83: 0 | AZ83: 0 | BA83: 0 | BC83: 0 | BD83: 0 | BF83: 0 | BG83: 0 | BI83: 0 | BJ83: 0 | BL83: 0 | BM83: 0 | BO83: 0 | BP83: 0 | BR83: 0 | BS83: 0 | BU83: 0 | BV83: 0
Y84: 2014-01-04 | Z84: 04:00:00 | AA84: 平日 | AB84: 5996.92 | AC84: 0 | AE84: 6023.08 | AF84: 0 | AH84: 4467.15 | AI84: 0 | AK84: 4473.77 | AL84: 0 | AN84: 5890.35 | AO84: 0 | AQ84: 5808.6 | AR84: 0 | AT84: 4315.24 | AU84: 0 | AW84: 4178.91 | AX84: 0 | AZ84: 0 | BA84: 0 | BC84: 0 | BD84: 0 | BF84: 0 | BG84: 0 | BI84: 0 | BJ84: 0 | BL84: 0 | BM84: 0 | BO84: 0 | BP84: 0 | BR84: 0 | BS84: 0 | BU84: 0 | BV84: 0
Y85: 2014-01-04 | Z85: 05:00:00 | AA85: 平日 | AB85: 6578.29 | AC85: 0 | AE85: 6605.19 | AF85: 0 | AH85: 5087.86 | AI85: 0 | AK85: 5096.24 | AL85: 0 | AN85: 6507.24 | AO85: 0 | AQ85: 6434.63 | AR85: 0 | AT85: 4969.42 | AU85: 0 | AW85: 4844.16 | AX85: 0 | AZ85: 0 | BA85: 0 | BC85: 0 | BD85: 0 | BF85: 0 | BG85: 0 | BI85: 0 | BJ85: 0 | BL85: 0 | BM85: 0 | BO85: 0 | BP85: 0 | BR85: 0 | BS85: 0 | BU85: 0 | BV85: 0
Y86: 2014-01-04 | Z86: 06:00:00 | AA86: 平日 | AB86: 4373.73 | AC86: 0 | AE86: 4400.74 | AF86: 0 | AH86: 2908.25 | AI86: 0 | AK86: 2917.78 | AL86: 0 | AN86: 4390.93 | AO86: 0 | AQ86: 4326.09 | AR86: 0 | AT86: 2873.93 | AU86: 0 | AW86: 2758.23 | AX86: 0 | AZ86: 0 | BA86: 0 | BC86: 0 | BD86: 0 | BF86: 0 | BG86: 0 | BI86: 0 | BJ86: 0 | BL86: 0 | BM86: 0 | BO86: 0 | BP86: 0 | BR86: 0 | BS86: 0 | BU86: 0 | BV86: 0
Y87: 2014-01-04 | Z87: 07:00:00 | AA87: 平日 | AB87: 4365.26 | AC87: 0 | AE87: 4330.4 | AF87: 0 | AH87: 2909.62 | AI87: 0 | AK87: 2844.69 | AL87: 0 | AN87: 4483.78 | AO87: 0 | AQ87: 4426.02 | AR87: 0 | AT87: 2970.45 | AU87: 0 | AW87: 2841.68 | AX87: 0 | AZ87: 0 | BA87: 0 | BC87: 0 | BD87: 0 | BF87: 0 | BG87: 0 | BI87: 0 | BJ87: 0 | BL87: 0 | BM87: 0 | BO87: 0 | BP87: 0 | BR87: 0 | BS87: 0 | BU87: 0 | BV87: 0
Y88: 2014-01-04 | Z88: 08:00:00 | AA88: 平日 | AB88: 3908.03 | AC88: 0 | AE88: 3762.44 | AF88: 0 | AH88: 2502.16 | AI88: 0 | AK88: 2319.86 | AL88: 0 | AN88: 4157.62 | AO88: 0 | AQ88: 4075.99 | AR88: 0 | AT88: 2685.31 | AU88: 0 | AW88: 2519.34 | AX88: 0 | AZ88: 0 | BA88: 0 | BC88: 0 | BD88: 0 | BF88: 0 | BG88: 0 | BI88: 0 | BJ88: 0 | BL88: 0 | BM88: 0 | BO88: 0 | BP88: 0 | BR88: 0 | BS88: 0 | BU88: 0 | BV88: 0
Y89: 2014-01-04 | Z89: 09:00:00 | AA89: 平日 | AB89: 4159.58 | AC89: 0 | AE89: 3896.74 | AF89: 0 | AH89: 2829.61 | AI89: 0 | AK89: 2525.9 | AL89: 0 | AN89: 4487 | AO89: 0 | AQ89: 4366.41 | AR89: 0 | AT89: 3082.67 | AU89: 0 | AW89: 2870.43 | AX89: 0 | AZ89: 0 | BA89: 0 | BC89: 0 | BD89: 0 | BF89: 0 | BG89: 0 | BI89: 0 | BJ89: 0 | BL89: 0 | BM89: 0 | BO89: 0 | BP89: 0 | BR89: 0 | BS89: 0 | BU89: 0 | BV89: 0
Y90: 2014-01-04 | Z90: 10:00:00 | AA90: 平日 | AB90: 4027.14 | AC90: 0 | AE90: 3649.68 | AF90: 0 | AH90: 2753.58 | AI90: 0 | AK90: 2329.02 | AL90: 0 | AN90: 4429.47 | AO90: 0 | AQ90: 4265.44 | AR90: 0 | AT90: 3073.26 | AU90: 0 | AW90: 2810.33 | AX90: 0 | AZ90: 0 | BA90: 0 | BC90: 0 | BD90: 0 | BF90: 0 | BG90: 0 | BI90: 0 | BJ90: 0 | BL90: 0 | BM90: 0 | BO90: 0 | BP90: 0 | BR90: 0 | BS90: 0 | BU90: 0 | BV90: 0
Y91: 2014-01-04 | Z91: 11:00:00 | AA91: 平日 | AB91: 3748.92 | AC91: 0 | AE91: 3275.14 | AF91: 0 | AH91: 2540.3 | AI91: 0 | AK91: 2015.29 | AL91: 0 | AN91: 4258.96 | AO91: 0 | AQ91: 4047.11 | AR91: 0 | AT91: 2960.12 | AU91: 0 | AW91: 2647.89 | AX91: 0 | AZ91: 0 | BA91: 0 | BC91: 0 | BD91: 0 | BF91: 0 | BG91: 0 | BI91: 0 | BJ91: 0 | BL91: 0 | BM91: 0 | BO91: 0 | BP91: 0 | BR91: 0 | BS91: 0 | BU91: 0 | BV91: 0
Y92: 2014-01-04 | Z92: 12:00:00 | AA92: 平日 | AB92: 2692.55 | AC92: 0 | AE92: 2164.97 | AF92: 0 | AH92: 1513.51 | AI92: 0 | AK92: 935.4 | AL92: 0 | AN92: 3250.31 | AO92: 0 | AQ92: 2991.57 | AR92: 0 | AT92: 1983.26 | AU92: 0 | AW92: 1632.17 | AX92: 0 | AZ92: 0 | BA92: 0 | BC92: 0 | BD92: 0 | BF92: 0 | BG92: 0 | BI92: 0 | BJ92: 0 | BL92: 0 | BM92: 0 | BO92: 0 | BP92: 0 | BR92: 0 | BS92: 0 | BU92: 0 | BV92: 0
Y93: 2014-01-04 | Z93: 13:00:00 | AA93: 平日 | AB93: 3414.48 | AC93: 0 | AE93: 2888.59 | AF93: 0 | AH93: 2258.7 | AI93: 0 | AK93: 1685.47 | AL93: 0 | AN93: 3909.6 | AO93: 0 | AQ93: 3617.13 | AR93: 0 | AT93: 2675.91 | AU93: 0 | AW93: 2305.28 | AX93: 0 | AZ93: 0 | BA93: 0 | BC93: 0 | BD93: 0 | BF93: 0 | BG93: 0 | BI93: 0 | BJ93: 0 | BL93: 0 | BM93: 0 | BO93: 0 | BP93: 0 | BR93: 0 | BS93: 0 | BU93: 0 | BV93: 0
Y94: 2014-01-04 | Z94: 14:00:00 | AA94: 平日 | AB94: 3538.34 | AC94: 0 | AE94: 3062.31 | AF94: 0 | AH94: 2396.16 | AI94: 0 | AK94: 1876.1 | AL94: 0 | AN94: 3948.64 | AO94: 0 | AQ94: 3642.39 | AR94: 0 | AT94: 2738.06 | AU94: 0 | AW94: 2368.48 | AX94: 0 | AZ94: 0 | BA94: 0 | BC94: 0 | BD94: 0 | BF94: 0 | BG94: 0 | BI94: 0 | BJ94: 0 | BL94: 0 | BM94: 0 | BO94: 0 | BP94: 0 | BR94: 0 | BS94: 0 | BU94: 0 | BV94: 0
Y95: 2014-01-04 | Z95: 15:00:00 | AA95: 平日 | AB95: 3005.74 | AC95: 0 | AE95: 2617.21 | AF95: 0 | AH95: 1865.31 | AI95: 0 | AK95: 1438 | AL95: 0 | AN95: 3351.29 | AO95: 0 | AQ95: 3048.52 | AR95: 0 | AT95: 2151.85 | AU95: 0 | AW95: 1802.13 | AX95: 0 | AZ95: 0 | BA95: 0 | BC95: 0 | BD95: 0 | BF95: 0 | BG95: 0 | BI95: 0 | BJ95: 0 | BL95: 0 | BM95: 0 | BO95: 0 | BP95: 0 | BR95: 0 | BS95: 0 | BU95: 0 | BV95: 0
Y96: 2014-01-04 | Z96: 16:00:00 | AA96: 平日 | AB96: 2966.87 | AC96: 0 | AE96: 2704.42 | AF96: 0 | AH96: 1787.6 | AI96: 0 | AK96: 1494.9 | AL96: 0 | AN96: 3218.1 | AO96: 0 | AQ96: 2935.71 | AR96: 0 | AT96: 1996.28 | AU96: 0 | AW96: 1686.72 | AX96: 0 | AZ96: 0 | BA96: 0 | BC96: 0 | BD96: 0 | BF96: 0 | BG96: 0 | BI96: 0 | BJ96: 0 | BL96: 0 | BM96: 0 | BO96: 0 | BP96: 0 | BR96: 0 | BS96: 0 | BU96: 0 | BV96: 0
Y97: 2014-01-04 | Z97: 17:00:00 | AA97: 平日 | AB97: 4468.69 | AC97: 0 | AE97: 4308.37 | AF97: 0 | AH97: 3267.44 | AI97: 0 | AK97: 3075.6 | AL97: 0 | AN97: 4655.23 | AO97: 0 | AQ97: 4411.58 | AR97: 0 | AT97: 3422.84 | AU97: 0 | AW97: 3153.65 | AX97: 0 | AZ97: 0 | BA97: 0 | BC97: 0 | BD97: 0 | BF97: 0 | BG97: 0 | BI97: 0 | BJ97: 0 | BL97: 0 | BM97: 0 | BO97: 0 | BP97: 0 | BR97: 0 | BS97: 0 | BU97: 0 | BV97: 0
Y98: 2014-01-04 | Z98: 18:00:00 | AA98: 平日 | AB98: 4678.72 | AC98: 0 | AE98: 4579.21 | AF98: 0 | AH98: 3429.11 | AI98: 0 | AK98: 3298.24 | AL98: 0 | AN98: 4823.52 | AO98: 0 | AQ98: 4610.79 | AR98: 0 | AT98: 3552.73 | AU98: 0 | AW98: 3313.29 | AX98: 0 | AZ98: 0 | BA98: 0 | BC98: 0 | BD98: 0 | BF98: 0 | BG98: 0 | BI98: 0 | BJ98: 0 | BL98: 0 | BM98: 0 | BO98: 0 | BP98: 0 | BR98: 0 | BS98: 0 | BU98: 0 | BV98: 0
Y99: 2014-01-04 | Z99: 19:00:00 | AA99: 平日 | AB99: 2973.04 | AC99: 0 | AE99: 2909.49 | AF99: 0 | AH99: 1661.45 | AI99: 0 | AK99: 1567.77 | AL99: 0 | AN99: 3097.41 | AO99: 0 | AQ99: 2907.66 | AR99: 0 | AT99: 1774.59 | AU99: 0 | AW99: 1557.03 | AX99: 0 | AZ99: 0 | BA99: 0 | BC99: 0 | BD99: 0 | BF99: 0 | BG99: 0 | BI99: 0 | BJ99: 0 | BL99: 0 | BM99: 0 | BO99: 0 | BP99: 0 | BR99: 0 | BS99: 0 | BU99: 0 | BV99: 0
Y100: 2014-01-04 | Z100: 20:00:00 | AA100: 平日 | AB100: 3673.54 | AC100: 0 | AE100: 3634.94 | AF100: 0 | AH100: 2278.84 | AI100: 0 | AK100: 2211.1 | AL100: 0 | AN100: 3734.11 | AO100: 0 | AQ100: 3564.62 | AR100: 0 | AT100: 2343.11 | AU100: 0 | AW100: 2144.72 | AX100: 0 | AZ100: 0 | BA100: 0 | BC100: 0 | BD100: 0 | BF100: 0 | BG100: 0 | BI100: 0 | BJ100: 0 | BL100: 0 | BM100: 0 | BO100: 0 | BP100: 0 | BR100: 0 | BS100: 0 | BU100: 0 | BV100: 0
Y101: 2014-01-04 | Z101: 21:00:00 | AA101: 平日 | AB101: 4279.05 | AC101: 0 | AE101: 4259.02 | AF101: 0 | AH101: 2801.58 | AI101: 0 | AK101: 2752.91 | AL101: 0 | AN101: 4269.65 | AO101: 0 | AQ101: 4118.56 | AR101: 0 | AT101: 2810.32 | AU101: 0 | AW101: 2629.06 | AX101: 0 | AZ101: 0 | BA101: 0 | BC101: 0 | BD101: 0 | BF101: 0 | BG101: 0 | BI101: 0 | BJ101: 0 | BL101: 0 | BM101: 0 | BO101: 0 | BP101: 0 | BR101: 0 | BS101: 0 | BU101: 0 | BV101: 0
Y102: 2014-01-04 | Z102: 22:00:00 | AA102: 平日 | AB102: 4441.6 | AC102: 0 | AE102: 4434.84 | AF102: 0 | AH102: 2978.67 | AI102: 0 | AK102: 2944.43 | AL102: 0 | AN102: 4382.22 | AO102: 0 | AQ102: 4247.63 | AR102: 0 | AT102: 2940.9 | AU102: 0 | AW102: 2775.71 | AX102: 0 | AZ102: 0 | BA102: 0 | BC102: 0 | BD102: 0 | BF102: 0 | BG102: 0 | BI102: 0 | BJ102: 0 | BL102: 0 | BM102: 0 | BO102: 0 | BP102: 0 | BR102: 0 | BS102: 0 | BU102: 0 | BV102: 0
Y103: 2014-01-04 | Z103: 23:00:00 | AA103: 平日 | AB103: 5673.83 | AC103: 0 | AE103: 5678.26 | AF103: 0 | AH103: 4121.83 | AI103: 0 | AK103: 4099.01 | AL103: 0 | AN103: 5515.58 | AO103: 0 | AQ103: 5396.13 | AR103: 0 | AT103: 3995.42 | AU103: 0 | AW103: 3844.26 | AX103: 0 | AZ103: 0 | BA103: 0 | BC103: 0 | BD103: 0 | BF103: 0 | BG103: 0 | BI103: 0 | BJ103: 0 | BL103: 0 | BM103: 0 | BO103: 0 | BP103: 0 | BR103: 0 | BS103: 0 | BU103: 0 | BV103: 0
Y104: 2014-01-05 | Z104: 00:00:00 | AA104: 平日 | AB104: 5631.27 | AC104: 0 | AE104: 5643.31 | AF104: 0 | AH104: 4112.68 | AI104: 0 | AK104: 4098.42 | AL104: 0 | AN104: 5431.7 | AO104: 0 | AQ104: 5325.42 | AR104: 0 | AT104: 3942.34 | AU104: 0 | AW104: 3803.98 | AX104: 0 | AZ104: 0 | BA104: 0 | BC104: 0 | BD104: 0 | BF104: 0 | BG104: 0 | BI104: 0 | BJ104: 0 | BL104: 0 | BM104: 0 | BO104: 0 | BP104: 0 | BR104: 0 | BS104: 0 | BU104: 0 | BV104: 0
Y105: 2014-01-05 | Z105: 01:00:00 | AA105: 平日 | AB105: 5747.16 | AC105: 0 | AE105: 5765.15 | AF105: 0 | AH105: 4215.05 | AI105: 0 | AK105: 4207.64 | AL105: 0 | AN105: 5526.68 | AO105: 0 | AQ105: 5432.52 | AR105: 0 | AT105: 4021.6 | AU105: 0 | AW105: 3895.07 | AX105: 0 | AZ105: 0 | BA105: 0 | BC105: 0 | BD105: 0 | BF105: 0 | BG105: 0 | BI105: 0 | BJ105: 0 | BL105: 0 | BM105: 0 | BO105: 0 | BP105: 0 | BR105: 0 | BS105: 0 | BU105: 0 | BV105: 0
Y106: 2014-01-05 | Z106: 02:00:00 | AA106: 平日 | AB106: 5939.28 | AC106: 0 | AE106: 5962.4 | AF106: 0 | AH106: 4368.15 | AI106: 0 | AK106: 4366.5 | AL106: 0 | AN106: 5701.89 | AO106: 0 | AQ106: 5619.23 | AR106: 0 | AT106: 4159.07 | AU106: 0 | AW106: 4043.62 | AX106: 0 | AZ106: 0 | BA106: 0 | BC106: 0 | BD106: 0 | BF106: 0 | BG106: 0 | BI106: 0 | BJ106: 0 | BL106: 0 | BM106: 0 | BO106: 0 | BP106: 0 | BR106: 0 | BS106: 0 | BU106: 0 | BV106: 0
Y107: 2014-01-05 | Z107: 03:00:00 | AA107: 平日 | AB107: 5869.91 | AC107: 0 | AE107: 5896.46 | AF107: 0 | AH107: 4321.45 | AI107: 0 | AK107: 4324.17 | AL107: 0 | AN107: 5633.87 | AO107: 0 | AQ107: 5561.16 | AR107: 0 | AT107: 4110.56 | AU107: 0 | AW107: 4005.06 | AX107: 0 | AZ107: 0 | BA107: 0 | BC107: 0 | BD107: 0 | BF107: 0 | BG107: 0 | BI107: 0 | BJ107: 0 | BL107: 0 | BM107: 0 | BO107: 0 | BP107: 0 | BR107: 0 | BS107: 0 | BU107: 0 | BV107: 0
Y108: 2014-01-05 | Z108: 04:00:00 | AA108: 平日 | AB108: 5790.44 | AC108: 0 | AE108: 5819.16 | AF108: 0 | AH108: 4267.02 | AI108: 0 | AK108: 4273.03 | AL108: 0 | AN108: 5566.54 | AO108: 0 | AQ108: 5502.61 | AR108: 0 | AT108: 4063 | AU108: 0 | AW108: 3966.52 | AX108: 0 | AZ108: 0 | BA108: 0 | BC108: 0 | BD108: 0 | BF108: 0 | BG108: 0 | BI108: 0 | BJ108: 0 | BL108: 0 | BM108: 0 | BO108: 0 | BP108: 0 | BR108: 0 | BS108: 0 | BU108: 0 | BV108: 0
Y109: 2014-01-05 | Z109: 05:00:00 | AA109: 平日 | AB109: 6735.35 | AC109: 0 | AE109: 6766.58 | AF109: 0 | AH109: 5171.24 | AI109: 0 | AK109: 5180.39 | AL109: 0 | AN109: 6528.33 | AO109: 0 | AQ109: 6473.64 | AR109: 0 | AT109: 4984.37 | AU109: 0 | AW109: 4897.14 | AX109: 0 | AZ109: 0 | BA109: 0 | BC109: 0 | BD109: 0 | BF109: 0 | BG109: 0 | BI109: 0 | BJ109: 0 | BL109: 0 | BM109: 0 | BO109: 0 | BP109: 0 | BR109: 0 | BS109: 0 | BU109: 0 | BV109: 0
Y110: 2014-01-05 | Z110: 06:00:00 | AA110: 平日 | AB110: 4749.61 | AC110: 0 | AE110: 4783.23 | AF110: 0 | AH110: 3147.06 | AI110: 0 | AK110: 3158.9 | AL110: 0 | AN110: 4605.05 | AO110: 0 | AQ110: 4558.81 | AR110: 0 | AT110: 3023.46 | AU110: 0 | AW110: 2944.54 | AX110: 0 | AZ110: 0 | BA110: 0 | BC110: 0 | BD110: 0 | BF110: 0 | BG110: 0 | BI110: 0 | BJ110: 0 | BL110: 0 | BM110: 0 | BO110: 0 | BP110: 0 | BR110: 0 | BS110: 0 | BU110: 0 | BV110: 0
Y111: 2014-01-05 | Z111: 07:00:00 | AA111: 平日 | AB111: 3790.49 | AC111: 0 | AE111: 3539.05 | AF111: 0 | AH111: 2238.64 | AI111: 0 | AK111: 1902.83 | AL111: 0 | AN111: 4019.85 | AO111: 0 | AQ111: 3982.65 | AR111: 0 | AT111: 2445.63 | AU111: 0 | AW111: 2274.12 | AX111: 0 | AZ111: 0 | BA111: 0 | BC111: 0 | BD111: 0 | BF111: 0 | BG111: 0 | BI111: 0 | BJ111: 0 | BL111: 0 | BM111: 0 | BO111: 0 | BP111: 0 | BR111: 0 | BS111: 0 | BU111: 0 | BV111: 0
Y112: 2014-01-05 | Z112: 08:00:00 | AA112: 平日 | AB112: 3078.98 | AC112: 0 | AE112: 2477.63 | AF112: 0 | AH112: 1582.39 | AI112: 0 | AK112: 896.89 | AL112: 0 | AN112: 3581.62 | AO112: 0 | AQ112: 3409.91 | AR112: 0 | AT112: 2047.47 | AU112: 0 | AW112: 1728.09 | AX112: 0 | AZ112: 0 | BA112: 0 | BC112: 0 | BD112: 0 | BF112: 0 | BG112: 0 | BI112: 0 | BJ112: 0 | BL112: 0 | BM112: 0 | BO112: 0 | BP112: 0 | BR112: 0 | BS112: 0 | BU112: 0 | BV112: 0
Y113: 2014-01-05 | Z113: 09:00:00 | AA113: 平日 | AB113: 1756.52 | AC113: 0 | AE113: 571.19 | AF113: 0 | AH113: 438.77 | AI113: 0 | AK113: 0 | AL113: 0 | AN113: 2769.58 | AO113: 0 | AQ113: 2471.48 | AR113: 0 | AT113: 1359.48 | AU113: 0 | AW113: 799.25 | AX113: 0 | AZ113: 0 | BA113: 0 | BC113: 0 | BD113: 0 | BF113: 0 | BG113: 0 | BI113: 0 | BJ113: 0 | BL113: 0 | BM113: 0 | BO113: 0 | BP113: 0 | BR113: 0 | BS113: 0 | BU113: 0 | BV113: 0
Y114: 2014-01-05 | Z114: 10:00:00 | AA114: 平日 | AB114: 0 | AC114: 0 | AE114: 0 | AF114: 0 | AH114: 0 | AI114: 0 | AK114: 0 | AL114: 0 | AN114: 1236.7 | AO114: 0 | AQ114: 657.57 | AR114: 0 | AT114: 0 | AU114: 0 | AW114: 0 | AX114: 0 | AZ114: 0 | BA114: 0 | BC114: 0 | BD114: 0 | BF114: 0 | BG114: 0 | BI114: 0 | BJ114: 0 | BL114: 0 | BM114: 0 | BO114: 0 | BP114: 0 | BR114: 0 | BS114: 0 | BU114: 0 | BV114: 0
Y115: 2014-01-05 | Z115: 11:00:00 | AA115: 平日 | AB115: 816.65 | AC115: 0 | AE115: 0 | AF115: 0 | AH115: 0 | AI115: 0 | AK115: 0 | AL115: 0 | AN115: 2502.1 | AO115: 0 | AQ115: 1534.29 | AR115: 0 | AT115: 1252.44 | AU115: 0 | AW115: 0 | AX115: 0 | AZ115: 0 | BA115: 0 | BC115: 0 | BD115: 0 | BF115: 0 | BG115: 0 | BI115: 0 | BJ115: 0 | BL115: 0 | BM115: 0 | BO115: 0 | BP115: 0 | BR115: 0 | BS115: 0 | BU115: 0 | BV115: 0
Y116: 2014-01-05 | Z116: 12:00:00 | AA116: 平日 | AB116: 0 | AC116: 0 | AE116: 0 | AF116: 0 | AH116: 0 | AI116: 0 | AK116: 0 | AL116: 0 | AN116: 1281.06 | AO116: 0 | AQ116: 306.11 | AR116: 0 | AT116: 50.07 | AU116: 0 | AW116: 0 | AX116: 0 | AZ116: 0 | BA116: 0 | BC116: 0 | BD116: 0 | BF116: 0 | BG116: 0 | BI116: 0 | BJ116: 0 | BL116: 0 | BM116: 0 | BO116: 0 | BP116: 0 | BR116: 0 | BS116: 0 | BU116: 0 | BV116: 0
Y117: 2014-01-05 | Z117: 13:00:00 | AA117: 平日 | AB117: 0 | AC117: 0 | AE117: 0 | AF117: 0 | AH117: 0 | AI117: 0 | AK117: 0 | AL117: 0 | AN117: 1407.57 | AO117: 0 | AQ117: 312.92 | AR117: 0 | AT117: 172.05 | AU117: 0 | AW117: 0 | AX117: 0 | AZ117: 0 | BA117: 0 | BC117: 0 | BD117: 0 | BF117: 0 | BG117: 0 | BI117: 0 | BJ117: 0 | BL117: 0 | BM117: 0 | BO117: 0 | BP117: 0 | BR117: 0 | BS117: 0 | BU117: 0 | BV117: 0
Y118: 2014-01-05 | Z118: 14:00:00 | AA118: 平日 | AB118: 0 | AC118: 0 | AE118: 0 | AF118: 0 | AH118: 0 | AI118: 0 | AK118: 0 | AL118: 0 | AN118: 1077.14 | AO118: 0 | AQ118: 0 | AR118: 0 | AT118: 0 | AU118: 0 | AW118: 0 | AX118: 0 | AZ118: 0 | BA118: 0 | BC118: 0 | BD118: 0 | BF118: 0 | BG118: 0 | BI118: 0 | BJ118: 0 | BL118: 0 | BM118: 0 | BO118: 0 | BP118: 0 | BR118: 0 | BS118: 0 | BU118: 0 | BV118: 0
Y119: 2014-01-05 | Z119: 15:00:00 | AA119: 平日 | AB119: 0 | AC119: 0 | AE119: 0 | AF119: 0 | AH119: 0 | AI119: 0 | AK119: 0 | AL119: 0 | AN119: 1364.93 | AO119: 0 | AQ119: 0 | AR119: 0 | AT119: 0 | AU119: 0 | AW119: 0 | AX119: 0 | AZ119: 0 | BA119: 0 | BC119: 0 | BD119: 0 | BF119: 0 | BG119: 0 | BI119: 0 | BJ119: 0 | BL119: 0 | BM119: 0 | BO119: 0 | BP119: 0 | BR119: 0 | BS119: 0 | BU119: 0 | BV119: 0
Y120: 2014-01-05 | Z120: 16:00:00 | AA120: 平日 | AB120: 2109.75 | AC120: 0 | AE120: 0 | AF120: 0 | AH120: 0 | AI120: 0 | AK120: 0 | AL120: 0 | AN120: 2742.25 | AO120: 0 | AQ120: 1143.92 | AR120: 0 | AT120: 1290.61 | AU120: 0 | AW120: 0 | AX120: 0 | AZ120: 0 | BA120: 0 | BC120: 0 | BD120: 0 | BF120: 0 | BG120: 0 | BI120: 0 | BJ120: 0 | BL120: 0 | BM120: 0 | BO120: 0 | BP120: 0 | BR120: 0 | BS120: 0 | BU120: 0 | BV120: 0
Y121: 2014-01-05 | Z121: 17:00:00 | AA121: 平日 | AB121: 5592.13 | AC121: 0 | AE121: 1352.26 | AF121: 0 | AH121: 2489.25 | AI121: 0 | AK121: 0 | AL121: 0 | AN121: 5559.24 | AO121: 0 | AQ121: 4297.45 | AR121: 0 | AT121: 4001.25 | AU121: 0 | AW121: 1416.72 | AX121: 0 | AZ121: 0 | BA121: 0 | BC121: 0 | BD121: 0 | BF121: 0 | BG121: 0 | BI121: 0 | BJ121: 0 | BL121: 0 | BM121: 0 | BO121: 0 | BP121: 0 | BR121: 0 | BS121: 0 | BU121: 0 | BV121: 0
Y122: 2014-01-05 | Z122: 18:00:00 | AA122: 平日 | AB122: 6402.22 | AC122: 0 | AE122: 4937.64 | AF122: 0 | AH122: 4224.72 | AI122: 0 | AK122: 0 | AL122: 0 | AN122: 6058.65 | AO122: 0 | AQ122: 4971.35 | AR122: 0 | AT122: 4416.54 | AU122: 0 | AW122: 3003.26 | AX122: 0 | AZ122: 0 | BA122: 0 | BC122: 0 | BD122: 0 | BF122: 0 | BG122: 0 | BI122: 0 | BJ122: 0 | BL122: 0 | BM122: 0 | BO122: 0 | BP122: 0 | BR122: 0 | BS122: 0 | BU122: 0 | BV122: 0
Y123: 2014-01-05 | Z123: 19:00:00 | AA123: 平日 | AB123: 4219.37 | AC123: 0 | AE123: 3304.28 | AF123: 0 | AH123: 2135.11 | AI123: 0 | AK123: 252.65 | AL123: 0 | AN123: 3725.04 | AO123: 0 | AQ123: 2754.56 | AR123: 0 | AT123: 2019.27 | AU123: 0 | AW123: 805.23 | AX123: 0 | AZ123: 0 | BA123: 0 | BC123: 0 | BD123: 0 | BF123: 0 | BG123: 0 | BI123: 0 | BJ123: 0 | BL123: 0 | BM123: 0 | BO123: 0 | BP123: 0 | BR123: 0 | BS123: 0 | BU123: 0 | BV123: 0
Y124: 2014-01-05 | Z124: 20:00:00 | AA124: 平日 | AB124: 5092.51 | AC124: 0 | AE124: 4480.86 | AF124: 0 | AH124: 2999.72 | AI124: 0 | AK124: 1825.64 | AL124: 0 | AN124: 4469.31 | AO124: 0 | AQ124: 3593.71 | AR124: 0 | AT124: 2677.85 | AU124: 0 | AW124: 1594.01 | AX124: 0 | AZ124: 0 | BA124: 0 | BC124: 0 | BD124: 0 | BF124: 0 | BG124: 0 | BI124: 0 | BJ124: 0 | BL124: 0 | BM124: 0 | BO124: 0 | BP124: 0 | BR124: 0 | BS124: 0 | BU124: 0 | BV124: 0
Y125: 2014-01-05 | Z125: 21:00:00 | AA125: 平日 | AB125: 5621.29 | AC125: 0 | AE125: 5194.82 | AF125: 0 | AH125: 3543.87 | AI125: 0 | AK125: 2714.75 | AL125: 0 | AN125: 4914.1 | AO125: 0 | AQ125: 4119.54 | AR125: 0 | AT125: 3089.79 | AU125: 0 | AW125: 2105.94 | AX125: 0 | AZ125: 0 | BA125: 0 | BC125: 0 | BD125: 0 | BF125: 0 | BG125: 0 | BI125: 0 | BJ125: 0 | BL125: 0 | BM125: 0 | BO125: 0 | BP125: 0 | BR125: 0 | BS125: 0 | BU125: 0 | BV125: 0
Y126: 2014-01-05 | Z126: 22:00:00 | AA126: 平日 | AB126: 6231.99 | AC126: 0 | AE126: 5932.12 | AF126: 0 | AH126: 4118.64 | AI126: 0 | AK126: 3512.47 | AL126: 0 | AN126: 5455.64 | AO126: 0 | AQ126: 4737.44 | AR126: 0 | AT126: 3563.16 | AU126: 0 | AW126: 2668.65 | AX126: 0 | AZ126: 0 | BA126: 0 | BC126: 0 | BD126: 0 | BF126: 0 | BG126: 0 | BI126: 0 | BJ126: 0 | BL126: 0 | BM126: 0 | BO126: 0 | BP126: 0 | BR126: 0 | BS126: 0 | BU126: 0 | BV126: 0
Y127: 2014-01-05 | Z127: 23:00:00 | AA127: 平日 | AB127: 7286.62 | AC127: 0 | AE127: 7072.67 | AF127: 0 | AH127: 5163.93 | AI127: 0 | AK127: 4703.54 | AL127: 0 | AN127: 6426.12 | AO127: 0 | AQ127: 5772.25 | AR127: 0 | AT127: 4500.97 | AU127: 0 | AW127: 3679.64 | AX127: 0 | AZ127: 0 | BA127: 0 | BC127: 0 | BD127: 0 | BF127: 0 | BG127: 0 | BI127: 0 | BJ127: 0 | BL127: 0 | BM127: 0 | BO127: 0 | BP127: 0 | BR127: 0 | BS127: 0 | BU127: 0 | BV127: 0
Y128: 2014-01-06 | Z128: 00:00:00 | AA128: 平日 | AB128: 7466.59 | AC128: 0 | AE128: 7315.15 | AF128: 0 | AH128: 5352.31 | AI128: 0 | AK128: 4996.32 | AL128: 0 | AN128: 6578.13 | AO128: 0 | AQ128: 5984.35 | AR128: 0 | AT128: 4636.69 | AU128: 0 | AW128: 3883.19 | AX128: 0 | AZ128: 0 | BA128: 0 | BC128: 0 | BD128: 0 | BF128: 0 | BG128: 0 | BI128: 0 | BJ128: 0 | BL128: 0 | BM128: 0 | BO128: 0 | BP128: 0 | BR128: 0 | BS128: 0 | BU128: 0 | BV128: 0
Y129: 2014-01-06 | Z129: 01:00:00 | AA129: 平日 | AB129: 7636.53 | AC129: 0 | AE129: 7531.79 | AF129: 0 | AH129: 5516.55 | AI129: 0 | AK129: 5238.24 | AL129: 0 | AN129: 6748.63 | AO129: 0 | AQ129: 6209.58 | AR129: 0 | AT129: 4780.24 | AU129: 0 | AW129: 4088.34 | AX129: 0 | AZ129: 0 | BA129: 0 | BC129: 0 | BD129: 0 | BF129: 0 | BG129: 0 | BI129: 0 | BJ129: 0 | BL129: 0 | BM129: 0 | BO129: 0 | BP129: 0 | BR129: 0 | BS129: 0 | BU129: 0 | BV129: 0
Y130: 2014-01-06 | Z130: 02:00:00 | AA130: 平日 | AB130: 7548.55 | AC130: 0 | AE130: 7478.44 | AF130: 0 | AH130: 5478.37 | AI130: 0 | AK130: 5259.3 | AL130: 0 | AN130: 6691.73 | AO130: 0 | AQ130: 6201.81 | AR130: 0 | AT130: 4749.58 | AU130: 0 | AW130: 4113.5 | AX130: 0 | AZ130: 0 | BA130: 0 | BC130: 0 | BD130: 0 | BF130: 0 | BG130: 0 | BI130: 0 | BJ130: 0 | BL130: 0 | BM130: 0 | BO130: 0 | BP130: 0 | BR130: 0 | BS130: 0 | BU130: 0 | BV130: 0
Y131: 2014-01-06 | Z131: 03:00:00 | AA131: 平日 | AB131: 7537.29 | AC131: 0 | AE131: 7493.5 | AF131: 0 | AH131: 5494.22 | AI131: 0 | AK131: 5321.44 | AL131: 0 | AN131: 6722.32 | AO131: 0 | AQ131: 6277.11 | AR131: 0 | AT131: 4786.13 | AU131: 0 | AW131: 4201.05 | AX131: 0 | AZ131: 0 | BA131: 0 | BC131: 0 | BD131: 0 | BF131: 0 | BG131: 0 | BI131: 0 | BJ131: 0 | BL131: 0 | BM131: 0 | BO131: 0 | BP131: 0 | BR131: 0 | BS131: 0 | BU131: 0 | BV131: 0
Y132: 2014-01-06 | Z132: 04:00:00 | AA132: 平日 | AB132: 7546.06 | AC132: 0 | AE132: 7522.59 | AF132: 0 | AH132: 5519.06 | AI132: 0 | AK132: 5383.05 | AL132: 0 | AN132: 6775.83 | AO132: 0 | AQ132: 6371.53 | AR132: 0 | AT132: 4837.77 | AU132: 0 | AW132: 4299.45 | AX132: 0 | AZ132: 0 | BA132: 0 | BC132: 0 | BD132: 0 | BF132: 0 | BG132: 0 | BI132: 0 | BJ132: 0 | BL132: 0 | BM132: 0 | BO132: 0 | BP132: 0 | BR132: 0 | BS132: 0 | BU132: 0 | BV132: 0
Y133: 2014-01-06 | Z133: 05:00:00 | AA133: 平日 | AB133: 8759.48 | AC133: 0 | AE133: 8752.91 | AF133: 0 | AH133: 6712.68 | AI133: 0 | AK133: 6607.46 | AL133: 0 | AN133: 8042.68 | AO133: 0 | AQ133: 7678.42 | AR133: 0 | AT133: 6072.3 | AU133: 0 | AW133: 5579.93 | AX133: 0 | AZ133: 0 | BA133: 0 | BC133: 0 | BD133: 0 | BF133: 0 | BG133: 0 | BI133: 0 | BJ133: 0 | BL133: 0 | BM133: 0 | BO133: 0 | BP133: 0 | BR133: 0 | BS133: 0 | BU133: 0 | BV133: 0
Y134: 2014-01-06 | Z134: 06:00:00 | AA134: 平日 | AB134: 6526.27 | AC134: 0 | AE134: 6533.2 | AF134: 0 | AH134: 4440.15 | AI134: 0 | AK134: 4359.22 | AL134: 0 | AN134: 5904.4 | AO134: 0 | AQ134: 5575.98 | AR134: 0 | AT134: 3885.62 | AU134: 0 | AW134: 3433.77 | AX134: 0 | AZ134: 0 | BA134: 0 | BC134: 0 | BD134: 0 | BF134: 0 | BG134: 0 | BI134: 0 | BJ134: 0 | BL134: 0 | BM134: 0 | BO134: 0 | BP134: 0 | BR134: 0 | BS134: 0 | BU134: 0 | BV134: 0
Y135: 2014-01-06 | Z135: 07:00:00 | AA135: 平日 | AB135: 3434.68 | AC135: 0 | AE135: 2728.25 | AF135: 0 | AH135: 1552.3 | AI135: 0 | AK135: 607.85 | AL135: 0 | AN135: 3788.05 | AO135: 0 | AQ135: 3495.2 | AR135: 0 | AT135: 1842.9 | AU135: 0 | AW135: 1173.91 | AX135: 0 | AZ135: 0 | BA135: 0 | BC135: 0 | BD135: 0 | BF135: 0 | BG135: 0 | BI135: 0 | BJ135: 0 | BL135: 0 | BM135: 0 | BO135: 0 | BP135: 0 | BR135: 0 | BS135: 0 | BU135: 0 | BV135: 0
Y136: 2014-01-06 | Z136: 08:00:00 | AA136: 平日 | AB136: 0 | AC136: 0 | AE136: 0 | AF136: 0 | AH136: 0 | AI136: 0 | AK136: 0 | AL136: 0 | AN136: 1373.06 | AO136: 0 | AQ136: 749.09 | AR136: 0 | AT136: 0 | AU136: 0 | AW136: 0 | AX136: 0 | AZ136: 0 | BA136: 0 | BC136: 0 | BD136: 0 | BF136: 0 | BG136: 0 | BI136: 0 | BJ136: 0 | BL136: 0 | BM136: 0 | BO136: 0 | BP136: 0 | BR136: 0 | BS136: 0 | BU136: 0 | BV136: 0
Y137: 2014-01-06 | Z137: 09:00:00 | AA137: 平日 | AB137: 0 | AC137: 0 | AE137: 0 | AF137: 0 | AH137: 0 | AI137: 0 | AK137: 0 | AL137: 0 | AN137: 354.5 | AO137: 0 | AQ137: 0 | AR137: 0 | AT137: 0 | AU137: 0 | AW137: 0 | AX137: 0 | AZ137: 0 | BA137: 0 | BC137: 0 | BD137: 0 | BF137: 0 | BG137: 0 | BI137: 0 | BJ137: 0 | BL137: 0 | BM137: 0 | BO137: 0 | BP137: 0 | BR137: 0 | BS137: 0 | BU137: 0 | BV137: 0
Y138: 2014-01-06 | Z138: 10:00:00 | AA138: 平日 | AB138: 0 | AC138: 0 | AE138: 0 | AF138: 0 | AH138: 0 | AI138: 0 | AK138: 0 | AL138: 0 | AN138: 487.61 | AO138: 0 | AQ138: 0 | AR138: 0 | AT138: 0 | AU138: 0 | AW138: 0 | AX138: 0 | AZ138: 0 | BA138: 0 | BC138: 0 | BD138: 0 | BF138: 0 | BG138: 0 | BI138: 0 | BJ138: 0 | BL138: 0 | BM138: 0 | BO138: 0 | BP138: 0 | BR138: 0 | BS138: 0 | BU138: 0 | BV138: 0
Y139: 2014-01-06 | Z139: 11:00:00 | AA139: 平日 | AB139: 0 | AC139: 0 | AE139: 0 | AF139: 0 | AH139: 0 | AI139: 0 | AK139: 0 | AL139: 0 | AN139: 401.56 | AO139: 0 | AQ139: 0 | AR139: 0 | AT139: 0 | AU139: 0 | AW139: 0 | AX139: 0 | AZ139: 0 | BA139: 0 | BC139: 0 | BD139: 0 | BF139: 0 | BG139: 0 | BI139: 0 | BJ139: 0 | BL139: 0 | BM139: 0 | BO139: 0 | BP139: 0 | BR139: 0 | BS139: 0 | BU139: 0 | BV139: 0
Y140: 2014-01-06 | Z140: 12:00:00 | AA140: 平日 | AB140: 0 | AC140: 0 | AE140: 0 | AF140: 0 | AH140: 0 | AI140: 0 | AK140: 0 | AL140: 0 | AN140: 0 | AO140: 0 | AQ140: 0 | AR140: 0 | AT140: 0 | AU140: 0 | AW140: 0 | AX140: 0 | AZ140: 0 | BA140: 0 | BC140: 0 | BD140: 0 | BF140: 0 | BG140: 0 | BI140: 0 | BJ140: 0 | BL140: 0 | BM140: 0 | BO140: 0 | BP140: 0 | BR140: 0 | BS140: 0 | BU140: 0 | BV140: 0
Y141: 2014-01-06 | Z141: 13:00:00 | AA141: 平日 | AB141: 0 | AC141: 0 | AE141: 0 | AF141: 0 | AH141: 0 | AI141: 0 | AK141: 0 | AL141: 0 | AN141: 0 | AO141: 0 | AQ141: 0 | AR141: 0 | AT141: 0 | AU141: 0 | AW141: 0 | AX141: 0 | AZ141: 0 | BA141: 0 | BC141: 0 | BD141: 0 | BF141: 0 | BG141: 0 | BI141: 0 | BJ141: 0 | BL141: 0 | BM141: 0 | BO141: 0 | BP141: 0 | BR141: 0 | BS141: 0 | BU141: 0 | BV141: 0
Y142: 2014-01-06 | Z142: 14:00:00 | AA142: 平日 | AB142: 0 | AC142: 0 | AE142: 0 | AF142: 0 | AH142: 0 | AI142: 0 | AK142: 0 | AL142: 0 | AN142: 0 | AO142: 0 | AQ142: 0 | AR142: 0 | AT142: 0 | AU142: 0 | AW142: 0 | AX142: 0 | AZ142: 0 | BA142: 0 | BC142: 0 | BD142: 0 | BF142: 0 | BG142: 0 | BI142: 0 | BJ142: 0 | BL142: 0 | BM142: 0 | BO142: 0 | BP142: 0 | BR142: 0 | BS142: 0 | BU142: 0 | BV142: 0
Y143: 2014-01-06 | Z143: 15:00:00 | AA143: 平日 | AB143: 0 | AC143: 0 | AE143: 0 | AF143: 0 | AH143: 0 | AI143: 0 | AK143: 0 | AL143: 0 | AN143: 264.81 | AO143: 0 | AQ143: 0 | AR143: 0 | AT143: 0 | AU143: 0 | AW143: 0 | AX143: 0 | AZ143: 0 | BA143: 0 | BC143: 0 | BD143: 0 | BF143: 0 | BG143: 0 | BI143: 0 | BJ143: 0 | BL143: 0 | BM143: 0 | BO143: 0 | BP143: 0 | BR143: 0 | BS143: 0 | BU143: 0 | BV143: 0
Y144: 2014-01-06 | Z144: 16:00:00 | AA144: 平日 | AB144: 0 | AC144: 0 | AE144: 0 | AF144: 0 | AH144: 0 | AI144: 0 | AK144: 0 | AL144: 0 | AN144: 2211.75 | AO144: 0 | AQ144: 0 | AR144: 0 | AT144: 0 | AU144: 0 | AW144: 0 | AX144: 0 | AZ144: 0 | BA144: 0 | BC144: 0 | BD144: 0 | BF144: 0 | BG144: 0 | BI144: 0 | BJ144: 0 | BL144: 0 | BM144: 0 | BO144: 0 | BP144: 0 | BR144: 0 | BS144: 0 | BU144: 0 | BV144: 0
Y145: 2014-01-06 | Z145: 17:00:00 | AA145: 平日 | AB145: 4170.62 | AC145: 0 | AE145: 0 | AF145: 0 | AH145: 0 | AI145: 0 | AK145: 0 | AL145: 0 | AN145: 5251.82 | AO145: 0 | AQ145: 1072.41 | AR145: 0 | AT145: 2597.77 | AU145: 0 | AW145: 0 | AX145: 0 | AZ145: 0 | BA145: 0 | BC145: 0 | BD145: 0 | BF145: 0 | BG145: 0 | BI145: 0 | BJ145: 0 | BL145: 0 | BM145: 0 | BO145: 0 | BP145: 0 | BR145: 0 | BS145: 0 | BU145: 0 | BV145: 0
Y146: 2014-01-06 | Z146: 18:00:00 | AA146: 平日 | AB146: 6089.41 | AC146: 0 | AE146: 711.98 | AF146: 0 | AH146: 2381.25 | AI146: 0 | AK146: 0 | AL146: 0 | AN146: 5832.5 | AO146: 0 | AQ146: 3454.55 | AR146: 0 | AT146: 3739.06 | AU146: 0 | AW146: 0 | AX146: 0 | AZ146: 0 | BA146: 0 | BC146: 0 | BD146: 0 | BF146: 0 | BG146: 0 | BI146: 0 | BJ146: 0 | BL146: 0 | BM146: 0 | BO146: 0 | BP146: 0 | BR146: 0 | BS146: 0 | BU146: 0 | BV146: 0
Y147: 2014-01-06 | Z147: 19:00:00 | AA147: 平日 | AB147: 4051.17 | AC147: 0 | AE147: 1959.25 | AF147: 0 | AH147: 1372.62 | AI147: 0 | AK147: 0 | AL147: 0 | AN147: 3438.07 | AO147: 0 | AQ147: 1382.49 | AR147: 0 | AT147: 1355.81 | AU147: 0 | AW147: 0 | AX147: 0 | AZ147: 0 | BA147: 0 | BC147: 0 | BD147: 0 | BF147: 0 | BG147: 0 | BI147: 0 | BJ147: 0 | BL147: 0 | BM147: 0 | BO147: 0 | BP147: 0 | BR147: 0 | BS147: 0 | BU147: 0 | BV147: 0
Y148: 2014-01-06 | Z148: 20:00:00 | AA148: 平日 | AB148: 4904.03 | AC148: 0 | AE148: 3550.75 | AF148: 0 | AH148: 2438.87 | AI148: 0 | AK148: 0 | AL148: 0 | AN148: 4076 | AO148: 0 | AQ148: 2239.64 | AR148: 0 | AT148: 1987.94 | AU148: 0 | AW148: 0 | AX148: 0 | AZ148: 0 | BA148: 0 | BC148: 0 | BD148: 0 | BF148: 0 | BG148: 0 | BI148: 0 | BJ148: 0 | BL148: 0 | BM148: 0 | BO148: 0 | BP148: 0 | BR148: 0 | BS148: 0 | BU148: 0 | BV148: 0
Y149: 2014-01-06 | Z149: 21:00:00 | AA149: 平日 | AB149: 5553.72 | AC149: 0 | AE149: 4617.09 | AF149: 0 | AH149: 3197.61 | AI149: 0 | AK149: 0 | AL149: 0 | AN149: 4600.88 | AO149: 0 | AQ149: 2938.15 | AR149: 0 | AT149: 2501.52 | AU149: 0 | AW149: 0 | AX149: 0 | AZ149: 0 | BA149: 0 | BC149: 0 | BD149: 0 | BF149: 0 | BG149: 0 | BI149: 0 | BJ149: 0 | BL149: 0 | BM149: 0 | BO149: 0 | BP149: 0 | BR149: 0 | BS149: 0 | BU149: 0 | BV149: 0
Y150: 2014-01-06 | Z150: 22:00:00 | AA150: 平日 | AB150: 5959.17 | AC150: 0 | AE150: 5291.49 | AF150: 0 | AH150: 3696.18 | AI150: 0 | AK150: 1165.04 | AL150: 0 | AN150: 4938.81 | AO150: 0 | AQ150: 3432.57 | AR150: 0 | AT150: 2853.45 | AU150: 0 | AW150: 762.76 | AX150: 0 | AZ150: 0 | BA150: 0 | BC150: 0 | BD150: 0 | BF150: 0 | BG150: 0 | BI150: 0 | BJ150: 0 | BL150: 0 | BM150: 0 | BO150: 0 | BP150: 0 | BR150: 0 | BS150: 0 | BU150: 0 | BV150: 0
Y151: 2014-01-06 | Z151: 23:00:00 | AA151: 平日 | AB151: 7074.41 | AC151: 0 | AE151: 6582.64 | AF151: 0 | AH151: 4841.31 | AI151: 0 | AK151: 3477.49 | AL151: 0 | AN151: 5976.01 | AO151: 0 | AQ151: 4599.61 | AR151: 0 | AT151: 3871.98 | AU151: 0 | AW151: 2075.48 | AX151: 0 | AZ151: 0 | BA151: 0 | BC151: 0 | BD151: 0 | BF151: 0 | BG151: 0 | BI151: 0 | BJ151: 0 | BL151: 0 | BM151: 0 | BO151: 0 | BP151: 0 | BR151: 0 | BS151: 0 | BU151: 0 | BV151: 0
Y152: 2014-01-07 | Z152: 00:00:00 | AA152: 休日 | AB152: 7278.63 | AC152: 0 | AE152: 6911.9 | AF152: 0 | AH152: 5084.18 | AI152: 0 | AK152: 4105.21 | AL152: 0 | AN152: 6162.89 | AO152: 0 | AQ152: 4907.06 | AR152: 0 | AT152: 4058.94 | AU152: 0 | AW152: 2424.48 | AX152: 0 | AZ152: 0 | BA152: 0 | BC152: 0 | BD152: 0 | BF152: 0 | BG152: 0 | BI152: 0 | BJ152: 0 | BL152: 0 | BM152: 0 | BO152: 0 | BP152: 0 | BR152: 0 | BS152: 0 | BU152: 0 | BV152: 0
Y153: 2014-01-07 | Z153: 01:00:00 | AA153: 休日 | AB153: 7444.51 | AC153: 0 | AE153: 7169.63 | AF153: 0 | AH153: 5272.93 | AI153: 0 | AK153: 4535.53 | AL153: 0 | AN153: 6343.31 | AO153: 0 | AQ153: 5196.84 | AR153: 0 | AT153: 4232.94 | AU153: 0 | AW153: 2735.31 | AX153: 0 | AZ153: 0 | BA153: 0 | BC153: 0 | BD153: 0 | BF153: 0 | BG153: 0 | BI153: 0 | BJ153: 0 | BL153: 0 | BM153: 0 | BO153: 0 | BP153: 0 | BR153: 0 | BS153: 0 | BU153: 0 | BV153: 0
Y154: 2014-01-07 | Z154: 02:00:00 | AA154: 休日 | AB154: 7514.08 | AC154: 0 | AE154: 7308.32 | AF154: 0 | AH154: 5373.56 | AI154: 0 | AK154: 4801.57 | AL154: 0 | AN154: 6448.52 | AO154: 0 | AQ154: 5401.41 | AR154: 0 | AT154: 4345.28 | AU154: 0 | AW154: 2968.83 | AX154: 0 | AZ154: 0 | BA154: 0 | BC154: 0 | BD154: 0 | BF154: 0 | BG154: 0 | BI154: 0 | BJ154: 0 | BL154: 0 | BM154: 0 | BO154: 0 | BP154: 0 | BR154: 0 | BS154: 0 | BU154: 0 | BV154: 0
Y155: 2014-01-07 | Z155: 03:00:00 | AA155: 休日 | AB155: 7589.03 | AC155: 0 | AE155: 7436.27 | AF155: 0 | AH155: 5469.93 | AI155: 0 | AK155: 5018.05 | AL155: 0 | AN155: 6568.75 | AO155: 0 | AQ155: 5612.15 | AR155: 0 | AT155: 4467.85 | AU155: 0 | AW155: 3200.77 | AX155: 0 | AZ155: 0 | BA155: 0 | BC155: 0 | BD155: 0 | BF155: 0 | BG155: 0 | BI155: 0 | BJ155: 0 | BL155: 0 | BM155: 0 | BO155: 0 | BP155: 0 | BR155: 0 | BS155: 0 | BU155: 0 | BV155: 0
Y156: 2014-01-07 | Z156: 04:00:00 | AA156: 休日 | AB156: 7819.93 | AC156: 0 | AE156: 7709.06 | AF156: 0 | AH156: 5674.5 | AI156: 0 | AK156: 5313.9 | AL156: 0 | AN156: 6838.01 | AO156: 0 | AQ156: 5964.63 | AR156: 0 | AT156: 4699.76 | AU156: 0 | AW156: 3532.49 | AX156: 0 | AZ156: 0 | BA156: 0 | BC156: 0 | BD156: 0 | BF156: 0 | BG156: 0 | BI156: 0 | BJ156: 0 | BL156: 0 | BM156: 0 | BO156: 0 | BP156: 0 | BR156: 0 | BS156: 0 | BU156: 0 | BV156: 0
Y157: 2014-01-07 | Z157: 05:00:00 | AA157: 休日 | AB157: 7953.47 | AC157: 0 | AE157: 7875.79 | AF157: 0 | AH157: 5799.74 | AI157: 0 | AK157: 5510.37 | AL157: 0 | AN157: 7010.89 | AO157: 0 | AQ157: 6213.64 | AR157: 0 | AT157: 4855.85 | AU157: 0 | AW157: 3779.89 | AX157: 0 | AZ157: 0 | BA157: 0 | BC157: 0 | BD157: 0 | BF157: 0 | BG157: 0 | BI157: 0 | BJ157: 0 | BL157: 0 | BM157: 0 | BO157: 0 | BP157: 0 | BR157: 0 | BS157: 0 | BU157: 0 | BV157: 0
Y158: 2014-01-07 | Z158: 06:00:00 | AA158: 休日 | AB158: 7894.35 | AC158: 0 | AE158: 7842.43 | AF158: 0 | AH158: 5772.11 | AI158: 0 | AK158: 5539.24 | AL158: 0 | AN158: 7005.14 | AO158: 0 | AQ158: 6277.03 | AR158: 0 | AT158: 4870.75 | AU158: 0 | AW158: 3878.27 | AX158: 0 | AZ158: 0 | BA158: 0 | BC158: 0 | BD158: 0 | BF158: 0 | BG158: 0 | BI158: 0 | BJ158: 0 | BL158: 0 | BM158: 0 | BO158: 0 | BP158: 0 | BR158: 0 | BS158: 0 | BU158: 0 | BV158: 0
Y159: 2014-01-07 | Z159: 07:00:00 | AA159: 休日 | AB159: 6876.06 | AC159: 0 | AE159: 6736.05 | AF159: 0 | AH159: 4864.82 | AI159: 0 | AK159: 4547.66 | AL159: 0 | AN159: 6298.71 | AO159: 0 | AQ159: 5641.79 | AR159: 0 | AT159: 4238.98 | AU159: 0 | AW159: 3296.38 | AX159: 0 | AZ159: 0 | BA159: 0 | BC159: 0 | BD159: 0 | BF159: 0 | BG159: 0 | BI159: 0 | BJ159: 0 | BL159: 0 | BM159: 0 | BO159: 0 | BP159: 0 | BR159: 0 | BS159: 0 | BU159: 0 | BV159: 0
Y160: 2014-01-07 | Z160: 08:00:00 | AA160: 休日 | AB160: 4772.61 | AC160: 0 | AE160: 4524.31 | AF160: 0 | AH160: 2912.03 | AI160: 0 | AK160: 2509.87 | AL160: 0 | AN160: 4429.97 | AO160: 0 | AQ160: 3772.38 | AR160: 0 | AT160: 2496.7 | AU160: 0 | AW160: 1564.18 | AX160: 0 | AZ160: 0 | BA160: 0 | BC160: 0 | BD160: 0 | BF160: 0 | BG160: 0 | BI160: 0 | BJ160: 0 | BL160: 0 | BM160: 0 | BO160: 0 | BP160: 0 | BR160: 0 | BS160: 0 | BU160: 0 | BV160: 0
Y161: 2014-01-07 | Z161: 09:00:00 | AA161: 休日 | AB161: 1213.54 | AC161: 0 | AE161: 356.62 | AF161: 0 | AH161: 0 | AI161: 0 | AK161: 0 | AL161: 0 | AN161: 1708.52 | AO161: 0 | AQ161: 1051.27 | AR161: 0 | AT161: 48.31 | AU161: 0 | AW161: 0 | AX161: 0 | AZ161: 0 | BA161: 0 | BC161: 0 | BD161: 0 | BF161: 0 | BG161: 0 | BI161: 0 | BJ161: 0 | BL161: 0 | BM161: 0 | BO161: 0 | BP161: 0 | BR161: 0 | BS161: 0 | BU161: 0 | BV161: 0
Y162: 2014-01-07 | Z162: 10:00:00 | AA162: 休日 | AB162: 1832.47 | AC162: 0 | AE162: 823.49 | AF162: 0 | AH162: 263.31 | AI162: 0 | AK162: 0 | AL162: 0 | AN162: 2310.81 | AO162: 0 | AQ162: 1413.72 | AR162: 0 | AT162: 743.42 | AU162: 0 | AW162: 0 | AX162: 0 | AZ162: 0 | BA162: 0 | BC162: 0 | BD162: 0 | BF162: 0 | BG162: 0 | BI162: 0 | BJ162: 0 | BL162: 0 | BM162: 0 | BO162: 0 | BP162: 0 | BR162: 0 | BS162: 0 | BU162: 0 | BV162: 0
Y163: 2014-01-07 | Z163: 11:00:00 | AA163: 休日 | AB163: 3090.1 | AC163: 0 | AE163: 2222.74 | AF163: 0 | AH163: 1675.63 | AI163: 0 | AK163: 0 | AL163: 0 | AN163: 3482.05 | AO163: 0 | AQ163: 2624.58 | AR163: 0 | AT163: 1956.85 | AU163: 0 | AW163: 318.03 | AX163: 0 | AZ163: 0 | BA163: 0 | BC163: 0 | BD163: 0 | BF163: 0 | BG163: 0 | BI163: 0 | BJ163: 0 | BL163: 0 | BM163: 0 | BO163: 0 | BP163: 0 | BR163: 0 | BS163: 0 | BU163: 0 | BV163: 0
Y164: 2014-01-07 | Z164: 12:00:00 | AA164: 休日 | AB164: 2708.28 | AC164: 0 | AE164: 1923.37 | AF164: 0 | AH164: 1422.54 | AI164: 0 | AK164: 204.86 | AL164: 0 | AN164: 3033.34 | AO164: 0 | AQ164: 2200.95 | AR164: 0 | AT164: 1621.62 | AU164: 0 | AW164: 470.15 | AX164: 0 | AZ164: 0 | BA164: 0 | BC164: 0 | BD164: 0 | BF164: 0 | BG164: 0 | BI164: 0 | BJ164: 0 | BL164: 0 | BM164: 0 | BO164: 0 | BP164: 0 | BR164: 0 | BS164: 0 | BU164: 0 | BV164: 0
Y165: 2014-01-07 | Z165: 13:00:00 | AA165: 休日 | AB165: 3343.92 | AC165: 0 | AE165: 2623.87 | AF165: 0 | AH165: 2086.06 | AI165: 0 | AK165: 1144.71 | AL165: 0 | AN165: 3582.43 | AO165: 0 | AQ165: 2764.78 | AR165: 0 | AT165: 2192.74 | AU165: 0 | AW165: 1106.88 | AX165: 0 | AZ165: 0 | BA165: 0 | BC165: 0 | BD165: 0 | BF165: 0 | BG165: 0 | BI165: 0 | BJ165: 0 | BL165: 0 | BM165: 0 | BO165: 0 | BP165: 0 | BR165: 0 | BS165: 0 | BU165: 0 | BV165: 0
Y166: 2014-01-07 | Z166: 14:00:00 | AA166: 休日 | AB166: 3617.13 | AC166: 0 | AE166: 2980.64 | AF166: 0 | AH166: 2361.31 | AI166: 0 | AK166: 1560.16 | AL166: 0 | AN166: 3766.12 | AO166: 0 | AQ166: 2972.64 | AR166: 0 | AT166: 2380.57 | AU166: 0 | AW166: 1353.57 | AX166: 0 | AZ166: 0 | BA166: 0 | BC166: 0 | BD166: 0 | BF166: 0 | BG166: 0 | BI166: 0 | BJ166: 0 | BL166: 0 | BM166: 0 | BO166: 0 | BP166: 0 | BR166: 0 | BS166: 0 | BU166: 0 | BV166: 0
Y167: 2014-01-07 | Z167: 15:00:00 | AA167: 休日 | AB167: 3021.75 | AC167: 0 | AE167: 2513.16 | AF167: 0 | AH167: 1754.4 | AI167: 0 | AK167: 1119.26 | AL167: 0 | AN167: 3113.13 | AO167: 0 | AQ167: 2362.27 | AR167: 0 | AT167: 1725.17 | AU167: 0 | AW167: 776.01 | AX167: 0 | AZ167: 0 | BA167: 0 | BC167: 0 | BD167: 0 | BF167: 0 | BG167: 0 | BI167: 0 | BJ167: 0 | BL167: 0 | BM167: 0 | BO167: 0 | BP167: 0 | BR167: 0 | BS167: 0 | BU167: 0 | BV167: 0
Y168: 2014-01-07 | Z168: 16:00:00 | AA168: 休日 | AB168: 4475.26 | AC168: 0 | AE168: 4130.83 | AF168: 0 | AH168: 3186.46 | AI168: 0 | AK168: 2744.03 | AL168: 0 | AN168: 4478.8 | AO168: 0 | AQ168: 3791.32 | AR168: 0 | AT168: 3086.96 | AU168: 0 | AW168: 2234.74 | AX168: 0 | AZ168: 0 | BA168: 0 | BC168: 0 | BD168: 0 | BF168: 0 | BG168: 0 | BI168: 0 | BJ168: 0 | BL168: 0 | BM168: 0 | BO168: 0 | BP168: 0 | BR168: 0 | BS168: 0 | BU168: 0 | BV168: 0
Y169: 2014-01-07 | Z169: 17:00:00 | AA169: 休日 | AB169: 4810.87 | AC169: 0 | AE169: 4591.44 | AF169: 0 | AH169: 3496.65 | AI169: 0 | AK169: 3190.31 | AL169: 0 | AN169: 4747.08 | AO169: 0 | AQ169: 4132.77 | AR169: 0 | AT169: 3341.49 | AU169: 0 | AW169: 2572.51 | AX169: 0 | AZ169: 0 | BA169: 0 | BC169: 0 | BD169: 0 | BF169: 0 | BG169: 0 | BI169: 0 | BJ169: 0 | BL169: 0 | BM169: 0 | BO169: 0 | BP169: 0 | BR169: 0 | BS169: 0 | BU169: 0 | BV169: 0
Y170: 2014-01-07 | Z170: 18:00:00 | AA170: 休日 | AB170: 3130.4 | AC170: 0 | AE170: 2985.76 | AF170: 0 | AH170: 1777.69 | AI170: 0 | AK170: 1555.44 | AL170: 0 | AN170: 3041.71 | AO170: 0 | AQ170: 2487.44 | AR170: 0 | AT170: 1605.29 | AU170: 0 | AW170: 902.13 | AX170: 0 | AZ170: 0 | BA170: 0 | BC170: 0 | BD170: 0 | BF170: 0 | BG170: 0 | BI170: 0 | BJ170: 0 | BL170: 0 | BM170: 0 | BO170: 0 | BP170: 0 | BR170: 0 | BS170: 0 | BU170: 0 | BV170: 0
Y171: 2014-01-07 | Z171: 19:00:00 | AA171: 休日 | AB171: 3625.12 | AC171: 0 | AE171: 3526.25 | AF171: 0 | AH171: 2225.83 | AI171: 0 | AK171: 2057.58 | AL171: 0 | AN171: 3495.9 | AO171: 0 | AQ171: 2988.26 | AR171: 0 | AT171: 2023.68 | AU171: 0 | AW171: 1372.32 | AX171: 0 | AZ171: 0 | BA171: 0 | BC171: 0 | BD171: 0 | BF171: 0 | BG171: 0 | BI171: 0 | BJ171: 0 | BL171: 0 | BM171: 0 | BO171: 0 | BP171: 0 | BR171: 0 | BS171: 0 | BU171: 0 | BV171: 0
Y172: 2014-01-07 | Z172: 20:00:00 | AA172: 休日 | AB172: 3839.58 | AC172: 0 | AE172: 3772.81 | AF172: 0 | AH172: 2396.22 | AI172: 0 | AK172: 2267.39 | AL172: 0 | AN172: 3681.89 | AO172: 0 | AQ172: 3219.52 | AR172: 0 | AT172: 2175.65 | AU172: 0 | AW172: 1575.21 | AX172: 0 | AZ172: 0 | BA172: 0 | BC172: 0 | BD172: 0 | BF172: 0 | BG172: 0 | BI172: 0 | BJ172: 0 | BL172: 0 | BM172: 0 | BO172: 0 | BP172: 0 | BR172: 0 | BS172: 0 | BU172: 0 | BV172: 0
Y173: 2014-01-07 | Z173: 21:00:00 | AA173: 休日 | AB173: 4246.65 | AC173: 0 | AE173: 4202.8 | AF173: 0 | AH173: 2776.73 | AI173: 0 | AK173: 2676.89 | AL173: 0 | AN173: 4054.42 | AO173: 0 | AQ173: 3631.45 | AR173: 0 | AT173: 2530.15 | AU173: 0 | AW173: 1974.18 | AX173: 0 | AZ173: 0 | BA173: 0 | BC173: 0 | BD173: 0 | BF173: 0 | BG173: 0 | BI173: 0 | BJ173: 0 | BL173: 0 | BM173: 0 | BO173: 0 | BP173: 0 | BR173: 0 | BS173: 0 | BU173: 0 | BV173: 0
Y174: 2014-01-07 | Z174: 22:00:00 | AA174: 休日 | AB174: 5252.49 | AC174: 0 | AE174: 5225.68 | AF174: 0 | AH174: 3794.5 | AI174: 0 | AK174: 3717.47 | AL174: 0 | AN174: 4988.65 | AO174: 0 | AQ174: 4602.06 | AR174: 0 | AT174: 3481 | AU174: 0 | AW174: 2966.93 | AX174: 0 | AZ174: 0 | BA174: 0 | BC174: 0 | BD174: 0 | BF174: 0 | BG174: 0 | BI174: 0 | BJ174: 0 | BL174: 0 | BM174: 0 | BO174: 0 | BP174: 0 | BR174: 0 | BS174: 0 | BU174: 0 | BV174: 0
Y175: 2014-01-07 | Z175: 23:00:00 | AA175: 休日 | AB175: 5543.71 | AC175: 0 | AE175: 5530.33 | AF175: 0 | AH175: 4044.46 | AI175: 0 | AK175: 3985.24 | AL175: 0 | AN175: 5238.09 | AO175: 0 | AQ175: 4885.29 | AR175: 0 | AT175: 3693 | AU175: 0 | AW175: 3217.32 | AX175: 0 | AZ175: 0 | BA175: 0 | BC175: 0 | BD175: 0 | BF175: 0 | BG175: 0 | BI175: 0 | BJ175: 0 | BL175: 0 | BM175: 0 | BO175: 0 | BP175: 0 | BR175: 0 | BS175: 0 | BU175: 0 | BV175: 0
Y176: 2014-01-08 | Z176: 00:00:00 | AA176: 休日 | AB176: 5899.22 | AC176: 0 | AE176: 5897.31 | AF176: 0 | AH176: 4324.07 | AI176: 0 | AK176: 4279.53 | AL176: 0 | AN176: 5561.11 | AO176: 0 | AQ176: 5239.91 | AR176: 0 | AT176: 3948.64 | AU176: 0 | AW176: 3508.49 | AX176: 0 | AZ176: 0 | BA176: 0 | BC176: 0 | BD176: 0 | BF176: 0 | BG176: 0 | BI176: 0 | BJ176: 0 | BL176: 0 | BM176: 0 | BO176: 0 | BP176: 0 | BR176: 0 | BS176: 0 | BU176: 0 | BV176: 0
Y177: 2014-01-08 | Z177: 01:00:00 | AA177: 休日 | AB177: 6059.96 | AC177: 0 | AE177: 6067.32 | AF177: 0 | AH177: 4449.86 | AI177: 0 | AK177: 4417.25 | AL177: 0 | AN177: 5704.62 | AO177: 0 | AQ177: 5412.4 | AR177: 0 | AT177: 4064.33 | AU177: 0 | AW177: 3657.02 | AX177: 0 | AZ177: 0 | BA177: 0 | BC177: 0 | BD177: 0 | BF177: 0 | BG177: 0 | BI177: 0 | BJ177: 0 | BL177: 0 | BM177: 0 | BO177: 0 | BP177: 0 | BR177: 0 | BS177: 0 | BU177: 0 | BV177: 0
Y178: 2014-01-08 | Z178: 02:00:00 | AA178: 休日 | AB178: 6173.17 | AC178: 0 | AE178: 6187.96 | AF178: 0 | AH178: 4538.92 | AI178: 0 | AK178: 4516.11 | AL178: 0 | AN178: 5811.06 | AO178: 0 | AQ178: 5545.38 | AR178: 0 | AT178: 4152.26 | AU178: 0 | AW178: 3775.28 | AX178: 0 | AZ178: 0 | BA178: 0 | BC178: 0 | BD178: 0 | BF178: 0 | BG178: 0 | BI178: 0 | BJ178: 0 | BL178: 0 | BM178: 0 | BO178: 0 | BP178: 0 | BR178: 0 | BS178: 0 | BU178: 0 | BV178: 0
Y179: 2014-01-08 | Z179: 03:00:00 | AA179: 休日 | AB179: 6525.67 | AC179: 0 | AE179: 6547.58 | AF179: 0 | AH179: 4805.72 | AI179: 0 | AK179: 4791.58 | AL179: 0 | AN179: 6145.82 | AO179: 0 | AQ179: 5905.43 | AR179: 0 | AT179: 4412.36 | AU179: 0 | AW179: 4063.91 | AX179: 0 | AZ179: 0 | BA179: 0 | BC179: 0 | BD179: 0 | BF179: 0 | BG179: 0 | BI179: 0 | BJ179: 0 | BL179: 0 | BM179: 0 | BO179: 0 | BP179: 0 | BR179: 0 | BS179: 0 | BU179: 0 | BV179: 0
Y180: 2014-01-08 | Z180: 04:00:00 | AA180: 休日 | AB180: 6703.27 | AC180: 0 | AE180: 6731.22 | AF180: 0 | AH180: 4939.47 | AI180: 0 | AK180: 4932.64 | AL180: 0 | AN180: 6310.36 | AO180: 0 | AQ180: 6093.19 | AR180: 0 | AT180: 4542 | AU180: 0 | AW180: 4219.99 | AX180: 0 | AZ180: 0 | BA180: 0 | BC180: 0 | BD180: 0 | BF180: 0 | BG180: 0 | BI180: 0 | BJ180: 0 | BL180: 0 | BM180: 0 | BO180: 0 | BP180: 0 | BR180: 0 | BS180: 0 | BU180: 0 | BV180: 0
Y181: 2014-01-08 | Z181: 05:00:00 | AA181: 休日 | AB181: 6968.54 | AC181: 0 | AE181: 7002.11 | AF181: 0 | AH181: 5138.64 | AI181: 0 | AK181: 5138.28 | AL181: 0 | AN181: 6559.41 | AO181: 0 | AQ181: 6364.01 | AR181: 0 | AT181: 4734.79 | AU181: 0 | AW181: 4437.48 | AX181: 0 | AZ181: 0 | BA181: 0 | BC181: 0 | BD181: 0 | BF181: 0 | BG181: 0 | BI181: 0 | BJ181: 0 | BL181: 0 | BM181: 0 | BO181: 0 | BP181: 0 | BR181: 0 | BS181: 0 | BU181: 0 | BV181: 0
Y182: 2014-01-08 | Z182: 06:00:00 | AA182: 休日 | AB182: 7000.91 | AC182: 0 | AE182: 7038.81 | AF182: 0 | AH182: 5159.02 | AI182: 0 | AK182: 5163.92 | AL182: 0 | AN182: 6591.21 | AO182: 0 | AQ182: 6415.45 | AR182: 0 | AT182: 4758.94 | AU182: 0 | AW182: 4484.34 | AX182: 0 | AZ182: 0 | BA182: 0 | BC182: 0 | BD182: 0 | BF182: 0 | BG182: 0 | BI182: 0 | BJ182: 0 | BL182: 0 | BM182: 0 | BO182: 0 | BP182: 0 | BR182: 0 | BS182: 0 | BU182: 0 | BV182: 0
Y183: 2014-01-08 | Z183: 07:00:00 | AA183: 休日 | AB183: 3894.39 | AC183: 0 | AE183: 3353.77 | AF183: 0 | AH183: 2222.82 | AI183: 0 | AK183: 1522.52 | AL183: 0 | AN183: 4344.61 | AO183: 0 | AQ183: 4193.15 | AR183: 0 | AT183: 2579.61 | AU183: 0 | AW183: 2126.77 | AX183: 0 | AZ183: 0 | BA183: 0 | BC183: 0 | BD183: 0 | BF183: 0 | BG183: 0 | BI183: 0 | BJ183: 0 | BL183: 0 | BM183: 0 | BO183: 0 | BP183: 0 | BR183: 0 | BS183: 0 | BU183: 0 | BV183: 0
Y184: 2014-01-08 | Z184: 08:00:00 | AA184: 休日 | AB184: 0 | AC184: 0 | AE184: 0 | AF184: 0 | AH184: 0 | AI184: 0 | AK184: 0 | AL184: 0 | AN184: 507.5 | AO184: 0 | AQ184: 82.24 | AR184: 0 | AT184: 0 | AU184: 0 | AW184: 0 | AX184: 0 | AZ184: 0 | BA184: 0 | BC184: 0 | BD184: 0 | BF184: 0 | BG184: 0 | BI184: 0 | BJ184: 0 | BL184: 0 | BM184: 0 | BO184: 0 | BP184: 0 | BR184: 0 | BS184: 0 | BU184: 0 | BV184: 0
Y185: 2014-01-08 | Z185: 09:00:00 | AA185: 休日 | AB185: 0 | AC185: 0 | AE185: 0 | AF185: 0 | AH185: 0 | AI185: 0 | AK185: 0 | AL185: 0 | AN185: 0 | AO185: 0 | AQ185: 0 | AR185: 0 | AT185: 0 | AU185: 0 | AW185: 0 | AX185: 0 | AZ185: 0 | BA185: 0 | BC185: 0 | BD185: 0 | BF185: 0 | BG185: 0 | BI185: 0 | BJ185: 0 | BL185: 0 | BM185: 0 | BO185: 0 | BP185: 0 | BR185: 0 | BS185: 0 | BU185: 0 | BV185: 0
Y186: 2014-01-08 | Z186: 10:00:00 | AA186: 休日 | AB186: 0 | AC186: 0 | AE186: 0 | AF186: 0 | AH186: 0 | AI186: 0 | AK186: 0 | AL186: 0 | AN186: 0 | AO186: 0 | AQ186: 0 | AR186: 0 | AT186: 0 | AU186: 0 | AW186: 0 | AX186: 0 | AZ186: 0 | BA186: 0 | BC186: 0 | BD186: 0 | BF186: 0 | BG186: 0 | BI186: 0 | BJ186: 0 | BL186: 0 | BM186: 0 | BO186: 0 | BP186: 0 | BR186: 0 | BS186: 0 | BU186: 0 | BV186: 0
Y187: 2014-01-08 | Z187: 11:00:00 | AA187: 休日 | AB187: 0 | AC187: 0 | AE187: 0 | AF187: 0 | AH187: 0 | AI187: 0 | AK187: 0 | AL187: 0 | AN187: 0 | AO187: 0 | AQ187: 0 | AR187: 0 | AT187: 0 | AU187: 0 | AW187: 0 | AX187: 0 | AZ187: 0 | BA187: 0 | BC187: 0 | BD187: 0 | BF187: 0 | BG187: 0 | BI187: 0 | BJ187: 0 | BL187: 0 | BM187: 0 | BO187: 0 | BP187: 0 | BR187: 0 | BS187: 0 | BU187: 0 | BV187: 0
Y188: 2014-01-08 | Z188: 12:00:00 | AA188: 休日 | AB188: 0 | AC188: 0 | AE188: 0 | AF188: 0 | AH188: 0 | AI188: 0 | AK188: 0 | AL188: 0 | AN188: 0 | AO188: 0 | AQ188: 0 | AR188: 0 | AT188: 0 | AU188: 0 | AW188: 0 | AX188: 0 | AZ188: 0 | BA188: 0 | BC188: 0 | BD188: 0 | BF188: 0 | BG188: 0 | BI188: 0 | BJ188: 0 | BL188: 0 | BM188: 0 | BO188: 0 | BP188: 0 | BR188: 0 | BS188: 0 | BU188: 0 | BV188: 0
Y189: 2014-01-08 | Z189: 13:00:00 | AA189: 休日 | AB189: 0 | AC189: 0 | AE189: 0 | AF189: 0 | AH189: 0 | AI189: 0 | AK189: 0 | AL189: 0 | AN189: 0 | AO189: 0 | AQ189: 0 | AR189: 0 | AT189: 0 | AU189: 0 | AW189: 0 | AX189: 0 | AZ189: 0 | BA189: 0 | BC189: 0 | BD189: 0 | BF189: 0 | BG189: 0 | BI189: 0 | BJ189: 0 | BL189: 0 | BM189: 0 | BO189: 0 | BP189: 0 | BR189: 0 | BS189: 0 | BU189: 0 | BV189: 0
Y190: 2014-01-08 | Z190: 14:00:00 | AA190: 休日 | AB190: 0 | AC190: 0 | AE190: 0 | AF190: 0 | AH190: 0 | AI190: 0 | AK190: 0 | AL190: 0 | AN190: 0 | AO190: 0 | AQ190: 0 | AR190: 0 | AT190: 0 | AU190: 0 | AW190: 0 | AX190: 0 | AZ190: 0 | BA190: 0 | BC190: 0 | BD190: 0 | BF190: 0 | BG190: 0 | BI190: 0 | BJ190: 0 | BL190: 0 | BM190: 0 | BO190: 0 | BP190: 0 | BR190: 0 | BS190: 0 | BU190: 0 | BV190: 0
Y191: 2014-01-08 | Z191: 15:00:00 | AA191: 休日 | AB191: 0 | AC191: 0 | AE191: 0 | AF191: 0 | AH191: 0 | AI191: 0 | AK191: 0 | AL191: 0 | AN191: 0 | AO191: 0 | AQ191: 0 | AR191: 0 | AT191: 0 | AU191: 0 | AW191: 0 | AX191: 0 | AZ191: 0 | BA191: 0 | BC191: 0 | BD191: 0 | BF191: 0 | BG191: 0 | BI191: 0 | BJ191: 0 | BL191: 0 | BM191: 0 | BO191: 0 | BP191: 0 | BR191: 0 | BS191: 0 | BU191: 0 | BV191: 0
Y192: 2014-01-08 | Z192: 16:00:00 | AA192: 休日 | AB192: 0 | AC192: 0 | AE192: 0 | AF192: 0 | AH192: 0 | AI192: 0 | AK192: 0 | AL192: 0 | AN192: 0 | AO192: 0 | AQ192: 0 | AR192: 0 | AT192: 0 | AU192: 0 | AW192: 0 | AX192: 0 | AZ192: 0 | BA192: 0 | BC192: 0 | BD192: 0 | BF192: 0 | BG192: 0 | BI192: 0 | BJ192: 0 | BL192: 0 | BM192: 0 | BO192: 0 | BP192: 0 | BR192: 0 | BS192: 0 | BU192: 0 | BV192: 0
Y193: 2014-01-08 | Z193: 17:00:00 | AA193: 休日 | AB193: 0 | AC193: 0 | AE193: 0 | AF193: 0 | AH193: 0 | AI193: 0 | AK193: 0 | AL193: 0 | AN193: 1121 | AO193: 0 | AQ193: 0 | AR193: 0 | AT193: 0 | AU193: 0 | AW193: 0 | AX193: 0 | AZ193: 0 | BA193: 0 | BC193: 0 | BD193: 0 | BF193: 0 | BG193: 0 | BI193: 0 | BJ193: 0 | BL193: 0 | BM193: 0 | BO193: 0 | BP193: 0 | BR193: 0 | BS193: 0 | BU193: 0 | BV193: 0
Y194: 2014-01-08 | Z194: 18:00:00 | AA194: 休日 | AB194: 0 | AC194: 0 | AE194: 0 | AF194: 0 | AH194: 0 | AI194: 0 | AK194: 0 | AL194: 0 | AN194: 714.34 | AO194: 0 | AQ194: 0 | AR194: 0 | AT194: 0 | AU194: 0 | AW194: 0 | AX194: 0 | AZ194: 0 | BA194: 0 | BC194: 0 | BD194: 0 | BF194: 0 | BG194: 0 | BI194: 0 | BJ194: 0 | BL194: 0 | BM194: 0 | BO194: 0 | BP194: 0 | BR194: 0 | BS194: 0 | BU194: 0 | BV194: 0
Y195: 2014-01-08 | Z195: 19:00:00 | AA195: 休日 | AB195: 641.32 | AC195: 0 | AE195: 0 | AF195: 0 | AH195: 0 | AI195: 0 | AK195: 0 | AL195: 0 | AN195: 1501.02 | AO195: 0 | AQ195: 0 | AR195: 0 | AT195: 0 | AU195: 0 | AW195: 0 | AX195: 0 | AZ195: 0 | BA195: 0 | BC195: 0 | BD195: 0 | BF195: 0 | BG195: 0 | BI195: 0 | BJ195: 0 | BL195: 0 | BM195: 0 | BO195: 0 | BP195: 0 | BR195: 0 | BS195: 0 | BU195: 0 | BV195: 0
Y196: 2014-01-08 | Z196: 20:00:00 | AA196: 休日 | AB196: 2261.01 | AC196: 0 | AE196: 0 | AF196: 0 | AH196: 0 | AI196: 0 | AK196: 0 | AL196: 0 | AN196: 1926.47 | AO196: 0 | AQ196: 0 | AR196: 0 | AT196: 0 | AU196: 0 | AW196: 0 | AX196: 0 | AZ196: 0 | BA196: 0 | BC196: 0 | BD196: 0 | BF196: 0 | BG196: 0 | BI196: 0 | BJ196: 0 | BL196: 0 | BM196: 0 | BO196: 0 | BP196: 0 | BR196: 0 | BS196: 0 | BU196: 0 | BV196: 0
Y197: 2014-01-08 | Z197: 21:00:00 | AA197: 休日 | AB197: 3263.2 | AC197: 0 | AE197: 0 | AF197: 0 | AH197: 0 | AI197: 0 | AK197: 0 | AL197: 0 | AN197: 2598.78 | AO197: 0 | AQ197: 0 | AR197: 0 | AT197: 452.9 | AU197: 0 | AW197: 0 | AX197: 0 | AZ197: 0 | BA197: 0 | BC197: 0 | BD197: 0 | BF197: 0 | BG197: 0 | BI197: 0 | BJ197: 0 | BL197: 0 | BM197: 0 | BO197: 0 | BP197: 0 | BR197: 0 | BS197: 0 | BU197: 0 | BV197: 0
Y198: 2014-01-08 | Z198: 22:00:00 | AA198: 休日 | AB198: 4819.67 | AC198: 0 | AE198: 3385.67 | AF198: 0 | AH198: 1672.27 | AI198: 0 | AK198: 0 | AL198: 0 | AN198: 3912.98 | AO198: 0 | AQ198: 2025.49 | AR198: 0 | AT198: 2020.34 | AU198: 0 | AW198: 0 | AX198: 0 | AZ198: 0 | BA198: 0 | BC198: 0 | BD198: 0 | BF198: 0 | BG198: 0 | BI198: 0 | BJ198: 0 | BL198: 0 | BM198: 0 | BO198: 0 | BP198: 0 | BR198: 0 | BS198: 0 | BU198: 0 | BV198: 0
Y199: 2014-01-08 | Z199: 23:00:00 | AA199: 休日 | AB199: 5379.54 | AC199: 0 | AE199: 4489.13 | AF199: 0 | AH199: 3029.48 | AI199: 0 | AK199: 0 | AL199: 0 | AN199: 4343.15 | AO199: 0 | AQ199: 2726.31 | AR199: 0 | AT199: 2442 | AU199: 0 | AW199: 0 | AX199: 0 | AZ199: 0 | BA199: 0 | BC199: 0 | BD199: 0 | BF199: 0 | BG199: 0 | BI199: 0 | BJ199: 0 | BL199: 0 | BM199: 0 | BO199: 0 | BP199: 0 | BR199: 0 | BS199: 0 | BU199: 0 | BV199: 0
Y200: 2014-01-09 | Z200: 00:00:00 | AA200: 平日 | AB200: 5742.55 | AC200: 0 | AE200: 5119.77 | AF200: 0 | AH200: 3567.79 | AI200: 0 | AK200: 545 | AL200: 0 | AN200: 4645.09 | AO200: 0 | AQ200: 3189.78 | AR200: 0 | AT200: 2733.97 | AU200: 0 | AW200: 0 | AX200: 0 | AZ200: 0 | BA200: 0 | BC200: 0 | BD200: 0 | BF200: 0 | BG200: 0 | BI200: 0 | BJ200: 0 | BL200: 0 | BM200: 0 | BO200: 0 | BP200: 0 | BR200: 0 | BS200: 0 | BU200: 0 | BV200: 0
... 925 more rows

Sheet 計算過程
D2: 年間合計 | E2: =SUM(E16:E8775) -> 13612.88699 | F2: =SUM(F16:F8775) -> 6679.999113 | G2: 1680.361493 | H2: 12327.80028 | I2: =SUM(I16:I8775) -> 6679.999113 | J2: 1680.361493 | L2: 12327.80028 | O2: 12327.80028 | P2: 11263.21701 | Q2: 12419.72399 | R2: 7056.168022 | S2: 11360.21677 | T2: 5700.48352 | U2: 12785.32493 | V2: 11224.91294 | W2: 7959.16995 | X2: 6334.54578 | Y2: 11960.55536 | Z2: 9398.26566 | AA2: 7048.45535 | AB2: 4623.26937 | AD2: =SUM(AD16:AD8775) -> 6679.999113 | AF2: 1680.361493 | AG2: 6679.999113 | AH2: 6413.974501 | AI2: 1680.361493 | AJ2: 1601.11151 | AK2: 6656.890837 | AL2: 8005.210439 | AM2: 6392.513065 | AN2: 7644.743033 | AO2: 1679.680879 | AP2: 1719.393281 | AQ2: 1600.107545 | AR2: 1658.686783 | AS2: 5863.5399 | AT2: 1667.95058 | AU2: 7459.22967 | AV2: 1691.54407 | AW2: 6125.93288 | AX2: 1700.44627 | AY2: 8011.05041 | AZ2: 1719.45216 | BA2: 5607.41316 | BB2: 1572.50682 | BC2: 7186.50739 | BD2: 1628.02096 | BE2: 5761.18041 | BF2: 1603.43852 | BG2: 7650.59632 | BH2: 1658.85847 | BJ2: =SUM(BJ16:BJ8775) -> 0 | BK2: =SUM(BK16:BK8775) -> 0
B4: 見出し１ | E4: 暖冷房負荷 | H4: 面積補正 | L4: 蓄熱按分 | O4: Q値按分 | Q4: μ値按分 | U4: ローデータ | AD4: 換気按分 | AG4: Q値按分 | AK4: μ値按分 | AS4: ローデータ | BK4: 床下空間を経由して外気を導入する換気方式 | BP4: 見出し | BQ4: 式番号 | BR4: 記号 | BS4: 単位 | BT4: 数値 | BU4: 備考
B5: 見出し２ | E5: 暖房負荷 | F5: 冷房負荷 | G5: 冷房負荷 | H5: 暖房負荷 | I5: 冷房負荷 | J5: 冷房負荷 | L5: 暖房負荷 | N5: 係数 | O5: 暖房負荷 | P5: 暖房負荷 | Q5: 暖房負荷 | R5: 暖房負荷 | S5: 暖房負荷 | T5: 暖房負荷 | U5: 暖房負荷 | V5: 暖房負荷 | W5: 暖房負荷 | X5: 暖房負荷 | Y5: 暖房負荷 | Z5: 暖房負荷 | AA5: 暖房負荷 | AB5: 暖房負荷 | AD5: 冷房負荷 | AF5: 冷房負荷 | AG5: 冷房負荷 | AH5: 冷房負荷 | AI5: 冷房負荷 | AJ5: 冷房負荷 | AK5: 冷房負荷 | AL5: 冷房負荷 | AM5: 冷房負荷 | AN5: 冷房負荷 | AO5: 冷房負荷 | AP5: 冷房負荷 | AQ5: 冷房負荷 | AR5: 冷房負荷 | AS5: 冷房負荷 | AT5: 冷房負荷 | AU5: 冷房負荷 | AV5: 冷房負荷 | AW5: 冷房負荷 | AX5: 冷房負荷 | AY5: 冷房負荷 | AZ5: 冷房負荷 | BA5: 冷房負荷 | BB5: 冷房負荷 | BC5: 冷房負荷 | BD5: 冷房負荷 | BE5: 冷房負荷 | BF5: 冷房負荷 | BG5: 冷房負荷 | BH5: 冷房負荷 | BJ5: 暖房負荷 | BK5: 冷房負荷 | BL5: 床下温度 | BM5: 地盤温度 | BN5: 1/1を起点とする延べ日数 | BP5: 外皮等の表面温度による放射温度を考慮した負荷補正係数 | BQ5: （2） | BR5: f_(R,Evp,i) | BS5: － | BT5: =バックデータ一覧!Q15 -> 1.06802012
B6: 見出し３ | E6: =貼り付けシート!$L$29 -> 居間食堂(LD)・台所(K) | F6: =貼り付けシート!$L$29 -> 居間食堂(LD)・台所(K) | G6: =貼り付けシート!$L$29 -> 居間食堂(LD)・台所(K) | H6: =貼り付けシート!$L$29 -> 居間食堂(LD)・台所(K) | I6: =貼り付けシート!$L$29 -> 居間食堂(LD)・台所(K) | J6: =貼り付けシート!$L$29 -> 居間食堂(LD)・台所(K) | L6: =貼り付けシート!$L$29 -> 居間食堂(LD)・台所(K) | M6: =貼り付けシート!$L$29 -> 居間食堂(LD)・台所(K) | N6: =貼り付けシート!$L$29 -> 居間食堂(LD)・台所(K) | O6: =貼り付けシート!$L$29 -> 居間食堂(LD)・台所(K) | P6: =貼り付けシート!$L$29 -> 居間食堂(LD)・台所(K) | Q6: =貼り付けシート!$L$29 -> 居間食堂(LD)・台所(K) | R6: =貼り付けシート!$L$29 -> 居間食堂(LD)・台所(K) | S6: =貼り付けシート!$L$29 -> 居間食堂(LD)・台所(K) | T6: =貼り付けシート!$L$29 -> 居間食堂(LD)・台所(K) | U6: =貼り付けシート!$L$29 -> 居間食堂(LD)・台所(K) | V6: =貼り付けシート!$L$29 -> 居間食堂(LD)・台所(K) | W6: =貼り付けシート!$L$29 -> 居間食堂(LD)・台所(K) | X6: =貼り付けシート!$L$29 -> 居間食堂(LD)・台所(K) | Y6: =貼り付けシート!$L$29 -> 居間食堂(LD)・台所(K) | Z6: =貼り付けシート!$L$29 -> 居間食堂(LD)・台所(K) | AA6: =貼り付けシート!$L$29 -> 居間食堂(LD)・台所(K) | AB6: =貼り付けシート!$L$29 -> 居間食堂(LD)・台所(K) | AD6: =貼り付けシート!$L$29 -> 居間食堂(LD)・台所(K) | AE6: =貼り付けシート!$L$29 -> 居間食堂(LD)・台所(K) | AF6: =貼り付けシート!$L$29 -> 居間食堂(LD)・台所(K) | AG6: =貼り付けシート!$L$29 -> 居間食堂(LD)・台所(K) | AH6: =貼り付けシート!$L$29 -> 居間食堂(LD)・台所(K) | AI6: =貼り付けシート!$L$29 -> 居間食堂(LD)・台所(K) | AJ6: =貼り付けシート!$L$29 -> 居間食堂(LD)・台所(K) | AK6: =貼り付けシート!$L$29 -> 居間食堂(LD)・台所(K) | AL6: =貼り付けシート!$L$29 -> 居間食堂(LD)・台所(K) | AM6: =貼り付けシート!$L$29 -> 居間食堂(LD)・台所(K) | AN6: =貼り付けシート!$L$29 -> 居間食堂(LD)・台所(K) | AO6: =貼り付けシート!$L$29 -> 居間食堂(LD)・台所(K) | AP6: =貼り付けシート!$L$29 -> 居間食堂(LD)・台所(K) | AQ6: =貼り付けシート!$L$29 -> 居間食堂(LD)・台所(K) | AR6: =貼り付けシート!$L$29 -> 居間食堂(LD)・台所(K) | AS6: =貼り付けシート!$L$29 -> 居間食堂(LD)・台所(K) | AT6: =貼り付けシート!$L$29 -> 居間食堂(LD)・台所(K) | AU6: =貼り付けシート!$L$29 -> 居間食堂(LD)・台所(K) | AV6: =貼り付けシート!$L$29 -> 居間食堂(LD)・台所(K) | AW6: =貼り付けシート!$L$29 -> 居間食堂(LD)・台所(K) | AX6: =貼り付けシート!$L$29 -> 居間食堂(LD)・台所(K) | AY6: =貼り付けシート!$L$29 -> 居間食堂(LD)・台所(K) | AZ6: =貼り付けシート!$L$29 -> 居間食堂(LD)・台所(K) | BA6: =貼り付けシート!$L$29 -> 居間食堂(LD)・台所(K) | BB6: =貼り付けシート!$L$29 -> 居間食堂(LD)・台所(K) | BC6: =貼り付けシート!$L$29 -> 居間食堂(LD)・台所(K) | BD6: =貼り付けシート!$L$29 -> 居間食堂(LD)・台所(K) | BE6: =貼り付けシート!$L$29 -> 居間食堂(LD)・台所(K) | BF6: =貼り付けシート!$L$29 -> 居間食堂(LD)・台所(K) | BG6: =貼り付けシート!$L$29 -> 居間食堂(LD)・台所(K) | BH6: =貼り付けシート!$L$29 -> 居間食堂(LD)・台所(K) | BJ6: =貼り付けシート!$L$29 -> 居間食堂(LD)・台所(K) | BK6: =貼り付けシート!$L$29 -> 居間食堂(LD)・台所(K) | BL6: =貼り付けシート!$L$29 -> 居間食堂(LD)・台所(K) | BM6: =貼り付けシート!$L$29 -> 居間食堂(LD)・台所(K) | BN6: =貼り付けシート!$L$29 -> 居間食堂(LD)・台所(K) | BP6: 暖房設備の方式による放射温度を考慮した負荷補正係数 | BQ6: （3） | BR6: f_(R,Eqp,i) | BS6: － | BT6: =バックデータ一覧!Q29 -> 1
B7: 見出し４ | E7: 顕熱 | F7: 顕熱 | G7: 潜熱 | H7: 顕熱 | I7: 顕熱 | J7: 潜熱 | L7: 顕熱 | M7: 顕熱 | N7: 蓄熱利用の程度 | O7: 顕熱 | P7: 顕熱 | Q7: 顕熱 | R7: 顕熱 | S7: 顕熱 | T7: 顕熱 | U7: 顕熱 | V7: 顕熱 | W7: 顕熱 | X7: 顕熱 | Y7: 顕熱 | Z7: 顕熱 | AA7: 顕熱 | AB7: 顕熱 | AD7: 顕熱 | AE7: 顕熱 | AF7: 潜熱 | AG7: 顕熱 | AH7: 顕熱 | AI7: 潜熱 | AJ7: 潜熱 | AK7: 顕熱 | AL7: 顕熱 | AM7: 顕熱 | AN7: 顕熱 | AO7: 潜熱 | AP7: 潜熱 | AQ7: 潜熱 | AR7: 潜熱 | AS7: 顕熱 | AT7: 潜熱 | AU7: 顕熱 | AV7: 潜熱 | AW7: 顕熱 | AX7: 潜熱 | AY7: 顕熱 | AZ7: 潜熱 | BA7: 顕熱 | BB7: 潜熱 | BC7: 顕熱 | BD7: 潜熱 | BE7: 顕熱 | BF7: 潜熱 | BG7: 顕熱 | BH7: 潜熱 | BJ7: 顕熱 | BK7: 顕熱 | BL7: - | BM7: - | BN7: - | BP7: 上下温度分布を考慮した負荷補正係数 | BQ7: （4） | BR7: f_(TD,i) | BS7: － | BT7: =IF(バックデータ一覧!$P$8=1,1,MIN(バックデータ一覧!$P$37*バックデータ一覧!$Q$55^2+1,バックデータ一覧!$Q$37)) -> 1.033915902
B8: Q値 | E8: =H8 -> 2.686289141 | F8: =I8 -> 2.686289141 | G8: =J8 -> 2.686289141 | H8: =L8 -> 2.686289141 | I8: =AD8 -> 2.686289141 | J8: =AF8 -> 2.686289141 | L8: =$BT$8 -> 2.686289141 | M8: - | N8: - | O8: =$BT$8 -> 2.686289141 | P8: 2.686289141 | Q8: =U8 -> 2.7 | R8: =W8 -> 1.9 | S8: =Y8 -> 2.7 | T8: =AA8 -> 1.9 | U8: =バックデータ一覧!W88 -> 2.7 | V8: =バックデータ一覧!X88 -> 2.7 | W8: =バックデータ一覧!Y88 -> 1.9 | X8: =バックデータ一覧!Z88 -> 1.9 | Y8: =バックデータ一覧!W88 -> 2.7 | Z8: =バックデータ一覧!X88 -> 2.7 | AA8: =バックデータ一覧!Y88 -> 1.9 | AB8: =バックデータ一覧!Z88 -> 1.9 | AD8: =$BT$9 -> 2.686289141 | AE8: - | AF8: =$BT$9 -> 2.686289141 | AG8: =$BT$9 -> 2.686289141 | AH8: =$BT$9 -> 2.686289141 | AI8: =$BT$9 -> 2.686289141 | AJ8: =$BT$9 -> 2.686289141 | AK8: =AS8 -> 2.7 | AL8: =AW8 -> 1.9 | AM8: =BA8 -> 2.7 | AN8: =BE8 -> 1.9 | AO8: =AT8 -> 2.7 | AP8: =AX8 -> 1.9 | AQ8: =BB8 -> 2.7 | AR8: =BF8 -> 1.9 | AS8: =バックデータ一覧!W90 -> 2.7 | AT8: =AS8 -> 2.7 | AU8: =バックデータ一覧!X90 -> 2.7 | AV8: =AU8 -> 2.7 | AW8: =バックデータ一覧!Y90 -> 1.9 | AX8: =AW8 -> 1.9 | AY8: =バックデータ一覧!Z90 -> 1.9 | AZ8: =AY8 -> 1.9 | BA8: =バックデータ一覧!W90 -> 2.7 | BB8: =BA8 -> 2.7 | BC8: =バックデータ一覧!X90 -> 2.7 | BD8: =BC8 -> 2.7 | BE8: =バックデータ一覧!Y90 -> 1.9 | BF8: =BE8 -> 1.9 | BG8: =バックデータ一覧!Z90 -> 1.9 | BH8: =BG8 -> 1.9 | BJ8: - | BK8: - | BL8: - | BM8: - | BN8: - | BP8: 熱交換型換気設備による暖房負荷低減を考慮した補正熱損失係数 | BQ8: (13) | BR8: Q_HEXC | BS8: W/(m2K) | BT8: =バックデータ一覧!P55 -> 2.686289141
B9: μ_H | E9: =H9 -> 0.112011992 | F9: =I9 -> - | G9: =J9 -> - | H9: =$L$9 -> 0.112011992 | I9: =AH9 -> - | J9: =AI9 -> - | L9: =$BT$11 -> 0.112011992 | M9: - | N9: - | O9: =$BT$11 -> 0.112011992 | P9: 0.112011992 | Q9: 0.112011992 | R9: 0.112011992 | S9: 0.112011992 | T9: 0.112011992 | U9: =バックデータ一覧!W87 -> 0.101 | V9: =バックデータ一覧!X87 -> 0.148 | W9: =バックデータ一覧!Y87 -> 0.087 | X9: =バックデータ一覧!Z87 -> 0.132 | Y9: =バックデータ一覧!W87 -> 0.101 | Z9: =バックデータ一覧!X87 -> 0.148 | AA9: =バックデータ一覧!Y87 -> 0.087 | AB9: =バックデータ一覧!Z87 -> 0.132 | AD9: - | AE9: - | AF9: - | AG9: - | AH9: - | AI9: - | AJ9: - | AK9: - | AL9: - | AM9: - | AN9: - | AO9: - | AP9: - | AQ9: - | AR9: - | AS9: - | AT9: - | AU9: - | AV9: - | AW9: - | AX9: - | AY9: - | AZ9: - | BA9: - | BB9: - | BC9: - | BD9: - | BE9: - | BF9: - | BG9: - | BH9: - | BJ9: - | BK9: - | BL9: - | BM9: - | BN9: - | BP9: 熱損失係数 | BQ9: (14) | BR9: Q | BS9: W/(m2K) | BT9: =バックデータ一覧!Q55 -> 2.686289141
B10: μ_C | E10: - | F10: =I10 -> 0.07293804131 | G10: =J10 -> 0.07293804131 | H10: =L10 -> - | I10: =AD10 -> 0.07293804131 | J10: =AF10 -> 0.07293804131 | L10: - | M10: - | N10: - | O10: - | P10: - | Q10: - | R10: - | S10: - | T10: - | U10: - | V10: - | W10: - | X10: - | Y10: - | Z10: - | AA10: - | AB10: - | AD10: =$BT$13 -> 0.07293804131 | AE10: - | AF10: =$BT$13 -> 0.07293804131 | AG10: 0.07293804131 | AH10: 0.07293804131 | AI10: 0.07293804131 | AJ10: 0.07293804131 | AK10: 0.07293804131 | AL10: 0.07293804131 | AM10: 0.07293804131 | AN10: 0.07293804131 | AO10: 0.07293804131 | AP10: 0.07293804131 | AQ10: 0.07293804131 | AR10: 0.07293804131 | AS10: =バックデータ一覧!W89 -> 0.062 | AT10: =AS10 -> 0.062 | AU10: =バックデータ一覧!X89 -> 0.084 | AV10: =AU10 -> 0.084 | AW10: =バックデータ一覧!Y89 -> 0.053 | AX10: =AW10 -> 0.053 | AY10: =バックデータ一覧!Z89 -> 0.073 | AZ10: =AY10 -> 0.073 | BA10: =バックデータ一覧!W89 -> 0.062 | BB10: =BA10 -> 0.062 | BC10: =バックデータ一覧!X89 -> 0.084 | BD10: =BC10 -> 0.084 | BE10: =バックデータ一覧!Y89 -> 0.053 | BF10: =BE10 -> 0.053 | BG10: =バックデータ一覧!Z89 -> 0.073 | BH10: =BG10 -> 0.073 | BJ10: - | BK10: - | BL10: - | BM10: - | BN10: - | BP10: 単位温度差あたりの外皮熱損失量 | BQ10: (15) | BR10: q | BS10: W/K | BT10: =バックデータ一覧!R55 -> 272.136
B11: 蓄熱の有無 | E11: - | F11: - | G11: - | H11: - | I11: - | J11: - | L11: - | M11: - | N11: - | O11: なし | P11: あり | Q11: なし | R11: なし | S11: あり | T11: あり | U11: なし | V11: なし | W11: なし | X11: なし | Y11: あり | Z11: あり | AA11: あり | AB11: あり | AD11: - | AE11: - | AF11: - | AG11: - | AH11: - | AI11: - | AJ11: - | AK11: - | AL11: - | AM11: - | AN11: - | AO11: - | AP11: - | AQ11: - | AR11: - | AS11: - | AT11: - | AU11: - | AV11: - | AW11: - | AX11: - | AY11: - | AZ11: - | BA11: - | BB11: - | BC11: - | BD11: - | BE11: - | BF11: - | BG11: - | BH11: - | BJ11: - | BK11: - | BL11: - | BM11: - | BN11: - | BP11: 暖房期の日射取得係数 | BQ11: (16) | BR11: μ_H | BS11: － | BT11: =バックデータ一覧!S55 -> 0.112011992
B12: 相当換気回数 | E12: =H12 -> - | F12: =I12 -> 0 | G12: =J12 -> 0 | H12: - | I12: =AD12 -> 0 | J12: =AF12 -> 0 | L12: - | M12: - | N12: - | O12: - | P12: - | Q12: - | R12: - | S12: - | T12: - | U12: - | V12: - | W12: - | X12: - | Y12: - | Z12: - | AA12: - | AB12: - | AD12: =IF(貼り付けシート!$G$29=1,貼り付けシート!$P$25,貼り付けシート!$S$25) -> 0 | AE12: - | AF12: =AD12 -> 0 | AG12: =$AK$12 -> 0 | AH12: =$AM$12 -> 5 | AI12: =AG12 -> 0 | AJ12: =AH12 -> 5 | AK12: =$AS$12 -> 0 | AL12: =$AS$12 -> 0 | AM12: =$AW$12 -> 5 | AN12: =$AW$12 -> 5 | AO12: =AK12 -> 0 | AP12: =AL12 -> 0 | AQ12: 5 | AR12: 5 | AS12: =IF(貼り付けシート!$G$29=1,貼り付けシート!$Q$25,貼り付けシート!$T$25) -> 0 | AT12: =IF(貼り付けシート!$G$29=1,貼り付けシート!$Q$25,貼り付けシート!$T$25) -> 0 | AU12: =IF(貼り付けシート!$G$29=1,貼り付けシート!$Q$25,貼り付けシート!$T$25) -> 0 | AV12: =IF(貼り付けシート!$G$29=1,貼り付けシート!$Q$25,貼り付けシート!$T$25) -> 0 | AW12: =IF(貼り付けシート!$G$29=1,貼り付けシート!$R$25,貼り付けシート!$U$25) -> 5 | AX12: =IF(貼り付けシート!$G$29=1,貼り付けシート!$R$25,貼り付けシート!$U$25) -> 5 | AY12: =IF(貼り付けシート!$G$29=1,貼り付けシート!$R$25,貼り付けシート!$U$25) -> 5 | AZ12: =IF(貼り付けシート!$G$29=1,貼り付けシート!$R$25,貼り付けシート!$U$25) -> 5 | BA12: =AS12 -> 0 | BB12: =AT12 -> 0 | BC12: 0 | BD12: 0 | BE12: 5 | BF12: 5 | BG12: 5 | BH12: 5 | BJ12: - | BK12: - | BL12: - | BM12: - | BN12: - | BP12: 単位日射強度当たりの暖房期の日射熱取得量 | BQ12: (17) | BR12: m_H | BS12: W/(W/m2)) | BT12: =バックデータ一覧!T55 -> 13.4504
B13: 式番号 | E13: (1) | F13: (5a) | G13: (5b) | H13: (6a) | I13: (6b) | J13: (6c) | L13: (7) | M13: - | N13: - | O13: (8a)(8b) | P13: (8a)(8b) | Q13: (9) | R13: (9) | S13: (9) | T13: (9) | U13: - | V13: - | W13: - | X13: - | Y13: - | Z13: - | AA13: - | AB13: - | AD13: (10a) | AE13: - | AF13: (10b) | AG13: (11a)(11c) | AH13: (11a)(11c) | AI13: (11b)(11d) | AJ13: (11b)(11d) | AK13: (12a) | AL13: (12a) | AM13: (12a) | AN13: (12a) | AO13: (12b) | AP13: (12b) | AQ13: (12b) | AR13: (12b) | AS13: - | AT13: - | AU13: - | AV13: - | AW13: - | AX13: - | AY13: - | AZ13: - | BA13: - | BB13: - | BC13: - | BD13: - | BE13: - | BF13: - | BG13: - | BH13: - | BJ13: 付録D(1) | BK13: 付録D(2) | BL13: 付録D(3) | BM13: 付録D(11) | BN13: - | BP13: 冷房期の日射取得係数 | BQ13: (18) | BR13: μ_C | BS13: － | BT13: =バックデータ一覧!U55 -> 0.07293804131
B14: 記号 | E14: L_(H,d,t,i) | F14: L_(CS,d,t,i) | G14: L_(CL,d,t,i) | H14: L_(H,d,t,i)^' | I14: L_(CS,d,t,i)^' | J14: L_(CL,d,t,i)^' | L14: L_(H,R,d,t,i)^' | M14: - | N14: r_TS | O14: L_(H,R,TS_0,d,t,i)^' | P14: L_(H,R,TS_1,d,t,i)^' | Q14: L_(H,R,TS_l,Q_j,d,t,i)^' | U14: - | V14: - | W14: - | X14: - | Y14: - | Z14: - | AA14: - | AB14: - | AD14: L_(CS,R,d,t,i)^' | AE14: - | AF14: L_(CL,R,d,t,i)^' | AG14: L_(CS,R,NV_l,d,t,i)^' | AI14: L_(CL,R,NV_l,d,t,i)^' | AK14: L_(CS,R,NV_l,Q_j,d,t,i)^' | AO14: L_(CL,R,NV_l,Q_j,d,t,i)^' | AS14: - | AT14: - | AU14: - | AV14: - | AW14: - | AX14: - | AY14: - | AZ14: - | BA14: - | BB14: - | BC14: - | BD14: - | BE14: - | BF14: - | BG14: - | BH14: - | BJ14: ΔL'_(H,uf,R,d,t,i) | BK14: ΔL'_(CS,uf,R,d,t,i) | BL14: θ_(uf,R,d,t) | BM14: θ_(g,d,t) | BN14: n | BP14: 単位日射強度当たりの冷房期の日射熱取得量 | BQ14: (19) | BR14: m_C | BS14: W/(W/m2)) | BT14: =バックデータ一覧!V55 -> 8.7584
B15: 単位 | E15: MJ/h | F15: MJ/h | G15: MJ/h | H15: MJ/h | I15: MJ/h | J15: MJ/h | L15: MJ/h | M15: MJ/h | N15: - | O15: MJ/h | P15: MJ/h | Q15: MJ/h | R15: MJ/h | S15: MJ/h | T15: MJ/h | U15: MJ/h | V15: MJ/h | W15: MJ/h | X15: MJ/h | Y15: MJ/h | Z15: MJ/h | AA15: MJ/h | AB15: MJ/h | AD15: MJ/h | AE15: MJ/h | AF15: MJ/h | AG15: MJ/h | AH15: MJ/h | AI15: MJ/h | AJ15: MJ/h | AK15: MJ/h | AL15: MJ/h | AM15: MJ/h | AN15: MJ/h | AO15: MJ/h | AP15: MJ/h | AQ15: MJ/h | AR15: MJ/h | AS15: MJ/h | AT15: MJ/h | AU15: MJ/h | AV15: MJ/h | AW15: MJ/h | AX15: MJ/h | AY15: MJ/h | AZ15: MJ/h | BA15: MJ/h | BB15: MJ/h | BC15: MJ/h | BD15: MJ/h | BE15: MJ/h | BF15: MJ/h | BG15: MJ/h | BH15: MJ/h | BJ15: MJ/h | BK15: MJ/h | BL15: ℃ | BM15: ℃ | BN15: 日 | BP15: 有効換気量率による温度交換効率の補正係数 | BQ15: 付録3.1A | BR15: Ceff | BS15: － | BT15: =バックデータ一覧!O55 -> 1
B16: 2014-01-01 | C16: 0時 | D16: 休日 | E16: =IFERROR($H16*$BT$5*$BT$6*$BT$7,"ERR") -> 7.697957524 | F16: =IFERROR($I16,"ERR") -> 0 | G16: =IFERROR($J16,"ERR") -> 0 | H16: =IFERROR(L16*IF(入力データ!$G$34>=負荷ファイル名作成データ一覧!$C$9,(貼り付けシート!$G$6-貼り付けシート!$G$7-貼り付けシート!$G$8)/バックデータ一覧!$E$7,IF(入力データ!$G$34=負荷ファイル名作成データ一覧!$C$4,貼り付けシート!$G$7/バックデータ一覧!$E$5,貼り付けシート!$G$8/バックデータ一覧!$E$6)),"ERR") -> 6.97125327 | I16: =IFERROR($AD16*IF(入力データ!$G$34>=負荷ファイル名作成データ一覧!$C$9,(貼り付けシート!$G$6-貼り付けシート!$G$7-貼り付けシート!$G$8)/バックデータ一覧!$E$7,IF(入力データ!$G$34=負荷ファイル名作成データ一覧!$C$4,貼り付けシート!$G$7/バックデータ一覧!$E$5,貼り付けシート!$G$8/バックデータ一覧!$E$6)),"ERR") -> 0 | J16: =IFERROR($AF16*IF(入力データ!$G$34>=負荷ファイル名作成データ一覧!$C$9,(貼り付けシート!$G$6-貼り付けシート!$G$7-貼り付けシート!$G$8)/バックデータ一覧!$E$7,IF(入力データ!$G$34=負荷ファイル名作成データ一覧!$C$4,貼り付けシート!$G$7/バックデータ一覧!$E$5,貼り付けシート!$G$8/バックデータ一覧!$E$6)),"ERR") -> 0 | L16: =IFERROR($M16-IF($M16<0,0,$BJ16),"ERR") -> 6.97125327 | M16: =(1-$N16)*$O16+$N16*$P16 -> 6.97125327 | N16: =IF(入力データ!$G$19="利用しない",0,IF($O16<=$P16,0,HLOOKUP(LEFT(貼り付けシート!$G$15,2),係数_蓄熱利用の程度,LEFT(貼り付けシート!$L$5,1)+1,FALSE))) -> 0 | O16: =($O$8-$R$8)/($Q$8-$R$8)*$Q16+($O$8-$Q$8)/($R$8-$Q$8)*$R16 -> 6.97125327 | P16: =($P$8-$T$8)/($S$8-$T$8)*$S16+($P$8-$S$8)/($T$8-$S$8)*$T16 -> 5.744833228 | Q16: =IF($U$9="-",0,($Q$9-$V$9)/($U$9-$V$9)*$U16+($Q$9-$U$9)/($V$9-$U$9)*$V16) -> 7.015931273 | R16: =IF($W$9="-",0,($R$9-$X$9)/($W$9-$X$9)*$W16+($R$9-$W$9)/($X$9-$W$9)*$X16) -> 4.40906316 | S16: =IF($Y$9="-",0,($S$9-$Z$9)/($Y$9-$Z$9)*$Y16+($S$9-$Y$9)/($Z$9-$Y$9)*$Z16) -> 5.792034129 | T16: =IF($AA$9="-",0,($T$9-$AB$9)/($AA$9-$AB$9)*$AA16+($T$9-$AA$9)/($AB$9-$AA$9)*$AB16) -> 3.037960147 | U16: =貼り付けシート!AB8/1000 -> 7.09604 | V16: =貼り付けシート!AE8/1000 -> 6.75413 | W16: =貼り付けシート!AH8/1000 -> 4.95403 | X16: =貼り付けシート!AK8/1000 -> 3.97356 | Y16: =貼り付けシート!AN8/1000 -> 6.07877 | Z16: =貼り付けシート!AQ8/1000 -> 4.85496 | AA16: =貼り付けシート!AT8/1000 -> 3.98318 | AB16: =貼り付けシート!AW8/1000 -> 2.2826 | AD16: =IFERROR($AE16-IF($AE16<0,0,$BK16),"ERR") -> 0 | AE16: =IF(貼り付けシート!$L$23=11,$AG16,IF(($AD$12-$AH$12)/($AG$12-$AH$12)*$AG16+($AD$12-$AG$12)/($AH$12-$AG$12)*$AH16<0,0,($AD$12-$AH$12)/($AG$12-$AH$12)*$AG16+($AD$12-$AG$12)/($AH$12-$AG$12)*$AH16)) -> 0 | AF16: =IF(貼り付けシート!$L$23=11,$AI16,($AF$12-$AJ$12)/($AI$12-$AJ$12)*$AI16+($AF$12-$AI$12)/($AJ$12-$AI$12)*$AJ16) -> 0 | AG16: =($AG$8-$AL$8)/($AK$8-$AL$8)*$AK16+($AG$8-$AK$8)/($AL$8-$AK$8)*$AL16 -> 0 | AH16: =($AH$8-$AN$8)/($AM$8-$AN$8)*$AM16+($AH$8-$AM$8)/($AN$8-$AM$8)*$AN16 -> 0 | AI16: =($AI$8-$AP$8)/($AO$8-$AP$8)*$AO16+($AI$8-$AO$8)/($AP$8-$AO$8)*$AP16 -> 0 | AJ16: =($AJ$8-$AR$8)/($AQ$8-$AR$8)*$AQ16+($AJ$8-$AQ$8)/($AR$8-$AQ$8)*$AR16 -> 0 | AK16: =($AK$10-$AU$10)/($AS$10-$AU$10)*$AS16+($AK$10-$AS$10)/($AU$10-$AS$10)*$AU16 -> 0 | AL16: =($AL$10-$AY$10)/($AW$10-$AY$10)*$AW16+($AL$10-$AW$10)/($AY$10-$AW$10)*$AY16 -> 0 | AM16: =($AM$10-$BC$10)/($BA$10-$BC$10)*$BA16+($AM$10-$BA$10)/($BC$10-$BA$10)*$BC16 -> 0 | AN16: =($AN$10-$BG$10)/($BE$10-$BG$10)*$BE16+($AN$10-$BE$10)/($BG$10-$BE$10)*$BG16 -> 0 | AO16: =($AO$10-$AV$10)/($AT$10-$AV$10)*$AT16+($AO$10-$AT$10)/($AV$10-$AT$10)*$AV16 -> 0 | AP16: =($AP$10-$AZ$10)/($AX$10-$AZ$10)*$AX16+($AP$10-$AX$10)/($AZ$10-$AX$10)*$AZ16 -> 0 | AQ16: =($AQ$10-$BD$10)/($BB$10-$BD$10)*$BB16+($AQ$10-$BB$10)/($BD$10-$BB$10)*$BD16 -> 0 | AR16: =($AR$10-$BH$10)/($BF$10-$BH$10)*$BF16+($AR$10-$BF$10)/($BH$10-$BF$10)*$BH16 -> 0 | AS16: =-貼り付けシート!AZ8/1000 -> 0 | AT16: =-貼り付けシート!BA8/1000 -> 0 | AU16: =-貼り付けシート!BC8/1000 -> 0 | AV16: =-貼り付けシート!BD8/1000 -> 0 | AW16: =-貼り付けシート!BF8/1000 -> 0 | AX16: =-貼り付けシート!BG8/1000 -> 0 | AY16: =-貼り付けシート!BI8/1000 -> 0 | AZ16: =-貼り付けシート!BJ8/1000 -> 0 | BA16: =-貼り付けシート!BL8/1000 -> 0 | BB16: =-貼り付けシート!BM8/1000 -> 0 | BC16: =-貼り付けシート!BO8/1000 -> 0 | BD16: =-貼り付けシート!BP8/1000 -> 0 | BE16: =-貼り付けシート!BR8/1000 -> 0 | BF16: =-貼り付けシート!BS8/1000 -> 0 | BG16: =-貼り付けシート!BU8/1000 -> 0 | BH16: =-貼り付けシート!BV8/1000 -> 0 | BJ16: =IF(AND(貼り付けシート!$L$16<>"利用しない",貼り付けシート!$L$24=2),"ERR",IF(貼り付けシート!$L$16="通年利用する",IF($M16<=0,0,$BT$26*$BT$27*$BT$16*($BL16-計算結果!$D9)*10^-3-$BT$28*$BT$21*($BT$30-$BL16)*3.6*10^-3+$BT$18*$BT$21*($BT$30-計算結果!$D9)*0.7*3.6*10^-3),0)) -> 0 | BK16: =IF(AND(貼り付けシート!$L$16<>"利用しない",貼り付けシート!$L$24=2),"ERR",IF(貼り付けシート!$L$16="通年利用する",IF($AE16<=0,0,$BT$26*$BT$27*$BT$16*(計算結果!$D9-$BL16)*10^-3+$BT$28*$BT$21*($BT$31-$BL16)*3.6*10^-3-$BT$18*$BT$21*($BT$31-計算結果!$D9)*0.7*3.6*10^-3),0)) -> 0 | BL16: =IFERROR(IF(OR($M16>0,$AE16>0),($BT$26*$BT$27*$BT$17*計算結果!$D9+($BT$22*($BT$28*IF($M16>0,$BT$30,IF($AE16>0,$BT$31,"ERR"))+$BT$29*$BM16)+$BT$19*$BT$20*計算結果!$D9)*3.6)/($BT$26*$BT$27*$BT$17+($BT$22*($BT$28+$BT$29)+$BT$19*$BT$20)*3.6),"ERR"),"ERR") -> 14.13292301 | BM16: =$BT$25+($BT$23-$BT$24)/2*EXP(-0.526*($BT$33+$BT$34))*COS(($BN16-(213+$BT$35)-30.556*$BT$33)*0.017214) -> 19.1084787 | BN16: =B16-$B$16+1 -> 1 | BP16: 暖冷房区画iの標準住戸の1時間当たりの換気量 | BQ16: 付録D(4) | BR16: V_(R,i) | BS16: m3/h | BT16: =BT17*VLOOKUP(入力データ!$G$34,バックデータ一覧!$D$112:$E$123,2,FALSE)/(バックデータ一覧!$E$5+バックデータ一覧!$E$6) -> 52.93286211
B17: 2014-01-01 | C17: 1時 | D17: 休日 | E17: 7.761773816 | F17: =IFERROR($I17,"ERR") -> 0 | G17: =IFERROR($J17,"ERR") -> 0 | H17: =IFERROR(L17*IF(入力データ!$G$34>=負荷ファイル名作成データ一覧!$C$9,(貼り付けシート!$G$6-貼り付けシート!$G$7-貼り付けシート!$G$8)/バックデータ一覧!$E$7,IF(入力データ!$G$34=負荷ファイル名作成データ一覧!$C$4,貼り付けシート!$G$7/バックデータ一覧!$E$5,貼り付けシート!$G$8/バックデータ一覧!$E$6)),"ERR") -> 7.029045163 | I17: =IFERROR($AD17*IF(入力データ!$G$34>=負荷ファイル名作成データ一覧!$C$9,(貼り付けシート!$G$6-貼り付けシート!$G$7-貼り付けシート!$G$8)/バックデータ一覧!$E$7,IF(入力データ!$G$34=負荷ファイル名作成データ一覧!$C$4,貼り付けシート!$G$7/バックデータ一覧!$E$5,貼り付けシート!$G$8/バックデータ一覧!$E$6)),"ERR") -> 0 | J17: =IFERROR($AF17*IF(入力データ!$G$34>=負荷ファイル名作成データ一覧!$C$9,(貼り付けシート!$G$6-貼り付けシート!$G$7-貼り付けシート!$G$8)/バックデータ一覧!$E$7,IF(入力データ!$G$34=負荷ファイル名作成データ一覧!$C$4,貼り付けシート!$G$7/バックデータ一覧!$E$5,貼り付けシート!$G$8/バックデータ一覧!$E$6)),"ERR") -> 0 | L17: 7.029045163 | M17: =(1-$N17)*$O17+$N17*$P17 -> 7.029045163 | N17: =IF(入力データ!$G$19="利用しない",0,IF($O17<=$P17,0,HLOOKUP(LEFT(貼り付けシート!$G$15,2),係数_蓄熱利用の程度,LEFT(貼り付けシート!$L$5,1)+1,FALSE))) -> 0 | O17: 7.029045163 | P17: 5.829795239 | Q17: =IF($U$9="-",0,($Q$9-$V$9)/($U$9-$V$9)*$U17+($Q$9-$U$9)/($V$9-$U$9)*$V17) -> 7.070836457 | R17: =IF($W$9="-",0,($R$9-$X$9)/($W$9-$X$9)*$W17+($R$9-$W$9)/($X$9-$W$9)*$X17) -> 4.632401733 | S17: =IF($Y$9="-",0,($S$9-$Z$9)/($Y$9-$Z$9)*$Y17+($S$9-$Y$9)/($Z$9-$Y$9)*$Z17) -> 5.875626475 | T17: =IF($AA$9="-",0,($T$9-$AB$9)/($AA$9-$AB$9)*$AA17+($T$9-$AA$9)/($AB$9-$AA$9)*$AB17) -> 3.201469625 | U17: =貼り付けシート!AB9/1000 -> 7.13114 | V17: =貼り付けシート!AE9/1000 -> 6.87376 | W17: =貼り付けシート!AH9/1000 -> 5.03898 | X17: =貼り付けシート!AK9/1000 -> 4.30749 | Y17: =貼り付けシート!AN9/1000 -> 6.13774 | Z17: =貼り付けシート!AQ9/1000 -> 5.01902 | AA17: =貼り付けシート!AT9/1000 -> 4.06435 | AB17: =貼り付けシート!AW9/1000 -> 2.51191 | AD17: 0 | AE17: =IF(貼り付けシート!$L$23=11,$AG17,IF(($AD$12-$AH$12)/($AG$12-$AH$12)*$AG17+($AD$12-$AG$12)/($AH$12-$AG$12)*$AH17<0,0,($AD$12-$AH$12)/($AG$12-$AH$12)*$AG17+($AD$12-$AG$12)/($AH$12-$AG$12)*$AH17)) -> 0 | AF17: =IF(貼り付けシート!$L$23=11,$AI17,($AF$12-$AJ$12)/($AI$12-$AJ$12)*$AI17+($AF$12-$AI$12)/($AJ$12-$AI$12)*$AJ17) -> 0 | AG17: 0 | AH17: 0 | AI17: 0 | AJ17: 0 | AK17: 0 | AL17: 0 | AM17: 0 | AN17: 0 | AO17: 0 | AP17: 0 | AQ17: 0 | AR17: 0 | AS17: =-貼り付けシート!AZ9/1000 -> 0 | AT17: =-貼り付けシート!BA9/1000 -> 0 | AU17: =-貼り付けシート!BC9/1000 -> 0 | AV17: =-貼り付けシート!BD9/1000 -> 0 | AW17: =-貼り付けシート!BF9/1000 -> 0 | AX17: =-貼り付けシート!BG9/1000 -> 0 | AY17: =-貼り付けシート!BI9/1000 -> 0 | AZ17: =-貼り付けシート!BJ9/1000 -> 0 | BA17: =-貼り付けシート!BL9/1000 -> 0 | BB17: =-貼り付けシート!BM9/1000 -> 0 | BC17: =-貼り付けシート!BO9/1000 -> 0 | BD17: =-貼り付けシート!BP9/1000 -> 0 | BE17: =-貼り付けシート!BR9/1000 -> 0 | BF17: =-貼り付けシート!BS9/1000 -> 0 | BG17: =-貼り付けシート!BU9/1000 -> 0 | BH17: =-貼り付けシート!BV9/1000 -> 0 | BJ17: =IF(AND(貼り付けシート!$L$16<>"利用しない",貼り付けシート!$L$24=2),"ERR",IF(貼り付けシート!$L$16="通年利用する",IF($M17<=0,0,$BT$26*$BT$27*$BT$16*($BL17-計算結果!$D10)*10^-3-$BT$28*$BT$21*($BT$30-$BL17)*3.6*10^-3+$BT$18*$BT$21*($BT$30-計算結果!$D10)*0.7*3.6*10^-3),0)) -> 0 | BK17: =IF(AND(貼り付けシート!$L$16<>"利用しない",貼り付けシート!$L$24=2),"ERR",IF(貼り付けシート!$L$16="通年利用する",IF($AE17<=0,0,$BT$26*$BT$27*$BT$16*(計算結果!$D10-$BL17)*10^-3+$BT$28*$BT$21*($BT$31-$BL17)*3.6*10^-3-$BT$18*$BT$21*($BT$31-計算結果!$D10)*0.7*3.6*10^-3),0)) -> 0 | BL17: =IFERROR(IF(OR($M17>0,$AE17>0),($BT$26*$BT$27*$BT$17*計算結果!$D10+($BT$22*($BT$28*IF($M17>0,$BT$30,IF($AE17>0,$BT$31,"ERR"))+$BT$29*$BM17)+$BT$19*$BT$20*計算結果!$D10)*3.6)/($BT$26*$BT$27*$BT$17+($BT$22*($BT$28+$BT$29)+$BT$19*$BT$20)*3.6),"ERR"),"ERR") -> 14.22885152 | BM17: 19.1084787 | BN17: 1 | BP17: 標準住戸の1時間当たりの換気量 | BQ17: 付録D(5) | BR17: V_(R,A) | BS17: m3/h | BT17: =SUM(バックデータ一覧!$E$5,バックデータ一覧!$E$6,バックデータ一覧!$E$7)*2.4*0.5 -> 144.096
B18: 2014-01-01 | C18: 2時 | D18: 休日 | E18: =IFERROR($H18*$BT$5*$BT$6*$BT$7,"ERR") -> 7.873964723 | F18: 0 | G18: 0 | H18: =IFERROR(L18*IF(入力データ!$G$34>=負荷ファイル名作成データ一覧!$C$9,(貼り付けシート!$G$6-貼り付けシート!$G$7-貼り付けシート!$G$8)/バックデータ一覧!$E$7,IF(入力データ!$G$34=負荷ファイル名作成データ一覧!$C$4,貼り付けシート!$G$7/バックデータ一覧!$E$5,貼り付けシート!$G$8/バックデータ一覧!$E$6)),"ERR") -> 7.130644999 | I18: =IFERROR($AD18*IF(入力データ!$G$34>=負荷ファイル名作成データ一覧!$C$9,(貼り付けシート!$G$6-貼り付けシート!$G$7-貼り付けシート!$G$8)/バックデータ一覧!$E$7,IF(入力データ!$G$34=負荷ファイル名作成データ一覧!$C$4,貼り付けシート!$G$7/バックデータ一覧!$E$5,貼り付けシート!$G$8/バックデータ一覧!$E$6)),"ERR") -> 0 | J18: =IFERROR($AF18*IF(入力データ!$G$34>=負荷ファイル名作成データ一覧!$C$9,(貼り付けシート!$G$6-貼り付けシート!$G$7-貼り付けシート!$G$8)/バックデータ一覧!$E$7,IF(入力データ!$G$34=負荷ファイル名作成データ一覧!$C$4,貼り付けシート!$G$7/バックデータ一覧!$E$5,貼り付けシート!$G$8/バックデータ一覧!$E$6)),"ERR") -> 0 | L18: =IFERROR($M18-IF($M18<0,0,$BJ18),"ERR") -> 7.130644999 | M18: 7.130644999 | N18: =IF(入力データ!$G$19="利用しない",0,IF($O18<=$P18,0,HLOOKUP(LEFT(貼り付けシート!$G$15,2),係数_蓄熱利用の程度,LEFT(貼り付けシート!$L$5,1)+1,FALSE))) -> 0 | O18: 7.130644999 | P18: 5.974665645 | Q18: 7.170673733 | R18: 4.835080713 | S18: 6.01959048 | T18: 3.398320261 | U18: =貼り付けシート!AB10/1000 -> 7.21609 | V18: =貼り付けシート!AE10/1000 -> 7.02225 | W18: =貼り付けシート!AH10/1000 -> 5.14877 | X18: =貼り付けシート!AK10/1000 -> 4.5844 | Y18: =貼り付けシート!AN10/1000 -> 6.25927 | Z18: =貼り付けシート!AQ10/1000 -> 5.2363 | AA18: =貼り付けシート!AT10/1000 -> 4.19035 | AB18: =貼り付けシート!AW10/1000 -> 2.76538 | AD18: 0 | AE18: =IF(貼り付けシート!$L$23=11,$AG18,IF(($AD$12-$AH$12)/($AG$12-$AH$12)*$AG18+($AD$12-$AG$12)/($AH$12-$AG$12)*$AH18<0,0,($AD$12-$AH$12)/($AG$12-$AH$12)*$AG18+($AD$12-$AG$12)/($AH$12-$AG$12)*$AH18)) -> 0 | AF18: =IF(貼り付けシート!$L$23=11,$AI18,($AF$12-$AJ$12)/($AI$12-$AJ$12)*$AI18+($AF$12-$AI$12)/($AJ$12-$AI$12)*$AJ18) -> 0 | AG18: 0 | AH18: 0 | AI18: 0 | AJ18: 0 | AK18: 0 | AL18: 0 | AM18: 0 | AN18: 0 | AO18: 0 | AP18: 0 | AQ18: 0 | AR18: 0 | AS18: =-貼り付けシート!AZ10/1000 -> 0 | AT18: =-貼り付けシート!BA10/1000 -> 0 | AU18: =-貼り付けシート!BC10/1000 -> 0 | AV18: =-貼り付けシート!BD10/1000 -> 0 | AW18: =-貼り付けシート!BF10/1000 -> 0 | AX18: =-貼り付けシート!BG10/1000 -> 0 | AY18: =-貼り付けシート!BI10/1000 -> 0 | AZ18: =-貼り付けシート!BJ10/1000 -> 0 | BA18: =-貼り付けシート!BL10/1000 -> 0 | BB18: =-貼り付けシート!BM10/1000 -> 0 | BC18: =-貼り付けシート!BO10/1000 -> 0 | BD18: =-貼り付けシート!BP10/1000 -> 0 | BE18: =-貼り付けシート!BR10/1000 -> 0 | BF18: =-貼り付けシート!BS10/1000 -> 0 | BG18: =-貼り付けシート!BU10/1000 -> 0 | BH18: =-貼り付けシート!BV10/1000 -> 0 | BJ18: =IF(AND(貼り付けシート!$L$16<>"利用しない",貼り付けシート!$L$24=2),"ERR",IF(貼り付けシート!$L$16="通年利用する",IF($M18<=0,0,$BT$26*$BT$27*$BT$16*($BL18-計算結果!$D11)*10^-3-$BT$28*$BT$21*($BT$30-$BL18)*3.6*10^-3+$BT$18*$BT$21*($BT$30-計算結果!$D11)*0.7*3.6*10^-3),0)) -> 0 | BK18: =IF(AND(貼り付けシート!$L$16<>"利用しない",貼り付けシート!$L$24=2),"ERR",IF(貼り付けシート!$L$16="通年利用する",IF($AE18<=0,0,$BT$26*$BT$27*$BT$16*(計算結果!$D11-$BL18)*10^-3+$BT$28*$BT$21*($BT$31-$BL18)*3.6*10^-3-$BT$18*$BT$21*($BT$31-計算結果!$D11)*0.7*3.6*10^-3),0)) -> 0 | BL18: =IFERROR(IF(OR($M18>0,$AE18>0),($BT$26*$BT$27*$BT$17*計算結果!$D11+($BT$22*($BT$28*IF($M18>0,$BT$30,IF($AE18>0,$BT$31,"ERR"))+$BT$29*$BM18)+$BT$19*$BT$20*計算結果!$D11)*3.6)/($BT$26*$BT$27*$BT$17+($BT$22*($BT$28+$BT$29)+$BT$19*$BT$20)*3.6),"ERR"),"ERR") -> 14.19687535 | BM18: 19.1084787 | BN18: 1 | BP18: 暖冷房負荷計算時に想定した床の熱貫流率 | BQ18: 付録D(6) | BR18: U_(s,vert) | BS18: W/(m2K) | BT18: =IF(バックデータ一覧!$T$131>2.223,2.223,バックデータ一覧!$T$131) -> 0.5508979181
B19: 2014-01-01 | C19: 3時 | D19: 休日 | E19: 8.03966774 | F19: 0 | G19: 0 | H19: =IFERROR(L19*IF(入力データ!$G$34>=負荷ファイル名作成データ一覧!$C$9,(貼り付けシート!$G$6-貼り付けシート!$G$7-貼り付けシート!$G$8)/バックデータ一覧!$E$7,IF(入力データ!$G$34=負荷ファイル名作成データ一覧!$C$4,貼り付けシート!$G$7/バックデータ一覧!$E$5,貼り付けシート!$G$8/バックデータ一覧!$E$6)),"ERR") -> 7.280705284 | I19: =IFERROR($AD19*IF(入力データ!$G$34>=負荷ファイル名作成データ一覧!$C$9,(貼り付けシート!$G$6-貼り付けシート!$G$7-貼り付けシート!$G$8)/バックデータ一覧!$E$7,IF(入力データ!$G$34=負荷ファイル名作成データ一覧!$C$4,貼り付けシート!$G$7/バックデータ一覧!$E$5,貼り付けシート!$G$8/バックデータ一覧!$E$6)),"ERR") -> 0 | J19: =IFERROR($AF19*IF(入力データ!$G$34>=負荷ファイル名作成データ一覧!$C$9,(貼り付けシート!$G$6-貼り付けシート!$G$7-貼り付けシート!$G$8)/バックデータ一覧!$E$7,IF(入力データ!$G$34=負荷ファイル名作成データ一覧!$C$4,貼り付けシート!$G$7/バックデータ一覧!$E$5,貼り付けシート!$G$8/バックデータ一覧!$E$6)),"ERR") -> 0 | L19: =IFERROR($M19-IF($M19<0,0,$BJ19),"ERR") -> 7.280705284 | M19: 7.280705284 | N19: =IF(入力データ!$G$19="利用しない",0,IF($O19<=$P19,0,HLOOKUP(LEFT(貼り付けシート!$G$15,2),係数_蓄熱利用の程度,LEFT(貼り付けシート!$L$5,1)+1,FALSE))) -> 0 | O19: 7.280705284 | P19: 6.171827047 | Q19: 7.319746664 | R19: 5.041763728 | S19: 6.216211359 | T19: 3.626479461 | U19: =貼り付けシート!AB11/1000 -> 7.35368 | V19: =貼り付けシート!AE11/1000 -> 7.20885 | W19: =貼り付けシート!AH11/1000 -> 5.28891 | X19: =貼り付けシート!AK11/1000 -> 4.84426 | Y19: =貼り付けシート!AN11/1000 -> 6.43535 | Z19: =貼り付けシート!AQ11/1000 -> 5.50005 | AA19: =貼り付けシート!AT11/1000 -> 4.35529 | AB19: =貼り付けシート!AW11/1000 -> 3.04406 | AD19: 0 | AE19: =IF(貼り付けシート!$L$23=11,$AG19,IF(($AD$12-$AH$12)/($AG$12-$AH$12)*$AG19+($AD$12-$AG$12)/($AH$12-$AG$12)*$AH19<0,0,($AD$12-$AH$12)/($AG$12-$AH$12)*$AG19+($AD$12-$AG$12)/($AH$12-$AG$12)*$AH19)) -> 0 | AF19: =IF(貼り付けシート!$L$23=11,$AI19,($AF$12-$AJ$12)/($AI$12-$AJ$12)*$AI19+($AF$12-$AI$12)/($AJ$12-$AI$12)*$AJ19) -> 0 | AG19: 0 | AH19: 0 | AI19: 0 | AJ19: 0 | AK19: 0 | AL19: 0 | AM19: 0 | AN19: 0 | AO19: 0 | AP19: 0 | AQ19: 0 | AR19: 0 | AS19: =-貼り付けシート!AZ11/1000 -> 0 | AT19: =-貼り付けシート!BA11/1000 -> 0 | AU19: =-貼り付けシート!BC11/1000 -> 0 | AV19: =-貼り付けシート!BD11/1000 -> 0 | AW19: =-貼り付けシート!BF11/1000 -> 0 | AX19: =-貼り付けシート!BG11/1000 -> 0 | AY19: =-貼り付けシート!BI11/1000 -> 0 | AZ19: =-貼り付けシート!BJ11/1000 -> 0 | BA19: =-貼り付けシート!BL11/1000 -> 0 | BB19: =-貼り付けシート!BM11/1000 -> 0 | BC19: =-貼り付けシート!BO11/1000 -> 0 | BD19: =-貼り付けシート!BP11/1000 -> 0 | BE19: =-貼り付けシート!BR11/1000 -> 0 | BF19: =-貼り付けシート!BS11/1000 -> 0 | BG19: =-貼り付けシート!BU11/1000 -> 0 | BH19: =-貼り付けシート!BV11/1000 -> 0 | BJ19: =IF(AND(貼り付けシート!$L$16<>"利用しない",貼り付けシート!$L$24=2),"ERR",IF(貼り付けシート!$L$16="通年利用する",IF($M19<=0,0,$BT$26*$BT$27*$BT$16*($BL19-計算結果!$D12)*10^-3-$BT$28*$BT$21*($BT$30-$BL19)*3.6*10^-3+$BT$18*$BT$21*($BT$30-計算結果!$D12)*0.7*3.6*10^-3),0)) -> 0 | BK19: =IF(AND(貼り付けシート!$L$16<>"利用しない",貼り付けシート!$L$24=2),"ERR",IF(貼り付けシート!$L$16="通年利用する",IF($AE19<=0,0,$BT$26*$BT$27*$BT$16*(計算結果!$D12-$BL19)*10^-3+$BT$28*$BT$21*($BT$31-$BL19)*3.6*10^-3-$BT$18*$BT$21*($BT$31-計算結果!$D12)*0.7*3.6*10^-3),0)) -> 0 | BL19: =IFERROR(IF(OR($M19>0,$AE19>0),($BT$26*$BT$27*$BT$17*計算結果!$D12+($BT$22*($BT$28*IF($M19>0,$BT$30,IF($AE19>0,$BT$31,"ERR"))+$BT$29*$BM19)+$BT$19*$BT$20*計算結果!$D12)*3.6)/($BT$26*$BT$27*$BT$17+($BT$22*($BT$28+$BT$29)+$BT$19*$BT$20)*3.6),"ERR"),"ERR") -> 14.06897067 | BM19: 19.1084787 | BN19: 1 | BP19: 基礎の線熱貫流率 | BQ19: 付録D(7) | BR19: φ | BS19: W/(mK) | BT19: =IF(バックデータ一覧!$T$141>2.289,2.289,バックデータ一覧!$T$141) -> 0.8585096935
B20: 2014-01-01 | C20: 4時 | D20: 休日 | E20: 8.106880514 | F20: 0 | G20: 0 | H20: =IFERROR(L20*IF(入力データ!$G$34>=負荷ファイル名作成データ一覧!$C$9,(貼り付けシート!$G$6-貼り付けシート!$G$7-貼り付けシート!$G$8)/バックデータ一覧!$E$7,IF(入力データ!$G$34=負荷ファイル名作成データ一覧!$C$4,貼り付けシート!$G$7/バックデータ一覧!$E$5,貼り付けシート!$G$8/バックデータ一覧!$E$6)),"ERR") -> 7.341573024 | I20: =IFERROR($AD20*IF(入力データ!$G$34>=負荷ファイル名作成データ一覧!$C$9,(貼り付けシート!$G$6-貼り付けシート!$G$7-貼り付けシート!$G$8)/バックデータ一覧!$E$7,IF(入力データ!$G$34=負荷ファイル名作成データ一覧!$C$4,貼り付けシート!$G$7/バックデータ一覧!$E$5,貼り付けシート!$G$8/バックデータ一覧!$E$6)),"ERR") -> 0 | J20: =IFERROR($AF20*IF(入力データ!$G$34>=負荷ファイル名作成データ一覧!$C$9,(貼り付けシート!$G$6-貼り付けシート!$G$7-貼り付けシート!$G$8)/バックデータ一覧!$E$7,IF(入力データ!$G$34=負荷ファイル名作成データ一覧!$C$4,貼り付けシート!$G$7/バックデータ一覧!$E$5,貼り付けシート!$G$8/バックデータ一覧!$E$6)),"ERR") -> 0 | L20: 7.341573024 | M20: 7.341573024 | N20: =IF(入力データ!$G$19="利用しない",0,IF($O20<=$P20,0,HLOOKUP(LEFT(貼り付けシート!$G$15,2),係数_蓄熱利用の程度,LEFT(貼り付けシート!$L$5,1)+1,FALSE))) -> 0 | O20: 7.341573024 | P20: 6.286112385 | Q20: 7.379622319 | R20: 5.159525407 | S20: 6.329741117 | T20: 3.784095758 | U20: =貼り付けシート!AB12/1000 -> 7.40465 | V20: =貼り付けシート!AE12/1000 -> 7.29783 | W20: =貼り付けシート!AH12/1000 -> 5.35682 | X20: =貼り付けシート!AK12/1000 -> 5.00186 | Y20: =貼り付けシート!AN12/1000 -> 6.53015 | Z20: =貼り付けシート!AQ12/1000 -> 5.67479 | AA20: =貼り付けシート!AT12/1000 -> 4.45574 | AB20: =貼り付けシート!AW12/1000 -> 3.24736 | AD20: 0 | AE20: =IF(貼り付けシート!$L$23=11,$AG20,IF(($AD$12-$AH$12)/($AG$12-$AH$12)*$AG20+($AD$12-$AG$12)/($AH$12-$AG$12)*$AH20<0,0,($AD$12-$AH$12)/($AG$12-$AH$12)*$AG20+($AD$12-$AG$12)/($AH$12-$AG$12)*$AH20)) -> 0 | AF20: =IF(貼り付けシート!$L$23=11,$AI20,($AF$12-$AJ$12)/($AI$12-$AJ$12)*$AI20+($AF$12-$AI$12)/($AJ$12-$AI$12)*$AJ20) -> 0 | AG20: 0 | AH20: 0 | AI20: 0 | AJ20: 0 | AK20: 0 | AL20: 0 | AM20: 0 | AN20: 0 | AO20: 0 | AP20: 0 | AQ20: 0 | AR20: 0 | AS20: =-貼り付けシート!AZ12/1000 -> 0 | AT20: =-貼り付けシート!BA12/1000 -> 0 | AU20: =-貼り付けシート!BC12/1000 -> 0 | AV20: =-貼り付けシート!BD12/1000 -> 0 | AW20: =-貼り付けシート!BF12/1000 -> 0 | AX20: =-貼り付けシート!BG12/1000 -> 0 | AY20: =-貼り付けシート!BI12/1000 -> 0 | AZ20: =-貼り付けシート!BJ12/1000 -> 0 | BA20: =-貼り付けシート!BL12/1000 -> 0 | BB20: =-貼り付けシート!BM12/1000 -> 0 | BC20: =-貼り付けシート!BO12/1000 -> 0 | BD20: =-貼り付けシート!BP12/1000 -> 0 | BE20: =-貼り付けシート!BR12/1000 -> 0 | BF20: =-貼り付けシート!BS12/1000 -> 0 | BG20: =-貼り付けシート!BU12/1000 -> 0 | BH20: =-貼り付けシート!BV12/1000 -> 0 | BJ20: =IF(AND(貼り付けシート!$L$16<>"利用しない",貼り付けシート!$L$24=2),"ERR",IF(貼り付けシート!$L$16="通年利用する",IF($M20<=0,0,$BT$26*$BT$27*$BT$16*($BL20-計算結果!$D13)*10^-3-$BT$28*$BT$21*($BT$30-$BL20)*3.6*10^-3+$BT$18*$BT$21*($BT$30-計算結果!$D13)*0.7*3.6*10^-3),0)) -> 0 | BK20: =IF(AND(貼り付けシート!$L$16<>"利用しない",貼り付けシート!$L$24=2),"ERR",IF(貼り付けシート!$L$16="通年利用する",IF($AE20<=0,0,$BT$26*$BT$27*$BT$16*(計算結果!$D13-$BL20)*10^-3+$BT$28*$BT$21*($BT$31-$BL20)*3.6*10^-3-$BT$18*$BT$21*($BT$31-計算結果!$D13)*0.7*3.6*10^-3),0)) -> 0 | BL20: =IFERROR(IF(OR($M20>0,$AE20>0),($BT$26*$BT$27*$BT$17*計算結果!$D13+($BT$22*($BT$28*IF($M20>0,$BT$30,IF($AE20>0,$BT$31,"ERR"))+$BT$29*$BM20)+$BT$19*$BT$20*計算結果!$D13)*3.6)/($BT$26*$BT$27*$BT$17+($BT$22*($BT$28+$BT$29)+$BT$19*$BT$20)*3.6),"ERR"),"ERR") -> 14.06897067 | BM20: 19.1084787 | BN20: 1 | BP20: 標準住戸の外気を導入する床下空間の基礎外周長さ | BQ20: 付録D(8) | BR20: L_(uf,R) | BS20: m | BT20: =$BT$32*4*SQRT($BT$22) -> 23.33282049
B21: 2014-01-01 | C21: 5時 | D21: 休日 | E21: 8.051134778 | F21: 0 | G21: 0 | H21: =IFERROR(L21*IF(入力データ!$G$34>=負荷ファイル名作成データ一覧!$C$9,(貼り付けシート!$G$6-貼り付けシート!$G$7-貼り付けシート!$G$8)/バックデータ一覧!$E$7,IF(入力データ!$G$34=負荷ファイル名作成データ一覧!$C$4,貼り付けシート!$G$7/バックデータ一覧!$E$5,貼り付けシート!$G$8/バックデータ一覧!$E$6)),"ERR") -> 7.291089809 | I21: =IFERROR($AD21*IF(入力データ!$G$34>=負荷ファイル名作成データ一覧!$C$9,(貼り付けシート!$G$6-貼り付けシート!$G$7-貼り付けシート!$G$8)/バックデータ一覧!$E$7,IF(入力データ!$G$34=負荷ファイル名作成データ一覧!$C$4,貼り付けシート!$G$7/バックデータ一覧!$E$5,貼り付けシート!$G$8/バックデータ一覧!$E$6)),"ERR") -> 0 | J21: =IFERROR($AF21*IF(入力データ!$G$34>=負荷ファイル名作成データ一覧!$C$9,(貼り付けシート!$G$6-貼り付けシート!$G$7-貼り付けシート!$G$8)/バックデータ一覧!$E$7,IF(入力データ!$G$34=負荷ファイル名作成データ一覧!$C$4,貼り付けシート!$G$7/バックデータ一覧!$E$5,貼り付けシート!$G$8/バックデータ一覧!$E$6)),"ERR") -> 0 | L21: 7.291089809 | M21: 7.291089809 | N21: =IF(入力データ!$G$19="利用しない",0,IF($O21<=$P21,0,HLOOKUP(LEFT(貼り付けシート!$G$15,2),係数_蓄熱利用の程度,LEFT(貼り付けシート!$L$5,1)+1,FALSE))) -> 0 | O21: 7.291089809 | P21: 6.298771321 | Q21: 7.327899585 | R21: 5.180126036 | S21: 6.341305188 | T21: 3.85954291 | U21: =貼り付けシート!AB13/1000 -> 7.34606 | V21: =貼り付けシート!AE13/1000 -> 7.26855 | W21: =貼り付けシート!AH13/1000 -> 5.33903 | X21: =貼り付けシート!AK13/1000 -> 5.05314 | Y21: =貼り付けシート!AN13/1000 -> 6.52469 | Z21: =貼り付けシート!AQ13/1000 -> 5.74199 | AA21: =貼り付けシート!AT13/1000 -> 4.47919 | AB21: =貼り付けシート!AW13/1000 -> 3.36436 | AD21: =IFERROR($AE21-IF($AE21<0,0,$BK21),"ERR") -> 0 | AE21: =IF(貼り付けシート!$L$23=11,$AG21,IF(($AD$12-$AH$12)/($AG$12-$AH$12)*$AG21+($AD$12-$AG$12)/($AH$12-$AG$12)*$AH21<0,0,($AD$12-$AH$12)/($AG$12-$AH$12)*$AG21+($AD$12-$AG$12)/($AH$12-$AG$12)*$AH21)) -> 0 | AF21: =IF(貼り付けシート!$L$23=11,$AI21,($AF$12-$AJ$12)/($AI$12-$AJ$12)*$AI21+($AF$12-$AI$12)/($AJ$12-$AI$12)*$AJ21) -> 0 | AG21: 0 | AH21: 0 | AI21: 0 | AJ21: 0 | AK21: 0 | AL21: 0 | AM21: 0 | AN21: 0 | AO21: 0 | AP21: 0 | AQ21: 0 | AR21: 0 | AS21: =-貼り付けシート!AZ13/1000 -> 0 | AT21: =-貼り付けシート!BA13/1000 -> 0 | AU21: =-貼り付けシート!BC13/1000 -> 0 | AV21: =-貼り付けシート!BD13/1000 -> 0 | AW21: =-貼り付けシート!BF13/1000 -> 0 | AX21: =-貼り付けシート!BG13/1000 -> 0 | AY21: =-貼り付けシート!BI13/1000 -> 0 | AZ21: =-貼り付けシート!BJ13/1000 -> 0 | BA21: =-貼り付けシート!BL13/1000 -> 0 | BB21: =-貼り付けシート!BM13/1000 -> 0 | BC21: =-貼り付けシート!BO13/1000 -> 0 | BD21: =-貼り付けシート!BP13/1000 -> 0 | BE21: =-貼り付けシート!BR13/1000 -> 0 | BF21: =-貼り付けシート!BS13/1000 -> 0 | BG21: =-貼り付けシート!BU13/1000 -> 0 | BH21: =-貼り付けシート!BV13/1000 -> 0 | BJ21: =IF(AND(貼り付けシート!$L$16<>"利用しない",貼り付けシート!$L$24=2),"ERR",IF(貼り付けシート!$L$16="通年利用する",IF($M21<=0,0,$BT$26*$BT$27*$BT$16*($BL21-計算結果!$D14)*10^-3-$BT$28*$BT$21*($BT$30-$BL21)*3.6*10^-3+$BT$18*$BT$21*($BT$30-計算結果!$D14)*0.7*3.6*10^-3),0)) -> 0 | BK21: =IF(AND(貼り付けシート!$L$16<>"利用しない",貼り付けシート!$L$24=2),"ERR",IF(貼り付けシート!$L$16="通年利用する",IF($AE21<=0,0,$BT$26*$BT$27*$BT$16*(計算結果!$D14-$BL21)*10^-3+$BT$28*$BT$21*($BT$31-$BL21)*3.6*10^-3-$BT$18*$BT$21*($BT$31-計算結果!$D14)*0.7*3.6*10^-3),0)) -> 0 | BL21: =IFERROR(IF(OR($M21>0,$AE21>0),($BT$26*$BT$27*$BT$17*計算結果!$D14+($BT$22*($BT$28*IF($M21>0,$BT$30,IF($AE21>0,$BT$31,"ERR"))+$BT$29*$BM21)+$BT$19*$BT$20*計算結果!$D14)*3.6)/($BT$26*$BT$27*$BT$17+($BT$22*($BT$28+$BT$29)+$BT$19*$BT$20)*3.6),"ERR"),"ERR") -> 14.19687535 | BM21: 19.1084787 | BN21: 1 | BP21: 暖冷房区画iの標準住戸の外気を導入する床下空間に接する床の面積 | BQ21: 付録D(9) | BR21: A_(s,ufvnt,R,i) | BS21: m2 | BT21: =VLOOKUP(入力データ!$G$34,バックデータ一覧!$B$159:$D$170,3,FALSE)*貼り付けシート!$L$17 -> 14.905
B22: 2014-01-01 | C22: 6時 | D22: 休日 | E22: 8.170104147 | F22: 0 | G22: 0 | H22: =IFERROR(L22*IF(入力データ!$G$34>=負荷ファイル名作成データ一覧!$C$9,(貼り付けシート!$G$6-貼り付けシート!$G$7-貼り付けシート!$G$8)/バックデータ一覧!$E$7,IF(入力データ!$G$34=負荷ファイル名作成データ一覧!$C$4,貼り付けシート!$G$7/バックデータ一覧!$E$5,貼り付けシート!$G$8/バックデータ一覧!$E$6)),"ERR") -> 7.398828205 | I22: =IFERROR($AD22*IF(入力データ!$G$34>=負荷ファイル名作成データ一覧!$C$9,(貼り付けシート!$G$6-貼り付けシート!$G$7-貼り付けシート!$G$8)/バックデータ一覧!$E$7,IF(入力データ!$G$34=負荷ファイル名作成データ一覧!$C$4,貼り付けシート!$G$7/バックデータ一覧!$E$5,貼り付けシート!$G$8/バックデータ一覧!$E$6)),"ERR") -> 0 | J22: =IFERROR($AF22*IF(入力データ!$G$34>=負荷ファイル名作成データ一覧!$C$9,(貼り付けシート!$G$6-貼り付けシート!$G$7-貼り付けシート!$G$8)/バックデータ一覧!$E$7,IF(入力データ!$G$34=負荷ファイル名作成データ一覧!$C$4,貼り付けシート!$G$7/バックデータ一覧!$E$5,貼り付けシート!$G$8/バックデータ一覧!$E$6)),"ERR") -> 0 | L22: 7.398828205 | M22: 7.398828205 | N22: =IF(入力データ!$G$19="利用しない",0,IF($O22<=$P22,0,HLOOKUP(LEFT(貼り付けシート!$G$15,2),係数_蓄熱利用の程度,LEFT(貼り付けシート!$L$5,1)+1,FALSE))) -> 0 | O22: 7.398828205 | P22: 6.464900586 | Q22: 7.435361354 | R22: 5.303728457 | S22: 6.50715142 | T22: 4.041903582 | U22: =貼り付けシート!AB14/1000 -> 7.44799 | V22: =貼り付けシート!AE14/1000 -> 7.39409 | W22: =貼り付けシート!AH14/1000 -> 5.43209 | X22: =貼り付けシート!AK14/1000 -> 5.20115 | Y22: =貼り付けシート!AN14/1000 -> 6.67485 | Z22: =貼り付けシート!AQ14/1000 -> 5.9591 | AA22: =貼り付けシート!AT14/1000 -> 4.6138 | AB22: =貼り付けシート!AW14/1000 -> 3.58488 | AD22: =IFERROR($AE22-IF($AE22<0,0,$BK22),"ERR") -> 0 | AE22: =IF(貼り付けシート!$L$23=11,$AG22,IF(($AD$12-$AH$12)/($AG$12-$AH$12)*$AG22+($AD$12-$AG$12)/($AH$12-$AG$12)*$AH22<0,0,($AD$12-$AH$12)/($AG$12-$AH$12)*$AG22+($AD$12-$AG$12)/($AH$12-$AG$12)*$AH22)) -> 0 | AF22: =IF(貼り付けシート!$L$23=11,$AI22,($AF$12-$AJ$12)/($AI$12-$AJ$12)*$AI22+($AF$12-$AI$12)/($AJ$12-$AI$12)*$AJ22) -> 0 | AG22: 0 | AH22: 0 | AI22: 0 | AJ22: 0 | AK22: 0 | AL22: 0 | AM22: 0 | AN22: 0 | AO22: 0 | AP22: 0 | AQ22: 0 | AR22: 0 | AS22: =-貼り付けシート!AZ14/1000 -> 0 | AT22: =-貼り付けシート!BA14/1000 -> 0 | AU22: =-貼り付けシート!BC14/1000 -> 0 | AV22: =-貼り付けシート!BD14/1000 -> 0 | AW22: =-貼り付けシート!BF14/1000 -> 0 | AX22: =-貼り付けシート!BG14/1000 -> 0 | AY22: =-貼り付けシート!BI14/1000 -> 0 | AZ22: =-貼り付けシート!BJ14/1000 -> 0 | BA22: =-貼り付けシート!BL14/1000 -> 0 | BB22: =-貼り付けシート!BM14/1000 -> 0 | BC22: =-貼り付けシート!BO14/1000 -> 0 | BD22: =-貼り付けシート!BP14/1000 -> 0 | BE22: =-貼り付けシート!BR14/1000 -> 0 | BF22: =-貼り付けシート!BS14/1000 -> 0 | BG22: =-貼り付けシート!BU14/1000 -> 0 | BH22: =-貼り付けシート!BV14/1000 -> 0 | BJ22: =IF(AND(貼り付けシート!$L$16<>"利用しない",貼り付けシート!$L$24=2),"ERR",IF(貼り付けシート!$L$16="通年利用する",IF($M22<=0,0,$BT$26*$BT$27*$BT$16*($BL22-計算結果!$D15)*10^-3-$BT$28*$BT$21*($BT$30-$BL22)*3.6*10^-3+$BT$18*$BT$21*($BT$30-計算結果!$D15)*0.7*3.6*10^-3),0)) -> 0 | BK22: =IF(AND(貼り付けシート!$L$16<>"利用しない",貼り付けシート!$L$24=2),"ERR",IF(貼り付けシート!$L$16="通年利用する",IF($AE22<=0,0,$BT$26*$BT$27*$BT$16*(計算結果!$D15-$BL22)*10^-3+$BT$28*$BT$21*($BT$31-$BL22)*3.6*10^-3-$BT$18*$BT$21*($BT$31-計算結果!$D15)*0.7*3.6*10^-3),0)) -> 0 | BL22: =IFERROR(IF(OR($M22>0,$AE22>0),($BT$26*$BT$27*$BT$17*計算結果!$D15+($BT$22*($BT$28*IF($M22>0,$BT$30,IF($AE22>0,$BT$31,"ERR"))+$BT$29*$BM22)+$BT$19*$BT$20*計算結果!$D15)*3.6)/($BT$26*$BT$27*$BT$17+($BT$22*($BT$28+$BT$29)+$BT$19*$BT$20)*3.6),"ERR"),"ERR") -> 14.0369945 | BM22: 19.1084787 | BN22: 1 | BP22: 標準住戸の外気を導入する床下空間に接する床の面積の合計 | BQ22: 付録D(10) | BR22: A_(s,ufvnt,R,A) | BS22: m2 | BT22: =SUM(バックデータ一覧!$D$159:$D$170)*貼り付けシート!$L$17 -> 32.705
B23: 2014-01-01 | C23: 7時 | D23: 休日 | E23: 6.365497338 | F23: 0 | G23: 0 | H23: =IFERROR(L23*IF(入力データ!$G$34>=負荷ファイル名作成データ一覧!$C$9,(貼り付けシート!$G$6-貼り付けシート!$G$7-貼り付けシート!$G$8)/バックデータ一覧!$E$7,IF(入力データ!$G$34=負荷ファイル名作成データ一覧!$C$4,貼り付けシート!$G$7/バックデータ一覧!$E$5,貼り付けシート!$G$8/バックデータ一覧!$E$6)),"ERR") -> 5.764580279 | I23: =IFERROR($AD23*IF(入力データ!$G$34>=負荷ファイル名作成データ一覧!$C$9,(貼り付けシート!$G$6-貼り付けシート!$G$7-貼り付けシート!$G$8)/バックデータ一覧!$E$7,IF(入力データ!$G$34=負荷ファイル名作成データ一覧!$C$4,貼り付けシート!$G$7/バックデータ一覧!$E$5,貼り付けシート!$G$8/バックデータ一覧!$E$6)),"ERR") -> 0 | J23: =IFERROR($AF23*IF(入力データ!$G$34>=負荷ファイル名作成データ一覧!$C$9,(貼り付けシート!$G$6-貼り付けシート!$G$7-貼り付けシート!$G$8)/バックデータ一覧!$E$7,IF(入力データ!$G$34=負荷ファイル名作成データ一覧!$C$4,貼り付けシート!$G$7/バックデータ一覧!$E$5,貼り付けシート!$G$8/バックデータ一覧!$E$6)),"ERR") -> 0 | L23: 5.764580279 | M23: 5.764580279 | N23: =IF(入力データ!$G$19="利用しない",0,IF($O23<=$P23,0,HLOOKUP(LEFT(貼り付けシート!$G$15,2),係数_蓄熱利用の程度,LEFT(貼り付けシート!$L$5,1)+1,FALSE))) -> 0 | O23: 5.764580279 | P23: 5.392045952 | Q23: 5.800923723 | R23: 3.68035971 | S23: 5.433705808 | T23: 3.002940209 | U23: =貼り付けシート!AB15/1000 -> 5.86999 | V23: =貼り付けシート!AE15/1000 -> 5.57521 | W23: =貼り付けシート!AH15/1000 -> 3.95906 | X23: =貼り付けシート!AK15/1000 -> 3.45764 | Y23: =貼り付けシート!AN15/1000 -> 5.58487 | Z23: =貼り付けシート!AQ15/1000 -> 4.93969 | AA23: =貼り付けシート!AT15/1000 -> 3.57492 | AB23: =貼り付けシート!AW15/1000 -> 2.54585 | AD23: 0 | AE23: =IF(貼り付けシート!$L$23=11,$AG23,IF(($AD$12-$AH$12)/($AG$12-$AH$12)*$AG23+($AD$12-$AG$12)/($AH$12-$AG$12)*$AH23<0,0,($AD$12-$AH$12)/($AG$12-$AH$12)*$AG23+($AD$12-$AG$12)/($AH$12-$AG$12)*$AH23)) -> 0 | AF23: =IF(貼り付けシート!$L$23=11,$AI23,($AF$12-$AJ$12)/($AI$12-$AJ$12)*$AI23+($AF$12-$AI$12)/($AJ$12-$AI$12)*$AJ23) -> 0 | AG23: 0 | AH23: 0 | AI23: 0 | AJ23: 0 | AK23: 0 | AL23: 0 | AM23: 0 | AN23: 0 | AO23: 0 | AP23: 0 | AQ23: 0 | AR23: 0 | AS23: =-貼り付けシート!AZ15/1000 -> 0 | AT23: =-貼り付けシート!BA15/1000 -> 0 | AU23: =-貼り付けシート!BC15/1000 -> 0 | AV23: =-貼り付けシート!BD15/1000 -> 0 | AW23: =-貼り付けシート!BF15/1000 -> 0 | AX23: =-貼り付けシート!BG15/1000 -> 0 | AY23: =-貼り付けシート!BI15/1000 -> 0 | AZ23: =-貼り付けシート!BJ15/1000 -> 0 | BA23: =-貼り付けシート!BL15/1000 -> 0 | BB23: =-貼り付けシート!BM15/1000 -> 0 | BC23: =-貼り付けシート!BO15/1000 -> 0 | BD23: =-貼り付けシート!BP15/1000 -> 0 | BE23: =-貼り付けシート!BR15/1000 -> 0 | BF23: =-貼り付けシート!BS15/1000 -> 0 | BG23: =-貼り付けシート!BU15/1000 -> 0 | BH23: =-貼り付けシート!BV15/1000 -> 0 | BJ23: =IF(AND(貼り付けシート!$L$16<>"利用しない",貼り付けシート!$L$24=2),"ERR",IF(貼り付けシート!$L$16="通年利用する",IF($M23<=0,0,$BT$26*$BT$27*$BT$16*($BL23-計算結果!$D16)*10^-3-$BT$28*$BT$21*($BT$30-$BL23)*3.6*10^-3+$BT$18*$BT$21*($BT$30-計算結果!$D16)*0.7*3.6*10^-3),0)) -> 0 | BK23: =IF(AND(貼り付けシート!$L$16<>"利用しない",貼り付けシート!$L$24=2),"ERR",IF(貼り付けシート!$L$16="通年利用する",IF($AE23<=0,0,$BT$26*$BT$27*$BT$16*(計算結果!$D16-$BL23)*10^-3+$BT$28*$BT$21*($BT$31-$BL23)*3.6*10^-3-$BT$18*$BT$21*($BT$31-計算結果!$D16)*0.7*3.6*10^-3),0)) -> 0 | BL23: =IFERROR(IF(OR($M23>0,$AE23>0),($BT$26*$BT$27*$BT$17*計算結果!$D16+($BT$22*($BT$28*IF($M23>0,$BT$30,IF($AE23>0,$BT$31,"ERR"))+$BT$29*$BM23)+$BT$19*$BT$20*計算結果!$D16)*3.6)/($BT$26*$BT$27*$BT$17+($BT$22*($BT$28+$BT$29)+$BT$19*$BT$20)*3.6),"ERR"),"ERR") -> 14.0369945 | BM23: 19.1084787 | BN23: 1 | BP23: 日平均外気温度の年最大値 | BQ23: 表D.7 | BR23: θ_(ex,ave,max) | BS23: ℃ | BT23: =OFFSET(バックデータ一覧!$B174,0,VALUE(LEFT(入力データ!G9,1))+1) -> 31.2
B24: 2014-01-01 | C24: 8時 | D24: 休日 | E24: 0.7793319615 | F24: 0 | G24: 0 | H24: =IFERROR(L24*IF(入力データ!$G$34>=負荷ファイル名作成データ一覧!$C$9,(貼り付けシート!$G$6-貼り付けシート!$G$7-貼り付けシート!$G$8)/バックデータ一覧!$E$7,IF(入力データ!$G$34=負荷ファイル名作成データ一覧!$C$4,貼り付けシート!$G$7/バックデータ一覧!$E$5,貼り付けシート!$G$8/バックデータ一覧!$E$6)),"ERR") -> 0.7057612968 | I24: =IFERROR($AD24*IF(入力データ!$G$34>=負荷ファイル名作成データ一覧!$C$9,(貼り付けシート!$G$6-貼り付けシート!$G$7-貼り付けシート!$G$8)/バックデータ一覧!$E$7,IF(入力データ!$G$34=負荷ファイル名作成データ一覧!$C$4,貼り付けシート!$G$7/バックデータ一覧!$E$5,貼り付けシート!$G$8/バックデータ一覧!$E$6)),"ERR") -> 0 | J24: =IFERROR($AF24*IF(入力データ!$G$34>=負荷ファイル名作成データ一覧!$C$9,(貼り付けシート!$G$6-貼り付けシート!$G$7-貼り付けシート!$G$8)/バックデータ一覧!$E$7,IF(入力データ!$G$34=負荷ファイル名作成データ一覧!$C$4,貼り付けシート!$G$7/バックデータ一覧!$E$5,貼り付けシート!$G$8/バックデータ一覧!$E$6)),"ERR") -> 0 | L24: 0.7057612968 | M24: 0.7057612968 | N24: =IF(入力データ!$G$19="利用しない",0,IF($O24<=$P24,0,HLOOKUP(LEFT(貼り付けシート!$G$15,2),係数_蓄熱利用の程度,LEFT(貼り付けシート!$L$5,1)+1,FALSE))) -> 0 | O24: 0.7057612968 | P24: 1.54456916 | Q24: 0.7180679578 | R24: 0 | S24: 1.571502472 | T24: 0 | U24: =貼り付けシート!AB16/1000 -> 0.93779 | V24: =貼り付けシート!AE16/1000 -> 0 | W24: =貼り付けシート!AH16/1000 -> 0 | X24: =貼り付けシート!AK16/1000 -> 0 | Y24: =貼り付けシート!AN16/1000 -> 1.74097 | Z24: =貼り付けシート!AQ16/1000 -> 1.01767 | AA24: =貼り付けシート!AT16/1000 -> 0 | AB24: =貼り付けシート!AW16/1000 -> 0 | AD24: 0 | AE24: =IF(貼り付けシート!$L$23=11,$AG24,IF(($AD$12-$AH$12)/($AG$12-$AH$12)*$AG24+($AD$12-$AG$12)/($AH$12-$AG$12)*$AH24<0,0,($AD$12-$AH$12)/($AG$12-$AH$12)*$AG24+($AD$12-$AG$12)/($AH$12-$AG$12)*$AH24)) -> 0 | AF24: =IF(貼り付けシート!$L$23=11,$AI24,($AF$12-$AJ$12)/($AI$12-$AJ$12)*$AI24+($AF$12-$AI$12)/($AJ$12-$AI$12)*$AJ24) -> 0 | AG24: 0 | AH24: 0 | AI24: 0 | AJ24: 0 | AK24: 0 | AL24: 0 | AM24: 0 | AN24: 0 | AO24: 0 | AP24: 0 | AQ24: 0 | AR24: 0 | AS24: =-貼り付けシート!AZ16/1000 -> 0 | AT24: =-貼り付けシート!BA16/1000 -> 0 | AU24: =-貼り付けシート!BC16/1000 -> 0 | AV24: =-貼り付けシート!BD16/1000 -> 0 | AW24: =-貼り付けシート!BF16/1000 -> 0 | AX24: =-貼り付けシート!BG16/1000 -> 0 | AY24: =-貼り付けシート!BI16/1000 -> 0 | AZ24: =-貼り付けシート!BJ16/1000 -> 0 | BA24: =-貼り付けシート!BL16/1000 -> 0 | BB24: =-貼り付けシート!BM16/1000 -> 0 | BC24: =-貼り付けシート!BO16/1000 -> 0 | BD24: =-貼り付けシート!BP16/1000 -> 0 | BE24: =-貼り付けシート!BR16/1000 -> 0 | BF24: =-貼り付けシート!BS16/1000 -> 0 | BG24: =-貼り付けシート!BU16/1000 -> 0 | BH24: =-貼り付けシート!BV16/1000 -> 0 | BJ24: =IF(AND(貼り付けシート!$L$16<>"利用しない",貼り付けシート!$L$24=2),"ERR",IF(貼り付けシート!$L$16="通年利用する",IF($M24<=0,0,$BT$26*$BT$27*$BT$16*($BL24-計算結果!$D17)*10^-3-$BT$28*$BT$21*($BT$30-$BL24)*3.6*10^-3+$BT$18*$BT$21*($BT$30-計算結果!$D17)*0.7*3.6*10^-3),0)) -> 0 | BK24: =IF(AND(貼り付けシート!$L$16<>"利用しない",貼り付けシート!$L$24=2),"ERR",IF(貼り付けシート!$L$16="通年利用する",IF($AE24<=0,0,$BT$26*$BT$27*$BT$16*(計算結果!$D17-$BL24)*10^-3+$BT$28*$BT$21*($BT$31-$BL24)*3.6*10^-3-$BT$18*$BT$21*($BT$31-計算結果!$D17)*0.7*3.6*10^-3),0)) -> 0 | BL24: =IFERROR(IF(OR($M24>0,$AE24>0),($BT$26*$BT$27*$BT$17*計算結果!$D17+($BT$22*($BT$28*IF($M24>0,$BT$30,IF($AE24>0,$BT$31,"ERR"))+$BT$29*$BM24)+$BT$19*$BT$20*計算結果!$D17)*3.6)/($BT$26*$BT$27*$BT$17+($BT$22*($BT$28+$BT$29)+$BT$19*$BT$20)*3.6),"ERR"),"ERR") -> 14.48466088 | BM24: 19.1084787 | BN24: 1 | BP24: 日平均外気温度の年最小値 | BQ24: 表D.7 | BR24: θ_(ex,ave,min) | BS24: ℃ | BT24: =OFFSET(バックデータ一覧!$B175,0,VALUE(LEFT(入力データ!G9,1))+1) -> -1
B25: 2014-01-01 | C25: 9時 | D25: 休日 | E25: 0 | F25: 0 | G25: 0 | H25: =IFERROR(L25*IF(入力データ!$G$34>=負荷ファイル名作成データ一覧!$C$9,(貼り付けシート!$G$6-貼り付けシート!$G$7-貼り付けシート!$G$8)/バックデータ一覧!$E$7,IF(入力データ!$G$34=負荷ファイル名作成データ一覧!$C$4,貼り付けシート!$G$7/バックデータ一覧!$E$5,貼り付けシート!$G$8/バックデータ一覧!$E$6)),"ERR") -> 0 | I25: =IFERROR($AD25*IF(入力データ!$G$34>=負荷ファイル名作成データ一覧!$C$9,(貼り付けシート!$G$6-貼り付けシート!$G$7-貼り付けシート!$G$8)/バックデータ一覧!$E$7,IF(入力データ!$G$34=負荷ファイル名作成データ一覧!$C$4,貼り付けシート!$G$7/バックデータ一覧!$E$5,貼り付けシート!$G$8/バックデータ一覧!$E$6)),"ERR") -> 0 | J25: =IFERROR($AF25*IF(入力データ!$G$34>=負荷ファイル名作成データ一覧!$C$9,(貼り付けシート!$G$6-貼り付けシート!$G$7-貼り付けシート!$G$8)/バックデータ一覧!$E$7,IF(入力データ!$G$34=負荷ファイル名作成データ一覧!$C$4,貼り付けシート!$G$7/バックデータ一覧!$E$5,貼り付けシート!$G$8/バックデータ一覧!$E$6)),"ERR") -> 0 | L25: 0 | M25: 0 | N25: =IF(入力データ!$G$19="利用しない",0,IF($O25<=$P25,0,HLOOKUP(LEFT(貼り付けシート!$G$15,2),係数_蓄熱利用の程度,LEFT(貼り付けシート!$L$5,1)+1,FALSE))) -> 0 | O25: 0 | P25: 0 | Q25: 0 | R25: 0 | S25: 0 | T25: 0 | U25: =貼り付けシート!AB17/1000 -> 0 | V25: =貼り付けシート!AE17/1000 -> 0 | W25: =貼り付けシート!AH17/1000 -> 0 | X25: =貼り付けシート!AK17/1000 -> 0 | Y25: =貼り付けシート!AN17/1000 -> 0 | Z25: =貼り付けシート!AQ17/1000 -> 0 | AA25: =貼り付けシート!AT17/1000 -> 0 | AB25: =貼り付けシート!AW17/1000 -> 0 | AD25: 0 | AE25: =IF(貼り付けシート!$L$23=11,$AG25,IF(($AD$12-$AH$12)/($AG$12-$AH$12)*$AG25+($AD$12-$AG$12)/($AH$12-$AG$12)*$AH25<0,0,($AD$12-$AH$12)/($AG$12-$AH$12)*$AG25+($AD$12-$AG$12)/($AH$12-$AG$12)*$AH25)) -> 0 | AF25: =IF(貼り付けシート!$L$23=11,$AI25,($AF$12-$AJ$12)/($AI$12-$AJ$12)*$AI25+($AF$12-$AI$12)/($AJ$12-$AI$12)*$AJ25) -> 0 | AG25: 0 | AH25: 0 | AI25: 0 | AJ25: 0 | AK25: 0 | AL25: 0 | AM25: 0 | AN25: 0 | AO25: 0 | AP25: 0 | AQ25: 0 | AR25: 0 | AS25: =-貼り付けシート!AZ17/1000 -> 0 | AT25: =-貼り付けシート!BA17/1000 -> 0 | AU25: =-貼り付けシート!BC17/1000 -> 0 | AV25: =-貼り付けシート!BD17/1000 -> 0 | AW25: =-貼り付けシート!BF17/1000 -> 0 | AX25: =-貼り付けシート!BG17/1000 -> 0 | AY25: =-貼り付けシート!BI17/1000 -> 0 | AZ25: =-貼り付けシート!BJ17/1000 -> 0 | BA25: =-貼り付けシート!BL17/1000 -> 0 | BB25: =-貼り付けシート!BM17/1000 -> 0 | BC25: =-貼り付けシート!BO17/1000 -> 0 | BD25: =-貼り付けシート!BP17/1000 -> 0 | BE25: =-貼り付けシート!BR17/1000 -> 0 | BF25: =-貼り付けシート!BS17/1000 -> 0 | BG25: =-貼り付けシート!BU17/1000 -> 0 | BH25: =-貼り付けシート!BV17/1000 -> 0 | BJ25: =IF(AND(貼り付けシート!$L$16<>"利用しない",貼り付けシート!$L$24=2),"ERR",IF(貼り付けシート!$L$16="通年利用する",IF($M25<=0,0,$BT$26*$BT$27*$BT$16*($BL25-計算結果!$D18)*10^-3-$BT$28*$BT$21*($BT$30-$BL25)*3.6*10^-3+$BT$18*$BT$21*($BT$30-計算結果!$D18)*0.7*3.6*10^-3),0)) -> 0 | BK25: =IF(AND(貼り付けシート!$L$16<>"利用しない",貼り付けシート!$L$24=2),"ERR",IF(貼り付けシート!$L$16="通年利用する",IF($AE25<=0,0,$BT$26*$BT$27*$BT$16*(計算結果!$D18-$BL25)*10^-3+$BT$28*$BT$21*($BT$31-$BL25)*3.6*10^-3-$BT$18*$BT$21*($BT$31-計算結果!$D18)*0.7*3.6*10^-3),0)) -> 0 | BL25: =IFERROR(IF(OR($M25>0,$AE25>0),($BT$26*$BT$27*$BT$17*計算結果!$D18+($BT$22*($BT$28*IF($M25>0,$BT$30,IF($AE25>0,$BT$31,"ERR"))+$BT$29*$BM25)+$BT$19*$BT$20*計算結果!$D18)*3.6)/($BT$26*$BT$27*$BT$17+($BT$22*($BT$28+$BT$29)+$BT$19*$BT$20)*3.6),"ERR"),"ERR") -> ERR | BM25: 19.1084787 | BN25: 1 | BP25: 標準住戸の床下温度の年平均値 | BQ25: 付録D(12) | BR25: θ_(uf,R,ave) | BS25: ℃ | BT25: =バックデータ一覧!$Q$182*$BT$9+バックデータ一覧!$R$182 -> 19.73380029
B26: 2014-01-01 | C26: 10時 | D26: 休日 | E26: 0 | F26: 0 | G26: 0 | H26: =IFERROR(L26*IF(入力データ!$G$34>=負荷ファイル名作成データ一覧!$C$9,(貼り付けシート!$G$6-貼り付けシート!$G$7-貼り付けシート!$G$8)/バックデータ一覧!$E$7,IF(入力データ!$G$34=負荷ファイル名作成データ一覧!$C$4,貼り付けシート!$G$7/バックデータ一覧!$E$5,貼り付けシート!$G$8/バックデータ一覧!$E$6)),"ERR") -> 0 | I26: =IFERROR($AD26*IF(入力データ!$G$34>=負荷ファイル名作成データ一覧!$C$9,(貼り付けシート!$G$6-貼り付けシート!$G$7-貼り付けシート!$G$8)/バックデータ一覧!$E$7,IF(入力データ!$G$34=負荷ファイル名作成データ一覧!$C$4,貼り付けシート!$G$7/バックデータ一覧!$E$5,貼り付けシート!$G$8/バックデータ一覧!$E$6)),"ERR") -> 0 | J26: =IFERROR($AF26*IF(入力データ!$G$34>=負荷ファイル名作成データ一覧!$C$9,(貼り付けシート!$G$6-貼り付けシート!$G$7-貼り付けシート!$G$8)/バックデータ一覧!$E$7,IF(入力データ!$G$34=負荷ファイル名作成データ一覧!$C$4,貼り付けシート!$G$7/バックデータ一覧!$E$5,貼り付けシート!$G$8/バックデータ一覧!$E$6)),"ERR") -> 0 | L26: 0 | M26: 0 | N26: =IF(入力データ!$G$19="利用しない",0,IF($O26<=$P26,0,HLOOKUP(LEFT(貼り付けシート!$G$15,2),係数_蓄熱利用の程度,LEFT(貼り付けシート!$L$5,1)+1,FALSE))) -> 0 | O26: 0 | P26: 0 | Q26: 0 | R26: 0 | S26: 0 | T26: 0 | U26: =貼り付けシート!AB18/1000 -> 0 | V26: =貼り付けシート!AE18/1000 -> 0 | W26: =貼り付けシート!AH18/1000 -> 0 | X26: =貼り付けシート!AK18/1000 -> 0 | Y26: =貼り付けシート!AN18/1000 -> 0 | Z26: =貼り付けシート!AQ18/1000 -> 0 | AA26: =貼り付けシート!AT18/1000 -> 0 | AB26: =貼り付けシート!AW18/1000 -> 0 | AD26: 0 | AE26: =IF(貼り付けシート!$L$23=11,$AG26,IF(($AD$12-$AH$12)/($AG$12-$AH$12)*$AG26+($AD$12-$AG$12)/($AH$12-$AG$12)*$AH26<0,0,($AD$12-$AH$12)/($AG$12-$AH$12)*$AG26+($AD$12-$AG$12)/($AH$12-$AG$12)*$AH26)) -> 0 | AF26: =IF(貼り付けシート!$L$23=11,$AI26,($AF$12-$AJ$12)/($AI$12-$AJ$12)*$AI26+($AF$12-$AI$12)/($AJ$12-$AI$12)*$AJ26) -> 0 | AG26: 0 | AH26: 0 | AI26: 0 | AJ26: 0 | AK26: 0 | AL26: 0 | AM26: 0 | AN26: 0 | AO26: 0 | AP26: 0 | AQ26: 0 | AR26: 0 | AS26: =-貼り付けシート!AZ18/1000 -> 0 | AT26: =-貼り付けシート!BA18/1000 -> 0 | AU26: =-貼り付けシート!BC18/1000 -> 0 | AV26: =-貼り付けシート!BD18/1000 -> 0 | AW26: =-貼り付けシート!BF18/1000 -> 0 | AX26: =-貼り付けシート!BG18/1000 -> 0 | AY26: =-貼り付けシート!BI18/1000 -> 0 | AZ26: =-貼り付けシート!BJ18/1000 -> 0 | BA26: =-貼り付けシート!BL18/1000 -> 0 | BB26: =-貼り付けシート!BM18/1000 -> 0 | BC26: =-貼り付けシート!BO18/1000 -> 0 | BD26: =-貼り付けシート!BP18/1000 -> 0 | BE26: =-貼り付けシート!BR18/1000 -> 0 | BF26: =-貼り付けシート!BS18/1000 -> 0 | BG26: =-貼り付けシート!BU18/1000 -> 0 | BH26: =-貼り付けシート!BV18/1000 -> 0 | BJ26: =IF(AND(貼り付けシート!$L$16<>"利用しない",貼り付けシート!$L$24=2),"ERR",IF(貼り付けシート!$L$16="通年利用する",IF($M26<=0,0,$BT$26*$BT$27*$BT$16*($BL26-計算結果!$D19)*10^-3-$BT$28*$BT$21*($BT$30-$BL26)*3.6*10^-3+$BT$18*$BT$21*($BT$30-計算結果!$D19)*0.7*3.6*10^-3),0)) -> 0 | BK26: =IF(AND(貼り付けシート!$L$16<>"利用しない",貼り付けシート!$L$24=2),"ERR",IF(貼り付けシート!$L$16="通年利用する",IF($AE26<=0,0,$BT$26*$BT$27*$BT$16*(計算結果!$D19-$BL26)*10^-3+$BT$28*$BT$21*($BT$31-$BL26)*3.6*10^-3-$BT$18*$BT$21*($BT$31-計算結果!$D19)*0.7*3.6*10^-3),0)) -> 0 | BL26: =IFERROR(IF(OR($M26>0,$AE26>0),($BT$26*$BT$27*$BT$17*計算結果!$D19+($BT$22*($BT$28*IF($M26>0,$BT$30,IF($AE26>0,$BT$31,"ERR"))+$BT$29*$BM26)+$BT$19*$BT$20*計算結果!$D19)*3.6)/($BT$26*$BT$27*$BT$17+($BT$22*($BT$28+$BT$29)+$BT$19*$BT$20)*3.6),"ERR"),"ERR") -> ERR | BM26: 19.1084787 | BN26: 1 | BP26: 空気の密度 | BQ26: － | BR26: ρ_air | BS26: kg/m3 | BT26: 1.2
B27: 2014-01-01 | C27: 11時 | D27: 休日 | E27: 0 | F27: 0 | G27: 0 | H27: =IFERROR(L27*IF(入力データ!$G$34>=負荷ファイル名作成データ一覧!$C$9,(貼り付けシート!$G$6-貼り付けシート!$G$7-貼り付けシート!$G$8)/バックデータ一覧!$E$7,IF(入力データ!$G$34=負荷ファイル名作成データ一覧!$C$4,貼り付けシート!$G$7/バックデータ一覧!$E$5,貼り付けシート!$G$8/バックデータ一覧!$E$6)),"ERR") -> 0 | I27: =IFERROR($AD27*IF(入力データ!$G$34>=負荷ファイル名作成データ一覧!$C$9,(貼り付けシート!$G$6-貼り付けシート!$G$7-貼り付けシート!$G$8)/バックデータ一覧!$E$7,IF(入力データ!$G$34=負荷ファイル名作成データ一覧!$C$4,貼り付けシート!$G$7/バックデータ一覧!$E$5,貼り付けシート!$G$8/バックデータ一覧!$E$6)),"ERR") -> 0 | J27: =IFERROR($AF27*IF(入力データ!$G$34>=負荷ファイル名作成データ一覧!$C$9,(貼り付けシート!$G$6-貼り付けシート!$G$7-貼り付けシート!$G$8)/バックデータ一覧!$E$7,IF(入力データ!$G$34=負荷ファイル名作成データ一覧!$C$4,貼り付けシート!$G$7/バックデータ一覧!$E$5,貼り付けシート!$G$8/バックデータ一覧!$E$6)),"ERR") -> 0 | L27: 0 | M27: 0 | N27: =IF(入力データ!$G$19="利用しない",0,IF($O27<=$P27,0,HLOOKUP(LEFT(貼り付けシート!$G$15,2),係数_蓄熱利用の程度,LEFT(貼り付けシート!$L$5,1)+1,FALSE))) -> 0 | O27: 0 | P27: 0 | Q27: 0 | R27: 0 | S27: 0 | T27: 0 | U27: =貼り付けシート!AB19/1000 -> 0 | V27: =貼り付けシート!AE19/1000 -> 0 | W27: =貼り付けシート!AH19/1000 -> 0 | X27: =貼り付けシート!AK19/1000 -> 0 | Y27: =貼り付けシート!AN19/1000 -> 0 | Z27: =貼り付けシート!AQ19/1000 -> 0 | AA27: =貼り付けシート!AT19/1000 -> 0 | AB27: =貼り付けシート!AW19/1000 -> 0 | AD27: 0 | AE27: =IF(貼り付けシート!$L$23=11,$AG27,IF(($AD$12-$AH$12)/($AG$12-$AH$12)*$AG27+($AD$12-$AG$12)/($AH$12-$AG$12)*$AH27<0,0,($AD$12-$AH$12)/($AG$12-$AH$12)*$AG27+($AD$12-$AG$12)/($AH$12-$AG$12)*$AH27)) -> 0 | AF27: =IF(貼り付けシート!$L$23=11,$AI27,($AF$12-$AJ$12)/($AI$12-$AJ$12)*$AI27+($AF$12-$AI$12)/($AJ$12-$AI$12)*$AJ27) -> 0 | AG27: 0 | AH27: 0 | AI27: 0 | AJ27: 0 | AK27: 0 | AL27: 0 | AM27: 0 | AN27: 0 | AO27: 0 | AP27: 0 | AQ27: =($AQ$10-$BD$10)/($BB$10-$BD$10)*$BB27+($AQ$10-$BB$10)/($BD$10-$BB$10)*$BD27 -> 0 | AR27: 0 | AS27: =-貼り付けシート!AZ19/1000 -> 0 | AT27: =-貼り付けシート!BA19/1000 -> 0 | AU27: =-貼り付けシート!BC19/1000 -> 0 | AV27: =-貼り付けシート!BD19/1000 -> 0 | AW27: =-貼り付けシート!BF19/1000 -> 0 | AX27: =-貼り付けシート!BG19/1000 -> 0 | AY27: =-貼り付けシート!BI19/1000 -> 0 | AZ27: =-貼り付けシート!BJ19/1000 -> 0 | BA27: =-貼り付けシート!BL19/1000 -> 0 | BB27: =-貼り付けシート!BM19/1000 -> 0 | BC27: =-貼り付けシート!BO19/1000 -> 0 | BD27: =-貼り付けシート!BP19/1000 -> 0 | BE27: =-貼り付けシート!BR19/1000 -> 0 | BF27: =-貼り付けシート!BS19/1000 -> 0 | BG27: =-貼り付けシート!BU19/1000 -> 0 | BH27: =-貼り付けシート!BV19/1000 -> 0 | BJ27: =IF(AND(貼り付けシート!$L$16<>"利用しない",貼り付けシート!$L$24=2),"ERR",IF(貼り付けシート!$L$16="通年利用する",IF($M27<=0,0,$BT$26*$BT$27*$BT$16*($BL27-計算結果!$D20)*10^-3-$BT$28*$BT$21*($BT$30-$BL27)*3.6*10^-3+$BT$18*$BT$21*($BT$30-計算結果!$D20)*0.7*3.6*10^-3),0)) -> 0 | BK27: =IF(AND(貼り付けシート!$L$16<>"利用しない",貼り付けシート!$L$24=2),"ERR",IF(貼り付けシート!$L$16="通年利用する",IF($AE27<=0,0,$BT$26*$BT$27*$BT$16*(計算結果!$D20-$BL27)*10^-3+$BT$28*$BT$21*($BT$31-$BL27)*3.6*10^-3-$BT$18*$BT$21*($BT$31-計算結果!$D20)*0.7*3.6*10^-3),0)) -> 0 | BL27: =IFERROR(IF(OR($M27>0,$AE27>0),($BT$26*$BT$27*$BT$17*計算結果!$D20+($BT$22*($BT$28*IF($M27>0,$BT$30,IF($AE27>0,$BT$31,"ERR"))+$BT$29*$BM27)+$BT$19*$BT$20*計算結果!$D20)*3.6)/($BT$26*$BT$27*$BT$17+($BT$22*($BT$28+$BT$29)+$BT$19*$BT$20)*3.6),"ERR"),"ERR") -> ERR | BM27: 19.1084787 | BN27: 1 | BP27: 空気の比熱 | BQ27: － | BR27: Cρ_air | BS27: kJ/(kg・K) | BT27: 1.006
B28: 2014-01-01 | C28: 12時 | D28: 休日 | E28: 0 | F28: 0 | G28: 0 | H28: =IFERROR(L28*IF(入力データ!$G$34>=負荷ファイル名作成データ一覧!$C$9,(貼り付けシート!$G$6-貼り付けシート!$G$7-貼り付けシート!$G$8)/バックデータ一覧!$E$7,IF(入力データ!$G$34=負荷ファイル名作成データ一覧!$C$4,貼り付けシート!$G$7/バックデータ一覧!$E$5,貼り付けシート!$G$8/バックデータ一覧!$E$6)),"ERR") -> 0 | I28: =IFERROR($AD28*IF(入力データ!$G$34>=負荷ファイル名作成データ一覧!$C$9,(貼り付けシート!$G$6-貼り付けシート!$G$7-貼り付けシート!$G$8)/バックデータ一覧!$E$7,IF(入力データ!$G$34=負荷ファイル名作成データ一覧!$C$4,貼り付けシート!$G$7/バックデータ一覧!$E$5,貼り付けシート!$G$8/バックデータ一覧!$E$6)),"ERR") -> 0 | J28: =IFERROR($AF28*IF(入力データ!$G$34>=負荷ファイル名作成データ一覧!$C$9,(貼り付けシート!$G$6-貼り付けシート!$G$7-貼り付けシート!$G$8)/バックデータ一覧!$E$7,IF(入力データ!$G$34=負荷ファイル名作成データ一覧!$C$4,貼り付けシート!$G$7/バックデータ一覧!$E$5,貼り付けシート!$G$8/バックデータ一覧!$E$6)),"ERR") -> 0 | L28: 0 | M28: 0 | N28: =IF(入力データ!$G$19="利用しない",0,IF($O28<=$P28,0,HLOOKUP(LEFT(貼り付けシート!$G$15,2),係数_蓄熱利用の程度,LEFT(貼り付けシート!$L$5,1)+1,FALSE))) -> 0 | O28: 0 | P28: 0 | Q28: 0 | R28: 0 | S28: 0 | T28: 0 | U28: =貼り付けシート!AB20/1000 -> 0 | V28: =貼り付けシート!AE20/1000 -> 0 | W28: =貼り付けシート!AH20/1000 -> 0 | X28: =貼り付けシート!AK20/1000 -> 0 | Y28: =貼り付けシート!AN20/1000 -> 0 | Z28: =貼り付けシート!AQ20/1000 -> 0 | AA28: =貼り付けシート!AT20/1000 -> 0 | AB28: =貼り付けシート!AW20/1000 -> 0 | AD28: 0 | AE28: =IF(貼り付けシート!$L$23=11,$AG28,IF(($AD$12-$AH$12)/($AG$12-$AH$12)*$AG28+($AD$12-$AG$12)/($AH$12-$AG$12)*$AH28<0,0,($AD$12-$AH$12)/($AG$12-$AH$12)*$AG28+($AD$12-$AG$12)/($AH$12-$AG$12)*$AH28)) -> 0 | AF28: =IF(貼り付けシート!$L$23=11,$AI28,($AF$12-$AJ$12)/($AI$12-$AJ$12)*$AI28+($AF$12-$AI$12)/($AJ$12-$AI$12)*$AJ28) -> 0 | AG28: 0 | AH28: 0 | AI28: 0 | AJ28: 0 | AK28: 0 | AL28: 0 | AM28: 0 | AN28: 0 | AO28: 0 | AP28: 0 | AQ28: 0 | AR28: 0 | AS28: =-貼り付けシート!AZ20/1000 -> 0 | AT28: =-貼り付けシート!BA20/1000 -> 0 | AU28: =-貼り付けシート!BC20/1000 -> 0 | AV28: =-貼り付けシート!BD20/1000 -> 0 | AW28: =-貼り付けシート!BF20/1000 -> 0 | AX28: =-貼り付けシート!BG20/1000 -> 0 | AY28: =-貼り付けシート!BI20/1000 -> 0 | AZ28: =-貼り付けシート!BJ20/1000 -> 0 | BA28: =-貼り付けシート!BL20/1000 -> 0 | BB28: =-貼り付けシート!BM20/1000 -> 0 | BC28: =-貼り付けシート!BO20/1000 -> 0 | BD28: =-貼り付けシート!BP20/1000 -> 0 | BE28: =-貼り付けシート!BR20/1000 -> 0 | BF28: =-貼り付けシート!BS20/1000 -> 0 | BG28: =-貼り付けシート!BU20/1000 -> 0 | BH28: =-貼り付けシート!BV20/1000 -> 0 | BJ28: =IF(AND(貼り付けシート!$L$16<>"利用しない",貼り付けシート!$L$24=2),"ERR",IF(貼り付けシート!$L$16="通年利用する",IF($M28<=0,0,$BT$26*$BT$27*$BT$16*($BL28-計算結果!$D21)*10^-3-$BT$28*$BT$21*($BT$30-$BL28)*3.6*10^-3+$BT$18*$BT$21*($BT$30-計算結果!$D21)*0.7*3.6*10^-3),0)) -> 0 | BK28: =IF(AND(貼り付けシート!$L$16<>"利用しない",貼り付けシート!$L$24=2),"ERR",IF(貼り付けシート!$L$16="通年利用する",IF($AE28<=0,0,$BT$26*$BT$27*$BT$16*(計算結果!$D21-$BL28)*10^-3+$BT$28*$BT$21*($BT$31-$BL28)*3.6*10^-3-$BT$18*$BT$21*($BT$31-計算結果!$D21)*0.7*3.6*10^-3),0)) -> 0 | BL28: =IFERROR(IF(OR($M28>0,$AE28>0),($BT$26*$BT$27*$BT$17*計算結果!$D21+($BT$22*($BT$28*IF($M28>0,$BT$30,IF($AE28>0,$BT$31,"ERR"))+$BT$29*$BM28)+$BT$19*$BT$20*計算結果!$D21)*3.6)/($BT$26*$BT$27*$BT$17+($BT$22*($BT$28+$BT$29)+$BT$19*$BT$20)*3.6),"ERR"),"ERR") -> ERR | BM28: 19.1084787 | BN28: 1 | BP28: 床の熱貫流率 | BQ28: － | BR28: U_s | BS28: W/m2K | BT28: 2.223
B29: 2014-01-01 | C29: 13時 | D29: 休日 | E29: 0 | F29: 0 | G29: 0 | H29: =IFERROR(L29*IF(入力データ!$G$34>=負荷ファイル名作成データ一覧!$C$9,(貼り付けシート!$G$6-貼り付けシート!$G$7-貼り付けシート!$G$8)/バックデータ一覧!$E$7,IF(入力データ!$G$34=負荷ファイル名作成データ一覧!$C$4,貼り付けシート!$G$7/バックデータ一覧!$E$5,貼り付けシート!$G$8/バックデータ一覧!$E$6)),"ERR") -> 0 | I29: =IFERROR($AD29*IF(入力データ!$G$34>=負荷ファイル名作成データ一覧!$C$9,(貼り付けシート!$G$6-貼り付けシート!$G$7-貼り付けシート!$G$8)/バックデータ一覧!$E$7,IF(入力データ!$G$34=負荷ファイル名作成データ一覧!$C$4,貼り付けシート!$G$7/バックデータ一覧!$E$5,貼り付けシート!$G$8/バックデータ一覧!$E$6)),"ERR") -> 0 | J29: =IFERROR($AF29*IF(入力データ!$G$34>=負荷ファイル名作成データ一覧!$C$9,(貼り付けシート!$G$6-貼り付けシート!$G$7-貼り付けシート!$G$8)/バックデータ一覧!$E$7,IF(入力データ!$G$34=負荷ファイル名作成データ一覧!$C$4,貼り付けシート!$G$7/バックデータ一覧!$E$5,貼り付けシート!$G$8/バックデータ一覧!$E$6)),"ERR") -> 0 | L29: 0 | M29: 0 | N29: =IF(入力データ!$G$19="利用しない",0,IF($O29<=$P29,0,HLOOKUP(LEFT(貼り付けシート!$G$15,2),係数_蓄熱利用の程度,LEFT(貼り付けシート!$L$5,1)+1,FALSE))) -> 0 | O29: 0 | P29: 0 | Q29: 0 | R29: 0 | S29: 0 | T29: 0 | U29: =貼り付けシート!AB21/1000 -> 0 | V29: =貼り付けシート!AE21/1000 -> 0 | W29: =貼り付けシート!AH21/1000 -> 0 | X29: =貼り付けシート!AK21/1000 -> 0 | Y29: =貼り付けシート!AN21/1000 -> 0 | Z29: =貼り付けシート!AQ21/1000 -> 0 | AA29: =貼り付けシート!AT21/1000 -> 0 | AB29: =貼り付けシート!AW21/1000 -> 0 | AD29: 0 | AE29: =IF(貼り付けシート!$L$23=11,$AG29,IF(($AD$12-$AH$12)/($AG$12-$AH$12)*$AG29+($AD$12-$AG$12)/($AH$12-$AG$12)*$AH29<0,0,($AD$12-$AH$12)/($AG$12-$AH$12)*$AG29+($AD$12-$AG$12)/($AH$12-$AG$12)*$AH29)) -> 0 | AF29: =IF(貼り付けシート!$L$23=11,$AI29,($AF$12-$AJ$12)/($AI$12-$AJ$12)*$AI29+($AF$12-$AI$12)/($AJ$12-$AI$12)*$AJ29) -> 0 | AG29: 0 | AH29: 0 | AI29: 0 | AJ29: 0 | AK29: 0 | AL29: 0 | AM29: 0 | AN29: 0 | AO29: 0 | AP29: 0 | AQ29: 0 | AR29: 0 | AS29: =-貼り付けシート!AZ21/1000 -> 0 | AT29: =-貼り付けシート!BA21/1000 -> 0 | AU29: =-貼り付けシート!BC21/1000 -> 0 | AV29: =-貼り付けシート!BD21/1000 -> 0 | AW29: =-貼り付けシート!BF21/1000 -> 0 | AX29: =-貼り付けシート!BG21/1000 -> 0 | AY29: =-貼り付けシート!BI21/1000 -> 0 | AZ29: =-貼り付けシート!BJ21/1000 -> 0 | BA29: =-貼り付けシート!BL21/1000 -> 0 | BB29: =-貼り付けシート!BM21/1000 -> 0 | BC29: =-貼り付けシート!BO21/1000 -> 0 | BD29: =-貼り付けシート!BP21/1000 -> 0 | BE29: =-貼り付けシート!BR21/1000 -> 0 | BF29: =-貼り付けシート!BS21/1000 -> 0 | BG29: =-貼り付けシート!BU21/1000 -> 0 | BH29: =-貼り付けシート!BV21/1000 -> 0 | BJ29: =IF(AND(貼り付けシート!$L$16<>"利用しない",貼り付けシート!$L$24=2),"ERR",IF(貼り付けシート!$L$16="通年利用する",IF($M29<=0,0,$BT$26*$BT$27*$BT$16*($BL29-計算結果!$D22)*10^-3-$BT$28*$BT$21*($BT$30-$BL29)*3.6*10^-3+$BT$18*$BT$21*($BT$30-計算結果!$D22)*0.7*3.6*10^-3),0)) -> 0 | BK29: =IF(AND(貼り付けシート!$L$16<>"利用しない",貼り付けシート!$L$24=2),"ERR",IF(貼り付けシート!$L$16="通年利用する",IF($AE29<=0,0,$BT$26*$BT$27*$BT$16*(計算結果!$D22-$BL29)*10^-3+$BT$28*$BT$21*($BT$31-$BL29)*3.6*10^-3-$BT$18*$BT$21*($BT$31-計算結果!$D22)*0.7*3.6*10^-3),0)) -> 0 | BL29: =IFERROR(IF(OR($M29>0,$AE29>0),($BT$26*$BT$27*$BT$17*計算結果!$D22+($BT$22*($BT$28*IF($M29>0,$BT$30,IF($AE29>0,$BT$31,"ERR"))+$BT$29*$BM29)+$BT$19*$BT$20*計算結果!$D22)*3.6)/($BT$26*$BT$27*$BT$17+($BT$22*($BT$28+$BT$29)+$BT$19*$BT$20)*3.6),"ERR"),"ERR") -> ERR | BM29: 19.1084787 | BN29: 1 | BP29: 地盤の熱貫流率 | BQ29: － | BR29: U_gf | BS29: W/m2K | BT29: 2.223
